Workbook

Sheet Прейскурант на сортовой прокат_ (hidden)
F2: Прейскурант цен на арматуру/катанку производства ЕВРАЗ ЗСМК в октябре 2016, CPT с НДС
A6: Ключ-связка (вставляется как значение из файла "Для загрузки СРТ с НДС") Удаляются дубликаты значения должны быть каак в считалке | B6: Профилеразмер | C6: Марка стали | D6: Нормативный документ | F6: Юг | P6: =F6 -> Юг | T6: Центр | Z6: =T6 -> Центр | AJ6: =Z6 -> Центр | AN6: Северо-Запад | AT6: =AN6 -> Северо-Запад | AX6: Пополжье | BD6: =AX6 -> Пополжье | BN6: Урал | BV6: Сибирь | CF6: =BV6 -> Сибирь | CI6: Дальний Восток | CN6: =CI6 -> Дальний Восток
D7: на хим. состав | E7: на тех. требование | F7: Астраханская обл. | G7: Республика Адыгея | H7: Волгоградская обл. | I7: Кабардино-Балкарская | J7: Карачаево-Черкесская | K7: Краснодарский край | L7: Респ. Сев. Осетия | M7: Республика Дагестан | N7: Республика Ингушетия | P7: Республика Калмыкия | Q7: Ростовская обл. | R7: Ставропольский край | S7: Чеченская республика | T7: Белгородская обл. | U7: Брянская обл. | V7: Владимирская обл. | W7: Воронежская обл. | X7: г. Москва | Z7: Ивановская обл. | AA7: Калужская обл. | AB7: Костромская обл. | AC7: Курская обл. | AD7: Липецкая обл. | AE7: Московская обл. | AF7: Орловская обл. | AG7: Рязанская обл. | AH7: Смоленская обл. | AJ7: Тамбовская обл. | AK7: Тверская обл. | AL7: Тульская обл. | AM7: Ярославская обл. | AN7: Архангельская обл. | AO7: Вологодская обл. | AP7: г. Санкт-Петербург | AQ7: Ленинградская обл. | AR7: Мурманская обл. | AT7: Новгородская обл. | AU7: Псковская обл. | AV7: Республика Карелия | AW7: Республика Коми | AX7: Кировская обл. | AY7: Нижегородская обл. | AZ7: Оренбургская обл. | BA7: Пензенская обл. | BB7: Пермский край | BD7: Респ. Башкортостан | BE7: Республика Марий Эл | BF7: Республика Мордовия | BG7: Республика Татарстан | BH7: Республика Удмуртия | BI7: Самарская обл. | BJ7: Саратовская обл. | BK7: Ульяновская обл. | BL7: Чувашская республика | BN7: Ненецкий а.о. | BO7: Свердловская обл. | BP7: Тюменская обл. | BQ7: Ханты-Мансийский а.о | BR7: Челябинская обл. | BS7: Курганская обл. | BT7: Ямало-Ненецкий а.о. | BV7: Алтайский край | BW7: Иркутская обл. | BX7: Кемеровская обл. | BY7: Красноярский край | BZ7: Новосибирская обл. | CA7: Омская обл. | CB7: Республика Алтай | CC7: Республика Бурятия | CD7: Республика Тыва | CF7: Республика Хакасия | CG7: Томская обл. | CH7: Читинская обл. | CI7: Амурская обл. | CJ7: Еврейская АО | CK7: Камчатская обл. | CL7: Магаданская обл. | CN7: Приморский край | CO7: Респ. Саха (Якутия) | CP7: Сахалинская обл. | CQ7: Хабаровский край | CR7: Чукотский а.о.
A8: Катанка Ст3_Катанка 6,5 | B8: Катанка 6,5 | C8: 3 пс/ 3 сп, 1 кп, 2 кп, 3кп, 5кп | D8: ГОСТ 380 | E8: ТУ 14-1-5282-94, ГОСТ 30136, ТУ 14-1-1700-91 | F8: =VLOOKUP($A8,'Прайс по регионам'!$B$5:$CJ$50,HLOOKUP('Прейскурант на сортовой прокат_'!F$7,'Прайс по регионам'!$1:$2,2,FALSE)-1,FALSE) -> 43349.47368 | G8: =VLOOKUP($A8,'Прайс по регионам'!$B$5:$CJ$50,HLOOKUP('Прейскурант на сортовой прокат_'!G$7,'Прайс по регионам'!$1:$2,2,FALSE)-1,FALSE) -> 43349.47368 | H8: =VLOOKUP($A8,'Прайс по регионам'!$B$5:$CJ$50,HLOOKUP('Прейскурант на сортовой прокат_'!H$7,'Прайс по регионам'!$1:$2,2,FALSE)-1,FALSE) -> 43038.94737 | I8: =VLOOKUP($A8,'Прайс по регионам'!$B$5:$CJ$50,HLOOKUP('Прейскурант на сортовой прокат_'!I$7,'Прайс по регионам'!$1:$2,2,FALSE)-1,FALSE) -> 44218.94737 | J8: =VLOOKUP($A8,'Прайс по регионам'!$B$5:$CJ$50,HLOOKUP('Прейскурант на сортовой прокат_'!J$7,'Прайс по регионам'!$1:$2,2,FALSE)-1,FALSE) -> 43970.52632 | K8: =VLOOKUP($A8,'Прайс по регионам'!$B$5:$CJ$50,HLOOKUP('Прейскурант на сортовой прокат_'!K$7,'Прайс по регионам'!$1:$2,2,FALSE)-1,FALSE) -> 44094.73684 | L8: =VLOOKUP($A8,'Прайс по регионам'!$B$5:$CJ$50,HLOOKUP('Прейскурант на сортовой прокат_'!L$7,'Прайс по регионам'!$1:$2,2,FALSE)-1,FALSE) -> 44218.94737 | M8: =VLOOKUP($A8,'Прайс по регионам'!$B$5:$CJ$50,HLOOKUP('Прейскурант на сортовой прокат_'!M$7,'Прайс по регионам'!$1:$2,2,FALSE)-1,FALSE) -> 44094.73684 | N8: =VLOOKUP($A8,'Прайс по регионам'!$B$5:$CJ$50,HLOOKUP('Прейскурант на сортовой прокат_'!N$7,'Прайс по регионам'!$1:$2,2,FALSE)-1,FALSE) -> 44218.94737 | O8: =VLOOKUP($A8,'Прайс по регионам'!$B$5:$CJ$50,HLOOKUP('Прейскурант на сортовой прокат_'!O$7,'Прайс по регионам'!$1:$2,2,FALSE)-1,FALSE) ->  | P8: =VLOOKUP($A8,'Прайс по регионам'!$B$5:$CJ$50,HLOOKUP('Прейскурант на сортовой прокат_'!P$7,'Прайс по регионам'!$1:$2,2,FALSE)-1,FALSE) -> 44218.94737 | Q8: =VLOOKUP($A8,'Прайс по регионам'!$B$5:$CJ$50,HLOOKUP('Прейскурант на сортовой прокат_'!Q$7,'Прайс по регионам'!$1:$2,2,FALSE)-1,FALSE) -> 43784.21053 | R8: =VLOOKUP($A8,'Прайс по регионам'!$B$5:$CJ$50,HLOOKUP('Прейскурант на сортовой прокат_'!R$7,'Прайс по регионам'!$1:$2,2,FALSE)-1,FALSE) -> 44094.73684 | S8: =VLOOKUP($A8,'Прайс по регионам'!$B$5:$CJ$50,HLOOKUP('Прейскурант на сортовой прокат_'!S$7,'Прайс по регионам'!$1:$2,2,FALSE)-1,FALSE) -> 43970.52632 | T8: =VLOOKUP($A8,'Прайс по регионам'!$B$5:$CJ$50,HLOOKUP('Прейскурант на сортовой прокат_'!T$7,'Прайс по регионам'!$1:$2,2,FALSE)-1,FALSE) -> 43660 | U8: =VLOOKUP($A8,'Прайс по регионам'!$B$5:$CJ$50,HLOOKUP('Прейскурант на сортовой прокат_'!U$7,'Прайс по регионам'!$1:$2,2,FALSE)-1,FALSE) -> 43660 | V8: =VLOOKUP($A8,'Прайс по регионам'!$B$5:$CJ$50,HLOOKUP('Прейскурант на сортовой прокат_'!V$7,'Прайс по регионам'!$1:$2,2,FALSE)-1,FALSE) -> 42852.63158 | W8: =VLOOKUP($A8,'Прайс по регионам'!$B$5:$CJ$50,HLOOKUP('Прейскурант на сортовой прокат_'!W$7,'Прайс по регионам'!$1:$2,2,FALSE)-1,FALSE) -> 43163.15789 | X8: =VLOOKUP($A8,'Прайс по регионам'!$B$5:$CJ$50,HLOOKUP('Прейскурант на сортовой прокат_'!X$7,'Прайс по регионам'!$1:$2,2,FALSE)-1,FALSE) -> 43038.94737 | Y8: =VLOOKUP($A8,'Прайс по регионам'!$B$5:$CJ$50,HLOOKUP('Прейскурант на сортовой прокат_'!Y$7,'Прайс по регионам'!$1:$2,2,FALSE)-1,FALSE) ->  | Z8: =VLOOKUP($A8,'Прайс по регионам'!$B$5:$CJ$50,HLOOKUP('Прейскурант на сортовой прокат_'!Z$7,'Прайс по регионам'!$1:$2,2,FALSE)-1,FALSE) -> 42852.63158 | AA8: =VLOOKUP($A8,'Прайс по регионам'!$B$5:$CJ$50,HLOOKUP('Прейскурант на сортовой прокат_'!AA$7,'Прайс по регионам'!$1:$2,2,FALSE)-1,FALSE) -> 43349.47368 | AB8: =VLOOKUP($A8,'Прайс по регионам'!$B$5:$CJ$50,HLOOKUP('Прейскурант на сортовой прокат_'!AB$7,'Прайс по регионам'!$1:$2,2,FALSE)-1,FALSE) -> 42852.63158 | AC8: =VLOOKUP($A8,'Прайс по регионам'!$B$5:$CJ$50,HLOOKUP('Прейскурант на сортовой прокат_'!AC$7,'Прайс по регионам'!$1:$2,2,FALSE)-1,FALSE) -> 43473.68421 | AD8: =VLOOKUP($A8,'Прайс по регионам'!$B$5:$CJ$50,HLOOKUP('Прейскурант на сортовой прокат_'!AD$7,'Прайс по регионам'!$1:$2,2,FALSE)-1,FALSE) -> 43038.94737 | AE8: =VLOOKUP($A8,'Прайс по регионам'!$B$5:$CJ$50,HLOOKUP('Прейскурант на сортовой прокат_'!AE$7,'Прайс по регионам'!$1:$2,2,FALSE)-1,FALSE) -> 43038.94737 | AF8: =VLOOKUP($A8,'Прайс по регионам'!$B$5:$CJ$50,HLOOKUP('Прейскурант на сортовой прокат_'!AF$7,'Прайс по регионам'!$1:$2,2,FALSE)-1,FALSE) -> 43349.47368 | AG8: =VLOOKUP($A8,'Прайс по регионам'!$B$5:$CJ$50,HLOOKUP('Прейскурант на сортовой прокат_'!AG$7,'Прайс по регионам'!$1:$2,2,FALSE)-1,FALSE) -> 42976.84211 | AH8: =VLOOKUP($A8,'Прайс по регионам'!$B$5:$CJ$50,HLOOKUP('Прейскурант на сортовой прокат_'!AH$7,'Прайс по регионам'!$1:$2,2,FALSE)-1,FALSE) -> 43349.47368 | AI8: =VLOOKUP($A8,'Прайс по регионам'!$B$5:$CJ$50,HLOOKUP('Прейскурант на сортовой прокат_'!AI$7,'Прайс по регионам'!$1:$2,2,FALSE)-1,FALSE) ->  | AJ8: =VLOOKUP($A8,'Прайс по регионам'!$B$5:$CJ$50,HLOOKUP('Прейскурант на сортовой прокат_'!AJ$7,'Прайс по регионам'!$1:$2,2,FALSE)-1,FALSE) -> 42976.84211 | AK8: =VLOOKUP($A8,'Прайс по регионам'!$B$5:$CJ$50,HLOOKUP('Прейскурант на сортовой прокат_'!AK$7,'Прайс по регионам'!$1:$2,2,FALSE)-1,FALSE) -> 43597.89474 | AL8: =VLOOKUP($A8,'Прайс по регионам'!$B$5:$CJ$50,HLOOKUP('Прейскурант на сортовой прокат_'!AL$7,'Прайс по регионам'!$1:$2,2,FALSE)-1,FALSE) -> 43163.15789 | AM8: =VLOOKUP($A8,'Прайс по регионам'!$B$5:$CJ$50,HLOOKUP('Прейскурант на сортовой прокат_'!AM$7,'Прайс по регионам'!$1:$2,2,FALSE)-1,FALSE) -> 42852.63158 | AN8: =VLOOKUP($A8,'Прайс по регионам'!$B$5:$CJ$50,HLOOKUP('Прейскурант на сортовой прокат_'!AN$7,'Прайс по регионам'!$1:$2,2,FALSE)-1,FALSE) -> 43349.47368 | AO8: =VLOOKUP($A8,'Прайс по регионам'!$B$5:$CJ$50,HLOOKUP('Прейскурант на сортовой прокат_'!AO$7,'Прайс по регионам'!$1:$2,2,FALSE)-1,FALSE) -> 42852.63158 | AP8: =VLOOKUP($A8,'Прайс по регионам'!$B$5:$CJ$50,HLOOKUP('Прейскурант на сортовой прокат_'!AP$7,'Прайс по регионам'!$1:$2,2,FALSE)-1,FALSE) -> 43349.47368 | AQ8: =VLOOKUP($A8,'Прайс по регионам'!$B$5:$CJ$50,HLOOKUP('Прейскурант на сортовой прокат_'!AQ$7,'Прайс по регионам'!$1:$2,2,FALSE)-1,FALSE) -> 43349.47368 | AR8: =VLOOKUP($A8,'Прайс по регионам'!$B$5:$CJ$50,HLOOKUP('Прейскурант на сортовой прокат_'!AR$7,'Прайс по регионам'!$1:$2,2,FALSE)-1,FALSE) -> 44529.47368 | AS8: =VLOOKUP($A8,'Прайс по регионам'!$B$5:$CJ$50,HLOOKUP('Прейскурант на сортовой прокат_'!AS$7,'Прайс по регионам'!$1:$2,2,FALSE)-1,FALSE) ->  | AT8: =VLOOKUP($A8,'Прайс по регионам'!$B$5:$CJ$50,HLOOKUP('Прейскурант на сортовой прокат_'!AT$7,'Прайс по регионам'!$1:$2,2,FALSE)-1,FALSE) -> 43597.89474 | AU8: =VLOOKUP($A8,'Прайс по регионам'!$B$5:$CJ$50,HLOOKUP('Прейскурант на сортовой прокат_'!AU$7,'Прайс по регионам'!$1:$2,2,FALSE)-1,FALSE) -> 43597.89474 | AV8: =VLOOKUP($A8,'Прайс по регионам'!$B$5:$CJ$50,HLOOKUP('Прейскурант на сортовой прокат_'!AV$7,'Прайс по регионам'!$1:$2,2,FALSE)-1,FALSE) -> 43597.89474 | AW8: =VLOOKUP($A8,'Прайс по регионам'!$B$5:$CJ$50,HLOOKUP('Прейскурант на сортовой прокат_'!AW$7,'Прайс по регионам'!$1:$2,2,FALSE)-1,FALSE) -> 43473.68421 | AX8: =VLOOKUP($A8,'Прайс по регионам'!$B$5:$CJ$50,HLOOKUP('Прейскурант на сортовой прокат_'!AX$7,'Прайс по регионам'!$1:$2,2,FALSE)-1,FALSE) -> 41983.15789 | AY8: =VLOOKUP($A8,'Прайс по регионам'!$B$5:$CJ$50,HLOOKUP('Прейскурант на сортовой прокат_'!AY$7,'Прайс по регионам'!$1:$2,2,FALSE)-1,FALSE) -> 42417.89474 | AZ8: =VLOOKUP($A8,'Прайс по регионам'!$B$5:$CJ$50,HLOOKUP('Прейскурант на сортовой прокат_'!AZ$7,'Прайс по регионам'!$1:$2,2,FALSE)-1,FALSE) -> 42107.36842 | BA8: =VLOOKUP($A8,'Прайс по регионам'!$B$5:$CJ$50,HLOOKUP('Прейскурант на сортовой прокат_'!BA$7,'Прайс по регионам'!$1:$2,2,FALSE)-1,FALSE) -> 42542.10526 | BB8: =VLOOKUP($A8,'Прайс по регионам'!$B$5:$CJ$50,HLOOKUP('Прейскурант на сортовой прокат_'!BB$7,'Прайс по регионам'!$1:$2,2,FALSE)-1,FALSE) -> 41672.63158 | BC8: =VLOOKUP($A8,'Прайс по регионам'!$B$5:$CJ$50,HLOOKUP('Прейскурант на сортовой прокат_'!BC$7,'Прайс по регионам'!$1:$2,2,FALSE)-1,FALSE) ->  | BD8: =VLOOKUP($A8,'Прайс по регионам'!$B$5:$CJ$50,HLOOKUP('Прейскурант на сортовой прокат_'!BD$7,'Прайс по регионам'!$1:$2,2,FALSE)-1,FALSE) -> 41672.63158 | BE8: =VLOOKUP($A8,'Прайс по регионам'!$B$5:$CJ$50,HLOOKUP('Прейскурант на сортовой прокат_'!BE$7,'Прайс по регионам'!$1:$2,2,FALSE)-1,FALSE) -> 42107.36842 | BF8: =VLOOKUP($A8,'Прайс по регионам'!$B$5:$CJ$50,HLOOKUP('Прейскурант на сортовой прокат_'!BF$7,'Прайс по регионам'!$1:$2,2,FALSE)-1,FALSE) -> 42417.89474 | BG8: =VLOOKUP($A8,'Прайс по регионам'!$B$5:$CJ$50,HLOOKUP('Прейскурант на сортовой прокат_'!BG$7,'Прайс по регионам'!$1:$2,2,FALSE)-1,FALSE) -> 41983.15789 | BH8: =VLOOKUP($A8,'Прайс по регионам'!$B$5:$CJ$50,HLOOKUP('Прейскурант на сортовой прокат_'!BH$7,'Прайс по регионам'!$1:$2,2,FALSE)-1,FALSE) -> 41672.63158 | BI8: =VLOOKUP($A8,'Прайс по регионам'!$B$5:$CJ$50,HLOOKUP('Прейскурант на сортовой прокат_'!BI$7,'Прайс по регионам'!$1:$2,2,FALSE)-1,FALSE) -> 42231.57895 | BJ8: =VLOOKUP($A8,'Прайс по регионам'!$B$5:$CJ$50,HLOOKUP('Прейскурант на сортовой прокат_'!BJ$7,'Прайс по регионам'!$1:$2,2,FALSE)-1,FALSE) -> 42542.10526 | BK8: =VLOOKUP($A8,'Прайс по регионам'!$B$5:$CJ$50,HLOOKUP('Прейскурант на сортовой прокат_'!BK$7,'Прайс по регионам'!$1:$2,2,FALSE)-1,FALSE) -> 42107.36842 | BL8: =VLOOKUP($A8,'Прайс по регионам'!$B$5:$CJ$50,HLOOKUP('Прейскурант на сортовой прокат_'!BL$7,'Прайс по регионам'!$1:$2,2,FALSE)-1,FALSE) -> 42231.57895 | BM8: =VLOOKUP($A8,'Прайс по регионам'!$B$5:$CJ$50,HLOOKUP('Прейскурант на сортовой прокат_'!BM$7,'Прайс по регионам'!$1:$2,2,FALSE)-1,FALSE) ->  | BN8: =VLOOKUP($A8,'Прайс по регионам'!$B$5:$CJ$50,HLOOKUP('Прейскурант на сортовой прокат_'!BN$7,'Прайс по регионам'!$1:$2,2,FALSE)-1,FALSE) -> 43970.52632 | BO8: =VLOOKUP($A8,'Прайс по регионам'!$B$5:$CJ$50,HLOOKUP('Прейскурант на сортовой прокат_'!BO$7,'Прайс по регионам'!$1:$2,2,FALSE)-1,FALSE) -> 41486.31579 | BP8: =VLOOKUP($A8,'Прайс по регионам'!$B$5:$CJ$50,HLOOKUP('Прейскурант на сортовой прокат_'!BP$7,'Прайс по регионам'!$1:$2,2,FALSE)-1,FALSE) -> 41983.15789 | BQ8: =VLOOKUP($A8,'Прайс по регионам'!$B$5:$CJ$50,HLOOKUP('Прейскурант на сортовой прокат_'!BQ$7,'Прайс по регионам'!$1:$2,2,FALSE)-1,FALSE) -> 41921.05263 | BR8: =VLOOKUP($A8,'Прайс по регионам'!$B$5:$CJ$50,HLOOKUP('Прейскурант на сортовой прокат_'!BR$7,'Прайс по регионам'!$1:$2,2,FALSE)-1,FALSE) -> 41362.10526 | BS8: =VLOOKUP($A8,'Прайс по регионам'!$B$5:$CJ$50,HLOOKUP('Прейскурант на сортовой прокат_'!BS$7,'Прайс по регионам'!$1:$2,2,FALSE)-1,FALSE) -> 40741.05263 | BT8: =VLOOKUP($A8,'Прайс по регионам'!$B$5:$CJ$50,HLOOKUP('Прейскурант на сортовой прокат_'!BT$7,'Прайс по регионам'!$1:$2,2,FALSE)-1,FALSE) -> 43970.52632 | BU8: =VLOOKUP($A8,'Прайс по регионам'!$B$5:$CJ$50,HLOOKUP('Прейскурант на сортовой прокат_'!BU$7,'Прайс по регионам'!$1:$2,2,FALSE)-1,FALSE) ->  | BV8: =VLOOKUP($A8,'Прайс по регионам'!$B$5:$CJ$50,HLOOKUP('Прейскурант на сортовой прокат_'!BV$7,'Прайс по регионам'!$1:$2,2,FALSE)-1,FALSE) -> 43287.36842 | BW8: =VLOOKUP($A8,'Прайс по регионам'!$B$5:$CJ$50,HLOOKUP('Прейскурант на сортовой прокат_'!BW$7,'Прайс по регионам'!$1:$2,2,FALSE)-1,FALSE) -> 45585.26316 | BX8: =VLOOKUP($A8,'Прайс по регионам'!$B$5:$CJ$50,HLOOKUP('Прейскурант на сортовой прокат_'!BX$7,'Прайс по регионам'!$1:$2,2,FALSE)-1,FALSE) -> 44343.15789 | BY8: =VLOOKUP($A8,'Прайс по регионам'!$B$5:$CJ$50,HLOOKUP('Прейскурант на сортовой прокат_'!BY$7,'Прайс по регионам'!$1:$2,2,FALSE)-1,FALSE) -> 45585.26316 | BZ8: =VLOOKUP($A8,'Прайс по регионам'!$B$5:$CJ$50,HLOOKUP('Прейскурант на сортовой прокат_'!BZ$7,'Прайс по регионам'!$1:$2,2,FALSE)-1,FALSE) -> 43287.36842 | CA8: =VLOOKUP($A8,'Прайс по регионам'!$B$5:$CJ$50,HLOOKUP('Прейскурант на сортовой прокат_'!CA$7,'Прайс по регионам'!$1:$2,2,FALSE)-1,FALSE) -> 42231.57895 | CB8: =VLOOKUP($A8,'Прайс по регионам'!$B$5:$CJ$50,HLOOKUP('Прейскурант на сортовой прокат_'!CB$7,'Прайс по регионам'!$1:$2,2,FALSE)-1,FALSE) -> 43287.36842 | CC8: =VLOOKUP($A8,'Прайс по регионам'!$B$5:$CJ$50,HLOOKUP('Прейскурант на сортовой прокат_'!CC$7,'Прайс по регионам'!$1:$2,2,FALSE)-1,FALSE) -> 46082.10526 | CD8: =VLOOKUP($A8,'Прайс по регионам'!$B$5:$CJ$50,HLOOKUP('Прейскурант на сортовой прокат_'!CD$7,'Прайс по регионам'!$1:$2,2,FALSE)-1,FALSE) -> 45585.26316 | CE8: =VLOOKUP($A8,'Прайс по регионам'!$B$5:$CJ$50,HLOOKUP('Прейскурант на сортовой прокат_'!CE$7,'Прайс по регионам'!$1:$2,2,FALSE)-1,FALSE) ->  | CF8: =VLOOKUP($A8,'Прайс по регионам'!$B$5:$CJ$50,HLOOKUP('Прейскурант на сортовой прокат_'!CF$7,'Прайс по регионам'!$1:$2,2,FALSE)-1,FALSE) -> 45585.26316 | CG8: =VLOOKUP($A8,'Прайс по регионам'!$B$5:$CJ$50,HLOOKUP('Прейскурант на сортовой прокат_'!CG$7,'Прайс по регионам'!$1:$2,2,FALSE)-1,FALSE) -> 43287.36842 | CH8: =VLOOKUP($A8,'Прайс по регионам'!$B$5:$CJ$50,HLOOKUP('Прейскурант на сортовой прокат_'!CH$7,'Прайс по регионам'!$1:$2,2,FALSE)-1,FALSE) -> 47696.84211 | CI8: =VLOOKUP($A8,'Прайс по регионам'!$B$5:$CJ$50,HLOOKUP('Прейскурант на сортовой прокат_'!CI$7,'Прайс по регионам'!$1:$2,2,FALSE)-1,FALSE) -> 46765.26316 | CJ8: =VLOOKUP($A8,'Прайс по регионам'!$B$5:$CJ$50,HLOOKUP('Прейскурант на сортовой прокат_'!CJ$7,'Прайс по регионам'!$1:$2,2,FALSE)-1,FALSE) -> 46765.26316 | CK8: =VLOOKUP($A8,'Прайс по регионам'!$B$5:$CJ$50,HLOOKUP('Прейскурант на сортовой прокат_'!CK$7,'Прайс по регионам'!$1:$2,2,FALSE)-1,FALSE) -> 46765.26316 | CL8: =VLOOKUP($A8,'Прайс по регионам'!$B$5:$CJ$50,HLOOKUP('Прейскурант на сортовой прокат_'!CL$7,'Прайс по регионам'!$1:$2,2,FALSE)-1,FALSE) -> 47696.84211 | CM8: =VLOOKUP($A8,'Прайс по регионам'!$B$5:$CJ$50,HLOOKUP('Прейскурант на сортовой прокат_'!CM$7,'Прайс по регионам'!$1:$2,2,FALSE)-1,FALSE) ->  | CN8: =VLOOKUP($A8,'Прайс по регионам'!$B$5:$CJ$50,HLOOKUP('Прейскурант на сортовой прокат_'!CN$7,'Прайс по регионам'!$1:$2,2,FALSE)-1,FALSE) -> 46765.26316 | CO8: =VLOOKUP($A8,'Прайс по регионам'!$B$5:$CJ$50,HLOOKUP('Прейскурант на сортовой прокат_'!CO$7,'Прайс по регионам'!$1:$2,2,FALSE)-1,FALSE) -> 48131.57895 | CP8: =VLOOKUP($A8,'Прайс по регионам'!$B$5:$CJ$50,HLOOKUP('Прейскурант на сортовой прокат_'!CP$7,'Прайс по регионам'!$1:$2,2,FALSE)-1,FALSE) -> 51050.52632 | CQ8: =VLOOKUP($A8,'Прайс по регионам'!$B$5:$CJ$50,HLOOKUP('Прейскурант на сортовой прокат_'!CQ$7,'Прайс по регионам'!$1:$2,2,FALSE)-1,FALSE) -> 47696.84211 | CR8: =VLOOKUP($A8,'Прайс по регионам'!$B$5:$CJ$50,HLOOKUP('Прейскурант на сортовой прокат_'!CR$7,'Прайс по регионам'!$1:$2,2,FALSE)-1,FALSE) -> 47634.73684
A9: кк 50-60_Катанка 6,5 | C9: кк 50, кк 60 | D9: ТУ 14-1-5317-95 | E9: ТУ 14-1-5317-95 | F9: =VLOOKUP($A9,'Прайс по регионам'!$B$5:$CJ$50,HLOOKUP('Прейскурант на сортовой прокат_'!F$7,'Прайс по регионам'!$1:$2,2,FALSE)-1,FALSE) -> 44653.68421 | G9: =VLOOKUP($A9,'Прайс по регионам'!$B$5:$CJ$50,HLOOKUP('Прейскурант на сортовой прокат_'!G$7,'Прайс по регионам'!$1:$2,2,FALSE)-1,FALSE) -> 44653.68421 | H9: =VLOOKUP($A9,'Прайс по регионам'!$B$5:$CJ$50,HLOOKUP('Прейскурант на сортовой прокат_'!H$7,'Прайс по регионам'!$1:$2,2,FALSE)-1,FALSE) -> 44343.15789 | I9: =VLOOKUP($A9,'Прайс по регионам'!$B$5:$CJ$50,HLOOKUP('Прейскурант на сортовой прокат_'!I$7,'Прайс по регионам'!$1:$2,2,FALSE)-1,FALSE) -> 45523.15789 | J9: =VLOOKUP($A9,'Прайс по регионам'!$B$5:$CJ$50,HLOOKUP('Прейскурант на сортовой прокат_'!J$7,'Прайс по регионам'!$1:$2,2,FALSE)-1,FALSE) -> 45336.84211 | K9: =VLOOKUP($A9,'Прайс по регионам'!$B$5:$CJ$50,HLOOKUP('Прейскурант на сортовой прокат_'!K$7,'Прайс по регионам'!$1:$2,2,FALSE)-1,FALSE) -> 45398.94737 | L9: =VLOOKUP($A9,'Прайс по регионам'!$B$5:$CJ$50,HLOOKUP('Прейскурант на сортовой прокат_'!L$7,'Прайс по регионам'!$1:$2,2,FALSE)-1,FALSE) -> 45523.15789 | M9: =VLOOKUP($A9,'Прайс по регионам'!$B$5:$CJ$50,HLOOKUP('Прейскурант на сортовой прокат_'!M$7,'Прайс по регионам'!$1:$2,2,FALSE)-1,FALSE) -> 45398.94737 | N9: =VLOOKUP($A9,'Прайс по регионам'!$B$5:$CJ$50,HLOOKUP('Прейскурант на сортовой прокат_'!N$7,'Прайс по регионам'!$1:$2,2,FALSE)-1,FALSE) -> 45523.15789 | O9: =VLOOKUP($A9,'Прайс по регионам'!$B$5:$CJ$50,HLOOKUP('Прейскурант на сортовой прокат_'!O$7,'Прайс по регионам'!$1:$2,2,FALSE)-1,FALSE) ->  | P9: =VLOOKUP($A9,'Прайс по регионам'!$B$5:$CJ$50,HLOOKUP('Прейскурант на сортовой прокат_'!P$7,'Прайс по регионам'!$1:$2,2,FALSE)-1,FALSE) -> 45523.15789 | Q9: =VLOOKUP($A9,'Прайс по регионам'!$B$5:$CJ$50,HLOOKUP('Прейскурант на сортовой прокат_'!Q$7,'Прайс по регионам'!$1:$2,2,FALSE)-1,FALSE) -> 45088.42105 | R9: =VLOOKUP($A9,'Прайс по регионам'!$B$5:$CJ$50,HLOOKUP('Прейскурант на сортовой прокат_'!R$7,'Прайс по регионам'!$1:$2,2,FALSE)-1,FALSE) -> 45398.94737 | S9: =VLOOKUP($A9,'Прайс по регионам'!$B$5:$CJ$50,HLOOKUP('Прейскурант на сортовой прокат_'!S$7,'Прайс по регионам'!$1:$2,2,FALSE)-1,FALSE) -> 45336.84211 | T9: =VLOOKUP($A9,'Прайс по регионам'!$B$5:$CJ$50,HLOOKUP('Прейскурант на сортовой прокат_'!T$7,'Прайс по регионам'!$1:$2,2,FALSE)-1,FALSE) -> 45026.31579 | U9: =VLOOKUP($A9,'Прайс по регионам'!$B$5:$CJ$50,HLOOKUP('Прейскурант на сортовой прокат_'!U$7,'Прайс по регионам'!$1:$2,2,FALSE)-1,FALSE) -> 45026.31579 | V9: =VLOOKUP($A9,'Прайс по регионам'!$B$5:$CJ$50,HLOOKUP('Прейскурант на сортовой прокат_'!V$7,'Прайс по регионам'!$1:$2,2,FALSE)-1,FALSE) -> 44156.84211 | W9: =VLOOKUP($A9,'Прайс по регионам'!$B$5:$CJ$50,HLOOKUP('Прейскурант на сортовой прокат_'!W$7,'Прайс по регионам'!$1:$2,2,FALSE)-1,FALSE) -> 44467.36842 | X9: =VLOOKUP($A9,'Прайс по регионам'!$B$5:$CJ$50,HLOOKUP('Прейскурант на сортовой прокат_'!X$7,'Прайс по регионам'!$1:$2,2,FALSE)-1,FALSE) -> 44343.15789 | Y9: =VLOOKUP($A9,'Прайс по регионам'!$B$5:$CJ$50,HLOOKUP('Прейскурант на сортовой прокат_'!Y$7,'Прайс по регионам'!$1:$2,2,FALSE)-1,FALSE) ->  | Z9: =VLOOKUP($A9,'Прайс по регионам'!$B$5:$CJ$50,HLOOKUP('Прейскурант на сортовой прокат_'!Z$7,'Прайс по регионам'!$1:$2,2,FALSE)-1,FALSE) -> 44156.84211 | AA9: =VLOOKUP($A9,'Прайс по регионам'!$B$5:$CJ$50,HLOOKUP('Прейскурант на сортовой прокат_'!AA$7,'Прайс по регионам'!$1:$2,2,FALSE)-1,FALSE) -> 44653.68421 | AB9: =VLOOKUP($A9,'Прайс по регионам'!$B$5:$CJ$50,HLOOKUP('Прейскурант на сортовой прокат_'!AB$7,'Прайс по регионам'!$1:$2,2,FALSE)-1,FALSE) -> 44156.84211 | AC9: =VLOOKUP($A9,'Прайс по регионам'!$B$5:$CJ$50,HLOOKUP('Прейскурант на сортовой прокат_'!AC$7,'Прайс по регионам'!$1:$2,2,FALSE)-1,FALSE) -> 44777.89474 | AD9: =VLOOKUP($A9,'Прайс по регионам'!$B$5:$CJ$50,HLOOKUP('Прейскурант на сортовой прокат_'!AD$7,'Прайс по регионам'!$1:$2,2,FALSE)-1,FALSE) -> 44343.15789 | AE9: =VLOOKUP($A9,'Прайс по регионам'!$B$5:$CJ$50,HLOOKUP('Прейскурант на сортовой прокат_'!AE$7,'Прайс по регионам'!$1:$2,2,FALSE)-1,FALSE) -> 44343.15789 | AF9: =VLOOKUP($A9,'Прайс по регионам'!$B$5:$CJ$50,HLOOKUP('Прейскурант на сортовой прокат_'!AF$7,'Прайс по регионам'!$1:$2,2,FALSE)-1,FALSE) -> 44653.68421 | AG9: =VLOOKUP($A9,'Прайс по регионам'!$B$5:$CJ$50,HLOOKUP('Прейскурант на сортовой прокат_'!AG$7,'Прайс по регионам'!$1:$2,2,FALSE)-1,FALSE) -> 44281.05263 | AH9: =VLOOKUP($A9,'Прайс по регионам'!$B$5:$CJ$50,HLOOKUP('Прейскурант на сортовой прокат_'!AH$7,'Прайс по регионам'!$1:$2,2,FALSE)-1,FALSE) -> 44653.68421 | AI9: =VLOOKUP($A9,'Прайс по регионам'!$B$5:$CJ$50,HLOOKUP('Прейскурант на сортовой прокат_'!AI$7,'Прайс по регионам'!$1:$2,2,FALSE)-1,FALSE) ->  | AJ9: =VLOOKUP($A9,'Прайс по регионам'!$B$5:$CJ$50,HLOOKUP('Прейскурант на сортовой прокат_'!AJ$7,'Прайс по регионам'!$1:$2,2,FALSE)-1,FALSE) -> 44281.05263 | AK9: =VLOOKUP($A9,'Прайс по регионам'!$B$5:$CJ$50,HLOOKUP('Прейскурант на сортовой прокат_'!AK$7,'Прайс по регионам'!$1:$2,2,FALSE)-1,FALSE) -> 44902.10526 | AL9: =VLOOKUP($A9,'Прайс по регионам'!$B$5:$CJ$50,HLOOKUP('Прейскурант на сортовой прокат_'!AL$7,'Прайс по регионам'!$1:$2,2,FALSE)-1,FALSE) -> 44467.36842 | AM9: =VLOOKUP($A9,'Прайс по регионам'!$B$5:$CJ$50,HLOOKUP('Прейскурант на сортовой прокат_'!AM$7,'Прайс по регионам'!$1:$2,2,FALSE)-1,FALSE) -> 44156.84211 | AN9: =VLOOKUP($A9,'Прайс по регионам'!$B$5:$CJ$50,HLOOKUP('Прейскурант на сортовой прокат_'!AN$7,'Прайс по регионам'!$1:$2,2,FALSE)-1,FALSE) -> 44653.68421 | AO9: =VLOOKUP($A9,'Прайс по регионам'!$B$5:$CJ$50,HLOOKUP('Прейскурант на сортовой прокат_'!AO$7,'Прайс по регионам'!$1:$2,2,FALSE)-1,FALSE) -> 44156.84211 | AP9: =VLOOKUP($A9,'Прайс по регионам'!$B$5:$CJ$50,HLOOKUP('Прейскурант на сортовой прокат_'!AP$7,'Прайс по регионам'!$1:$2,2,FALSE)-1,FALSE) -> 44653.68421 | AQ9: =VLOOKUP($A9,'Прайс по регионам'!$B$5:$CJ$50,HLOOKUP('Прейскурант на сортовой прокат_'!AQ$7,'Прайс по регионам'!$1:$2,2,FALSE)-1,FALSE) -> 44653.68421 | AR9: =VLOOKUP($A9,'Прайс по регионам'!$B$5:$CJ$50,HLOOKUP('Прейскурант на сортовой прокат_'!AR$7,'Прайс по регионам'!$1:$2,2,FALSE)-1,FALSE) -> 45833.68421 | AS9: =VLOOKUP($A9,'Прайс по регионам'!$B$5:$CJ$50,HLOOKUP('Прейскурант на сортовой прокат_'!AS$7,'Прайс по регионам'!$1:$2,2,FALSE)-1,FALSE) ->  | AT9: =VLOOKUP($A9,'Прайс по регионам'!$B$5:$CJ$50,HLOOKUP('Прейскурант на сортовой прокат_'!AT$7,'Прайс по регионам'!$1:$2,2,FALSE)-1,FALSE) -> 44902.10526 | AU9: =VLOOKUP($A9,'Прайс по регионам'!$B$5:$CJ$50,HLOOKUP('Прейскурант на сортовой прокат_'!AU$7,'Прайс по регионам'!$1:$2,2,FALSE)-1,FALSE) -> 44902.10526 | AV9: =VLOOKUP($A9,'Прайс по регионам'!$B$5:$CJ$50,HLOOKUP('Прейскурант на сортовой прокат_'!AV$7,'Прайс по регионам'!$1:$2,2,FALSE)-1,FALSE) -> 44902.10526 | AW9: =VLOOKUP($A9,'Прайс по регионам'!$B$5:$CJ$50,HLOOKUP('Прейскурант на сортовой прокат_'!AW$7,'Прайс по регионам'!$1:$2,2,FALSE)-1,FALSE) -> 44777.89474 | AX9: =VLOOKUP($A9,'Прайс по регионам'!$B$5:$CJ$50,HLOOKUP('Прейскурант на сортовой прокат_'!AX$7,'Прайс по регионам'!$1:$2,2,FALSE)-1,FALSE) -> 43287.36842 | AY9: =VLOOKUP($A9,'Прайс по регионам'!$B$5:$CJ$50,HLOOKUP('Прейскурант на сортовой прокат_'!AY$7,'Прайс по регионам'!$1:$2,2,FALSE)-1,FALSE) -> 43722.10526 | AZ9: =VLOOKUP($A9,'Прайс по регионам'!$B$5:$CJ$50,HLOOKUP('Прейскурант на сортовой прокат_'!AZ$7,'Прайс по регионам'!$1:$2,2,FALSE)-1,FALSE) -> 43411.57895 | BA9: =VLOOKUP($A9,'Прайс по регионам'!$B$5:$CJ$50,HLOOKUP('Прейскурант на сортовой прокат_'!BA$7,'Прайс по регионам'!$1:$2,2,FALSE)-1,FALSE) -> 43846.31579 | BB9: =VLOOKUP($A9,'Прайс по регионам'!$B$5:$CJ$50,HLOOKUP('Прейскурант на сортовой прокат_'!BB$7,'Прайс по регионам'!$1:$2,2,FALSE)-1,FALSE) -> 42976.84211 | BC9: =VLOOKUP($A9,'Прайс по регионам'!$B$5:$CJ$50,HLOOKUP('Прейскурант на сортовой прокат_'!BC$7,'Прайс по регионам'!$1:$2,2,FALSE)-1,FALSE) ->  | BD9: =VLOOKUP($A9,'Прайс по регионам'!$B$5:$CJ$50,HLOOKUP('Прейскурант на сортовой прокат_'!BD$7,'Прайс по регионам'!$1:$2,2,FALSE)-1,FALSE) -> 42976.84211 | BE9: =VLOOKUP($A9,'Прайс по регионам'!$B$5:$CJ$50,HLOOKUP('Прейскурант на сортовой прокат_'!BE$7,'Прайс по регионам'!$1:$2,2,FALSE)-1,FALSE) -> 43411.57895 | BF9: =VLOOKUP($A9,'Прайс по регионам'!$B$5:$CJ$50,HLOOKUP('Прейскурант на сортовой прокат_'!BF$7,'Прайс по регионам'!$1:$2,2,FALSE)-1,FALSE) -> 43722.10526 | BG9: =VLOOKUP($A9,'Прайс по регионам'!$B$5:$CJ$50,HLOOKUP('Прейскурант на сортовой прокат_'!BG$7,'Прайс по регионам'!$1:$2,2,FALSE)-1,FALSE) -> 43287.36842 | BH9: =VLOOKUP($A9,'Прайс по регионам'!$B$5:$CJ$50,HLOOKUP('Прейскурант на сортовой прокат_'!BH$7,'Прайс по регионам'!$1:$2,2,FALSE)-1,FALSE) -> 42976.84211 | BI9: =VLOOKUP($A9,'Прайс по регионам'!$B$5:$CJ$50,HLOOKUP('Прейскурант на сортовой прокат_'!BI$7,'Прайс по регионам'!$1:$2,2,FALSE)-1,FALSE) -> 43535.78947 | BJ9: =VLOOKUP($A9,'Прайс по регионам'!$B$5:$CJ$50,HLOOKUP('Прейскурант на сортовой прокат_'!BJ$7,'Прайс по регионам'!$1:$2,2,FALSE)-1,FALSE) -> 43846.31579 | BK9: =VLOOKUP($A9,'Прайс по регионам'!$B$5:$CJ$50,HLOOKUP('Прейскурант на сортовой прокат_'!BK$7,'Прайс по регионам'!$1:$2,2,FALSE)-1,FALSE) -> 43411.57895 | BL9: =VLOOKUP($A9,'Прайс по регионам'!$B$5:$CJ$50,HLOOKUP('Прейскурант на сортовой прокат_'!BL$7,'Прайс по регионам'!$1:$2,2,FALSE)-1,FALSE) -> 43535.78947 | BM9: =VLOOKUP($A9,'Прайс по регионам'!$B$5:$CJ$50,HLOOKUP('Прейскурант на сортовой прокат_'!BM$7,'Прайс по регионам'!$1:$2,2,FALSE)-1,FALSE) ->  | BN9: =VLOOKUP($A9,'Прайс по регионам'!$B$5:$CJ$50,HLOOKUP('Прейскурант на сортовой прокат_'!BN$7,'Прайс по регионам'!$1:$2,2,FALSE)-1,FALSE) -> 45336.84211 | BO9: =VLOOKUP($A9,'Прайс по регионам'!$B$5:$CJ$50,HLOOKUP('Прейскурант на сортовой прокат_'!BO$7,'Прайс по регионам'!$1:$2,2,FALSE)-1,FALSE) -> 42790.52632 | BP9: =VLOOKUP($A9,'Прайс по регионам'!$B$5:$CJ$50,HLOOKUP('Прейскурант на сортовой прокат_'!BP$7,'Прайс по регионам'!$1:$2,2,FALSE)-1,FALSE) -> 43287.36842 | BQ9: =VLOOKUP($A9,'Прайс по регионам'!$B$5:$CJ$50,HLOOKUP('Прейскурант на сортовой прокат_'!BQ$7,'Прайс по регионам'!$1:$2,2,FALSE)-1,FALSE) -> 43225.26316 | BR9: =VLOOKUP($A9,'Прайс по регионам'!$B$5:$CJ$50,HLOOKUP('Прейскурант на сортовой прокат_'!BR$7,'Прайс по регионам'!$1:$2,2,FALSE)-1,FALSE) -> 42666.31579 | BS9: =VLOOKUP($A9,'Прайс по регионам'!$B$5:$CJ$50,HLOOKUP('Прейскурант на сортовой прокат_'!BS$7,'Прайс по регионам'!$1:$2,2,FALSE)-1,FALSE) -> 42045.26316 | BT9: =VLOOKUP($A9,'Прайс по регионам'!$B$5:$CJ$50,HLOOKUP('Прейскурант на сортовой прокат_'!BT$7,'Прайс по регионам'!$1:$2,2,FALSE)-1,FALSE) -> 45336.84211 | BU9: =VLOOKUP($A9,'Прайс по регионам'!$B$5:$CJ$50,HLOOKUP('Прейскурант на сортовой прокат_'!BU$7,'Прайс по регионам'!$1:$2,2,FALSE)-1,FALSE) ->  | BV9: =VLOOKUP($A9,'Прайс по регионам'!$B$5:$CJ$50,HLOOKUP('Прейскурант на сортовой прокат_'!BV$7,'Прайс по регионам'!$1:$2,2,FALSE)-1,FALSE) -> 44591.57895 | BW9: =VLOOKUP($A9,'Прайс по регионам'!$B$5:$CJ$50,HLOOKUP('Прейскурант на сортовой прокат_'!BW$7,'Прайс по регионам'!$1:$2,2,FALSE)-1,FALSE) -> 46889.47368 | BX9: =VLOOKUP($A9,'Прайс по регионам'!$B$5:$CJ$50,HLOOKUP('Прейскурант на сортовой прокат_'!BX$7,'Прайс по регионам'!$1:$2,2,FALSE)-1,FALSE) -> 44591.57895 | BY9: =VLOOKUP($A9,'Прайс по регионам'!$B$5:$CJ$50,HLOOKUP('Прейскурант на сортовой прокат_'!BY$7,'Прайс по регионам'!$1:$2,2,FALSE)-1,FALSE) -> 46889.47368 | BZ9: =VLOOKUP($A9,'Прайс по регионам'!$B$5:$CJ$50,HLOOKUP('Прейскурант на сортовой прокат_'!BZ$7,'Прайс по регионам'!$1:$2,2,FALSE)-1,FALSE) -> 44591.57895 | CA9: =VLOOKUP($A9,'Прайс по регионам'!$B$5:$CJ$50,HLOOKUP('Прейскурант на сортовой прокат_'!CA$7,'Прайс по регионам'!$1:$2,2,FALSE)-1,FALSE) -> 43535.78947 | CB9: =VLOOKUP($A9,'Прайс по регионам'!$B$5:$CJ$50,HLOOKUP('Прейскурант на сортовой прокат_'!CB$7,'Прайс по регионам'!$1:$2,2,FALSE)-1,FALSE) -> 44591.57895 | CC9: =VLOOKUP($A9,'Прайс по регионам'!$B$5:$CJ$50,HLOOKUP('Прейскурант на сортовой прокат_'!CC$7,'Прайс по регионам'!$1:$2,2,FALSE)-1,FALSE) -> 47448.42105 | CD9: =VLOOKUP($A9,'Прайс по регионам'!$B$5:$CJ$50,HLOOKUP('Прейскурант на сортовой прокат_'!CD$7,'Прайс по регионам'!$1:$2,2,FALSE)-1,FALSE) -> 46889.47368 | CE9: =VLOOKUP($A9,'Прайс по регионам'!$B$5:$CJ$50,HLOOKUP('Прейскурант на сортовой прокат_'!CE$7,'Прайс по регионам'!$1:$2,2,FALSE)-1,FALSE) ->  | CF9: =VLOOKUP($A9,'Прайс по регионам'!$B$5:$CJ$50,HLOOKUP('Прейскурант на сортовой прокат_'!CF$7,'Прайс по регионам'!$1:$2,2,FALSE)-1,FALSE) -> 46889.47368 | CG9: =VLOOKUP($A9,'Прайс по регионам'!$B$5:$CJ$50,HLOOKUP('Прейскурант на сортовой прокат_'!CG$7,'Прайс по регионам'!$1:$2,2,FALSE)-1,FALSE) -> 44591.57895 | CH9: =VLOOKUP($A9,'Прайс по регионам'!$B$5:$CJ$50,HLOOKUP('Прейскурант на сортовой прокат_'!CH$7,'Прайс по регионам'!$1:$2,2,FALSE)-1,FALSE) -> 49001.05263 | CI9: =VLOOKUP($A9,'Прайс по регионам'!$B$5:$CJ$50,HLOOKUP('Прейскурант на сортовой прокат_'!CI$7,'Прайс по регионам'!$1:$2,2,FALSE)-1,FALSE) -> 48069.47368 | CJ9: =VLOOKUP($A9,'Прайс по регионам'!$B$5:$CJ$50,HLOOKUP('Прейскурант на сортовой прокат_'!CJ$7,'Прайс по регионам'!$1:$2,2,FALSE)-1,FALSE) -> 48069.47368 | CK9: =VLOOKUP($A9,'Прайс по регионам'!$B$5:$CJ$50,HLOOKUP('Прейскурант на сортовой прокат_'!CK$7,'Прайс по регионам'!$1:$2,2,FALSE)-1,FALSE) -> 48069.47368 | CL9: =VLOOKUP($A9,'Прайс по регионам'!$B$5:$CJ$50,HLOOKUP('Прейскурант на сортовой прокат_'!CL$7,'Прайс по регионам'!$1:$2,2,FALSE)-1,FALSE) -> 49001.05263 | CM9: =VLOOKUP($A9,'Прайс по регионам'!$B$5:$CJ$50,HLOOKUP('Прейскурант на сортовой прокат_'!CM$7,'Прайс по регионам'!$1:$2,2,FALSE)-1,FALSE) ->  | CN9: =VLOOKUP($A9,'Прайс по регионам'!$B$5:$CJ$50,HLOOKUP('Прейскурант на сортовой прокат_'!CN$7,'Прайс по регионам'!$1:$2,2,FALSE)-1,FALSE) -> 48069.47368 | CO9: =VLOOKUP($A9,'Прайс по регионам'!$B$5:$CJ$50,HLOOKUP('Прейскурант на сортовой прокат_'!CO$7,'Прайс по регионам'!$1:$2,2,FALSE)-1,FALSE) -> 49435.78947 | CP9: =VLOOKUP($A9,'Прайс по регионам'!$B$5:$CJ$50,HLOOKUP('Прейскурант на сортовой прокат_'!CP$7,'Прайс по регионам'!$1:$2,2,FALSE)-1,FALSE) -> 52354.73684 | CQ9: =VLOOKUP($A9,'Прайс по регионам'!$B$5:$CJ$50,HLOOKUP('Прейскурант на сортовой прокат_'!CQ$7,'Прайс по регионам'!$1:$2,2,FALSE)-1,FALSE) -> 49001.05263 | CR9: =VLOOKUP($A9,'Прайс по регионам'!$B$5:$CJ$50,HLOOKUP('Прейскурант на сортовой прокат_'!CR$7,'Прайс по регионам'!$1:$2,2,FALSE)-1,FALSE) -> 48938.94737
A10: кк 65-75_Катанка 6,5 | C10: кк 65, кк 70, кк 75 | D10: ТУ 14-1-5317-95 | E10: ТУ 14-1-5317-95 | F10: =VLOOKUP($A10,'Прайс по регионам'!$B$5:$CJ$50,HLOOKUP('Прейскурант на сортовой прокат_'!F$7,'Прайс по регионам'!$1:$2,2,FALSE)-1,FALSE) -> 46082.10526 | G10: =VLOOKUP($A10,'Прайс по регионам'!$B$5:$CJ$50,HLOOKUP('Прейскурант на сортовой прокат_'!G$7,'Прайс по регионам'!$1:$2,2,FALSE)-1,FALSE) -> 46082.10526 | H10: =VLOOKUP($A10,'Прайс по регионам'!$B$5:$CJ$50,HLOOKUP('Прейскурант на сортовой прокат_'!H$7,'Прайс по регионам'!$1:$2,2,FALSE)-1,FALSE) -> 45771.57895 | I10: =VLOOKUP($A10,'Прайс по регионам'!$B$5:$CJ$50,HLOOKUP('Прейскурант на сортовой прокат_'!I$7,'Прайс по регионам'!$1:$2,2,FALSE)-1,FALSE) -> 46951.57895 | J10: =VLOOKUP($A10,'Прайс по регионам'!$B$5:$CJ$50,HLOOKUP('Прейскурант на сортовой прокат_'!J$7,'Прайс по регионам'!$1:$2,2,FALSE)-1,FALSE) -> 46765.26316 | K10: =VLOOKUP($A10,'Прайс по регионам'!$B$5:$CJ$50,HLOOKUP('Прейскурант на сортовой прокат_'!K$7,'Прайс по регионам'!$1:$2,2,FALSE)-1,FALSE) -> 46827.36842 | L10: =VLOOKUP($A10,'Прайс по регионам'!$B$5:$CJ$50,HLOOKUP('Прейскурант на сортовой прокат_'!L$7,'Прайс по регионам'!$1:$2,2,FALSE)-1,FALSE) -> 46951.57895 | M10: =VLOOKUP($A10,'Прайс по регионам'!$B$5:$CJ$50,HLOOKUP('Прейскурант на сортовой прокат_'!M$7,'Прайс по регионам'!$1:$2,2,FALSE)-1,FALSE) -> 46827.36842 | N10: =VLOOKUP($A10,'Прайс по регионам'!$B$5:$CJ$50,HLOOKUP('Прейскурант на сортовой прокат_'!N$7,'Прайс по регионам'!$1:$2,2,FALSE)-1,FALSE) -> 46951.57895 | O10: =VLOOKUP($A10,'Прайс по регионам'!$B$5:$CJ$50,HLOOKUP('Прейскурант на сортовой прокат_'!O$7,'Прайс по регионам'!$1:$2,2,FALSE)-1,FALSE) ->  | P10: =VLOOKUP($A10,'Прайс по регионам'!$B$5:$CJ$50,HLOOKUP('Прейскурант на сортовой прокат_'!P$7,'Прайс по регионам'!$1:$2,2,FALSE)-1,FALSE) -> 46951.57895 | Q10: =VLOOKUP($A10,'Прайс по регионам'!$B$5:$CJ$50,HLOOKUP('Прейскурант на сортовой прокат_'!Q$7,'Прайс по регионам'!$1:$2,2,FALSE)-1,FALSE) -> 46516.84211 | R10: =VLOOKUP($A10,'Прайс по регионам'!$B$5:$CJ$50,HLOOKUP('Прейскурант на сортовой прокат_'!R$7,'Прайс по регионам'!$1:$2,2,FALSE)-1,FALSE) -> 46827.36842 | S10: =VLOOKUP($A10,'Прайс по регионам'!$B$5:$CJ$50,HLOOKUP('Прейскурант на сортовой прокат_'!S$7,'Прайс по регионам'!$1:$2,2,FALSE)-1,FALSE) -> 46765.26316 | T10: =VLOOKUP($A10,'Прайс по регионам'!$B$5:$CJ$50,HLOOKUP('Прейскурант на сортовой прокат_'!T$7,'Прайс по регионам'!$1:$2,2,FALSE)-1,FALSE) -> 46392.63158 | U10: =VLOOKUP($A10,'Прайс по регионам'!$B$5:$CJ$50,HLOOKUP('Прейскурант на сортовой прокат_'!U$7,'Прайс по регионам'!$1:$2,2,FALSE)-1,FALSE) -> 46392.63158 | V10: =VLOOKUP($A10,'Прайс по регионам'!$B$5:$CJ$50,HLOOKUP('Прейскурант на сортовой прокат_'!V$7,'Прайс по регионам'!$1:$2,2,FALSE)-1,FALSE) -> 45585.26316 | W10: =VLOOKUP($A10,'Прайс по регионам'!$B$5:$CJ$50,HLOOKUP('Прейскурант на сортовой прокат_'!W$7,'Прайс по регионам'!$1:$2,2,FALSE)-1,FALSE) -> 45895.78947 | X10: =VLOOKUP($A10,'Прайс по регионам'!$B$5:$CJ$50,HLOOKUP('Прейскурант на сортовой прокат_'!X$7,'Прайс по регионам'!$1:$2,2,FALSE)-1,FALSE) -> 45771.57895 | Y10: =VLOOKUP($A10,'Прайс по регионам'!$B$5:$CJ$50,HLOOKUP('Прейскурант на сортовой прокат_'!Y$7,'Прайс по регионам'!$1:$2,2,FALSE)-1,FALSE) ->  | Z10: =VLOOKUP($A10,'Прайс по регионам'!$B$5:$CJ$50,HLOOKUP('Прейскурант на сортовой прокат_'!Z$7,'Прайс по регионам'!$1:$2,2,FALSE)-1,FALSE) -> 45585.26316 | AA10: =VLOOKUP($A10,'Прайс по регионам'!$B$5:$CJ$50,HLOOKUP('Прейскурант на сортовой прокат_'!AA$7,'Прайс по регионам'!$1:$2,2,FALSE)-1,FALSE) -> 46082.10526 | AB10: =VLOOKUP($A10,'Прайс по регионам'!$B$5:$CJ$50,HLOOKUP('Прейскурант на сортовой прокат_'!AB$7,'Прайс по регионам'!$1:$2,2,FALSE)-1,FALSE) -> 45585.26316 | AC10: =VLOOKUP($A10,'Прайс по регионам'!$B$5:$CJ$50,HLOOKUP('Прейскурант на сортовой прокат_'!AC$7,'Прайс по регионам'!$1:$2,2,FALSE)-1,FALSE) -> 46206.31579 | AD10: =VLOOKUP($A10,'Прайс по регионам'!$B$5:$CJ$50,HLOOKUP('Прейскурант на сортовой прокат_'!AD$7,'Прайс по регионам'!$1:$2,2,FALSE)-1,FALSE) -> 45771.57895 | AE10: =VLOOKUP($A10,'Прайс по регионам'!$B$5:$CJ$50,HLOOKUP('Прейскурант на сортовой прокат_'!AE$7,'Прайс по регионам'!$1:$2,2,FALSE)-1,FALSE) -> 45771.57895 | AF10: =VLOOKUP($A10,'Прайс по регионам'!$B$5:$CJ$50,HLOOKUP('Прейскурант на сортовой прокат_'!AF$7,'Прайс по регионам'!$1:$2,2,FALSE)-1,FALSE) -> 46082.10526 | AG10: =VLOOKUP($A10,'Прайс по регионам'!$B$5:$CJ$50,HLOOKUP('Прейскурант на сортовой прокат_'!AG$7,'Прайс по регионам'!$1:$2,2,FALSE)-1,FALSE) -> 45709.47368 | AH10: =VLOOKUP($A10,'Прайс по регионам'!$B$5:$CJ$50,HLOOKUP('Прейскурант на сортовой прокат_'!AH$7,'Прайс по регионам'!$1:$2,2,FALSE)-1,FALSE) -> 46082.10526 | AI10: =VLOOKUP($A10,'Прайс по регионам'!$B$5:$CJ$50,HLOOKUP('Прейскурант на сортовой прокат_'!AI$7,'Прайс по регионам'!$1:$2,2,FALSE)-1,FALSE) ->  | AJ10: =VLOOKUP($A10,'Прайс по регионам'!$B$5:$CJ$50,HLOOKUP('Прейскурант на сортовой прокат_'!AJ$7,'Прайс по регионам'!$1:$2,2,FALSE)-1,FALSE) -> 45709.47368 | AK10: =VLOOKUP($A10,'Прайс по регионам'!$B$5:$CJ$50,HLOOKUP('Прейскурант на сортовой прокат_'!AK$7,'Прайс по регионам'!$1:$2,2,FALSE)-1,FALSE) -> 46330.52632 | AL10: =VLOOKUP($A10,'Прайс по регионам'!$B$5:$CJ$50,HLOOKUP('Прейскурант на сортовой прокат_'!AL$7,'Прайс по регионам'!$1:$2,2,FALSE)-1,FALSE) -> 45895.78947 | AM10: =VLOOKUP($A10,'Прайс по регионам'!$B$5:$CJ$50,HLOOKUP('Прейскурант на сортовой прокат_'!AM$7,'Прайс по регионам'!$1:$2,2,FALSE)-1,FALSE) -> 45585.26316 | AN10: =VLOOKUP($A10,'Прайс по регионам'!$B$5:$CJ$50,HLOOKUP('Прейскурант на сортовой прокат_'!AN$7,'Прайс по регионам'!$1:$2,2,FALSE)-1,FALSE) -> 46082.10526 | AO10: =VLOOKUP($A10,'Прайс по регионам'!$B$5:$CJ$50,HLOOKUP('Прейскурант на сортовой прокат_'!AO$7,'Прайс по регионам'!$1:$2,2,FALSE)-1,FALSE) -> 45585.26316 | AP10: =VLOOKUP($A10,'Прайс по регионам'!$B$5:$CJ$50,HLOOKUP('Прейскурант на сортовой прокат_'!AP$7,'Прайс по регионам'!$1:$2,2,FALSE)-1,FALSE) -> 46082.10526 | AQ10: =VLOOKUP($A10,'Прайс по регионам'!$B$5:$CJ$50,HLOOKUP('Прейскурант на сортовой прокат_'!AQ$7,'Прайс по регионам'!$1:$2,2,FALSE)-1,FALSE) -> 46082.10526 | AR10: =VLOOKUP($A10,'Прайс по регионам'!$B$5:$CJ$50,HLOOKUP('Прейскурант на сортовой прокат_'!AR$7,'Прайс по регионам'!$1:$2,2,FALSE)-1,FALSE) -> 47262.10526 | AS10: =VLOOKUP($A10,'Прайс по регионам'!$B$5:$CJ$50,HLOOKUP('Прейскурант на сортовой прокат_'!AS$7,'Прайс по регионам'!$1:$2,2,FALSE)-1,FALSE) ->  | AT10: =VLOOKUP($A10,'Прайс по регионам'!$B$5:$CJ$50,HLOOKUP('Прейскурант на сортовой прокат_'!AT$7,'Прайс по регионам'!$1:$2,2,FALSE)-1,FALSE) -> 46330.52632 | AU10: =VLOOKUP($A10,'Прайс по регионам'!$B$5:$CJ$50,HLOOKUP('Прейскурант на сортовой прокат_'!AU$7,'Прайс по регионам'!$1:$2,2,FALSE)-1,FALSE) -> 46330.52632 | AV10: =VLOOKUP($A10,'Прайс по регионам'!$B$5:$CJ$50,HLOOKUP('Прейскурант на сортовой прокат_'!AV$7,'Прайс по регионам'!$1:$2,2,FALSE)-1,FALSE) -> 46330.52632 | AW10: =VLOOKUP($A10,'Прайс по регионам'!$B$5:$CJ$50,HLOOKUP('Прейскурант на сортовой прокат_'!AW$7,'Прайс по регионам'!$1:$2,2,FALSE)-1,FALSE) -> 46206.31579 | AX10: =VLOOKUP($A10,'Прайс по регионам'!$B$5:$CJ$50,HLOOKUP('Прейскурант на сортовой прокат_'!AX$7,'Прайс по регионам'!$1:$2,2,FALSE)-1,FALSE) -> 44715.78947 | AY10: =VLOOKUP($A10,'Прайс по регионам'!$B$5:$CJ$50,HLOOKUP('Прейскурант на сортовой прокат_'!AY$7,'Прайс по регионам'!$1:$2,2,FALSE)-1,FALSE) -> 45150.52632 | AZ10: =VLOOKUP($A10,'Прайс по регионам'!$B$5:$CJ$50,HLOOKUP('Прейскурант на сортовой прокат_'!AZ$7,'Прайс по регионам'!$1:$2,2,FALSE)-1,FALSE) -> 44840 | BA10: =VLOOKUP($A10,'Прайс по регионам'!$B$5:$CJ$50,HLOOKUP('Прейскурант на сортовой прокат_'!BA$7,'Прайс по регионам'!$1:$2,2,FALSE)-1,FALSE) -> 45274.73684 | BB10: =VLOOKUP($A10,'Прайс по регионам'!$B$5:$CJ$50,HLOOKUP('Прейскурант на сортовой прокат_'!BB$7,'Прайс по регионам'!$1:$2,2,FALSE)-1,FALSE) -> 44405.26316 | BC10: =VLOOKUP($A10,'Прайс по регионам'!$B$5:$CJ$50,HLOOKUP('Прейскурант на сортовой прокат_'!BC$7,'Прайс по регионам'!$1:$2,2,FALSE)-1,FALSE) ->  | BD10: =VLOOKUP($A10,'Прайс по регионам'!$B$5:$CJ$50,HLOOKUP('Прейскурант на сортовой прокат_'!BD$7,'Прайс по регионам'!$1:$2,2,FALSE)-1,FALSE) -> 44405.26316 | BE10: =VLOOKUP($A10,'Прайс по регионам'!$B$5:$CJ$50,HLOOKUP('Прейскурант на сортовой прокат_'!BE$7,'Прайс по регионам'!$1:$2,2,FALSE)-1,FALSE) -> 44840 | BF10: =VLOOKUP($A10,'Прайс по регионам'!$B$5:$CJ$50,HLOOKUP('Прейскурант на сортовой прокат_'!BF$7,'Прайс по регионам'!$1:$2,2,FALSE)-1,FALSE) -> 45150.52632 | BG10: =VLOOKUP($A10,'Прайс по регионам'!$B$5:$CJ$50,HLOOKUP('Прейскурант на сортовой прокат_'!BG$7,'Прайс по регионам'!$1:$2,2,FALSE)-1,FALSE) -> 44715.78947 | BH10: =VLOOKUP($A10,'Прайс по регионам'!$B$5:$CJ$50,HLOOKUP('Прейскурант на сортовой прокат_'!BH$7,'Прайс по регионам'!$1:$2,2,FALSE)-1,FALSE) -> 44405.26316 | BI10: =VLOOKUP($A10,'Прайс по регионам'!$B$5:$CJ$50,HLOOKUP('Прейскурант на сортовой прокат_'!BI$7,'Прайс по регионам'!$1:$2,2,FALSE)-1,FALSE) -> 44964.21053 | BJ10: =VLOOKUP($A10,'Прайс по регионам'!$B$5:$CJ$50,HLOOKUP('Прейскурант на сортовой прокат_'!BJ$7,'Прайс по регионам'!$1:$2,2,FALSE)-1,FALSE) -> 45274.73684 | BK10: =VLOOKUP($A10,'Прайс по регионам'!$B$5:$CJ$50,HLOOKUP('Прейскурант на сортовой прокат_'!BK$7,'Прайс по регионам'!$1:$2,2,FALSE)-1,FALSE) -> 44840 | BL10: =VLOOKUP($A10,'Прайс по регионам'!$B$5:$CJ$50,HLOOKUP('Прейскурант на сортовой прокат_'!BL$7,'Прайс по регионам'!$1:$2,2,FALSE)-1,FALSE) -> 44964.21053 | BM10: =VLOOKUP($A10,'Прайс по регионам'!$B$5:$CJ$50,HLOOKUP('Прейскурант на сортовой прокат_'!BM$7,'Прайс по регионам'!$1:$2,2,FALSE)-1,FALSE) ->  | BN10: =VLOOKUP($A10,'Прайс по регионам'!$B$5:$CJ$50,HLOOKUP('Прейскурант на сортовой прокат_'!BN$7,'Прайс по регионам'!$1:$2,2,FALSE)-1,FALSE) -> 46765.26316 | BO10: =VLOOKUP($A10,'Прайс по регионам'!$B$5:$CJ$50,HLOOKUP('Прейскурант на сортовой прокат_'!BO$7,'Прайс по регионам'!$1:$2,2,FALSE)-1,FALSE) -> 44218.94737 | BP10: =VLOOKUP($A10,'Прайс по регионам'!$B$5:$CJ$50,HLOOKUP('Прейскурант на сортовой прокат_'!BP$7,'Прайс по регионам'!$1:$2,2,FALSE)-1,FALSE) -> 44715.78947 | BQ10: =VLOOKUP($A10,'Прайс по регионам'!$B$5:$CJ$50,HLOOKUP('Прейскурант на сортовой прокат_'!BQ$7,'Прайс по регионам'!$1:$2,2,FALSE)-1,FALSE) -> 44653.68421 | BR10: =VLOOKUP($A10,'Прайс по регионам'!$B$5:$CJ$50,HLOOKUP('Прейскурант на сортовой прокат_'!BR$7,'Прайс по регионам'!$1:$2,2,FALSE)-1,FALSE) -> 44094.73684 | BS10: =VLOOKUP($A10,'Прайс по регионам'!$B$5:$CJ$50,HLOOKUP('Прейскурант на сортовой прокат_'!BS$7,'Прайс по регионам'!$1:$2,2,FALSE)-1,FALSE) -> 43473.68421 | BT10: =VLOOKUP($A10,'Прайс по регионам'!$B$5:$CJ$50,HLOOKUP('Прейскурант на сортовой прокат_'!BT$7,'Прайс по регионам'!$1:$2,2,FALSE)-1,FALSE) -> 46765.26316 | BU10: =VLOOKUP($A10,'Прайс по регионам'!$B$5:$CJ$50,HLOOKUP('Прейскурант на сортовой прокат_'!BU$7,'Прайс по регионам'!$1:$2,2,FALSE)-1,FALSE) ->  | BV10: =VLOOKUP($A10,'Прайс по регионам'!$B$5:$CJ$50,HLOOKUP('Прейскурант на сортовой прокат_'!BV$7,'Прайс по регионам'!$1:$2,2,FALSE)-1,FALSE) -> 46020 | BW10: =VLOOKUP($A10,'Прайс по регионам'!$B$5:$CJ$50,HLOOKUP('Прейскурант на сортовой прокат_'!BW$7,'Прайс по регионам'!$1:$2,2,FALSE)-1,FALSE) -> 48317.89474 | BX10: =VLOOKUP($A10,'Прайс по регионам'!$B$5:$CJ$50,HLOOKUP('Прейскурант на сортовой прокат_'!BX$7,'Прайс по регионам'!$1:$2,2,FALSE)-1,FALSE) -> 46020 | BY10: =VLOOKUP($A10,'Прайс по регионам'!$B$5:$CJ$50,HLOOKUP('Прейскурант на сортовой прокат_'!BY$7,'Прайс по регионам'!$1:$2,2,FALSE)-1,FALSE) -> 48317.89474 | BZ10: =VLOOKUP($A10,'Прайс по регионам'!$B$5:$CJ$50,HLOOKUP('Прейскурант на сортовой прокат_'!BZ$7,'Прайс по регионам'!$1:$2,2,FALSE)-1,FALSE) -> 46020 | CA10: =VLOOKUP($A10,'Прайс по регионам'!$B$5:$CJ$50,HLOOKUP('Прейскурант на сортовой прокат_'!CA$7,'Прайс по регионам'!$1:$2,2,FALSE)-1,FALSE) -> 44964.21053 | CB10: =VLOOKUP($A10,'Прайс по регионам'!$B$5:$CJ$50,HLOOKUP('Прейскурант на сортовой прокат_'!CB$7,'Прайс по регионам'!$1:$2,2,FALSE)-1,FALSE) -> 46020 | CC10: =VLOOKUP($A10,'Прайс по регионам'!$B$5:$CJ$50,HLOOKUP('Прейскурант на сортовой прокат_'!CC$7,'Прайс по регионам'!$1:$2,2,FALSE)-1,FALSE) -> 48814.73684 | CD10: =VLOOKUP($A10,'Прайс по регионам'!$B$5:$CJ$50,HLOOKUP('Прейскурант на сортовой прокат_'!CD$7,'Прайс по регионам'!$1:$2,2,FALSE)-1,FALSE) -> 48317.89474 | CE10: =VLOOKUP($A10,'Прайс по регионам'!$B$5:$CJ$50,HLOOKUP('Прейскурант на сортовой прокат_'!CE$7,'Прайс по регионам'!$1:$2,2,FALSE)-1,FALSE) ->  | CF10: =VLOOKUP($A10,'Прайс по регионам'!$B$5:$CJ$50,HLOOKUP('Прейскурант на сортовой прокат_'!CF$7,'Прайс по регионам'!$1:$2,2,FALSE)-1,FALSE) -> 48317.89474 | CG10: =VLOOKUP($A10,'Прайс по регионам'!$B$5:$CJ$50,HLOOKUP('Прейскурант на сортовой прокат_'!CG$7,'Прайс по регионам'!$1:$2,2,FALSE)-1,FALSE) -> 46020 | CH10: =VLOOKUP($A10,'Прайс по регионам'!$B$5:$CJ$50,HLOOKUP('Прейскурант на сортовой прокат_'!CH$7,'Прайс по регионам'!$1:$2,2,FALSE)-1,FALSE) -> 50429.47368 | CI10: =VLOOKUP($A10,'Прайс по регионам'!$B$5:$CJ$50,HLOOKUP('Прейскурант на сортовой прокат_'!CI$7,'Прайс по регионам'!$1:$2,2,FALSE)-1,FALSE) -> 49497.89474 | CJ10: =VLOOKUP($A10,'Прайс по регионам'!$B$5:$CJ$50,HLOOKUP('Прейскурант на сортовой прокат_'!CJ$7,'Прайс по регионам'!$1:$2,2,FALSE)-1,FALSE) -> 49497.89474 | CK10: =VLOOKUP($A10,'Прайс по регионам'!$B$5:$CJ$50,HLOOKUP('Прейскурант на сортовой прокат_'!CK$7,'Прайс по регионам'!$1:$2,2,FALSE)-1,FALSE) -> 49497.89474 | CL10: =VLOOKUP($A10,'Прайс по регионам'!$B$5:$CJ$50,HLOOKUP('Прейскурант на сортовой прокат_'!CL$7,'Прайс по регионам'!$1:$2,2,FALSE)-1,FALSE) -> 50429.47368 | CM10: =VLOOKUP($A10,'Прайс по регионам'!$B$5:$CJ$50,HLOOKUP('Прейскурант на сортовой прокат_'!CM$7,'Прайс по регионам'!$1:$2,2,FALSE)-1,FALSE) ->  | CN10: =VLOOKUP($A10,'Прайс по регионам'!$B$5:$CJ$50,HLOOKUP('Прейскурант на сортовой прокат_'!CN$7,'Прайс по регионам'!$1:$2,2,FALSE)-1,FALSE) -> 49497.89474 | CO10: =VLOOKUP($A10,'Прайс по регионам'!$B$5:$CJ$50,HLOOKUP('Прейскурант на сортовой прокат_'!CO$7,'Прайс по регионам'!$1:$2,2,FALSE)-1,FALSE) -> 50864.21053 | CP10: =VLOOKUP($A10,'Прайс по регионам'!$B$5:$CJ$50,HLOOKUP('Прейскурант на сортовой прокат_'!CP$7,'Прайс по регионам'!$1:$2,2,FALSE)-1,FALSE) -> 53783.15789 | CQ10: =VLOOKUP($A10,'Прайс по регионам'!$B$5:$CJ$50,HLOOKUP('Прейскурант на сортовой прокат_'!CQ$7,'Прайс по регионам'!$1:$2,2,FALSE)-1,FALSE) -> 50429.47368 | CR10: =VLOOKUP($A10,'Прайс по регионам'!$B$5:$CJ$50,HLOOKUP('Прейскурант на сортовой прокат_'!CR$7,'Прайс по регионам'!$1:$2,2,FALSE)-1,FALSE) -> 50367.36842
A11: СВ08А_Катанка 6,5 | C11: СВ08А | D11: ГОСТ 2246 | E11: ТУ 14-1-4760-89 | F11: =VLOOKUP($A11,'Прайс по регионам'!$B$5:$CJ$50,HLOOKUP('Прейскурант на сортовой прокат_'!F$7,'Прайс по регионам'!$1:$2,2,FALSE)-1,FALSE) -> 44405.26316 | G11: =VLOOKUP($A11,'Прайс по регионам'!$B$5:$CJ$50,HLOOKUP('Прейскурант на сортовой прокат_'!G$7,'Прайс по регионам'!$1:$2,2,FALSE)-1,FALSE) -> 44405.26316 | H11: =VLOOKUP($A11,'Прайс по регионам'!$B$5:$CJ$50,HLOOKUP('Прейскурант на сортовой прокат_'!H$7,'Прайс по регионам'!$1:$2,2,FALSE)-1,FALSE) -> 44094.73684 | I11: =VLOOKUP($A11,'Прайс по регионам'!$B$5:$CJ$50,HLOOKUP('Прейскурант на сортовой прокат_'!I$7,'Прайс по регионам'!$1:$2,2,FALSE)-1,FALSE) -> 45274.73684 | J11: =VLOOKUP($A11,'Прайс по регионам'!$B$5:$CJ$50,HLOOKUP('Прейскурант на сортовой прокат_'!J$7,'Прайс по регионам'!$1:$2,2,FALSE)-1,FALSE) -> 45026.31579 | K11: =VLOOKUP($A11,'Прайс по регионам'!$B$5:$CJ$50,HLOOKUP('Прейскурант на сортовой прокат_'!K$7,'Прайс по регионам'!$1:$2,2,FALSE)-1,FALSE) -> 45150.52632 | L11: =VLOOKUP($A11,'Прайс по регионам'!$B$5:$CJ$50,HLOOKUP('Прейскурант на сортовой прокат_'!L$7,'Прайс по регионам'!$1:$2,2,FALSE)-1,FALSE) -> 45274.73684 | M11: =VLOOKUP($A11,'Прайс по регионам'!$B$5:$CJ$50,HLOOKUP('Прейскурант на сортовой прокат_'!M$7,'Прайс по регионам'!$1:$2,2,FALSE)-1,FALSE) -> 45150.52632 | N11: =VLOOKUP($A11,'Прайс по регионам'!$B$5:$CJ$50,HLOOKUP('Прейскурант на сортовой прокат_'!N$7,'Прайс по регионам'!$1:$2,2,FALSE)-1,FALSE) -> 45274.73684 | O11: =VLOOKUP($A11,'Прайс по регионам'!$B$5:$CJ$50,HLOOKUP('Прейскурант на сортовой прокат_'!O$7,'Прайс по регионам'!$1:$2,2,FALSE)-1,FALSE) ->  | P11: =VLOOKUP($A11,'Прайс по регионам'!$B$5:$CJ$50,HLOOKUP('Прейскурант на сортовой прокат_'!P$7,'Прайс по регионам'!$1:$2,2,FALSE)-1,FALSE) -> 45274.73684 | Q11: =VLOOKUP($A11,'Прайс по регионам'!$B$5:$CJ$50,HLOOKUP('Прейскурант на сортовой прокат_'!Q$7,'Прайс по регионам'!$1:$2,2,FALSE)-1,FALSE) -> 44840 | R11: =VLOOKUP($A11,'Прайс по регионам'!$B$5:$CJ$50,HLOOKUP('Прейскурант на сортовой прокат_'!R$7,'Прайс по регионам'!$1:$2,2,FALSE)-1,FALSE) -> 45150.52632 | S11: =VLOOKUP($A11,'Прайс по регионам'!$B$5:$CJ$50,HLOOKUP('Прейскурант на сортовой прокат_'!S$7,'Прайс по регионам'!$1:$2,2,FALSE)-1,FALSE) -> 45026.31579 | T11: =VLOOKUP($A11,'Прайс по регионам'!$B$5:$CJ$50,HLOOKUP('Прейскурант на сортовой прокат_'!T$7,'Прайс по регионам'!$1:$2,2,FALSE)-1,FALSE) -> 44715.78947 | U11: =VLOOKUP($A11,'Прайс по регионам'!$B$5:$CJ$50,HLOOKUP('Прейскурант на сортовой прокат_'!U$7,'Прайс по регионам'!$1:$2,2,FALSE)-1,FALSE) -> 44715.78947 | V11: =VLOOKUP($A11,'Прайс по регионам'!$B$5:$CJ$50,HLOOKUP('Прейскурант на сортовой прокат_'!V$7,'Прайс по регионам'!$1:$2,2,FALSE)-1,FALSE) -> 43908.42105 | W11: =VLOOKUP($A11,'Прайс по регионам'!$B$5:$CJ$50,HLOOKUP('Прейскурант на сортовой прокат_'!W$7,'Прайс по регионам'!$1:$2,2,FALSE)-1,FALSE) -> 44218.94737 | X11: =VLOOKUP($A11,'Прайс по регионам'!$B$5:$CJ$50,HLOOKUP('Прейскурант на сортовой прокат_'!X$7,'Прайс по регионам'!$1:$2,2,FALSE)-1,FALSE) -> 44094.73684 | Y11: =VLOOKUP($A11,'Прайс по регионам'!$B$5:$CJ$50,HLOOKUP('Прейскурант на сортовой прокат_'!Y$7,'Прайс по регионам'!$1:$2,2,FALSE)-1,FALSE) ->  | Z11: =VLOOKUP($A11,'Прайс по регионам'!$B$5:$CJ$50,HLOOKUP('Прейскурант на сортовой прокат_'!Z$7,'Прайс по регионам'!$1:$2,2,FALSE)-1,FALSE) -> 43908.42105 | AA11: =VLOOKUP($A11,'Прайс по регионам'!$B$5:$CJ$50,HLOOKUP('Прейскурант на сортовой прокат_'!AA$7,'Прайс по регионам'!$1:$2,2,FALSE)-1,FALSE) -> 44405.26316 | AB11: =VLOOKUP($A11,'Прайс по регионам'!$B$5:$CJ$50,HLOOKUP('Прейскурант на сортовой прокат_'!AB$7,'Прайс по регионам'!$1:$2,2,FALSE)-1,FALSE) -> 43908.42105 | AC11: =VLOOKUP($A11,'Прайс по регионам'!$B$5:$CJ$50,HLOOKUP('Прейскурант на сортовой прокат_'!AC$7,'Прайс по регионам'!$1:$2,2,FALSE)-1,FALSE) -> 44529.47368 | AD11: =VLOOKUP($A11,'Прайс по регионам'!$B$5:$CJ$50,HLOOKUP('Прейскурант на сортовой прокат_'!AD$7,'Прайс по регионам'!$1:$2,2,FALSE)-1,FALSE) -> 44094.73684 | AE11: =VLOOKUP($A11,'Прайс по регионам'!$B$5:$CJ$50,HLOOKUP('Прейскурант на сортовой прокат_'!AE$7,'Прайс по регионам'!$1:$2,2,FALSE)-1,FALSE) -> 44094.73684 | AF11: =VLOOKUP($A11,'Прайс по регионам'!$B$5:$CJ$50,HLOOKUP('Прейскурант на сортовой прокат_'!AF$7,'Прайс по регионам'!$1:$2,2,FALSE)-1,FALSE) -> 44405.26316 | AG11: =VLOOKUP($A11,'Прайс по регионам'!$B$5:$CJ$50,HLOOKUP('Прейскурант на сортовой прокат_'!AG$7,'Прайс по регионам'!$1:$2,2,FALSE)-1,FALSE) -> 43970.52632 | AH11: =VLOOKUP($A11,'Прайс по регионам'!$B$5:$CJ$50,HLOOKUP('Прейскурант на сортовой прокат_'!AH$7,'Прайс по регионам'!$1:$2,2,FALSE)-1,FALSE) -> 44405.26316 | AI11: =VLOOKUP($A11,'Прайс по регионам'!$B$5:$CJ$50,HLOOKUP('Прейскурант на сортовой прокат_'!AI$7,'Прайс по регионам'!$1:$2,2,FALSE)-1,FALSE) ->  | AJ11: =VLOOKUP($A11,'Прайс по регионам'!$B$5:$CJ$50,HLOOKUP('Прейскурант на сортовой прокат_'!AJ$7,'Прайс по регионам'!$1:$2,2,FALSE)-1,FALSE) -> 43970.52632 | AK11: =VLOOKUP($A11,'Прайс по регионам'!$B$5:$CJ$50,HLOOKUP('Прейскурант на сортовой прокат_'!AK$7,'Прайс по регионам'!$1:$2,2,FALSE)-1,FALSE) -> 44653.68421 | AL11: =VLOOKUP($A11,'Прайс по регионам'!$B$5:$CJ$50,HLOOKUP('Прейскурант на сортовой прокат_'!AL$7,'Прайс по регионам'!$1:$2,2,FALSE)-1,FALSE) -> 44218.94737 | AM11: =VLOOKUP($A11,'Прайс по регионам'!$B$5:$CJ$50,HLOOKUP('Прейскурант на сортовой прокат_'!AM$7,'Прайс по регионам'!$1:$2,2,FALSE)-1,FALSE) -> 43908.42105 | AN11: =VLOOKUP($A11,'Прайс по регионам'!$B$5:$CJ$50,HLOOKUP('Прейскурант на сортовой прокат_'!AN$7,'Прайс по регионам'!$1:$2,2,FALSE)-1,FALSE) -> 44405.26316 | AO11: =VLOOKUP($A11,'Прайс по регионам'!$B$5:$CJ$50,HLOOKUP('Прейскурант на сортовой прокат_'!AO$7,'Прайс по регионам'!$1:$2,2,FALSE)-1,FALSE) -> 43908.42105 | AP11: =VLOOKUP($A11,'Прайс по регионам'!$B$5:$CJ$50,HLOOKUP('Прейскурант на сортовой прокат_'!AP$7,'Прайс по регионам'!$1:$2,2,FALSE)-1,FALSE) -> 44405.26316 | AQ11: =VLOOKUP($A11,'Прайс по регионам'!$B$5:$CJ$50,HLOOKUP('Прейскурант на сортовой прокат_'!AQ$7,'Прайс по регионам'!$1:$2,2,FALSE)-1,FALSE) -> 44405.26316 | AR11: =VLOOKUP($A11,'Прайс по регионам'!$B$5:$CJ$50,HLOOKUP('Прейскурант на сортовой прокат_'!AR$7,'Прайс по регионам'!$1:$2,2,FALSE)-1,FALSE) -> 45585.26316 | AS11: =VLOOKUP($A11,'Прайс по регионам'!$B$5:$CJ$50,HLOOKUP('Прейскурант на сортовой прокат_'!AS$7,'Прайс по регионам'!$1:$2,2,FALSE)-1,FALSE) ->  | AT11: =VLOOKUP($A11,'Прайс по регионам'!$B$5:$CJ$50,HLOOKUP('Прейскурант на сортовой прокат_'!AT$7,'Прайс по регионам'!$1:$2,2,FALSE)-1,FALSE) -> 44653.68421 | AU11: =VLOOKUP($A11,'Прайс по регионам'!$B$5:$CJ$50,HLOOKUP('Прейскурант на сортовой прокат_'!AU$7,'Прайс по регионам'!$1:$2,2,FALSE)-1,FALSE) -> 44653.68421 | AV11: =VLOOKUP($A11,'Прайс по регионам'!$B$5:$CJ$50,HLOOKUP('Прейскурант на сортовой прокат_'!AV$7,'Прайс по регионам'!$1:$2,2,FALSE)-1,FALSE) -> 44653.68421 | AW11: =VLOOKUP($A11,'Прайс по регионам'!$B$5:$CJ$50,HLOOKUP('Прейскурант на сортовой прокат_'!AW$7,'Прайс по регионам'!$1:$2,2,FALSE)-1,FALSE) -> 44529.47368 | AX11: =VLOOKUP($A11,'Прайс по регионам'!$B$5:$CJ$50,HLOOKUP('Прейскурант на сортовой прокат_'!AX$7,'Прайс по регионам'!$1:$2,2,FALSE)-1,FALSE) -> 43038.94737 | AY11: =VLOOKUP($A11,'Прайс по регионам'!$B$5:$CJ$50,HLOOKUP('Прейскурант на сортовой прокат_'!AY$7,'Прайс по регионам'!$1:$2,2,FALSE)-1,FALSE) -> 43473.68421 | AZ11: =VLOOKUP($A11,'Прайс по регионам'!$B$5:$CJ$50,HLOOKUP('Прейскурант на сортовой прокат_'!AZ$7,'Прайс по регионам'!$1:$2,2,FALSE)-1,FALSE) -> 43163.15789 | BA11: =VLOOKUP($A11,'Прайс по регионам'!$B$5:$CJ$50,HLOOKUP('Прейскурант на сортовой прокат_'!BA$7,'Прайс по регионам'!$1:$2,2,FALSE)-1,FALSE) -> 43597.89474 | BB11: =VLOOKUP($A11,'Прайс по регионам'!$B$5:$CJ$50,HLOOKUP('Прейскурант на сортовой прокат_'!BB$7,'Прайс по регионам'!$1:$2,2,FALSE)-1,FALSE) -> 42728.42105 | BC11: =VLOOKUP($A11,'Прайс по регионам'!$B$5:$CJ$50,HLOOKUP('Прейскурант на сортовой прокат_'!BC$7,'Прайс по регионам'!$1:$2,2,FALSE)-1,FALSE) ->  | BD11: =VLOOKUP($A11,'Прайс по регионам'!$B$5:$CJ$50,HLOOKUP('Прейскурант на сортовой прокат_'!BD$7,'Прайс по регионам'!$1:$2,2,FALSE)-1,FALSE) -> 42728.42105 | BE11: =VLOOKUP($A11,'Прайс по регионам'!$B$5:$CJ$50,HLOOKUP('Прейскурант на сортовой прокат_'!BE$7,'Прайс по регионам'!$1:$2,2,FALSE)-1,FALSE) -> 43163.15789 | BF11: =VLOOKUP($A11,'Прайс по регионам'!$B$5:$CJ$50,HLOOKUP('Прейскурант на сортовой прокат_'!BF$7,'Прайс по регионам'!$1:$2,2,FALSE)-1,FALSE) -> 43473.68421 | BG11: =VLOOKUP($A11,'Прайс по регионам'!$B$5:$CJ$50,HLOOKUP('Прейскурант на сортовой прокат_'!BG$7,'Прайс по регионам'!$1:$2,2,FALSE)-1,FALSE) -> 43038.94737 | BH11: =VLOOKUP($A11,'Прайс по регионам'!$B$5:$CJ$50,HLOOKUP('Прейскурант на сортовой прокат_'!BH$7,'Прайс по регионам'!$1:$2,2,FALSE)-1,FALSE) -> 42728.42105 | BI11: =VLOOKUP($A11,'Прайс по регионам'!$B$5:$CJ$50,HLOOKUP('Прейскурант на сортовой прокат_'!BI$7,'Прайс по регионам'!$1:$2,2,FALSE)-1,FALSE) -> 43287.36842 | BJ11: =VLOOKUP($A11,'Прайс по регионам'!$B$5:$CJ$50,HLOOKUP('Прейскурант на сортовой прокат_'!BJ$7,'Прайс по регионам'!$1:$2,2,FALSE)-1,FALSE) -> 43597.89474 | BK11: =VLOOKUP($A11,'Прайс по регионам'!$B$5:$CJ$50,HLOOKUP('Прейскурант на сортовой прокат_'!BK$7,'Прайс по регионам'!$1:$2,2,FALSE)-1,FALSE) -> 43163.15789 | BL11: =VLOOKUP($A11,'Прайс по регионам'!$B$5:$CJ$50,HLOOKUP('Прейскурант на сортовой прокат_'!BL$7,'Прайс по регионам'!$1:$2,2,FALSE)-1,FALSE) -> 43287.36842 | BM11: =VLOOKUP($A11,'Прайс по регионам'!$B$5:$CJ$50,HLOOKUP('Прейскурант на сортовой прокат_'!BM$7,'Прайс по регионам'!$1:$2,2,FALSE)-1,FALSE) ->  | BN11: =VLOOKUP($A11,'Прайс по регионам'!$B$5:$CJ$50,HLOOKUP('Прейскурант на сортовой прокат_'!BN$7,'Прайс по регионам'!$1:$2,2,FALSE)-1,FALSE) -> 45026.31579 | BO11: =VLOOKUP($A11,'Прайс по регионам'!$B$5:$CJ$50,HLOOKUP('Прейскурант на сортовой прокат_'!BO$7,'Прайс по регионам'!$1:$2,2,FALSE)-1,FALSE) -> 42542.10526 | BP11: =VLOOKUP($A11,'Прайс по регионам'!$B$5:$CJ$50,HLOOKUP('Прейскурант на сортовой прокат_'!BP$7,'Прайс по регионам'!$1:$2,2,FALSE)-1,FALSE) -> 43038.94737 | BQ11: =VLOOKUP($A11,'Прайс по регионам'!$B$5:$CJ$50,HLOOKUP('Прейскурант на сортовой прокат_'!BQ$7,'Прайс по регионам'!$1:$2,2,FALSE)-1,FALSE) -> 42976.84211 | BR11: =VLOOKUP($A11,'Прайс по регионам'!$B$5:$CJ$50,HLOOKUP('Прейскурант на сортовой прокат_'!BR$7,'Прайс по регионам'!$1:$2,2,FALSE)-1,FALSE) -> 42417.89474 | BS11: =VLOOKUP($A11,'Прайс по регионам'!$B$5:$CJ$50,HLOOKUP('Прейскурант на сортовой прокат_'!BS$7,'Прайс по регионам'!$1:$2,2,FALSE)-1,FALSE) -> 41796.84211 | BT11: =VLOOKUP($A11,'Прайс по регионам'!$B$5:$CJ$50,HLOOKUP('Прейскурант на сортовой прокат_'!BT$7,'Прайс по регионам'!$1:$2,2,FALSE)-1,FALSE) -> 45026.31579 | BU11: =VLOOKUP($A11,'Прайс по регионам'!$B$5:$CJ$50,HLOOKUP('Прейскурант на сортовой прокат_'!BU$7,'Прайс по регионам'!$1:$2,2,FALSE)-1,FALSE) ->  | BV11: =VLOOKUP($A11,'Прайс по регионам'!$B$5:$CJ$50,HLOOKUP('Прейскурант на сортовой прокат_'!BV$7,'Прайс по регионам'!$1:$2,2,FALSE)-1,FALSE) -> 44343.15789 | BW11: =VLOOKUP($A11,'Прайс по регионам'!$B$5:$CJ$50,HLOOKUP('Прейскурант на сортовой прокат_'!BW$7,'Прайс по регионам'!$1:$2,2,FALSE)-1,FALSE) -> 46641.05263 | BX11: =VLOOKUP($A11,'Прайс по регионам'!$B$5:$CJ$50,HLOOKUP('Прейскурант на сортовой прокат_'!BX$7,'Прайс по регионам'!$1:$2,2,FALSE)-1,FALSE) -> 44343.15789 | BY11: =VLOOKUP($A11,'Прайс по регионам'!$B$5:$CJ$50,HLOOKUP('Прейскурант на сортовой прокат_'!BY$7,'Прайс по регионам'!$1:$2,2,FALSE)-1,FALSE) -> 46641.05263 | BZ11: =VLOOKUP($A11,'Прайс по регионам'!$B$5:$CJ$50,HLOOKUP('Прейскурант на сортовой прокат_'!BZ$7,'Прайс по регионам'!$1:$2,2,FALSE)-1,FALSE) -> 44343.15789 | CA11: =VLOOKUP($A11,'Прайс по регионам'!$B$5:$CJ$50,HLOOKUP('Прейскурант на сортовой прокат_'!CA$7,'Прайс по регионам'!$1:$2,2,FALSE)-1,FALSE) -> 43287.36842 | CB11: =VLOOKUP($A11,'Прайс по регионам'!$B$5:$CJ$50,HLOOKUP('Прейскурант на сортовой прокат_'!CB$7,'Прайс по регионам'!$1:$2,2,FALSE)-1,FALSE) -> 44343.15789 | CC11: =VLOOKUP($A11,'Прайс по регионам'!$B$5:$CJ$50,HLOOKUP('Прейскурант на сортовой прокат_'!CC$7,'Прайс по регионам'!$1:$2,2,FALSE)-1,FALSE) -> 47137.89474 | CD11: =VLOOKUP($A11,'Прайс по регионам'!$B$5:$CJ$50,HLOOKUP('Прейскурант на сортовой прокат_'!CD$7,'Прайс по регионам'!$1:$2,2,FALSE)-1,FALSE) -> 46641.05263 | CE11: =VLOOKUP($A11,'Прайс по регионам'!$B$5:$CJ$50,HLOOKUP('Прейскурант на сортовой прокат_'!CE$7,'Прайс по регионам'!$1:$2,2,FALSE)-1,FALSE) ->  | CF11: =VLOOKUP($A11,'Прайс по регионам'!$B$5:$CJ$50,HLOOKUP('Прейскурант на сортовой прокат_'!CF$7,'Прайс по регионам'!$1:$2,2,FALSE)-1,FALSE) -> 46641.05263 | CG11: =VLOOKUP($A11,'Прайс по регионам'!$B$5:$CJ$50,HLOOKUP('Прейскурант на сортовой прокат_'!CG$7,'Прайс по регионам'!$1:$2,2,FALSE)-1,FALSE) -> 44343.15789 | CH11: =VLOOKUP($A11,'Прайс по регионам'!$B$5:$CJ$50,HLOOKUP('Прейскурант на сортовой прокат_'!CH$7,'Прайс по регионам'!$1:$2,2,FALSE)-1,FALSE) -> 48752.63158 | CI11: =VLOOKUP($A11,'Прайс по регионам'!$B$5:$CJ$50,HLOOKUP('Прейскурант на сортовой прокат_'!CI$7,'Прайс по регионам'!$1:$2,2,FALSE)-1,FALSE) -> 47758.94737 | CJ11: =VLOOKUP($A11,'Прайс по регионам'!$B$5:$CJ$50,HLOOKUP('Прейскурант на сортовой прокат_'!CJ$7,'Прайс по регионам'!$1:$2,2,FALSE)-1,FALSE) -> 47758.94737 | CK11: =VLOOKUP($A11,'Прайс по регионам'!$B$5:$CJ$50,HLOOKUP('Прейскурант на сортовой прокат_'!CK$7,'Прайс по регионам'!$1:$2,2,FALSE)-1,FALSE) -> 47758.94737 | CL11: =VLOOKUP($A11,'Прайс по регионам'!$B$5:$CJ$50,HLOOKUP('Прейскурант на сортовой прокат_'!CL$7,'Прайс по регионам'!$1:$2,2,FALSE)-1,FALSE) -> 48752.63158 | CM11: =VLOOKUP($A11,'Прайс по регионам'!$B$5:$CJ$50,HLOOKUP('Прейскурант на сортовой прокат_'!CM$7,'Прайс по регионам'!$1:$2,2,FALSE)-1,FALSE) ->  | CN11: =VLOOKUP($A11,'Прайс по регионам'!$B$5:$CJ$50,HLOOKUP('Прейскурант на сортовой прокат_'!CN$7,'Прайс по регионам'!$1:$2,2,FALSE)-1,FALSE) -> 47758.94737 | CO11: =VLOOKUP($A11,'Прайс по регионам'!$B$5:$CJ$50,HLOOKUP('Прейскурант на сортовой прокат_'!CO$7,'Прайс по регионам'!$1:$2,2,FALSE)-1,FALSE) -> 49187.36842 | CP11: =VLOOKUP($A11,'Прайс по регионам'!$B$5:$CJ$50,HLOOKUP('Прейскурант на сортовой прокат_'!CP$7,'Прайс по регионам'!$1:$2,2,FALSE)-1,FALSE) -> 52106.31579 | CQ11: =VLOOKUP($A11,'Прайс по регионам'!$B$5:$CJ$50,HLOOKUP('Прейскурант на сортовой прокат_'!CQ$7,'Прайс по регионам'!$1:$2,2,FALSE)-1,FALSE) -> 48752.63158 | CR11: =VLOOKUP($A11,'Прайс по регионам'!$B$5:$CJ$50,HLOOKUP('Прейскурант на сортовой прокат_'!CR$7,'Прайс по регионам'!$1:$2,2,FALSE)-1,FALSE) -> 48690.52632
A12: СВ08Г2С_Катанка 6,5 | C12: СВ08Г2С | D12: ГОСТ 2246 | E12: ТУ 14-1-4782-90 | F12: =VLOOKUP($A12,'Прайс по регионам'!$B$5:$CJ$50,HLOOKUP('Прейскурант на сортовой прокат_'!F$7,'Прайс по регионам'!$1:$2,2,FALSE)-1,FALSE) -> 46516.84211 | G12: =VLOOKUP($A12,'Прайс по регионам'!$B$5:$CJ$50,HLOOKUP('Прейскурант на сортовой прокат_'!G$7,'Прайс по регионам'!$1:$2,2,FALSE)-1,FALSE) -> 46516.84211 | H12: =VLOOKUP($A12,'Прайс по регионам'!$B$5:$CJ$50,HLOOKUP('Прейскурант на сортовой прокат_'!H$7,'Прайс по регионам'!$1:$2,2,FALSE)-1,FALSE) -> 46206.31579 | I12: =VLOOKUP($A12,'Прайс по регионам'!$B$5:$CJ$50,HLOOKUP('Прейскурант на сортовой прокат_'!I$7,'Прайс по регионам'!$1:$2,2,FALSE)-1,FALSE) -> 47386.31579 | J12: =VLOOKUP($A12,'Прайс по регионам'!$B$5:$CJ$50,HLOOKUP('Прейскурант на сортовой прокат_'!J$7,'Прайс по регионам'!$1:$2,2,FALSE)-1,FALSE) -> 47137.89474 | K12: =VLOOKUP($A12,'Прайс по регионам'!$B$5:$CJ$50,HLOOKUP('Прейскурант на сортовой прокат_'!K$7,'Прайс по регионам'!$1:$2,2,FALSE)-1,FALSE) -> 47262.10526 | L12: =VLOOKUP($A12,'Прайс по регионам'!$B$5:$CJ$50,HLOOKUP('Прейскурант на сортовой прокат_'!L$7,'Прайс по регионам'!$1:$2,2,FALSE)-1,FALSE) -> 47386.31579 | M12: =VLOOKUP($A12,'Прайс по регионам'!$B$5:$CJ$50,HLOOKUP('Прейскурант на сортовой прокат_'!M$7,'Прайс по регионам'!$1:$2,2,FALSE)-1,FALSE) -> 47262.10526 | N12: =VLOOKUP($A12,'Прайс по регионам'!$B$5:$CJ$50,HLOOKUP('Прейскурант на сортовой прокат_'!N$7,'Прайс по регионам'!$1:$2,2,FALSE)-1,FALSE) -> 47386.31579 | O12: =VLOOKUP($A12,'Прайс по регионам'!$B$5:$CJ$50,HLOOKUP('Прейскурант на сортовой прокат_'!O$7,'Прайс по регионам'!$1:$2,2,FALSE)-1,FALSE) ->  | P12: =VLOOKUP($A12,'Прайс по регионам'!$B$5:$CJ$50,HLOOKUP('Прейскурант на сортовой прокат_'!P$7,'Прайс по регионам'!$1:$2,2,FALSE)-1,FALSE) -> 47386.31579 | Q12: =VLOOKUP($A12,'Прайс по регионам'!$B$5:$CJ$50,HLOOKUP('Прейскурант на сортовой прокат_'!Q$7,'Прайс по регионам'!$1:$2,2,FALSE)-1,FALSE) -> 46951.57895 | R12: =VLOOKUP($A12,'Прайс по регионам'!$B$5:$CJ$50,HLOOKUP('Прейскурант на сортовой прокат_'!R$7,'Прайс по регионам'!$1:$2,2,FALSE)-1,FALSE) -> 47262.10526 | S12: =VLOOKUP($A12,'Прайс по регионам'!$B$5:$CJ$50,HLOOKUP('Прейскурант на сортовой прокат_'!S$7,'Прайс по регионам'!$1:$2,2,FALSE)-1,FALSE) -> 47137.89474 | T12: =VLOOKUP($A12,'Прайс по регионам'!$B$5:$CJ$50,HLOOKUP('Прейскурант на сортовой прокат_'!T$7,'Прайс по регионам'!$1:$2,2,FALSE)-1,FALSE) -> 46827.36842 | U12: =VLOOKUP($A12,'Прайс по регионам'!$B$5:$CJ$50,HLOOKUP('Прейскурант на сортовой прокат_'!U$7,'Прайс по регионам'!$1:$2,2,FALSE)-1,FALSE) -> 46827.36842 | V12: =VLOOKUP($A12,'Прайс по регионам'!$B$5:$CJ$50,HLOOKUP('Прейскурант на сортовой прокат_'!V$7,'Прайс по регионам'!$1:$2,2,FALSE)-1,FALSE) -> 46020 | W12: =VLOOKUP($A12,'Прайс по регионам'!$B$5:$CJ$50,HLOOKUP('Прейскурант на сортовой прокат_'!W$7,'Прайс по регионам'!$1:$2,2,FALSE)-1,FALSE) -> 46330.52632 | X12: =VLOOKUP($A12,'Прайс по регионам'!$B$5:$CJ$50,HLOOKUP('Прейскурант на сортовой прокат_'!X$7,'Прайс по регионам'!$1:$2,2,FALSE)-1,FALSE) -> 46206.31579 | Y12: =VLOOKUP($A12,'Прайс по регионам'!$B$5:$CJ$50,HLOOKUP('Прейскурант на сортовой прокат_'!Y$7,'Прайс по регионам'!$1:$2,2,FALSE)-1,FALSE) ->  | Z12: =VLOOKUP($A12,'Прайс по регионам'!$B$5:$CJ$50,HLOOKUP('Прейскурант на сортовой прокат_'!Z$7,'Прайс по регионам'!$1:$2,2,FALSE)-1,FALSE) -> 46020 | AA12: =VLOOKUP($A12,'Прайс по регионам'!$B$5:$CJ$50,HLOOKUP('Прейскурант на сортовой прокат_'!AA$7,'Прайс по регионам'!$1:$2,2,FALSE)-1,FALSE) -> 46516.84211 | AB12: =VLOOKUP($A12,'Прайс по регионам'!$B$5:$CJ$50,HLOOKUP('Прейскурант на сортовой прокат_'!AB$7,'Прайс по регионам'!$1:$2,2,FALSE)-1,FALSE) -> 46020 | AC12: =VLOOKUP($A12,'Прайс по регионам'!$B$5:$CJ$50,HLOOKUP('Прейскурант на сортовой прокат_'!AC$7,'Прайс по регионам'!$1:$2,2,FALSE)-1,FALSE) -> 46641.05263 | AD12: =VLOOKUP($A12,'Прайс по регионам'!$B$5:$CJ$50,HLOOKUP('Прейскурант на сортовой прокат_'!AD$7,'Прайс по регионам'!$1:$2,2,FALSE)-1,FALSE) -> 46206.31579 | AE12: =VLOOKUP($A12,'Прайс по регионам'!$B$5:$CJ$50,HLOOKUP('Прейскурант на сортовой прокат_'!AE$7,'Прайс по регионам'!$1:$2,2,FALSE)-1,FALSE) -> 46206.31579 | AF12: =VLOOKUP($A12,'Прайс по регионам'!$B$5:$CJ$50,HLOOKUP('Прейскурант на сортовой прокат_'!AF$7,'Прайс по регионам'!$1:$2,2,FALSE)-1,FALSE) -> 46516.84211 | AG12: =VLOOKUP($A12,'Прайс по регионам'!$B$5:$CJ$50,HLOOKUP('Прейскурант на сортовой прокат_'!AG$7,'Прайс по регионам'!$1:$2,2,FALSE)-1,FALSE) -> 46082.10526 | AH12: =VLOOKUP($A12,'Прайс по регионам'!$B$5:$CJ$50,HLOOKUP('Прейскурант на сортовой прокат_'!AH$7,'Прайс по регионам'!$1:$2,2,FALSE)-1,FALSE) -> 46516.84211 | AI12: =VLOOKUP($A12,'Прайс по регионам'!$B$5:$CJ$50,HLOOKUP('Прейскурант на сортовой прокат_'!AI$7,'Прайс по регионам'!$1:$2,2,FALSE)-1,FALSE) ->  | AJ12: =VLOOKUP($A12,'Прайс по регионам'!$B$5:$CJ$50,HLOOKUP('Прейскурант на сортовой прокат_'!AJ$7,'Прайс по регионам'!$1:$2,2,FALSE)-1,FALSE) -> 46082.10526 | AK12: =VLOOKUP($A12,'Прайс по регионам'!$B$5:$CJ$50,HLOOKUP('Прейскурант на сортовой прокат_'!AK$7,'Прайс по регионам'!$1:$2,2,FALSE)-1,FALSE) -> 46765.26316 | AL12: =VLOOKUP($A12,'Прайс по регионам'!$B$5:$CJ$50,HLOOKUP('Прейскурант на сортовой прокат_'!AL$7,'Прайс по регионам'!$1:$2,2,FALSE)-1,FALSE) -> 46330.52632 | AM12: =VLOOKUP($A12,'Прайс по регионам'!$B$5:$CJ$50,HLOOKUP('Прейскурант на сортовой прокат_'!AM$7,'Прайс по регионам'!$1:$2,2,FALSE)-1,FALSE) -> 46020 | AN12: =VLOOKUP($A12,'Прайс по регионам'!$B$5:$CJ$50,HLOOKUP('Прейскурант на сортовой прокат_'!AN$7,'Прайс по регионам'!$1:$2,2,FALSE)-1,FALSE) -> 46516.84211 | AO12: =VLOOKUP($A12,'Прайс по регионам'!$B$5:$CJ$50,HLOOKUP('Прейскурант на сортовой прокат_'!AO$7,'Прайс по регионам'!$1:$2,2,FALSE)-1,FALSE) -> 46020 | AP12: =VLOOKUP($A12,'Прайс по регионам'!$B$5:$CJ$50,HLOOKUP('Прейскурант на сортовой прокат_'!AP$7,'Прайс по регионам'!$1:$2,2,FALSE)-1,FALSE) -> 46516.84211 | AQ12: =VLOOKUP($A12,'Прайс по регионам'!$B$5:$CJ$50,HLOOKUP('Прейскурант на сортовой прокат_'!AQ$7,'Прайс по регионам'!$1:$2,2,FALSE)-1,FALSE) -> 46516.84211 | AR12: =VLOOKUP($A12,'Прайс по регионам'!$B$5:$CJ$50,HLOOKUP('Прейскурант на сортовой прокат_'!AR$7,'Прайс по регионам'!$1:$2,2,FALSE)-1,FALSE) -> 47696.84211 | AS12: =VLOOKUP($A12,'Прайс по регионам'!$B$5:$CJ$50,HLOOKUP('Прейскурант на сортовой прокат_'!AS$7,'Прайс по регионам'!$1:$2,2,FALSE)-1,FALSE) ->  | AT12: =VLOOKUP($A12,'Прайс по регионам'!$B$5:$CJ$50,HLOOKUP('Прейскурант на сортовой прокат_'!AT$7,'Прайс по регионам'!$1:$2,2,FALSE)-1,FALSE) -> 46765.26316 | AU12: =VLOOKUP($A12,'Прайс по регионам'!$B$5:$CJ$50,HLOOKUP('Прейскурант на сортовой прокат_'!AU$7,'Прайс по регионам'!$1:$2,2,FALSE)-1,FALSE) -> 46765.26316 | AV12: =VLOOKUP($A12,'Прайс по регионам'!$B$5:$CJ$50,HLOOKUP('Прейскурант на сортовой прокат_'!AV$7,'Прайс по регионам'!$1:$2,2,FALSE)-1,FALSE) -> 46765.26316 | AW12: =VLOOKUP($A12,'Прайс по регионам'!$B$5:$CJ$50,HLOOKUP('Прейскурант на сортовой прокат_'!AW$7,'Прайс по регионам'!$1:$2,2,FALSE)-1,FALSE) -> 46641.05263 | AX12: =VLOOKUP($A12,'Прайс по регионам'!$B$5:$CJ$50,HLOOKUP('Прейскурант на сортовой прокат_'!AX$7,'Прайс по регионам'!$1:$2,2,FALSE)-1,FALSE) -> 45150.52632 | AY12: =VLOOKUP($A12,'Прайс по регионам'!$B$5:$CJ$50,HLOOKUP('Прейскурант на сортовой прокат_'!AY$7,'Прайс по регионам'!$1:$2,2,FALSE)-1,FALSE) -> 45585.26316 | AZ12: =VLOOKUP($A12,'Прайс по регионам'!$B$5:$CJ$50,HLOOKUP('Прейскурант на сортовой прокат_'!AZ$7,'Прайс по регионам'!$1:$2,2,FALSE)-1,FALSE) -> 45274.73684 | BA12: =VLOOKUP($A12,'Прайс по регионам'!$B$5:$CJ$50,HLOOKUP('Прейскурант на сортовой прокат_'!BA$7,'Прайс по регионам'!$1:$2,2,FALSE)-1,FALSE) -> 45709.47368 | BB12: =VLOOKUP($A12,'Прайс по регионам'!$B$5:$CJ$50,HLOOKUP('Прейскурант на сортовой прокат_'!BB$7,'Прайс по регионам'!$1:$2,2,FALSE)-1,FALSE) -> 44840 | BC12: =VLOOKUP($A12,'Прайс по регионам'!$B$5:$CJ$50,HLOOKUP('Прейскурант на сортовой прокат_'!BC$7,'Прайс по регионам'!$1:$2,2,FALSE)-1,FALSE) ->  | BD12: =VLOOKUP($A12,'Прайс по регионам'!$B$5:$CJ$50,HLOOKUP('Прейскурант на сортовой прокат_'!BD$7,'Прайс по регионам'!$1:$2,2,FALSE)-1,FALSE) -> 44840 | BE12: =VLOOKUP($A12,'Прайс по регионам'!$B$5:$CJ$50,HLOOKUP('Прейскурант на сортовой прокат_'!BE$7,'Прайс по регионам'!$1:$2,2,FALSE)-1,FALSE) -> 45274.73684 | BF12: =VLOOKUP($A12,'Прайс по регионам'!$B$5:$CJ$50,HLOOKUP('Прейскурант на сортовой прокат_'!BF$7,'Прайс по регионам'!$1:$2,2,FALSE)-1,FALSE) -> 45585.26316 | BG12: =VLOOKUP($A12,'Прайс по регионам'!$B$5:$CJ$50,HLOOKUP('Прейскурант на сортовой прокат_'!BG$7,'Прайс по регионам'!$1:$2,2,FALSE)-1,FALSE) -> 45150.52632 | BH12: =VLOOKUP($A12,'Прайс по регионам'!$B$5:$CJ$50,HLOOKUP('Прейскурант на сортовой прокат_'!BH$7,'Прайс по регионам'!$1:$2,2,FALSE)-1,FALSE) -> 44840 | BI12: =VLOOKUP($A12,'Прайс по регионам'!$B$5:$CJ$50,HLOOKUP('Прейскурант на сортовой прокат_'!BI$7,'Прайс по регионам'!$1:$2,2,FALSE)-1,FALSE) -> 45336.84211 | BJ12: =VLOOKUP($A12,'Прайс по регионам'!$B$5:$CJ$50,HLOOKUP('Прейскурант на сортовой прокат_'!BJ$7,'Прайс по регионам'!$1:$2,2,FALSE)-1,FALSE) -> 45709.47368 | BK12: =VLOOKUP($A12,'Прайс по регионам'!$B$5:$CJ$50,HLOOKUP('Прейскурант на сортовой прокат_'!BK$7,'Прайс по регионам'!$1:$2,2,FALSE)-1,FALSE) -> 45274.73684 | BL12: =VLOOKUP($A12,'Прайс по регионам'!$B$5:$CJ$50,HLOOKUP('Прейскурант на сортовой прокат_'!BL$7,'Прайс по регионам'!$1:$2,2,FALSE)-1,FALSE) -> 45336.84211 | BM12: =VLOOKUP($A12,'Прайс по регионам'!$B$5:$CJ$50,HLOOKUP('Прейскурант на сортовой прокат_'!BM$7,'Прайс по регионам'!$1:$2,2,FALSE)-1,FALSE) ->  | BN12: =VLOOKUP($A12,'Прайс по регионам'!$B$5:$CJ$50,HLOOKUP('Прейскурант на сортовой прокат_'!BN$7,'Прайс по регионам'!$1:$2,2,FALSE)-1,FALSE) -> 47137.89474 | BO12: =VLOOKUP($A12,'Прайс по регионам'!$B$5:$CJ$50,HLOOKUP('Прейскурант на сортовой прокат_'!BO$7,'Прайс по регионам'!$1:$2,2,FALSE)-1,FALSE) -> 44653.68421 | BP12: =VLOOKUP($A12,'Прайс по регионам'!$B$5:$CJ$50,HLOOKUP('Прейскурант на сортовой прокат_'!BP$7,'Прайс по регионам'!$1:$2,2,FALSE)-1,FALSE) -> 45150.52632 | BQ12: =VLOOKUP($A12,'Прайс по регионам'!$B$5:$CJ$50,HLOOKUP('Прейскурант на сортовой прокат_'!BQ$7,'Прайс по регионам'!$1:$2,2,FALSE)-1,FALSE) -> 45026.31579 | BR12: =VLOOKUP($A12,'Прайс по регионам'!$B$5:$CJ$50,HLOOKUP('Прейскурант на сортовой прокат_'!BR$7,'Прайс по регионам'!$1:$2,2,FALSE)-1,FALSE) -> 44529.47368 | BS12: =VLOOKUP($A12,'Прайс по регионам'!$B$5:$CJ$50,HLOOKUP('Прейскурант на сортовой прокат_'!BS$7,'Прайс по регионам'!$1:$2,2,FALSE)-1,FALSE) -> 43908.42105 | BT12: =VLOOKUP($A12,'Прайс по регионам'!$B$5:$CJ$50,HLOOKUP('Прейскурант на сортовой прокат_'!BT$7,'Прайс по регионам'!$1:$2,2,FALSE)-1,FALSE) -> 47137.89474 | BU12: =VLOOKUP($A12,'Прайс по регионам'!$B$5:$CJ$50,HLOOKUP('Прейскурант на сортовой прокат_'!BU$7,'Прайс по регионам'!$1:$2,2,FALSE)-1,FALSE) ->  | BV12: =VLOOKUP($A12,'Прайс по регионам'!$B$5:$CJ$50,HLOOKUP('Прейскурант на сортовой прокат_'!BV$7,'Прайс по регионам'!$1:$2,2,FALSE)-1,FALSE) -> 46392.63158 | BW12: =VLOOKUP($A12,'Прайс по регионам'!$B$5:$CJ$50,HLOOKUP('Прейскурант на сортовой прокат_'!BW$7,'Прайс по регионам'!$1:$2,2,FALSE)-1,FALSE) -> 48752.63158 | BX12: =VLOOKUP($A12,'Прайс по регионам'!$B$5:$CJ$50,HLOOKUP('Прейскурант на сортовой прокат_'!BX$7,'Прайс по регионам'!$1:$2,2,FALSE)-1,FALSE) -> 46392.63158 | BY12: =VLOOKUP($A12,'Прайс по регионам'!$B$5:$CJ$50,HLOOKUP('Прейскурант на сортовой прокат_'!BY$7,'Прайс по регионам'!$1:$2,2,FALSE)-1,FALSE) -> 48752.63158 | BZ12: =VLOOKUP($A12,'Прайс по регионам'!$B$5:$CJ$50,HLOOKUP('Прейскурант на сортовой прокат_'!BZ$7,'Прайс по регионам'!$1:$2,2,FALSE)-1,FALSE) -> 46392.63158 | CA12: =VLOOKUP($A12,'Прайс по регионам'!$B$5:$CJ$50,HLOOKUP('Прейскурант на сортовой прокат_'!CA$7,'Прайс по регионам'!$1:$2,2,FALSE)-1,FALSE) -> 45336.84211 | CB12: =VLOOKUP($A12,'Прайс по регионам'!$B$5:$CJ$50,HLOOKUP('Прейскурант на сортовой прокат_'!CB$7,'Прайс по регионам'!$1:$2,2,FALSE)-1,FALSE) -> 46392.63158 | CC12: =VLOOKUP($A12,'Прайс по регионам'!$B$5:$CJ$50,HLOOKUP('Прейскурант на сортовой прокат_'!CC$7,'Прайс по регионам'!$1:$2,2,FALSE)-1,FALSE) -> 49249.47368 | CD12: =VLOOKUP($A12,'Прайс по регионам'!$B$5:$CJ$50,HLOOKUP('Прейскурант на сортовой прокат_'!CD$7,'Прайс по регионам'!$1:$2,2,FALSE)-1,FALSE) -> 48752.63158 | CE12: =VLOOKUP($A12,'Прайс по регионам'!$B$5:$CJ$50,HLOOKUP('Прейскурант на сортовой прокат_'!CE$7,'Прайс по регионам'!$1:$2,2,FALSE)-1,FALSE) ->  | CF12: =VLOOKUP($A12,'Прайс по регионам'!$B$5:$CJ$50,HLOOKUP('Прейскурант на сортовой прокат_'!CF$7,'Прайс по регионам'!$1:$2,2,FALSE)-1,FALSE) -> 48752.63158 | CG12: =VLOOKUP($A12,'Прайс по регионам'!$B$5:$CJ$50,HLOOKUP('Прейскурант на сортовой прокат_'!CG$7,'Прайс по регионам'!$1:$2,2,FALSE)-1,FALSE) -> 46392.63158 | CH12: =VLOOKUP($A12,'Прайс по регионам'!$B$5:$CJ$50,HLOOKUP('Прейскурант на сортовой прокат_'!CH$7,'Прайс по регионам'!$1:$2,2,FALSE)-1,FALSE) -> 50864.21053 | CI12: =VLOOKUP($A12,'Прайс по регионам'!$B$5:$CJ$50,HLOOKUP('Прейскурант на сортовой прокат_'!CI$7,'Прайс по регионам'!$1:$2,2,FALSE)-1,FALSE) -> 49870.52632 | CJ12: =VLOOKUP($A12,'Прайс по регионам'!$B$5:$CJ$50,HLOOKUP('Прейскурант на сортовой прокат_'!CJ$7,'Прайс по регионам'!$1:$2,2,FALSE)-1,FALSE) -> 49870.52632 | CK12: =VLOOKUP($A12,'Прайс по регионам'!$B$5:$CJ$50,HLOOKUP('Прейскурант на сортовой прокат_'!CK$7,'Прайс по регионам'!$1:$2,2,FALSE)-1,FALSE) -> 49870.52632 | CL12: =VLOOKUP($A12,'Прайс по регионам'!$B$5:$CJ$50,HLOOKUP('Прейскурант на сортовой прокат_'!CL$7,'Прайс по регионам'!$1:$2,2,FALSE)-1,FALSE) -> 50864.21053 | CM12: =VLOOKUP($A12,'Прайс по регионам'!$B$5:$CJ$50,HLOOKUP('Прейскурант на сортовой прокат_'!CM$7,'Прайс по регионам'!$1:$2,2,FALSE)-1,FALSE) ->  | CN12: =VLOOKUP($A12,'Прайс по регионам'!$B$5:$CJ$50,HLOOKUP('Прейскурант на сортовой прокат_'!CN$7,'Прайс по регионам'!$1:$2,2,FALSE)-1,FALSE) -> 49870.52632 | CO12: =VLOOKUP($A12,'Прайс по регионам'!$B$5:$CJ$50,HLOOKUP('Прейскурант на сортовой прокат_'!CO$7,'Прайс по регионам'!$1:$2,2,FALSE)-1,FALSE) -> 51236.84211 | CP12: =VLOOKUP($A12,'Прайс по регионам'!$B$5:$CJ$50,HLOOKUP('Прейскурант на сортовой прокат_'!CP$7,'Прайс по регионам'!$1:$2,2,FALSE)-1,FALSE) -> 54217.89474 | CQ12: =VLOOKUP($A12,'Прайс по регионам'!$B$5:$CJ$50,HLOOKUP('Прейскурант на сортовой прокат_'!CQ$7,'Прайс по регионам'!$1:$2,2,FALSE)-1,FALSE) -> 50864.21053 | CR12: =VLOOKUP($A12,'Прайс по регионам'!$B$5:$CJ$50,HLOOKUP('Прейскурант на сортовой прокат_'!CR$7,'Прайс по регионам'!$1:$2,2,FALSE)-1,FALSE) -> 50802.10526
A13: Катанка Ст3_Катанка 8 | B13: Катанка 8 | C13: 3 пс/ 3 сп, 1 кп, 3кп | D13: ГОСТ 380 | E13: ГОСТ 535, ТУ 14-1-5282-94 | F13: =VLOOKUP($A13,'Прайс по регионам'!$B$5:$CJ$50,HLOOKUP('Прейскурант на сортовой прокат_'!F$7,'Прайс по регионам'!$1:$2,2,FALSE)-1,FALSE) -> 43349.47368 | G13: =VLOOKUP($A13,'Прайс по регионам'!$B$5:$CJ$50,HLOOKUP('Прейскурант на сортовой прокат_'!G$7,'Прайс по регионам'!$1:$2,2,FALSE)-1,FALSE) -> 43349.47368 | H13: =VLOOKUP($A13,'Прайс по регионам'!$B$5:$CJ$50,HLOOKUP('Прейскурант на сортовой прокат_'!H$7,'Прайс по регионам'!$1:$2,2,FALSE)-1,FALSE) -> 43038.94737 | I13: =VLOOKUP($A13,'Прайс по регионам'!$B$5:$CJ$50,HLOOKUP('Прейскурант на сортовой прокат_'!I$7,'Прайс по регионам'!$1:$2,2,FALSE)-1,FALSE) -> 44218.94737 | J13: =VLOOKUP($A13,'Прайс по регионам'!$B$5:$CJ$50,HLOOKUP('Прейскурант на сортовой прокат_'!J$7,'Прайс по регионам'!$1:$2,2,FALSE)-1,FALSE) -> 43970.52632 | K13: =VLOOKUP($A13,'Прайс по регионам'!$B$5:$CJ$50,HLOOKUP('Прейскурант на сортовой прокат_'!K$7,'Прайс по регионам'!$1:$2,2,FALSE)-1,FALSE) -> 44094.73684 | L13: =VLOOKUP($A13,'Прайс по регионам'!$B$5:$CJ$50,HLOOKUP('Прейскурант на сортовой прокат_'!L$7,'Прайс по регионам'!$1:$2,2,FALSE)-1,FALSE) -> 44218.94737 | M13: =VLOOKUP($A13,'Прайс по регионам'!$B$5:$CJ$50,HLOOKUP('Прейскурант на сортовой прокат_'!M$7,'Прайс по регионам'!$1:$2,2,FALSE)-1,FALSE) -> 44094.73684 | N13: =VLOOKUP($A13,'Прайс по регионам'!$B$5:$CJ$50,HLOOKUP('Прейскурант на сортовой прокат_'!N$7,'Прайс по регионам'!$1:$2,2,FALSE)-1,FALSE) -> 44218.94737 | O13: =VLOOKUP($A13,'Прайс по регионам'!$B$5:$CJ$50,HLOOKUP('Прейскурант на сортовой прокат_'!O$7,'Прайс по регионам'!$1:$2,2,FALSE)-1,FALSE) ->  | P13: =VLOOKUP($A13,'Прайс по регионам'!$B$5:$CJ$50,HLOOKUP('Прейскурант на сортовой прокат_'!P$7,'Прайс по регионам'!$1:$2,2,FALSE)-1,FALSE) -> 44218.94737 | Q13: =VLOOKUP($A13,'Прайс по регионам'!$B$5:$CJ$50,HLOOKUP('Прейскурант на сортовой прокат_'!Q$7,'Прайс по регионам'!$1:$2,2,FALSE)-1,FALSE) -> 43784.21053 | R13: =VLOOKUP($A13,'Прайс по регионам'!$B$5:$CJ$50,HLOOKUP('Прейскурант на сортовой прокат_'!R$7,'Прайс по регионам'!$1:$2,2,FALSE)-1,FALSE) -> 44094.73684 | S13: =VLOOKUP($A13,'Прайс по регионам'!$B$5:$CJ$50,HLOOKUP('Прейскурант на сортовой прокат_'!S$7,'Прайс по регионам'!$1:$2,2,FALSE)-1,FALSE) -> 43970.52632 | T13: =VLOOKUP($A13,'Прайс по регионам'!$B$5:$CJ$50,HLOOKUP('Прейскурант на сортовой прокат_'!T$7,'Прайс по регионам'!$1:$2,2,FALSE)-1,FALSE) -> 43660 | U13: =VLOOKUP($A13,'Прайс по регионам'!$B$5:$CJ$50,HLOOKUP('Прейскурант на сортовой прокат_'!U$7,'Прайс по регионам'!$1:$2,2,FALSE)-1,FALSE) -> 43660 | V13: =VLOOKUP($A13,'Прайс по регионам'!$B$5:$CJ$50,HLOOKUP('Прейскурант на сортовой прокат_'!V$7,'Прайс по регионам'!$1:$2,2,FALSE)-1,FALSE) -> 42852.63158 | W13: =VLOOKUP($A13,'Прайс по регионам'!$B$5:$CJ$50,HLOOKUP('Прейскурант на сортовой прокат_'!W$7,'Прайс по регионам'!$1:$2,2,FALSE)-1,FALSE) -> 43163.15789 | X13: =VLOOKUP($A13,'Прайс по регионам'!$B$5:$CJ$50,HLOOKUP('Прейскурант на сортовой прокат_'!X$7,'Прайс по регионам'!$1:$2,2,FALSE)-1,FALSE) -> 43038.94737 | Y13: =VLOOKUP($A13,'Прайс по регионам'!$B$5:$CJ$50,HLOOKUP('Прейскурант на сортовой прокат_'!Y$7,'Прайс по регионам'!$1:$2,2,FALSE)-1,FALSE) ->  | Z13: =VLOOKUP($A13,'Прайс по регионам'!$B$5:$CJ$50,HLOOKUP('Прейскурант на сортовой прокат_'!Z$7,'Прайс по регионам'!$1:$2,2,FALSE)-1,FALSE) -> 42852.63158 | AA13: =VLOOKUP($A13,'Прайс по регионам'!$B$5:$CJ$50,HLOOKUP('Прейскурант на сортовой прокат_'!AA$7,'Прайс по регионам'!$1:$2,2,FALSE)-1,FALSE) -> 43349.47368 | AB13: =VLOOKUP($A13,'Прайс по регионам'!$B$5:$CJ$50,HLOOKUP('Прейскурант на сортовой прокат_'!AB$7,'Прайс по регионам'!$1:$2,2,FALSE)-1,FALSE) -> 42852.63158 | AC13: =VLOOKUP($A13,'Прайс по регионам'!$B$5:$CJ$50,HLOOKUP('Прейскурант на сортовой прокат_'!AC$7,'Прайс по регионам'!$1:$2,2,FALSE)-1,FALSE) -> 43473.68421 | AD13: =VLOOKUP($A13,'Прайс по регионам'!$B$5:$CJ$50,HLOOKUP('Прейскурант на сортовой прокат_'!AD$7,'Прайс по регионам'!$1:$2,2,FALSE)-1,FALSE) -> 43038.94737 | AE13: =VLOOKUP($A13,'Прайс по регионам'!$B$5:$CJ$50,HLOOKUP('Прейскурант на сортовой прокат_'!AE$7,'Прайс по регионам'!$1:$2,2,FALSE)-1,FALSE) -> 43038.94737 | AF13: =VLOOKUP($A13,'Прайс по регионам'!$B$5:$CJ$50,HLOOKUP('Прейскурант на сортовой прокат_'!AF$7,'Прайс по регионам'!$1:$2,2,FALSE)-1,FALSE) -> 43349.47368 | AG13: =VLOOKUP($A13,'Прайс по регионам'!$B$5:$CJ$50,HLOOKUP('Прейскурант на сортовой прокат_'!AG$7,'Прайс по регионам'!$1:$2,2,FALSE)-1,FALSE) -> 42976.84211 | AH13: =VLOOKUP($A13,'Прайс по регионам'!$B$5:$CJ$50,HLOOKUP('Прейскурант на сортовой прокат_'!AH$7,'Прайс по регионам'!$1:$2,2,FALSE)-1,FALSE) -> 43349.47368 | AI13: =VLOOKUP($A13,'Прайс по регионам'!$B$5:$CJ$50,HLOOKUP('Прейскурант на сортовой прокат_'!AI$7,'Прайс по регионам'!$1:$2,2,FALSE)-1,FALSE) ->  | AJ13: =VLOOKUP($A13,'Прайс по регионам'!$B$5:$CJ$50,HLOOKUP('Прейскурант на сортовой прокат_'!AJ$7,'Прайс по регионам'!$1:$2,2,FALSE)-1,FALSE) -> 42976.84211 | AK13: =VLOOKUP($A13,'Прайс по регионам'!$B$5:$CJ$50,HLOOKUP('Прейскурант на сортовой прокат_'!AK$7,'Прайс по регионам'!$1:$2,2,FALSE)-1,FALSE) -> 43597.89474 | AL13: =VLOOKUP($A13,'Прайс по регионам'!$B$5:$CJ$50,HLOOKUP('Прейскурант на сортовой прокат_'!AL$7,'Прайс по регионам'!$1:$2,2,FALSE)-1,FALSE) -> 43163.15789 | AM13: =VLOOKUP($A13,'Прайс по регионам'!$B$5:$CJ$50,HLOOKUP('Прейскурант на сортовой прокат_'!AM$7,'Прайс по регионам'!$1:$2,2,FALSE)-1,FALSE) -> 42852.63158 | AN13: =VLOOKUP($A13,'Прайс по регионам'!$B$5:$CJ$50,HLOOKUP('Прейскурант на сортовой прокат_'!AN$7,'Прайс по регионам'!$1:$2,2,FALSE)-1,FALSE) -> 43349.47368 | AO13: =VLOOKUP($A13,'Прайс по регионам'!$B$5:$CJ$50,HLOOKUP('Прейскурант на сортовой прокат_'!AO$7,'Прайс по регионам'!$1:$2,2,FALSE)-1,FALSE) -> 42852.63158 | AP13: =VLOOKUP($A13,'Прайс по регионам'!$B$5:$CJ$50,HLOOKUP('Прейскурант на сортовой прокат_'!AP$7,'Прайс по регионам'!$1:$2,2,FALSE)-1,FALSE) -> 43349.47368 | AQ13: =VLOOKUP($A13,'Прайс по регионам'!$B$5:$CJ$50,HLOOKUP('Прейскурант на сортовой прокат_'!AQ$7,'Прайс по регионам'!$1:$2,2,FALSE)-1,FALSE) -> 43349.47368 | AR13: =VLOOKUP($A13,'Прайс по регионам'!$B$5:$CJ$50,HLOOKUP('Прейскурант на сортовой прокат_'!AR$7,'Прайс по регионам'!$1:$2,2,FALSE)-1,FALSE) -> 44529.47368 | AS13: =VLOOKUP($A13,'Прайс по регионам'!$B$5:$CJ$50,HLOOKUP('Прейскурант на сортовой прокат_'!AS$7,'Прайс по регионам'!$1:$2,2,FALSE)-1,FALSE) ->  | AT13: =VLOOKUP($A13,'Прайс по регионам'!$B$5:$CJ$50,HLOOKUP('Прейскурант на сортовой прокат_'!AT$7,'Прайс по регионам'!$1:$2,2,FALSE)-1,FALSE) -> 43597.89474 | AU13: =VLOOKUP($A13,'Прайс по регионам'!$B$5:$CJ$50,HLOOKUP('Прейскурант на сортовой прокат_'!AU$7,'Прайс по регионам'!$1:$2,2,FALSE)-1,FALSE) -> 43597.89474 | AV13: =VLOOKUP($A13,'Прайс по регионам'!$B$5:$CJ$50,HLOOKUP('Прейскурант на сортовой прокат_'!AV$7,'Прайс по регионам'!$1:$2,2,FALSE)-1,FALSE) -> 43597.89474 | AW13: =VLOOKUP($A13,'Прайс по регионам'!$B$5:$CJ$50,HLOOKUP('Прейскурант на сортовой прокат_'!AW$7,'Прайс по регионам'!$1:$2,2,FALSE)-1,FALSE) -> 43473.68421 | AX13: =VLOOKUP($A13,'Прайс по регионам'!$B$5:$CJ$50,HLOOKUP('Прейскурант на сортовой прокат_'!AX$7,'Прайс по регионам'!$1:$2,2,FALSE)-1,FALSE) -> 41983.15789 | AY13: =VLOOKUP($A13,'Прайс по регионам'!$B$5:$CJ$50,HLOOKUP('Прейскурант на сортовой прокат_'!AY$7,'Прайс по регионам'!$1:$2,2,FALSE)-1,FALSE) -> 42417.89474 | AZ13: =VLOOKUP($A13,'Прайс по регионам'!$B$5:$CJ$50,HLOOKUP('Прейскурант на сортовой прокат_'!AZ$7,'Прайс по регионам'!$1:$2,2,FALSE)-1,FALSE) -> 42107.36842 | BA13: =VLOOKUP($A13,'Прайс по регионам'!$B$5:$CJ$50,HLOOKUP('Прейскурант на сортовой прокат_'!BA$7,'Прайс по регионам'!$1:$2,2,FALSE)-1,FALSE) -> 42542.10526 | BB13: =VLOOKUP($A13,'Прайс по регионам'!$B$5:$CJ$50,HLOOKUP('Прейскурант на сортовой прокат_'!BB$7,'Прайс по регионам'!$1:$2,2,FALSE)-1,FALSE) -> 41672.63158 | BC13: =VLOOKUP($A13,'Прайс по регионам'!$B$5:$CJ$50,HLOOKUP('Прейскурант на сортовой прокат_'!BC$7,'Прайс по регионам'!$1:$2,2,FALSE)-1,FALSE) ->  | BD13: =VLOOKUP($A13,'Прайс по регионам'!$B$5:$CJ$50,HLOOKUP('Прейскурант на сортовой прокат_'!BD$7,'Прайс по регионам'!$1:$2,2,FALSE)-1,FALSE) -> 41672.63158 | BE13: =VLOOKUP($A13,'Прайс по регионам'!$B$5:$CJ$50,HLOOKUP('Прейскурант на сортовой прокат_'!BE$7,'Прайс по регионам'!$1:$2,2,FALSE)-1,FALSE) -> 42107.36842 | BF13: =VLOOKUP($A13,'Прайс по регионам'!$B$5:$CJ$50,HLOOKUP('Прейскурант на сортовой прокат_'!BF$7,'Прайс по регионам'!$1:$2,2,FALSE)-1,FALSE) -> 42417.89474 | BG13: =VLOOKUP($A13,'Прайс по регионам'!$B$5:$CJ$50,HLOOKUP('Прейскурант на сортовой прокат_'!BG$7,'Прайс по регионам'!$1:$2,2,FALSE)-1,FALSE) -> 41983.15789 | BH13: =VLOOKUP($A13,'Прайс по регионам'!$B$5:$CJ$50,HLOOKUP('Прейскурант на сортовой прокат_'!BH$7,'Прайс по регионам'!$1:$2,2,FALSE)-1,FALSE) -> 41672.63158 | BI13: =VLOOKUP($A13,'Прайс по регионам'!$B$5:$CJ$50,HLOOKUP('Прейскурант на сортовой прокат_'!BI$7,'Прайс по регионам'!$1:$2,2,FALSE)-1,FALSE) -> 42231.57895 | BJ13: =VLOOKUP($A13,'Прайс по регионам'!$B$5:$CJ$50,HLOOKUP('Прейскурант на сортовой прокат_'!BJ$7,'Прайс по регионам'!$1:$2,2,FALSE)-1,FALSE) -> 42542.10526 | BK13: =VLOOKUP($A13,'Прайс по регионам'!$B$5:$CJ$50,HLOOKUP('Прейскурант на сортовой прокат_'!BK$7,'Прайс по регионам'!$1:$2,2,FALSE)-1,FALSE) -> 42107.36842 | BL13: =VLOOKUP($A13,'Прайс по регионам'!$B$5:$CJ$50,HLOOKUP('Прейскурант на сортовой прокат_'!BL$7,'Прайс по регионам'!$1:$2,2,FALSE)-1,FALSE) -> 42231.57895 | BM13: =VLOOKUP($A13,'Прайс по регионам'!$B$5:$CJ$50,HLOOKUP('Прейскурант на сортовой прокат_'!BM$7,'Прайс по регионам'!$1:$2,2,FALSE)-1,FALSE) ->  | BN13: =VLOOKUP($A13,'Прайс по регионам'!$B$5:$CJ$50,HLOOKUP('Прейскурант на сортовой прокат_'!BN$7,'Прайс по регионам'!$1:$2,2,FALSE)-1,FALSE) -> 43970.52632 | BO13: =VLOOKUP($A13,'Прайс по регионам'!$B$5:$CJ$50,HLOOKUP('Прейскурант на сортовой прокат_'!BO$7,'Прайс по регионам'!$1:$2,2,FALSE)-1,FALSE) -> 41486.31579 | BP13: =VLOOKUP($A13,'Прайс по регионам'!$B$5:$CJ$50,HLOOKUP('Прейскурант на сортовой прокат_'!BP$7,'Прайс по регионам'!$1:$2,2,FALSE)-1,FALSE) -> 41983.15789 | BQ13: =VLOOKUP($A13,'Прайс по регионам'!$B$5:$CJ$50,HLOOKUP('Прейскурант на сортовой прокат_'!BQ$7,'Прайс по регионам'!$1:$2,2,FALSE)-1,FALSE) -> 41921.05263 | BR13: =VLOOKUP($A13,'Прайс по регионам'!$B$5:$CJ$50,HLOOKUP('Прейскурант на сортовой прокат_'!BR$7,'Прайс по регионам'!$1:$2,2,FALSE)-1,FALSE) -> 41362.10526 | BS13: =VLOOKUP($A13,'Прайс по регионам'!$B$5:$CJ$50,HLOOKUP('Прейскурант на сортовой прокат_'!BS$7,'Прайс по регионам'!$1:$2,2,FALSE)-1,FALSE) -> 40741.05263 | BT13: =VLOOKUP($A13,'Прайс по регионам'!$B$5:$CJ$50,HLOOKUP('Прейскурант на сортовой прокат_'!BT$7,'Прайс по регионам'!$1:$2,2,FALSE)-1,FALSE) -> 43970.52632 | BU13: =VLOOKUP($A13,'Прайс по регионам'!$B$5:$CJ$50,HLOOKUP('Прейскурант на сортовой прокат_'!BU$7,'Прайс по регионам'!$1:$2,2,FALSE)-1,FALSE) ->  | BV13: =VLOOKUP($A13,'Прайс по регионам'!$B$5:$CJ$50,HLOOKUP('Прейскурант на сортовой прокат_'!BV$7,'Прайс по регионам'!$1:$2,2,FALSE)-1,FALSE) -> 43287.36842 | BW13: =VLOOKUP($A13,'Прайс по регионам'!$B$5:$CJ$50,HLOOKUP('Прейскурант на сортовой прокат_'!BW$7,'Прайс по регионам'!$1:$2,2,FALSE)-1,FALSE) -> 45585.26316 | BX13: =VLOOKUP($A13,'Прайс по регионам'!$B$5:$CJ$50,HLOOKUP('Прейскурант на сортовой прокат_'!BX$7,'Прайс по регионам'!$1:$2,2,FALSE)-1,FALSE) -> 44343.15789 | BY13: =VLOOKUP($A13,'Прайс по регионам'!$B$5:$CJ$50,HLOOKUP('Прейскурант на сортовой прокат_'!BY$7,'Прайс по регионам'!$1:$2,2,FALSE)-1,FALSE) -> 45585.26316 | BZ13: =VLOOKUP($A13,'Прайс по регионам'!$B$5:$CJ$50,HLOOKUP('Прейскурант на сортовой прокат_'!BZ$7,'Прайс по регионам'!$1:$2,2,FALSE)-1,FALSE) -> 43287.36842 | CA13: =VLOOKUP($A13,'Прайс по регионам'!$B$5:$CJ$50,HLOOKUP('Прейскурант на сортовой прокат_'!CA$7,'Прайс по регионам'!$1:$2,2,FALSE)-1,FALSE) -> 42231.57895 | CB13: =VLOOKUP($A13,'Прайс по регионам'!$B$5:$CJ$50,HLOOKUP('Прейскурант на сортовой прокат_'!CB$7,'Прайс по регионам'!$1:$2,2,FALSE)-1,FALSE) -> 43287.36842 | CC13: =VLOOKUP($A13,'Прайс по регионам'!$B$5:$CJ$50,HLOOKUP('Прейскурант на сортовой прокат_'!CC$7,'Прайс по регионам'!$1:$2,2,FALSE)-1,FALSE) -> 46082.10526 | CD13: =VLOOKUP($A13,'Прайс по регионам'!$B$5:$CJ$50,HLOOKUP('Прейскурант на сортовой прокат_'!CD$7,'Прайс по регионам'!$1:$2,2,FALSE)-1,FALSE) -> 45585.26316 | CE13: =VLOOKUP($A13,'Прайс по регионам'!$B$5:$CJ$50,HLOOKUP('Прейскурант на сортовой прокат_'!CE$7,'Прайс по регионам'!$1:$2,2,FALSE)-1,FALSE) ->  | CF13: =VLOOKUP($A13,'Прайс по регионам'!$B$5:$CJ$50,HLOOKUP('Прейскурант на сортовой прокат_'!CF$7,'Прайс по регионам'!$1:$2,2,FALSE)-1,FALSE) -> 45585.26316 | CG13: =VLOOKUP($A13,'Прайс по регионам'!$B$5:$CJ$50,HLOOKUP('Прейскурант на сортовой прокат_'!CG$7,'Прайс по регионам'!$1:$2,2,FALSE)-1,FALSE) -> 43287.36842 | CH13: =VLOOKUP($A13,'Прайс по регионам'!$B$5:$CJ$50,HLOOKUP('Прейскурант на сортовой прокат_'!CH$7,'Прайс по регионам'!$1:$2,2,FALSE)-1,FALSE) -> 47696.84211 | CI13: =VLOOKUP($A13,'Прайс по регионам'!$B$5:$CJ$50,HLOOKUP('Прейскурант на сортовой прокат_'!CI$7,'Прайс по регионам'!$1:$2,2,FALSE)-1,FALSE) -> 46765.26316 | CJ13: =VLOOKUP($A13,'Прайс по регионам'!$B$5:$CJ$50,HLOOKUP('Прейскурант на сортовой прокат_'!CJ$7,'Прайс по регионам'!$1:$2,2,FALSE)-1,FALSE) -> 46765.26316 | CK13: =VLOOKUP($A13,'Прайс по регионам'!$B$5:$CJ$50,HLOOKUP('Прейскурант на сортовой прокат_'!CK$7,'Прайс по регионам'!$1:$2,2,FALSE)-1,FALSE) -> 46765.26316 | CL13: =VLOOKUP($A13,'Прайс по регионам'!$B$5:$CJ$50,HLOOKUP('Прейскурант на сортовой прокат_'!CL$7,'Прайс по регионам'!$1:$2,2,FALSE)-1,FALSE) -> 47696.84211 | CM13: =VLOOKUP($A13,'Прайс по регионам'!$B$5:$CJ$50,HLOOKUP('Прейскурант на сортовой прокат_'!CM$7,'Прайс по регионам'!$1:$2,2,FALSE)-1,FALSE) ->  | CN13: =VLOOKUP($A13,'Прайс по регионам'!$B$5:$CJ$50,HLOOKUP('Прейскурант на сортовой прокат_'!CN$7,'Прайс по регионам'!$1:$2,2,FALSE)-1,FALSE) -> 46765.26316 | CO13: =VLOOKUP($A13,'Прайс по регионам'!$B$5:$CJ$50,HLOOKUP('Прейскурант на сортовой прокат_'!CO$7,'Прайс по регионам'!$1:$2,2,FALSE)-1,FALSE) -> 48131.57895 | CP13: =VLOOKUP($A13,'Прайс по регионам'!$B$5:$CJ$50,HLOOKUP('Прейскурант на сортовой прокат_'!CP$7,'Прайс по регионам'!$1:$2,2,FALSE)-1,FALSE) -> 51050.52632 | CQ13: =VLOOKUP($A13,'Прайс по регионам'!$B$5:$CJ$50,HLOOKUP('Прейскурант на сортовой прокат_'!CQ$7,'Прайс по регионам'!$1:$2,2,FALSE)-1,FALSE) -> 47696.84211 | CR13: =VLOOKUP($A13,'Прайс по регионам'!$B$5:$CJ$50,HLOOKUP('Прейскурант на сортовой прокат_'!CR$7,'Прайс по регионам'!$1:$2,2,FALSE)-1,FALSE) -> 47634.73684
A14: Ст 3 A I_6б | B14: Арматура 6 (мотки) | C14: 3пс/сп | D14: ГОСТ 5781 | E14: ГОСТ 5781 | F14: =VLOOKUP($A14,'Прайс по регионам'!$B$5:$CJ$50,HLOOKUP('Прейскурант на сортовой прокат_'!F$7,'Прайс по регионам'!$1:$2,2,FALSE)-1,FALSE) -> 43349.47368 | G14: =VLOOKUP($A14,'Прайс по регионам'!$B$5:$CJ$50,HLOOKUP('Прейскурант на сортовой прокат_'!G$7,'Прайс по регионам'!$1:$2,2,FALSE)-1,FALSE) -> 43349.47368 | H14: =VLOOKUP($A14,'Прайс по регионам'!$B$5:$CJ$50,HLOOKUP('Прейскурант на сортовой прокат_'!H$7,'Прайс по регионам'!$1:$2,2,FALSE)-1,FALSE) -> 43038.94737 | I14: =VLOOKUP($A14,'Прайс по регионам'!$B$5:$CJ$50,HLOOKUP('Прейскурант на сортовой прокат_'!I$7,'Прайс по регионам'!$1:$2,2,FALSE)-1,FALSE) -> 44218.94737 | J14: =VLOOKUP($A14,'Прайс по регионам'!$B$5:$CJ$50,HLOOKUP('Прейскурант на сортовой прокат_'!J$7,'Прайс по регионам'!$1:$2,2,FALSE)-1,FALSE) -> 43970.52632 | K14: =VLOOKUP($A14,'Прайс по регионам'!$B$5:$CJ$50,HLOOKUP('Прейскурант на сортовой прокат_'!K$7,'Прайс по регионам'!$1:$2,2,FALSE)-1,FALSE) -> 44094.73684 | L14: =VLOOKUP($A14,'Прайс по регионам'!$B$5:$CJ$50,HLOOKUP('Прейскурант на сортовой прокат_'!L$7,'Прайс по регионам'!$1:$2,2,FALSE)-1,FALSE) -> 44218.94737 | M14: =VLOOKUP($A14,'Прайс по регионам'!$B$5:$CJ$50,HLOOKUP('Прейскурант на сортовой прокат_'!M$7,'Прайс по регионам'!$1:$2,2,FALSE)-1,FALSE) -> 44094.73684 | N14: =VLOOKUP($A14,'Прайс по регионам'!$B$5:$CJ$50,HLOOKUP('Прейскурант на сортовой прокат_'!N$7,'Прайс по регионам'!$1:$2,2,FALSE)-1,FALSE) -> 44218.94737 | O14: =VLOOKUP($A14,'Прайс по регионам'!$B$5:$CJ$50,HLOOKUP('Прейскурант на сортовой прокат_'!O$7,'Прайс по регионам'!$1:$2,2,FALSE)-1,FALSE) ->  | P14: =VLOOKUP($A14,'Прайс по регионам'!$B$5:$CJ$50,HLOOKUP('Прейскурант на сортовой прокат_'!P$7,'Прайс по регионам'!$1:$2,2,FALSE)-1,FALSE) -> 44218.94737 | Q14: =VLOOKUP($A14,'Прайс по регионам'!$B$5:$CJ$50,HLOOKUP('Прейскурант на сортовой прокат_'!Q$7,'Прайс по регионам'!$1:$2,2,FALSE)-1,FALSE) -> 43784.21053 | R14: =VLOOKUP($A14,'Прайс по регионам'!$B$5:$CJ$50,HLOOKUP('Прейскурант на сортовой прокат_'!R$7,'Прайс по регионам'!$1:$2,2,FALSE)-1,FALSE) -> 44094.73684 | S14: =VLOOKUP($A14,'Прайс по регионам'!$B$5:$CJ$50,HLOOKUP('Прейскурант на сортовой прокат_'!S$7,'Прайс по регионам'!$1:$2,2,FALSE)-1,FALSE) -> 43970.52632 | T14: =VLOOKUP($A14,'Прайс по регионам'!$B$5:$CJ$50,HLOOKUP('Прейскурант на сортовой прокат_'!T$7,'Прайс по регионам'!$1:$2,2,FALSE)-1,FALSE) -> 43660 | U14: =VLOOKUP($A14,'Прайс по регионам'!$B$5:$CJ$50,HLOOKUP('Прейскурант на сортовой прокат_'!U$7,'Прайс по регионам'!$1:$2,2,FALSE)-1,FALSE) -> 43660 | V14: =VLOOKUP($A14,'Прайс по регионам'!$B$5:$CJ$50,HLOOKUP('Прейскурант на сортовой прокат_'!V$7,'Прайс по регионам'!$1:$2,2,FALSE)-1,FALSE) -> 42852.63158 | W14: =VLOOKUP($A14,'Прайс по регионам'!$B$5:$CJ$50,HLOOKUP('Прейскурант на сортовой прокат_'!W$7,'Прайс по регионам'!$1:$2,2,FALSE)-1,FALSE) -> 43163.15789 | X14: =VLOOKUP($A14,'Прайс по регионам'!$B$5:$CJ$50,HLOOKUP('Прейскурант на сортовой прокат_'!X$7,'Прайс по регионам'!$1:$2,2,FALSE)-1,FALSE) -> 43038.94737 | Y14: =VLOOKUP($A14,'Прайс по регионам'!$B$5:$CJ$50,HLOOKUP('Прейскурант на сортовой прокат_'!Y$7,'Прайс по регионам'!$1:$2,2,FALSE)-1,FALSE) ->  | Z14: =VLOOKUP($A14,'Прайс по регионам'!$B$5:$CJ$50,HLOOKUP('Прейскурант на сортовой прокат_'!Z$7,'Прайс по регионам'!$1:$2,2,FALSE)-1,FALSE) -> 42852.63158 | AA14: =VLOOKUP($A14,'Прайс по регионам'!$B$5:$CJ$50,HLOOKUP('Прейскурант на сортовой прокат_'!AA$7,'Прайс по регионам'!$1:$2,2,FALSE)-1,FALSE) -> 43349.47368 | AB14: =VLOOKUP($A14,'Прайс по регионам'!$B$5:$CJ$50,HLOOKUP('Прейскурант на сортовой прокат_'!AB$7,'Прайс по регионам'!$1:$2,2,FALSE)-1,FALSE) -> 42852.63158 | AC14: =VLOOKUP($A14,'Прайс по регионам'!$B$5:$CJ$50,HLOOKUP('Прейскурант на сортовой прокат_'!AC$7,'Прайс по регионам'!$1:$2,2,FALSE)-1,FALSE) -> 43473.68421 | AD14: =VLOOKUP($A14,'Прайс по регионам'!$B$5:$CJ$50,HLOOKUP('Прейскурант на сортовой прокат_'!AD$7,'Прайс по регионам'!$1:$2,2,FALSE)-1,FALSE) -> 43038.94737 | AE14: =VLOOKUP($A14,'Прайс по регионам'!$B$5:$CJ$50,HLOOKUP('Прейскурант на сортовой прокат_'!AE$7,'Прайс по регионам'!$1:$2,2,FALSE)-1,FALSE) -> 43038.94737 | AF14: =VLOOKUP($A14,'Прайс по регионам'!$B$5:$CJ$50,HLOOKUP('Прейскурант на сортовой прокат_'!AF$7,'Прайс по регионам'!$1:$2,2,FALSE)-1,FALSE) -> 43349.47368 | AG14: =VLOOKUP($A14,'Прайс по регионам'!$B$5:$CJ$50,HLOOKUP('Прейскурант на сортовой прокат_'!AG$7,'Прайс по регионам'!$1:$2,2,FALSE)-1,FALSE) -> 42976.84211 | AH14: =VLOOKUP($A14,'Прайс по регионам'!$B$5:$CJ$50,HLOOKUP('Прейскурант на сортовой прокат_'!AH$7,'Прайс по регионам'!$1:$2,2,FALSE)-1,FALSE) -> 43349.47368 | AI14: =VLOOKUP($A14,'Прайс по регионам'!$B$5:$CJ$50,HLOOKUP('Прейскурант на сортовой прокат_'!AI$7,'Прайс по регионам'!$1:$2,2,FALSE)-1,FALSE) ->  | AJ14: =VLOOKUP($A14,'Прайс по регионам'!$B$5:$CJ$50,HLOOKUP('Прейскурант на сортовой прокат_'!AJ$7,'Прайс по регионам'!$1:$2,2,FALSE)-1,FALSE) -> 42976.84211 | AK14: =VLOOKUP($A14,'Прайс по регионам'!$B$5:$CJ$50,HLOOKUP('Прейскурант на сортовой прокат_'!AK$7,'Прайс по регионам'!$1:$2,2,FALSE)-1,FALSE) -> 43597.89474 | AL14: =VLOOKUP($A14,'Прайс по регионам'!$B$5:$CJ$50,HLOOKUP('Прейскурант на сортовой прокат_'!AL$7,'Прайс по регионам'!$1:$2,2,FALSE)-1,FALSE) -> 43163.15789 | AM14: =VLOOKUP($A14,'Прайс по регионам'!$B$5:$CJ$50,HLOOKUP('Прейскурант на сортовой прокат_'!AM$7,'Прайс по регионам'!$1:$2,2,FALSE)-1,FALSE) -> 42852.63158 | AN14: =VLOOKUP($A14,'Прайс по регионам'!$B$5:$CJ$50,HLOOKUP('Прейскурант на сортовой прокат_'!AN$7,'Прайс по регионам'!$1:$2,2,FALSE)-1,FALSE) -> 43349.47368 | AO14: =VLOOKUP($A14,'Прайс по регионам'!$B$5:$CJ$50,HLOOKUP('Прейскурант на сортовой прокат_'!AO$7,'Прайс по регионам'!$1:$2,2,FALSE)-1,FALSE) -> 42852.63158 | AP14: =VLOOKUP($A14,'Прайс по регионам'!$B$5:$CJ$50,HLOOKUP('Прейскурант на сортовой прокат_'!AP$7,'Прайс по регионам'!$1:$2,2,FALSE)-1,FALSE) -> 43349.47368 | AQ14: =VLOOKUP($A14,'Прайс по регионам'!$B$5:$CJ$50,HLOOKUP('Прейскурант на сортовой прокат_'!AQ$7,'Прайс по регионам'!$1:$2,2,FALSE)-1,FALSE) -> 43349.47368 | AR14: =VLOOKUP($A14,'Прайс по регионам'!$B$5:$CJ$50,HLOOKUP('Прейскурант на сортовой прокат_'!AR$7,'Прайс по регионам'!$1:$2,2,FALSE)-1,FALSE) -> 44529.47368 | AS14: =VLOOKUP($A14,'Прайс по регионам'!$B$5:$CJ$50,HLOOKUP('Прейскурант на сортовой прокат_'!AS$7,'Прайс по регионам'!$1:$2,2,FALSE)-1,FALSE) ->  | AT14: =VLOOKUP($A14,'Прайс по регионам'!$B$5:$CJ$50,HLOOKUP('Прейскурант на сортовой прокат_'!AT$7,'Прайс по регионам'!$1:$2,2,FALSE)-1,FALSE) -> 43597.89474 | AU14: =VLOOKUP($A14,'Прайс по регионам'!$B$5:$CJ$50,HLOOKUP('Прейскурант на сортовой прокат_'!AU$7,'Прайс по регионам'!$1:$2,2,FALSE)-1,FALSE) -> 43597.89474 | AV14: =VLOOKUP($A14,'Прайс по регионам'!$B$5:$CJ$50,HLOOKUP('Прейскурант на сортовой прокат_'!AV$7,'Прайс по регионам'!$1:$2,2,FALSE)-1,FALSE) -> 43597.89474 | AW14: =VLOOKUP($A14,'Прайс по регионам'!$B$5:$CJ$50,HLOOKUP('Прейскурант на сортовой прокат_'!AW$7,'Прайс по регионам'!$1:$2,2,FALSE)-1,FALSE) -> 43473.68421 | AX14: =VLOOKUP($A14,'Прайс по регионам'!$B$5:$CJ$50,HLOOKUP('Прейскурант на сортовой прокат_'!AX$7,'Прайс по регионам'!$1:$2,2,FALSE)-1,FALSE) -> 41983.15789 | AY14: =VLOOKUP($A14,'Прайс по регионам'!$B$5:$CJ$50,HLOOKUP('Прейскурант на сортовой прокат_'!AY$7,'Прайс по регионам'!$1:$2,2,FALSE)-1,FALSE) -> 42417.89474 | AZ14: =VLOOKUP($A14,'Прайс по регионам'!$B$5:$CJ$50,HLOOKUP('Прейскурант на сортовой прокат_'!AZ$7,'Прайс по регионам'!$1:$2,2,FALSE)-1,FALSE) -> 42107.36842 | BA14: =VLOOKUP($A14,'Прайс по регионам'!$B$5:$CJ$50,HLOOKUP('Прейскурант на сортовой прокат_'!BA$7,'Прайс по регионам'!$1:$2,2,FALSE)-1,FALSE) -> 42542.10526 | BB14: =VLOOKUP($A14,'Прайс по регионам'!$B$5:$CJ$50,HLOOKUP('Прейскурант на сортовой прокат_'!BB$7,'Прайс по регионам'!$1:$2,2,FALSE)-1,FALSE) -> 41672.63158 | BC14: =VLOOKUP($A14,'Прайс по регионам'!$B$5:$CJ$50,HLOOKUP('Прейскурант на сортовой прокат_'!BC$7,'Прайс по регионам'!$1:$2,2,FALSE)-1,FALSE) ->  | BD14: =VLOOKUP($A14,'Прайс по регионам'!$B$5:$CJ$50,HLOOKUP('Прейскурант на сортовой прокат_'!BD$7,'Прайс по регионам'!$1:$2,2,FALSE)-1,FALSE) -> 41672.63158 | BE14: =VLOOKUP($A14,'Прайс по регионам'!$B$5:$CJ$50,HLOOKUP('Прейскурант на сортовой прокат_'!BE$7,'Прайс по регионам'!$1:$2,2,FALSE)-1,FALSE) -> 42107.36842 | BF14: =VLOOKUP($A14,'Прайс по регионам'!$B$5:$CJ$50,HLOOKUP('Прейскурант на сортовой прокат_'!BF$7,'Прайс по регионам'!$1:$2,2,FALSE)-1,FALSE) -> 42417.89474 | BG14: =VLOOKUP($A14,'Прайс по регионам'!$B$5:$CJ$50,HLOOKUP('Прейскурант на сортовой прокат_'!BG$7,'Прайс по регионам'!$1:$2,2,FALSE)-1,FALSE) -> 41983.15789 | BH14: =VLOOKUP($A14,'Прайс по регионам'!$B$5:$CJ$50,HLOOKUP('Прейскурант на сортовой прокат_'!BH$7,'Прайс по регионам'!$1:$2,2,FALSE)-1,FALSE) -> 41672.63158 | BI14: =VLOOKUP($A14,'Прайс по регионам'!$B$5:$CJ$50,HLOOKUP('Прейскурант на сортовой прокат_'!BI$7,'Прайс по регионам'!$1:$2,2,FALSE)-1,FALSE) -> 42231.57895 | BJ14: =VLOOKUP($A14,'Прайс по регионам'!$B$5:$CJ$50,HLOOKUP('Прейскурант на сортовой прокат_'!BJ$7,'Прайс по регионам'!$1:$2,2,FALSE)-1,FALSE) -> 42542.10526 | BK14: =VLOOKUP($A14,'Прайс по регионам'!$B$5:$CJ$50,HLOOKUP('Прейскурант на сортовой прокат_'!BK$7,'Прайс по регионам'!$1:$2,2,FALSE)-1,FALSE) -> 42107.36842 | BL14: =VLOOKUP($A14,'Прайс по регионам'!$B$5:$CJ$50,HLOOKUP('Прейскурант на сортовой прокат_'!BL$7,'Прайс по регионам'!$1:$2,2,FALSE)-1,FALSE) -> 42231.57895 | BM14: =VLOOKUP($A14,'Прайс по регионам'!$B$5:$CJ$50,HLOOKUP('Прейскурант на сортовой прокат_'!BM$7,'Прайс по регионам'!$1:$2,2,FALSE)-1,FALSE) ->  | BN14: =VLOOKUP($A14,'Прайс по регионам'!$B$5:$CJ$50,HLOOKUP('Прейскурант на сортовой прокат_'!BN$7,'Прайс по регионам'!$1:$2,2,FALSE)-1,FALSE) -> 43970.52632 | BO14: =VLOOKUP($A14,'Прайс по регионам'!$B$5:$CJ$50,HLOOKUP('Прейскурант на сортовой прокат_'!BO$7,'Прайс по регионам'!$1:$2,2,FALSE)-1,FALSE) -> 41486.31579 | BP14: =VLOOKUP($A14,'Прайс по регионам'!$B$5:$CJ$50,HLOOKUP('Прейскурант на сортовой прокат_'!BP$7,'Прайс по регионам'!$1:$2,2,FALSE)-1,FALSE) -> 41983.15789 | BQ14: =VLOOKUP($A14,'Прайс по регионам'!$B$5:$CJ$50,HLOOKUP('Прейскурант на сортовой прокат_'!BQ$7,'Прайс по регионам'!$1:$2,2,FALSE)-1,FALSE) -> 41921.05263 | BR14: =VLOOKUP($A14,'Прайс по регионам'!$B$5:$CJ$50,HLOOKUP('Прейскурант на сортовой прокат_'!BR$7,'Прайс по регионам'!$1:$2,2,FALSE)-1,FALSE) -> 41362.10526 | BS14: =VLOOKUP($A14,'Прайс по регионам'!$B$5:$CJ$50,HLOOKUP('Прейскурант на сортовой прокат_'!BS$7,'Прайс по регионам'!$1:$2,2,FALSE)-1,FALSE) -> 40741.05263 | BT14: =VLOOKUP($A14,'Прайс по регионам'!$B$5:$CJ$50,HLOOKUP('Прейскурант на сортовой прокат_'!BT$7,'Прайс по регионам'!$1:$2,2,FALSE)-1,FALSE) -> 43970.52632 | BU14: =VLOOKUP($A14,'Прайс по регионам'!$B$5:$CJ$50,HLOOKUP('Прейскурант на сортовой прокат_'!BU$7,'Прайс по регионам'!$1:$2,2,FALSE)-1,FALSE) ->  | BV14: =VLOOKUP($A14,'Прайс по регионам'!$B$5:$CJ$50,HLOOKUP('Прейскурант на сортовой прокат_'!BV$7,'Прайс по регионам'!$1:$2,2,FALSE)-1,FALSE) -> 45274.73684 | BW14: =VLOOKUP($A14,'Прайс по регионам'!$B$5:$CJ$50,HLOOKUP('Прейскурант на сортовой прокат_'!BW$7,'Прайс по регионам'!$1:$2,2,FALSE)-1,FALSE) -> 47572.63158 | BX14: =VLOOKUP($A14,'Прайс по регионам'!$B$5:$CJ$50,HLOOKUP('Прейскурант на сортовой прокат_'!BX$7,'Прайс по регионам'!$1:$2,2,FALSE)-1,FALSE) -> 45274.73684 | BY14: =VLOOKUP($A14,'Прайс по регионам'!$B$5:$CJ$50,HLOOKUP('Прейскурант на сортовой прокат_'!BY$7,'Прайс по регионам'!$1:$2,2,FALSE)-1,FALSE) -> 47572.63158 | BZ14: =VLOOKUP($A14,'Прайс по регионам'!$B$5:$CJ$50,HLOOKUP('Прейскурант на сортовой прокат_'!BZ$7,'Прайс по регионам'!$1:$2,2,FALSE)-1,FALSE) -> 45274.73684 | CA14: =VLOOKUP($A14,'Прайс по регионам'!$B$5:$CJ$50,HLOOKUP('Прейскурант на сортовой прокат_'!CA$7,'Прайс по регионам'!$1:$2,2,FALSE)-1,FALSE) -> 44218.94737 | CB14: =VLOOKUP($A14,'Прайс по регионам'!$B$5:$CJ$50,HLOOKUP('Прейскурант на сортовой прокат_'!CB$7,'Прайс по регионам'!$1:$2,2,FALSE)-1,FALSE) -> 45274.73684 | CC14: =VLOOKUP($A14,'Прайс по регионам'!$B$5:$CJ$50,HLOOKUP('Прейскурант на сортовой прокат_'!CC$7,'Прайс по регионам'!$1:$2,2,FALSE)-1,FALSE) -> 48131.57895 | CD14: =VLOOKUP($A14,'Прайс по регионам'!$B$5:$CJ$50,HLOOKUP('Прейскурант на сортовой прокат_'!CD$7,'Прайс по регионам'!$1:$2,2,FALSE)-1,FALSE) -> 47572.63158 | CE14: =VLOOKUP($A14,'Прайс по регионам'!$B$5:$CJ$50,HLOOKUP('Прейскурант на сортовой прокат_'!CE$7,'Прайс по регионам'!$1:$2,2,FALSE)-1,FALSE) ->  | CF14: =VLOOKUP($A14,'Прайс по регионам'!$B$5:$CJ$50,HLOOKUP('Прейскурант на сортовой прокат_'!CF$7,'Прайс по регионам'!$1:$2,2,FALSE)-1,FALSE) -> 47572.63158 | CG14: =VLOOKUP($A14,'Прайс по регионам'!$B$5:$CJ$50,HLOOKUP('Прейскурант на сортовой прокат_'!CG$7,'Прайс по регионам'!$1:$2,2,FALSE)-1,FALSE) -> 45274.73684 | CH14: =VLOOKUP($A14,'Прайс по регионам'!$B$5:$CJ$50,HLOOKUP('Прейскурант на сортовой прокат_'!CH$7,'Прайс по регионам'!$1:$2,2,FALSE)-1,FALSE) -> 49684.21053 | CI14: =VLOOKUP($A14,'Прайс по регионам'!$B$5:$CJ$50,HLOOKUP('Прейскурант на сортовой прокат_'!CI$7,'Прайс по регионам'!$1:$2,2,FALSE)-1,FALSE) -> 46516.84211 | CJ14: =VLOOKUP($A14,'Прайс по регионам'!$B$5:$CJ$50,HLOOKUP('Прейскурант на сортовой прокат_'!CJ$7,'Прайс по регионам'!$1:$2,2,FALSE)-1,FALSE) -> 46516.84211 | CK14: =VLOOKUP($A14,'Прайс по регионам'!$B$5:$CJ$50,HLOOKUP('Прейскурант на сортовой прокат_'!CK$7,'Прайс по регионам'!$1:$2,2,FALSE)-1,FALSE) -> 46516.84211 | CL14: =VLOOKUP($A14,'Прайс по регионам'!$B$5:$CJ$50,HLOOKUP('Прейскурант на сортовой прокат_'!CL$7,'Прайс по регионам'!$1:$2,2,FALSE)-1,FALSE) -> 47448.42105 | CM14: =VLOOKUP($A14,'Прайс по регионам'!$B$5:$CJ$50,HLOOKUP('Прейскурант на сортовой прокат_'!CM$7,'Прайс по регионам'!$1:$2,2,FALSE)-1,FALSE) ->  | CN14: =VLOOKUP($A14,'Прайс по регионам'!$B$5:$CJ$50,HLOOKUP('Прейскурант на сортовой прокат_'!CN$7,'Прайс по регионам'!$1:$2,2,FALSE)-1,FALSE) -> 46516.84211 | CO14: =VLOOKUP($A14,'Прайс по регионам'!$B$5:$CJ$50,HLOOKUP('Прейскурант на сортовой прокат_'!CO$7,'Прайс по регионам'!$1:$2,2,FALSE)-1,FALSE) -> 47883.15789 | CP14: =VLOOKUP($A14,'Прайс по регионам'!$B$5:$CJ$50,HLOOKUP('Прейскурант на сортовой прокат_'!CP$7,'Прайс по регионам'!$1:$2,2,FALSE)-1,FALSE) -> 50864.21053 | CQ14: =VLOOKUP($A14,'Прайс по регионам'!$B$5:$CJ$50,HLOOKUP('Прейскурант на сортовой прокат_'!CQ$7,'Прайс по регионам'!$1:$2,2,FALSE)-1,FALSE) -> 47448.42105 | CR14: =VLOOKUP($A14,'Прайс по регионам'!$B$5:$CJ$50,HLOOKUP('Прейскурант на сортовой прокат_'!CR$7,'Прайс по регионам'!$1:$2,2,FALSE)-1,FALSE) -> 47448.42105
A15: 25Г2С_6б | C15: А III, 25Г2С | D15: ГОСТ 5781 | E15: ГОСТ 5781 | F15: =VLOOKUP($A15,'Прайс по регионам'!$B$5:$CJ$50,HLOOKUP('Прейскурант на сортовой прокат_'!F$7,'Прайс по регионам'!$1:$2,2,FALSE)-1,FALSE) -> 46020 | G15: =VLOOKUP($A15,'Прайс по регионам'!$B$5:$CJ$50,HLOOKUP('Прейскурант на сортовой прокат_'!G$7,'Прайс по регионам'!$1:$2,2,FALSE)-1,FALSE) -> 46020 | H15: =VLOOKUP($A15,'Прайс по регионам'!$B$5:$CJ$50,HLOOKUP('Прейскурант на сортовой прокат_'!H$7,'Прайс по регионам'!$1:$2,2,FALSE)-1,FALSE) -> 45709.47368 | I15: =VLOOKUP($A15,'Прайс по регионам'!$B$5:$CJ$50,HLOOKUP('Прейскурант на сортовой прокат_'!I$7,'Прайс по регионам'!$1:$2,2,FALSE)-1,FALSE) -> 46827.36842 | J15: =VLOOKUP($A15,'Прайс по регионам'!$B$5:$CJ$50,HLOOKUP('Прейскурант на сортовой прокат_'!J$7,'Прайс по регионам'!$1:$2,2,FALSE)-1,FALSE) -> 46641.05263 | K15: =VLOOKUP($A15,'Прайс по регионам'!$B$5:$CJ$50,HLOOKUP('Прейскурант на сортовой прокат_'!K$7,'Прайс по регионам'!$1:$2,2,FALSE)-1,FALSE) -> 46765.26316 | L15: =VLOOKUP($A15,'Прайс по регионам'!$B$5:$CJ$50,HLOOKUP('Прейскурант на сортовой прокат_'!L$7,'Прайс по регионам'!$1:$2,2,FALSE)-1,FALSE) -> 46827.36842 | M15: =VLOOKUP($A15,'Прайс по регионам'!$B$5:$CJ$50,HLOOKUP('Прейскурант на сортовой прокат_'!M$7,'Прайс по регионам'!$1:$2,2,FALSE)-1,FALSE) -> 46765.26316 | N15: =VLOOKUP($A15,'Прайс по регионам'!$B$5:$CJ$50,HLOOKUP('Прейскурант на сортовой прокат_'!N$7,'Прайс по регионам'!$1:$2,2,FALSE)-1,FALSE) -> 46827.36842 | O15: =VLOOKUP($A15,'Прайс по регионам'!$B$5:$CJ$50,HLOOKUP('Прейскурант на сортовой прокат_'!O$7,'Прайс по регионам'!$1:$2,2,FALSE)-1,FALSE) ->  | P15: =VLOOKUP($A15,'Прайс по регионам'!$B$5:$CJ$50,HLOOKUP('Прейскурант на сортовой прокат_'!P$7,'Прайс по регионам'!$1:$2,2,FALSE)-1,FALSE) -> 46827.36842 | Q15: =VLOOKUP($A15,'Прайс по регионам'!$B$5:$CJ$50,HLOOKUP('Прейскурант на сортовой прокат_'!Q$7,'Прайс по регионам'!$1:$2,2,FALSE)-1,FALSE) -> 46392.63158 | R15: =VLOOKUP($A15,'Прайс по регионам'!$B$5:$CJ$50,HLOOKUP('Прейскурант на сортовой прокат_'!R$7,'Прайс по регионам'!$1:$2,2,FALSE)-1,FALSE) -> 46765.26316 | S15: =VLOOKUP($A15,'Прайс по регионам'!$B$5:$CJ$50,HLOOKUP('Прейскурант на сортовой прокат_'!S$7,'Прайс по регионам'!$1:$2,2,FALSE)-1,FALSE) -> 46641.05263 | T15: =VLOOKUP($A15,'Прайс по регионам'!$B$5:$CJ$50,HLOOKUP('Прейскурант на сортовой прокат_'!T$7,'Прайс по регионам'!$1:$2,2,FALSE)-1,FALSE) -> 46330.52632 | U15: =VLOOKUP($A15,'Прайс по регионам'!$B$5:$CJ$50,HLOOKUP('Прейскурант на сортовой прокат_'!U$7,'Прайс по регионам'!$1:$2,2,FALSE)-1,FALSE) -> 46330.52632 | V15: =VLOOKUP($A15,'Прайс по регионам'!$B$5:$CJ$50,HLOOKUP('Прейскурант на сортовой прокат_'!V$7,'Прайс по регионам'!$1:$2,2,FALSE)-1,FALSE) -> 45461.05263 | W15: =VLOOKUP($A15,'Прайс по регионам'!$B$5:$CJ$50,HLOOKUP('Прейскурант на сортовой прокат_'!W$7,'Прайс по регионам'!$1:$2,2,FALSE)-1,FALSE) -> 45771.57895 | X15: =VLOOKUP($A15,'Прайс по регионам'!$B$5:$CJ$50,HLOOKUP('Прейскурант на сортовой прокат_'!X$7,'Прайс по регионам'!$1:$2,2,FALSE)-1,FALSE) -> 45709.47368 | Y15: =VLOOKUP($A15,'Прайс по регионам'!$B$5:$CJ$50,HLOOKUP('Прейскурант на сортовой прокат_'!Y$7,'Прайс по регионам'!$1:$2,2,FALSE)-1,FALSE) ->  | Z15: =VLOOKUP($A15,'Прайс по регионам'!$B$5:$CJ$50,HLOOKUP('Прейскурант на сортовой прокат_'!Z$7,'Прайс по регионам'!$1:$2,2,FALSE)-1,FALSE) -> 45461.05263 | AA15: =VLOOKUP($A15,'Прайс по регионам'!$B$5:$CJ$50,HLOOKUP('Прейскурант на сортовой прокат_'!AA$7,'Прайс по регионам'!$1:$2,2,FALSE)-1,FALSE) -> 46020 | AB15: =VLOOKUP($A15,'Прайс по регионам'!$B$5:$CJ$50,HLOOKUP('Прейскурант на сортовой прокат_'!AB$7,'Прайс по регионам'!$1:$2,2,FALSE)-1,FALSE) -> 45461.05263 | AC15: =VLOOKUP($A15,'Прайс по регионам'!$B$5:$CJ$50,HLOOKUP('Прейскурант на сортовой прокат_'!AC$7,'Прайс по регионам'!$1:$2,2,FALSE)-1,FALSE) -> 46082.10526 | AD15: =VLOOKUP($A15,'Прайс по регионам'!$B$5:$CJ$50,HLOOKUP('Прейскурант на сортовой прокат_'!AD$7,'Прайс по регионам'!$1:$2,2,FALSE)-1,FALSE) -> 45709.47368 | AE15: =VLOOKUP($A15,'Прайс по регионам'!$B$5:$CJ$50,HLOOKUP('Прейскурант на сортовой прокат_'!AE$7,'Прайс по регионам'!$1:$2,2,FALSE)-1,FALSE) -> 45709.47368 | AF15: =VLOOKUP($A15,'Прайс по регионам'!$B$5:$CJ$50,HLOOKUP('Прейскурант на сортовой прокат_'!AF$7,'Прайс по регионам'!$1:$2,2,FALSE)-1,FALSE) -> 46020 | AG15: =VLOOKUP($A15,'Прайс по регионам'!$B$5:$CJ$50,HLOOKUP('Прейскурант на сортовой прокат_'!AG$7,'Прайс по регионам'!$1:$2,2,FALSE)-1,FALSE) -> 45585.26316 | AH15: =VLOOKUP($A15,'Прайс по регионам'!$B$5:$CJ$50,HLOOKUP('Прейскурант на сортовой прокат_'!AH$7,'Прайс по регионам'!$1:$2,2,FALSE)-1,FALSE) -> 46020 | AI15: =VLOOKUP($A15,'Прайс по регионам'!$B$5:$CJ$50,HLOOKUP('Прейскурант на сортовой прокат_'!AI$7,'Прайс по регионам'!$1:$2,2,FALSE)-1,FALSE) ->  | AJ15: =VLOOKUP($A15,'Прайс по регионам'!$B$5:$CJ$50,HLOOKUP('Прейскурант на сортовой прокат_'!AJ$7,'Прайс по регионам'!$1:$2,2,FALSE)-1,FALSE) -> 45585.26316 | AK15: =VLOOKUP($A15,'Прайс по регионам'!$B$5:$CJ$50,HLOOKUP('Прейскурант на сортовой прокат_'!AK$7,'Прайс по регионам'!$1:$2,2,FALSE)-1,FALSE) -> 46206.31579 | AL15: =VLOOKUP($A15,'Прайс по регионам'!$B$5:$CJ$50,HLOOKUP('Прейскурант на сортовой прокат_'!AL$7,'Прайс по регионам'!$1:$2,2,FALSE)-1,FALSE) -> 45771.57895 | AM15: =VLOOKUP($A15,'Прайс по регионам'!$B$5:$CJ$50,HLOOKUP('Прейскурант на сортовой прокат_'!AM$7,'Прайс по регионам'!$1:$2,2,FALSE)-1,FALSE) -> 45461.05263 | AN15: =VLOOKUP($A15,'Прайс по регионам'!$B$5:$CJ$50,HLOOKUP('Прейскурант на сортовой прокат_'!AN$7,'Прайс по регионам'!$1:$2,2,FALSE)-1,FALSE) -> 46020 | AO15: =VLOOKUP($A15,'Прайс по регионам'!$B$5:$CJ$50,HLOOKUP('Прейскурант на сортовой прокат_'!AO$7,'Прайс по регионам'!$1:$2,2,FALSE)-1,FALSE) -> 45461.05263 | AP15: =VLOOKUP($A15,'Прайс по регионам'!$B$5:$CJ$50,HLOOKUP('Прейскурант на сортовой прокат_'!AP$7,'Прайс по регионам'!$1:$2,2,FALSE)-1,FALSE) -> 46020 | AQ15: =VLOOKUP($A15,'Прайс по регионам'!$B$5:$CJ$50,HLOOKUP('Прейскурант на сортовой прокат_'!AQ$7,'Прайс по регионам'!$1:$2,2,FALSE)-1,FALSE) -> 46020 | AR15: =VLOOKUP($A15,'Прайс по регионам'!$B$5:$CJ$50,HLOOKUP('Прейскурант на сортовой прокат_'!AR$7,'Прайс по регионам'!$1:$2,2,FALSE)-1,FALSE) -> 47137.89474 | AS15: =VLOOKUP($A15,'Прайс по регионам'!$B$5:$CJ$50,HLOOKUP('Прейскурант на сортовой прокат_'!AS$7,'Прайс по регионам'!$1:$2,2,FALSE)-1,FALSE) ->  | AT15: =VLOOKUP($A15,'Прайс по регионам'!$B$5:$CJ$50,HLOOKUP('Прейскурант на сортовой прокат_'!AT$7,'Прайс по регионам'!$1:$2,2,FALSE)-1,FALSE) -> 46206.31579 | AU15: =VLOOKUP($A15,'Прайс по регионам'!$B$5:$CJ$50,HLOOKUP('Прейскурант на сортовой прокат_'!AU$7,'Прайс по регионам'!$1:$2,2,FALSE)-1,FALSE) -> 46206.31579 | AV15: =VLOOKUP($A15,'Прайс по регионам'!$B$5:$CJ$50,HLOOKUP('Прейскурант на сортовой прокат_'!AV$7,'Прайс по регионам'!$1:$2,2,FALSE)-1,FALSE) -> 46206.31579 | AW15: =VLOOKUP($A15,'Прайс по регионам'!$B$5:$CJ$50,HLOOKUP('Прейскурант на сортовой прокат_'!AW$7,'Прайс по регионам'!$1:$2,2,FALSE)-1,FALSE) -> 46082.10526 | AX15: =VLOOKUP($A15,'Прайс по регионам'!$B$5:$CJ$50,HLOOKUP('Прейскурант на сортовой прокат_'!AX$7,'Прайс по регионам'!$1:$2,2,FALSE)-1,FALSE) -> 44653.68421 | AY15: =VLOOKUP($A15,'Прайс по регионам'!$B$5:$CJ$50,HLOOKUP('Прейскурант на сортовой прокат_'!AY$7,'Прайс по регионам'!$1:$2,2,FALSE)-1,FALSE) -> 45026.31579 | AZ15: =VLOOKUP($A15,'Прайс по регионам'!$B$5:$CJ$50,HLOOKUP('Прейскурант на сортовой прокат_'!AZ$7,'Прайс по регионам'!$1:$2,2,FALSE)-1,FALSE) -> 44715.78947 | BA15: =VLOOKUP($A15,'Прайс по регионам'!$B$5:$CJ$50,HLOOKUP('Прейскурант на сортовой прокат_'!BA$7,'Прайс по регионам'!$1:$2,2,FALSE)-1,FALSE) -> 45150.52632 | BB15: =VLOOKUP($A15,'Прайс по регионам'!$B$5:$CJ$50,HLOOKUP('Прейскурант на сортовой прокат_'!BB$7,'Прайс по регионам'!$1:$2,2,FALSE)-1,FALSE) -> 44343.15789 | BC15: =VLOOKUP($A15,'Прайс по регионам'!$B$5:$CJ$50,HLOOKUP('Прейскурант на сортовой прокат_'!BC$7,'Прайс по регионам'!$1:$2,2,FALSE)-1,FALSE) ->  | BD15: =VLOOKUP($A15,'Прайс по регионам'!$B$5:$CJ$50,HLOOKUP('Прейскурант на сортовой прокат_'!BD$7,'Прайс по регионам'!$1:$2,2,FALSE)-1,FALSE) -> 44343.15789 | BE15: =VLOOKUP($A15,'Прайс по регионам'!$B$5:$CJ$50,HLOOKUP('Прейскурант на сортовой прокат_'!BE$7,'Прайс по регионам'!$1:$2,2,FALSE)-1,FALSE) -> 44715.78947 | BF15: =VLOOKUP($A15,'Прайс по регионам'!$B$5:$CJ$50,HLOOKUP('Прейскурант на сортовой прокат_'!BF$7,'Прайс по регионам'!$1:$2,2,FALSE)-1,FALSE) -> 45026.31579 | BG15: =VLOOKUP($A15,'Прайс по регионам'!$B$5:$CJ$50,HLOOKUP('Прейскурант на сортовой прокат_'!BG$7,'Прайс по регионам'!$1:$2,2,FALSE)-1,FALSE) -> 44653.68421 | BH15: =VLOOKUP($A15,'Прайс по регионам'!$B$5:$CJ$50,HLOOKUP('Прейскурант на сортовой прокат_'!BH$7,'Прайс по регионам'!$1:$2,2,FALSE)-1,FALSE) -> 44343.15789 | BI15: =VLOOKUP($A15,'Прайс по регионам'!$B$5:$CJ$50,HLOOKUP('Прейскурант на сортовой прокат_'!BI$7,'Прайс по регионам'!$1:$2,2,FALSE)-1,FALSE) -> 44840 | BJ15: =VLOOKUP($A15,'Прайс по регионам'!$B$5:$CJ$50,HLOOKUP('Прейскурант на сортовой прокат_'!BJ$7,'Прайс по регионам'!$1:$2,2,FALSE)-1,FALSE) -> 45150.52632 | BK15: =VLOOKUP($A15,'Прайс по регионам'!$B$5:$CJ$50,HLOOKUP('Прейскурант на сортовой прокат_'!BK$7,'Прайс по регионам'!$1:$2,2,FALSE)-1,FALSE) -> 44715.78947 | BL15: =VLOOKUP($A15,'Прайс по регионам'!$B$5:$CJ$50,HLOOKUP('Прейскурант на сортовой прокат_'!BL$7,'Прайс по регионам'!$1:$2,2,FALSE)-1,FALSE) -> 44840 | BM15: =VLOOKUP($A15,'Прайс по регионам'!$B$5:$CJ$50,HLOOKUP('Прейскурант на сортовой прокат_'!BM$7,'Прайс по регионам'!$1:$2,2,FALSE)-1,FALSE) ->  | BN15: =VLOOKUP($A15,'Прайс по регионам'!$B$5:$CJ$50,HLOOKUP('Прейскурант на сортовой прокат_'!BN$7,'Прайс по регионам'!$1:$2,2,FALSE)-1,FALSE) -> 46641.05263 | BO15: =VLOOKUP($A15,'Прайс по регионам'!$B$5:$CJ$50,HLOOKUP('Прейскурант на сортовой прокат_'!BO$7,'Прайс по регионам'!$1:$2,2,FALSE)-1,FALSE) -> 44094.73684 | BP15: =VLOOKUP($A15,'Прайс по регионам'!$B$5:$CJ$50,HLOOKUP('Прейскурант на сортовой прокат_'!BP$7,'Прайс по регионам'!$1:$2,2,FALSE)-1,FALSE) -> 44653.68421 | BQ15: =VLOOKUP($A15,'Прайс по регионам'!$B$5:$CJ$50,HLOOKUP('Прейскурант на сортовой прокат_'!BQ$7,'Прайс по регионам'!$1:$2,2,FALSE)-1,FALSE) -> 44529.47368 | BR15: =VLOOKUP($A15,'Прайс по регионам'!$B$5:$CJ$50,HLOOKUP('Прейскурант на сортовой прокат_'!BR$7,'Прайс по регионам'!$1:$2,2,FALSE)-1,FALSE) -> 43970.52632 | BS15: =VLOOKUP($A15,'Прайс по регионам'!$B$5:$CJ$50,HLOOKUP('Прейскурант на сортовой прокат_'!BS$7,'Прайс по регионам'!$1:$2,2,FALSE)-1,FALSE) -> 43349.47368 | BT15: =VLOOKUP($A15,'Прайс по регионам'!$B$5:$CJ$50,HLOOKUP('Прейскурант на сортовой прокат_'!BT$7,'Прайс по регионам'!$1:$2,2,FALSE)-1,FALSE) -> 46641.05263 | BU15: =VLOOKUP($A15,'Прайс по регионам'!$B$5:$CJ$50,HLOOKUP('Прейскурант на сортовой прокат_'!BU$7,'Прайс по регионам'!$1:$2,2,FALSE)-1,FALSE) ->  | BV15: =VLOOKUP($A15,'Прайс по регионам'!$B$5:$CJ$50,HLOOKUP('Прейскурант на сортовой прокат_'!BV$7,'Прайс по регионам'!$1:$2,2,FALSE)-1,FALSE) -> 46330.52632 | BW15: =VLOOKUP($A15,'Прайс по регионам'!$B$5:$CJ$50,HLOOKUP('Прейскурант на сортовой прокат_'!BW$7,'Прайс по регионам'!$1:$2,2,FALSE)-1,FALSE) -> 48628.42105 | BX15: =VLOOKUP($A15,'Прайс по регионам'!$B$5:$CJ$50,HLOOKUP('Прейскурант на сортовой прокат_'!BX$7,'Прайс по регионам'!$1:$2,2,FALSE)-1,FALSE) -> 46330.52632 | BY15: =VLOOKUP($A15,'Прайс по регионам'!$B$5:$CJ$50,HLOOKUP('Прейскурант на сортовой прокат_'!BY$7,'Прайс по регионам'!$1:$2,2,FALSE)-1,FALSE) -> 48628.42105 | BZ15: =VLOOKUP($A15,'Прайс по регионам'!$B$5:$CJ$50,HLOOKUP('Прейскурант на сортовой прокат_'!BZ$7,'Прайс по регионам'!$1:$2,2,FALSE)-1,FALSE) -> 46330.52632 | CA15: =VLOOKUP($A15,'Прайс по регионам'!$B$5:$CJ$50,HLOOKUP('Прейскурант на сортовой прокат_'!CA$7,'Прайс по регионам'!$1:$2,2,FALSE)-1,FALSE) -> 45274.73684 | CB15: =VLOOKUP($A15,'Прайс по регионам'!$B$5:$CJ$50,HLOOKUP('Прейскурант на сортовой прокат_'!CB$7,'Прайс по регионам'!$1:$2,2,FALSE)-1,FALSE) -> 46330.52632 | CC15: =VLOOKUP($A15,'Прайс по регионам'!$B$5:$CJ$50,HLOOKUP('Прейскурант на сортовой прокат_'!CC$7,'Прайс по регионам'!$1:$2,2,FALSE)-1,FALSE) -> 49187.36842 | CD15: =VLOOKUP($A15,'Прайс по регионам'!$B$5:$CJ$50,HLOOKUP('Прейскурант на сортовой прокат_'!CD$7,'Прайс по регионам'!$1:$2,2,FALSE)-1,FALSE) -> 48628.42105 | CE15: =VLOOKUP($A15,'Прайс по регионам'!$B$5:$CJ$50,HLOOKUP('Прейскурант на сортовой прокат_'!CE$7,'Прайс по регионам'!$1:$2,2,FALSE)-1,FALSE) ->  | CF15: =VLOOKUP($A15,'Прайс по регионам'!$B$5:$CJ$50,HLOOKUP('Прейскурант на сортовой прокат_'!CF$7,'Прайс по регионам'!$1:$2,2,FALSE)-1,FALSE) -> 48628.42105 | CG15: =VLOOKUP($A15,'Прайс по регионам'!$B$5:$CJ$50,HLOOKUP('Прейскурант на сортовой прокат_'!CG$7,'Прайс по регионам'!$1:$2,2,FALSE)-1,FALSE) -> 46330.52632 | CH15: =VLOOKUP($A15,'Прайс по регионам'!$B$5:$CJ$50,HLOOKUP('Прейскурант на сортовой прокат_'!CH$7,'Прайс по регионам'!$1:$2,2,FALSE)-1,FALSE) -> 50740 | CI15: =VLOOKUP($A15,'Прайс по регионам'!$B$5:$CJ$50,HLOOKUP('Прейскурант на сортовой прокат_'!CI$7,'Прайс по регионам'!$1:$2,2,FALSE)-1,FALSE) -> 46951.57895 | CJ15: =VLOOKUP($A15,'Прайс по регионам'!$B$5:$CJ$50,HLOOKUP('Прейскурант на сортовой прокат_'!CJ$7,'Прайс по регионам'!$1:$2,2,FALSE)-1,FALSE) -> 46951.57895 | CK15: =VLOOKUP($A15,'Прайс по регионам'!$B$5:$CJ$50,HLOOKUP('Прейскурант на сортовой прокат_'!CK$7,'Прайс по регионам'!$1:$2,2,FALSE)-1,FALSE) -> 46951.57895 | CL15: =VLOOKUP($A15,'Прайс по регионам'!$B$5:$CJ$50,HLOOKUP('Прейскурант на сортовой прокат_'!CL$7,'Прайс по регионам'!$1:$2,2,FALSE)-1,FALSE) -> 47883.15789 | CM15: =VLOOKUP($A15,'Прайс по регионам'!$B$5:$CJ$50,HLOOKUP('Прейскурант на сортовой прокат_'!CM$7,'Прайс по регионам'!$1:$2,2,FALSE)-1,FALSE) ->  | CN15: =VLOOKUP($A15,'Прайс по регионам'!$B$5:$CJ$50,HLOOKUP('Прейскурант на сортовой прокат_'!CN$7,'Прайс по регионам'!$1:$2,2,FALSE)-1,FALSE) -> 46951.57895 | CO15: =VLOOKUP($A15,'Прайс по регионам'!$B$5:$CJ$50,HLOOKUP('Прейскурант на сортовой прокат_'!CO$7,'Прайс по регионам'!$1:$2,2,FALSE)-1,FALSE) -> 48317.89474 | CP15: =VLOOKUP($A15,'Прайс по регионам'!$B$5:$CJ$50,HLOOKUP('Прейскурант на сортовой прокат_'!CP$7,'Прайс по регионам'!$1:$2,2,FALSE)-1,FALSE) -> 51236.84211 | CQ15: =VLOOKUP($A15,'Прайс по регионам'!$B$5:$CJ$50,HLOOKUP('Прейскурант на сортовой прокат_'!CQ$7,'Прайс по регионам'!$1:$2,2,FALSE)-1,FALSE) -> 47883.15789 | CR15: =VLOOKUP($A15,'Прайс по регионам'!$B$5:$CJ$50,HLOOKUP('Прейскурант на сортовой прокат_'!CR$7,'Прайс по регионам'!$1:$2,2,FALSE)-1,FALSE) -> 47821.05263
A16: 35 Гс_6б | C16: А III, 35ГС | D16: ГОСТ 5781 | E16: ГОСТ 5781 | F16: =VLOOKUP($A16,'Прайс по регионам'!$B$5:$CJ$50,HLOOKUP('Прейскурант на сортовой прокат_'!F$7,'Прайс по регионам'!$1:$2,2,FALSE)-1,FALSE) -> 44405.26316 | G16: =VLOOKUP($A16,'Прайс по регионам'!$B$5:$CJ$50,HLOOKUP('Прейскурант на сортовой прокат_'!G$7,'Прайс по регионам'!$1:$2,2,FALSE)-1,FALSE) -> 44405.26316 | H16: =VLOOKUP($A16,'Прайс по регионам'!$B$5:$CJ$50,HLOOKUP('Прейскурант на сортовой прокат_'!H$7,'Прайс по регионам'!$1:$2,2,FALSE)-1,FALSE) -> 44094.73684 | I16: =VLOOKUP($A16,'Прайс по регионам'!$B$5:$CJ$50,HLOOKUP('Прейскурант на сортовой прокат_'!I$7,'Прайс по регионам'!$1:$2,2,FALSE)-1,FALSE) -> 45274.73684 | J16: =VLOOKUP($A16,'Прайс по регионам'!$B$5:$CJ$50,HLOOKUP('Прейскурант на сортовой прокат_'!J$7,'Прайс по регионам'!$1:$2,2,FALSE)-1,FALSE) -> 45026.31579 | K16: =VLOOKUP($A16,'Прайс по регионам'!$B$5:$CJ$50,HLOOKUP('Прейскурант на сортовой прокат_'!K$7,'Прайс по регионам'!$1:$2,2,FALSE)-1,FALSE) -> 45150.52632 | L16: =VLOOKUP($A16,'Прайс по регионам'!$B$5:$CJ$50,HLOOKUP('Прейскурант на сортовой прокат_'!L$7,'Прайс по регионам'!$1:$2,2,FALSE)-1,FALSE) -> 45274.73684 | M16: =VLOOKUP($A16,'Прайс по регионам'!$B$5:$CJ$50,HLOOKUP('Прейскурант на сортовой прокат_'!M$7,'Прайс по регионам'!$1:$2,2,FALSE)-1,FALSE) -> 45150.52632 | N16: =VLOOKUP($A16,'Прайс по регионам'!$B$5:$CJ$50,HLOOKUP('Прейскурант на сортовой прокат_'!N$7,'Прайс по регионам'!$1:$2,2,FALSE)-1,FALSE) -> 45274.73684 | O16: =VLOOKUP($A16,'Прайс по регионам'!$B$5:$CJ$50,HLOOKUP('Прейскурант на сортовой прокат_'!O$7,'Прайс по регионам'!$1:$2,2,FALSE)-1,FALSE) ->  | P16: =VLOOKUP($A16,'Прайс по регионам'!$B$5:$CJ$50,HLOOKUP('Прейскурант на сортовой прокат_'!P$7,'Прайс по регионам'!$1:$2,2,FALSE)-1,FALSE) -> 45274.73684 | Q16: =VLOOKUP($A16,'Прайс по регионам'!$B$5:$CJ$50,HLOOKUP('Прейскурант на сортовой прокат_'!Q$7,'Прайс по регионам'!$1:$2,2,FALSE)-1,FALSE) -> 44840 | R16: =VLOOKUP($A16,'Прайс по регионам'!$B$5:$CJ$50,HLOOKUP('Прейскурант на сортовой прокат_'!R$7,'Прайс по регионам'!$1:$2,2,FALSE)-1,FALSE) -> 45150.52632 | S16: =VLOOKUP($A16,'Прайс по регионам'!$B$5:$CJ$50,HLOOKUP('Прейскурант на сортовой прокат_'!S$7,'Прайс по регионам'!$1:$2,2,FALSE)-1,FALSE) -> 45026.31579 | T16: =VLOOKUP($A16,'Прайс по регионам'!$B$5:$CJ$50,HLOOKUP('Прейскурант на сортовой прокат_'!T$7,'Прайс по регионам'!$1:$2,2,FALSE)-1,FALSE) -> 44715.78947 | U16: =VLOOKUP($A16,'Прайс по регионам'!$B$5:$CJ$50,HLOOKUP('Прейскурант на сортовой прокат_'!U$7,'Прайс по регионам'!$1:$2,2,FALSE)-1,FALSE) -> 44715.78947 | V16: =VLOOKUP($A16,'Прайс по регионам'!$B$5:$CJ$50,HLOOKUP('Прейскурант на сортовой прокат_'!V$7,'Прайс по регионам'!$1:$2,2,FALSE)-1,FALSE) -> 43908.42105 | W16: =VLOOKUP($A16,'Прайс по регионам'!$B$5:$CJ$50,HLOOKUP('Прейскурант на сортовой прокат_'!W$7,'Прайс по регионам'!$1:$2,2,FALSE)-1,FALSE) -> 44218.94737 | X16: =VLOOKUP($A16,'Прайс по регионам'!$B$5:$CJ$50,HLOOKUP('Прейскурант на сортовой прокат_'!X$7,'Прайс по регионам'!$1:$2,2,FALSE)-1,FALSE) -> 44094.73684 | Y16: =VLOOKUP($A16,'Прайс по регионам'!$B$5:$CJ$50,HLOOKUP('Прейскурант на сортовой прокат_'!Y$7,'Прайс по регионам'!$1:$2,2,FALSE)-1,FALSE) ->  | Z16: =VLOOKUP($A16,'Прайс по регионам'!$B$5:$CJ$50,HLOOKUP('Прейскурант на сортовой прокат_'!Z$7,'Прайс по регионам'!$1:$2,2,FALSE)-1,FALSE) -> 43908.42105 | AA16: =VLOOKUP($A16,'Прайс по регионам'!$B$5:$CJ$50,HLOOKUP('Прейскурант на сортовой прокат_'!AA$7,'Прайс по регионам'!$1:$2,2,FALSE)-1,FALSE) -> 44405.26316 | AB16: =VLOOKUP($A16,'Прайс по регионам'!$B$5:$CJ$50,HLOOKUP('Прейскурант на сортовой прокат_'!AB$7,'Прайс по регионам'!$1:$2,2,FALSE)-1,FALSE) -> 43908.42105 | AC16: =VLOOKUP($A16,'Прайс по регионам'!$B$5:$CJ$50,HLOOKUP('Прейскурант на сортовой прокат_'!AC$7,'Прайс по регионам'!$1:$2,2,FALSE)-1,FALSE) -> 44529.47368 | AD16: =VLOOKUP($A16,'Прайс по регионам'!$B$5:$CJ$50,HLOOKUP('Прейскурант на сортовой прокат_'!AD$7,'Прайс по регионам'!$1:$2,2,FALSE)-1,FALSE) -> 44094.73684 | AE16: =VLOOKUP($A16,'Прайс по регионам'!$B$5:$CJ$50,HLOOKUP('Прейскурант на сортовой прокат_'!AE$7,'Прайс по регионам'!$1:$2,2,FALSE)-1,FALSE) -> 44094.73684 | AF16: =VLOOKUP($A16,'Прайс по регионам'!$B$5:$CJ$50,HLOOKUP('Прейскурант на сортовой прокат_'!AF$7,'Прайс по регионам'!$1:$2,2,FALSE)-1,FALSE) -> 44405.26316 | AG16: =VLOOKUP($A16,'Прайс по регионам'!$B$5:$CJ$50,HLOOKUP('Прейскурант на сортовой прокат_'!AG$7,'Прайс по регионам'!$1:$2,2,FALSE)-1,FALSE) -> 43970.52632 | AH16: =VLOOKUP($A16,'Прайс по регионам'!$B$5:$CJ$50,HLOOKUP('Прейскурант на сортовой прокат_'!AH$7,'Прайс по регионам'!$1:$2,2,FALSE)-1,FALSE) -> 44405.26316 | AI16: =VLOOKUP($A16,'Прайс по регионам'!$B$5:$CJ$50,HLOOKUP('Прейскурант на сортовой прокат_'!AI$7,'Прайс по регионам'!$1:$2,2,FALSE)-1,FALSE) ->  | AJ16: =VLOOKUP($A16,'Прайс по регионам'!$B$5:$CJ$50,HLOOKUP('Прейскурант на сортовой прокат_'!AJ$7,'Прайс по регионам'!$1:$2,2,FALSE)-1,FALSE) -> 43970.52632 | AK16: =VLOOKUP($A16,'Прайс по регионам'!$B$5:$CJ$50,HLOOKUP('Прейскурант на сортовой прокат_'!AK$7,'Прайс по регионам'!$1:$2,2,FALSE)-1,FALSE) -> 44653.68421 | AL16: =VLOOKUP($A16,'Прайс по регионам'!$B$5:$CJ$50,HLOOKUP('Прейскурант на сортовой прокат_'!AL$7,'Прайс по регионам'!$1:$2,2,FALSE)-1,FALSE) -> 44218.94737 | AM16: =VLOOKUP($A16,'Прайс по регионам'!$B$5:$CJ$50,HLOOKUP('Прейскурант на сортовой прокат_'!AM$7,'Прайс по регионам'!$1:$2,2,FALSE)-1,FALSE) -> 43908.42105 | AN16: =VLOOKUP($A16,'Прайс по регионам'!$B$5:$CJ$50,HLOOKUP('Прейскурант на сортовой прокат_'!AN$7,'Прайс по регионам'!$1:$2,2,FALSE)-1,FALSE) -> 44405.26316 | AO16: =VLOOKUP($A16,'Прайс по регионам'!$B$5:$CJ$50,HLOOKUP('Прейскурант на сортовой прокат_'!AO$7,'Прайс по регионам'!$1:$2,2,FALSE)-1,FALSE) -> 43908.42105 | AP16: =VLOOKUP($A16,'Прайс по регионам'!$B$5:$CJ$50,HLOOKUP('Прейскурант на сортовой прокат_'!AP$7,'Прайс по регионам'!$1:$2,2,FALSE)-1,FALSE) -> 44405.26316 | AQ16: =VLOOKUP($A16,'Прайс по регионам'!$B$5:$CJ$50,HLOOKUP('Прейскурант на сортовой прокат_'!AQ$7,'Прайс по регионам'!$1:$2,2,FALSE)-1,FALSE) -> 44405.26316 | AR16: =VLOOKUP($A16,'Прайс по регионам'!$B$5:$CJ$50,HLOOKUP('Прейскурант на сортовой прокат_'!AR$7,'Прайс по регионам'!$1:$2,2,FALSE)-1,FALSE) -> 45585.26316 | AS16: =VLOOKUP($A16,'Прайс по регионам'!$B$5:$CJ$50,HLOOKUP('Прейскурант на сортовой прокат_'!AS$7,'Прайс по регионам'!$1:$2,2,FALSE)-1,FALSE) ->  | AT16: =VLOOKUP($A16,'Прайс по регионам'!$B$5:$CJ$50,HLOOKUP('Прейскурант на сортовой прокат_'!AT$7,'Прайс по регионам'!$1:$2,2,FALSE)-1,FALSE) -> 44653.68421 | AU16: =VLOOKUP($A16,'Прайс по регионам'!$B$5:$CJ$50,HLOOKUP('Прейскурант на сортовой прокат_'!AU$7,'Прайс по регионам'!$1:$2,2,FALSE)-1,FALSE) -> 44653.68421 | AV16: =VLOOKUP($A16,'Прайс по регионам'!$B$5:$CJ$50,HLOOKUP('Прейскурант на сортовой прокат_'!AV$7,'Прайс по регионам'!$1:$2,2,FALSE)-1,FALSE) -> 44653.68421 | AW16: =VLOOKUP($A16,'Прайс по регионам'!$B$5:$CJ$50,HLOOKUP('Прейскурант на сортовой прокат_'!AW$7,'Прайс по регионам'!$1:$2,2,FALSE)-1,FALSE) -> 44529.47368 | AX16: =VLOOKUP($A16,'Прайс по регионам'!$B$5:$CJ$50,HLOOKUP('Прейскурант на сортовой прокат_'!AX$7,'Прайс по регионам'!$1:$2,2,FALSE)-1,FALSE) -> 43038.94737 | AY16: =VLOOKUP($A16,'Прайс по регионам'!$B$5:$CJ$50,HLOOKUP('Прейскурант на сортовой прокат_'!AY$7,'Прайс по регионам'!$1:$2,2,FALSE)-1,FALSE) -> 43473.68421 | AZ16: =VLOOKUP($A16,'Прайс по регионам'!$B$5:$CJ$50,HLOOKUP('Прейскурант на сортовой прокат_'!AZ$7,'Прайс по регионам'!$1:$2,2,FALSE)-1,FALSE) -> 43163.15789 | BA16: =VLOOKUP($A16,'Прайс по регионам'!$B$5:$CJ$50,HLOOKUP('Прейскурант на сортовой прокат_'!BA$7,'Прайс по регионам'!$1:$2,2,FALSE)-1,FALSE) -> 43597.89474 | BB16: =VLOOKUP($A16,'Прайс по регионам'!$B$5:$CJ$50,HLOOKUP('Прейскурант на сортовой прокат_'!BB$7,'Прайс по регионам'!$1:$2,2,FALSE)-1,FALSE) -> 42728.42105 | BC16: =VLOOKUP($A16,'Прайс по регионам'!$B$5:$CJ$50,HLOOKUP('Прейскурант на сортовой прокат_'!BC$7,'Прайс по регионам'!$1:$2,2,FALSE)-1,FALSE) ->  | BD16: =VLOOKUP($A16,'Прайс по регионам'!$B$5:$CJ$50,HLOOKUP('Прейскурант на сортовой прокат_'!BD$7,'Прайс по регионам'!$1:$2,2,FALSE)-1,FALSE) -> 42728.42105 | BE16: =VLOOKUP($A16,'Прайс по регионам'!$B$5:$CJ$50,HLOOKUP('Прейскурант на сортовой прокат_'!BE$7,'Прайс по регионам'!$1:$2,2,FALSE)-1,FALSE) -> 43163.15789 | BF16: =VLOOKUP($A16,'Прайс по регионам'!$B$5:$CJ$50,HLOOKUP('Прейскурант на сортовой прокат_'!BF$7,'Прайс по регионам'!$1:$2,2,FALSE)-1,FALSE) -> 43473.68421 | BG16: =VLOOKUP($A16,'Прайс по регионам'!$B$5:$CJ$50,HLOOKUP('Прейскурант на сортовой прокат_'!BG$7,'Прайс по регионам'!$1:$2,2,FALSE)-1,FALSE) -> 43038.94737 | BH16: =VLOOKUP($A16,'Прайс по регионам'!$B$5:$CJ$50,HLOOKUP('Прейскурант на сортовой прокат_'!BH$7,'Прайс по регионам'!$1:$2,2,FALSE)-1,FALSE) -> 42728.42105 | BI16: =VLOOKUP($A16,'Прайс по регионам'!$B$5:$CJ$50,HLOOKUP('Прейскурант на сортовой прокат_'!BI$7,'Прайс по регионам'!$1:$2,2,FALSE)-1,FALSE) -> 43287.36842 | BJ16: =VLOOKUP($A16,'Прайс по регионам'!$B$5:$CJ$50,HLOOKUP('Прейскурант на сортовой прокат_'!BJ$7,'Прайс по регионам'!$1:$2,2,FALSE)-1,FALSE) -> 43597.89474 | BK16: =VLOOKUP($A16,'Прайс по регионам'!$B$5:$CJ$50,HLOOKUP('Прейскурант на сортовой прокат_'!BK$7,'Прайс по регионам'!$1:$2,2,FALSE)-1,FALSE) -> 43163.15789 | BL16: =VLOOKUP($A16,'Прайс по регионам'!$B$5:$CJ$50,HLOOKUP('Прейскурант на сортовой прокат_'!BL$7,'Прайс по регионам'!$1:$2,2,FALSE)-1,FALSE) -> 43287.36842 | BM16: =VLOOKUP($A16,'Прайс по регионам'!$B$5:$CJ$50,HLOOKUP('Прейскурант на сортовой прокат_'!BM$7,'Прайс по регионам'!$1:$2,2,FALSE)-1,FALSE) ->  | BN16: =VLOOKUP($A16,'Прайс по регионам'!$B$5:$CJ$50,HLOOKUP('Прейскурант на сортовой прокат_'!BN$7,'Прайс по регионам'!$1:$2,2,FALSE)-1,FALSE) -> 45212.63158 | BO16: =VLOOKUP($A16,'Прайс по регионам'!$B$5:$CJ$50,HLOOKUP('Прейскурант на сортовой прокат_'!BO$7,'Прайс по регионам'!$1:$2,2,FALSE)-1,FALSE) -> 42666.31579 | BP16: =VLOOKUP($A16,'Прайс по регионам'!$B$5:$CJ$50,HLOOKUP('Прейскурант на сортовой прокат_'!BP$7,'Прайс по регионам'!$1:$2,2,FALSE)-1,FALSE) -> 43225.26316 | BQ16: =VLOOKUP($A16,'Прайс по регионам'!$B$5:$CJ$50,HLOOKUP('Прейскурант на сортовой прокат_'!BQ$7,'Прайс по регионам'!$1:$2,2,FALSE)-1,FALSE) -> 43101.05263 | BR16: =VLOOKUP($A16,'Прайс по регионам'!$B$5:$CJ$50,HLOOKUP('Прейскурант на сортовой прокат_'!BR$7,'Прайс по регионам'!$1:$2,2,FALSE)-1,FALSE) -> 42604.21053 | BS16: =VLOOKUP($A16,'Прайс по регионам'!$B$5:$CJ$50,HLOOKUP('Прейскурант на сортовой прокат_'!BS$7,'Прайс по регионам'!$1:$2,2,FALSE)-1,FALSE) -> 41921.05263 | BT16: =VLOOKUP($A16,'Прайс по регионам'!$B$5:$CJ$50,HLOOKUP('Прейскурант на сортовой прокат_'!BT$7,'Прайс по регионам'!$1:$2,2,FALSE)-1,FALSE) -> 45212.63158 | BU16: =VLOOKUP($A16,'Прайс по регионам'!$B$5:$CJ$50,HLOOKUP('Прейскурант на сортовой прокат_'!BU$7,'Прайс по регионам'!$1:$2,2,FALSE)-1,FALSE) ->  | BV16: =VLOOKUP($A16,'Прайс по регионам'!$B$5:$CJ$50,HLOOKUP('Прейскурант на сортовой прокат_'!BV$7,'Прайс по регионам'!$1:$2,2,FALSE)-1,FALSE) -> 45771.57895 | BW16: =VLOOKUP($A16,'Прайс по регионам'!$B$5:$CJ$50,HLOOKUP('Прейскурант на сортовой прокат_'!BW$7,'Прайс по регионам'!$1:$2,2,FALSE)-1,FALSE) -> 48131.57895 | BX16: =VLOOKUP($A16,'Прайс по регионам'!$B$5:$CJ$50,HLOOKUP('Прейскурант на сортовой прокат_'!BX$7,'Прайс по регионам'!$1:$2,2,FALSE)-1,FALSE) -> 45771.57895 | BY16: =VLOOKUP($A16,'Прайс по регионам'!$B$5:$CJ$50,HLOOKUP('Прейскурант на сортовой прокат_'!BY$7,'Прайс по регионам'!$1:$2,2,FALSE)-1,FALSE) -> 48131.57895 | BZ16: =VLOOKUP($A16,'Прайс по регионам'!$B$5:$CJ$50,HLOOKUP('Прейскурант на сортовой прокат_'!BZ$7,'Прайс по регионам'!$1:$2,2,FALSE)-1,FALSE) -> 45771.57895 | CA16: =VLOOKUP($A16,'Прайс по регионам'!$B$5:$CJ$50,HLOOKUP('Прейскурант на сортовой прокат_'!CA$7,'Прайс по регионам'!$1:$2,2,FALSE)-1,FALSE) -> 44715.78947 | CB16: =VLOOKUP($A16,'Прайс по регионам'!$B$5:$CJ$50,HLOOKUP('Прейскурант на сортовой прокат_'!CB$7,'Прайс по регионам'!$1:$2,2,FALSE)-1,FALSE) -> 45771.57895 | CC16: =VLOOKUP($A16,'Прайс по регионам'!$B$5:$CJ$50,HLOOKUP('Прейскурант на сортовой прокат_'!CC$7,'Прайс по регионам'!$1:$2,2,FALSE)-1,FALSE) -> 48628.42105 | CD16: =VLOOKUP($A16,'Прайс по регионам'!$B$5:$CJ$50,HLOOKUP('Прейскурант на сортовой прокат_'!CD$7,'Прайс по регионам'!$1:$2,2,FALSE)-1,FALSE) -> 48131.57895 | CE16: =VLOOKUP($A16,'Прайс по регионам'!$B$5:$CJ$50,HLOOKUP('Прейскурант на сортовой прокат_'!CE$7,'Прайс по регионам'!$1:$2,2,FALSE)-1,FALSE) ->  | CF16: =VLOOKUP($A16,'Прайс по регионам'!$B$5:$CJ$50,HLOOKUP('Прейскурант на сортовой прокат_'!CF$7,'Прайс по регионам'!$1:$2,2,FALSE)-1,FALSE) -> 48131.57895 | CG16: =VLOOKUP($A16,'Прайс по регионам'!$B$5:$CJ$50,HLOOKUP('Прейскурант на сортовой прокат_'!CG$7,'Прайс по регионам'!$1:$2,2,FALSE)-1,FALSE) -> 45771.57895 | CH16: =VLOOKUP($A16,'Прайс по регионам'!$B$5:$CJ$50,HLOOKUP('Прейскурант на сортовой прокат_'!CH$7,'Прайс по регионам'!$1:$2,2,FALSE)-1,FALSE) -> 50181.05263 | CI16: =VLOOKUP($A16,'Прайс по регионам'!$B$5:$CJ$50,HLOOKUP('Прейскурант на сортовой прокат_'!CI$7,'Прайс по регионам'!$1:$2,2,FALSE)-1,FALSE) -> 46703.15789 | CJ16: =VLOOKUP($A16,'Прайс по регионам'!$B$5:$CJ$50,HLOOKUP('Прейскурант на сортовой прокат_'!CJ$7,'Прайс по регионам'!$1:$2,2,FALSE)-1,FALSE) -> 46703.15789 | CK16: =VLOOKUP($A16,'Прайс по регионам'!$B$5:$CJ$50,HLOOKUP('Прейскурант на сортовой прокат_'!CK$7,'Прайс по регионам'!$1:$2,2,FALSE)-1,FALSE) -> 46703.15789 | CL16: =VLOOKUP($A16,'Прайс по регионам'!$B$5:$CJ$50,HLOOKUP('Прейскурант на сортовой прокат_'!CL$7,'Прайс по регионам'!$1:$2,2,FALSE)-1,FALSE) -> 47634.73684 | CM16: =VLOOKUP($A16,'Прайс по регионам'!$B$5:$CJ$50,HLOOKUP('Прейскурант на сортовой прокат_'!CM$7,'Прайс по регионам'!$1:$2,2,FALSE)-1,FALSE) ->  | CN16: =VLOOKUP($A16,'Прайс по регионам'!$B$5:$CJ$50,HLOOKUP('Прейскурант на сортовой прокат_'!CN$7,'Прайс по регионам'!$1:$2,2,FALSE)-1,FALSE) -> 46703.15789 | CO16: =VLOOKUP($A16,'Прайс по регионам'!$B$5:$CJ$50,HLOOKUP('Прейскурант на сортовой прокат_'!CO$7,'Прайс по регионам'!$1:$2,2,FALSE)-1,FALSE) -> 48069.47368 | CP16: =VLOOKUP($A16,'Прайс по регионам'!$B$5:$CJ$50,HLOOKUP('Прейскурант на сортовой прокат_'!CP$7,'Прайс по регионам'!$1:$2,2,FALSE)-1,FALSE) -> 50988.42105 | CQ16: =VLOOKUP($A16,'Прайс по регионам'!$B$5:$CJ$50,HLOOKUP('Прейскурант на сортовой прокат_'!CQ$7,'Прайс по регионам'!$1:$2,2,FALSE)-1,FALSE) -> 47634.73684 | CR16: =VLOOKUP($A16,'Прайс по регионам'!$B$5:$CJ$50,HLOOKUP('Прейскурант на сортовой прокат_'!CR$7,'Прайс по регионам'!$1:$2,2,FALSE)-1,FALSE) -> 47572.63158
A17: 25Г2С_8б | B17: Арматура 8 (мотки) | C17: А III, 25Г2С | D17: ГОСТ 5781 | E17: ГОСТ 5781 | F17: =VLOOKUP($A17,'Прайс по регионам'!$B$5:$CJ$50,HLOOKUP('Прейскурант на сортовой прокат_'!F$7,'Прайс по регионам'!$1:$2,2,FALSE)-1,FALSE) -> 45461.05263 | G17: =VLOOKUP($A17,'Прайс по регионам'!$B$5:$CJ$50,HLOOKUP('Прейскурант на сортовой прокат_'!G$7,'Прайс по регионам'!$1:$2,2,FALSE)-1,FALSE) -> 45461.05263 | H17: =VLOOKUP($A17,'Прайс по регионам'!$B$5:$CJ$50,HLOOKUP('Прейскурант на сортовой прокат_'!H$7,'Прайс по регионам'!$1:$2,2,FALSE)-1,FALSE) -> 45150.52632 | I17: =VLOOKUP($A17,'Прайс по регионам'!$B$5:$CJ$50,HLOOKUP('Прейскурант на сортовой прокат_'!I$7,'Прайс по регионам'!$1:$2,2,FALSE)-1,FALSE) -> 46330.52632 | J17: =VLOOKUP($A17,'Прайс по регионам'!$B$5:$CJ$50,HLOOKUP('Прейскурант на сортовой прокат_'!J$7,'Прайс по регионам'!$1:$2,2,FALSE)-1,FALSE) -> 46082.10526 | K17: =VLOOKUP($A17,'Прайс по регионам'!$B$5:$CJ$50,HLOOKUP('Прейскурант на сортовой прокат_'!K$7,'Прайс по регионам'!$1:$2,2,FALSE)-1,FALSE) -> 46206.31579 | L17: =VLOOKUP($A17,'Прайс по регионам'!$B$5:$CJ$50,HLOOKUP('Прейскурант на сортовой прокат_'!L$7,'Прайс по регионам'!$1:$2,2,FALSE)-1,FALSE) -> 46330.52632 | M17: =VLOOKUP($A17,'Прайс по регионам'!$B$5:$CJ$50,HLOOKUP('Прейскурант на сортовой прокат_'!M$7,'Прайс по регионам'!$1:$2,2,FALSE)-1,FALSE) -> 46206.31579 | N17: =VLOOKUP($A17,'Прайс по регионам'!$B$5:$CJ$50,HLOOKUP('Прейскурант на сортовой прокат_'!N$7,'Прайс по регионам'!$1:$2,2,FALSE)-1,FALSE) -> 46330.52632 | O17: =VLOOKUP($A17,'Прайс по регионам'!$B$5:$CJ$50,HLOOKUP('Прейскурант на сортовой прокат_'!O$7,'Прайс по регионам'!$1:$2,2,FALSE)-1,FALSE) ->  | P17: =VLOOKUP($A17,'Прайс по регионам'!$B$5:$CJ$50,HLOOKUP('Прейскурант на сортовой прокат_'!P$7,'Прайс по регионам'!$1:$2,2,FALSE)-1,FALSE) -> 46330.52632 | Q17: =VLOOKUP($A17,'Прайс по регионам'!$B$5:$CJ$50,HLOOKUP('Прейскурант на сортовой прокат_'!Q$7,'Прайс по регионам'!$1:$2,2,FALSE)-1,FALSE) -> 45895.78947 | R17: =VLOOKUP($A17,'Прайс по регионам'!$B$5:$CJ$50,HLOOKUP('Прейскурант на сортовой прокат_'!R$7,'Прайс по регионам'!$1:$2,2,FALSE)-1,FALSE) -> 46206.31579 | S17: =VLOOKUP($A17,'Прайс по регионам'!$B$5:$CJ$50,HLOOKUP('Прейскурант на сортовой прокат_'!S$7,'Прайс по регионам'!$1:$2,2,FALSE)-1,FALSE) -> 46082.10526 | T17: =VLOOKUP($A17,'Прайс по регионам'!$B$5:$CJ$50,HLOOKUP('Прейскурант на сортовой прокат_'!T$7,'Прайс по регионам'!$1:$2,2,FALSE)-1,FALSE) -> 45771.57895 | U17: =VLOOKUP($A17,'Прайс по регионам'!$B$5:$CJ$50,HLOOKUP('Прейскурант на сортовой прокат_'!U$7,'Прайс по регионам'!$1:$2,2,FALSE)-1,FALSE) -> 45771.57895 | V17: =VLOOKUP($A17,'Прайс по регионам'!$B$5:$CJ$50,HLOOKUP('Прейскурант на сортовой прокат_'!V$7,'Прайс по регионам'!$1:$2,2,FALSE)-1,FALSE) -> 44964.21053 | W17: =VLOOKUP($A17,'Прайс по регионам'!$B$5:$CJ$50,HLOOKUP('Прейскурант на сортовой прокат_'!W$7,'Прайс по регионам'!$1:$2,2,FALSE)-1,FALSE) -> 45274.73684 | X17: =VLOOKUP($A17,'Прайс по регионам'!$B$5:$CJ$50,HLOOKUP('Прейскурант на сортовой прокат_'!X$7,'Прайс по регионам'!$1:$2,2,FALSE)-1,FALSE) -> 45150.52632 | Y17: =VLOOKUP($A17,'Прайс по регионам'!$B$5:$CJ$50,HLOOKUP('Прейскурант на сортовой прокат_'!Y$7,'Прайс по регионам'!$1:$2,2,FALSE)-1,FALSE) ->  | Z17: =VLOOKUP($A17,'Прайс по регионам'!$B$5:$CJ$50,HLOOKUP('Прейскурант на сортовой прокат_'!Z$7,'Прайс по регионам'!$1:$2,2,FALSE)-1,FALSE) -> 44964.21053 | AA17: =VLOOKUP($A17,'Прайс по регионам'!$B$5:$CJ$50,HLOOKUP('Прейскурант на сортовой прокат_'!AA$7,'Прайс по регионам'!$1:$2,2,FALSE)-1,FALSE) -> 45461.05263 | AB17: =VLOOKUP($A17,'Прайс по регионам'!$B$5:$CJ$50,HLOOKUP('Прейскурант на сортовой прокат_'!AB$7,'Прайс по регионам'!$1:$2,2,FALSE)-1,FALSE) -> 44964.21053 | AC17: =VLOOKUP($A17,'Прайс по регионам'!$B$5:$CJ$50,HLOOKUP('Прейскурант на сортовой прокат_'!AC$7,'Прайс по регионам'!$1:$2,2,FALSE)-1,FALSE) -> 45585.26316 | AD17: =VLOOKUP($A17,'Прайс по регионам'!$B$5:$CJ$50,HLOOKUP('Прейскурант на сортовой прокат_'!AD$7,'Прайс по регионам'!$1:$2,2,FALSE)-1,FALSE) -> 45150.52632 | AE17: =VLOOKUP($A17,'Прайс по регионам'!$B$5:$CJ$50,HLOOKUP('Прейскурант на сортовой прокат_'!AE$7,'Прайс по регионам'!$1:$2,2,FALSE)-1,FALSE) -> 45150.52632 | AF17: =VLOOKUP($A17,'Прайс по регионам'!$B$5:$CJ$50,HLOOKUP('Прейскурант на сортовой прокат_'!AF$7,'Прайс по регионам'!$1:$2,2,FALSE)-1,FALSE) -> 45461.05263 | AG17: =VLOOKUP($A17,'Прайс по регионам'!$B$5:$CJ$50,HLOOKUP('Прейскурант на сортовой прокат_'!AG$7,'Прайс по регионам'!$1:$2,2,FALSE)-1,FALSE) -> 45026.31579 | AH17: =VLOOKUP($A17,'Прайс по регионам'!$B$5:$CJ$50,HLOOKUP('Прейскурант на сортовой прокат_'!AH$7,'Прайс по регионам'!$1:$2,2,FALSE)-1,FALSE) -> 45461.05263 | AI17: =VLOOKUP($A17,'Прайс по регионам'!$B$5:$CJ$50,HLOOKUP('Прейскурант на сортовой прокат_'!AI$7,'Прайс по регионам'!$1:$2,2,FALSE)-1,FALSE) ->  | AJ17: =VLOOKUP($A17,'Прайс по регионам'!$B$5:$CJ$50,HLOOKUP('Прейскурант на сортовой прокат_'!AJ$7,'Прайс по регионам'!$1:$2,2,FALSE)-1,FALSE) -> 45026.31579 | AK17: =VLOOKUP($A17,'Прайс по регионам'!$B$5:$CJ$50,HLOOKUP('Прейскурант на сортовой прокат_'!AK$7,'Прайс по регионам'!$1:$2,2,FALSE)-1,FALSE) -> 45709.47368 | AL17: =VLOOKUP($A17,'Прайс по регионам'!$B$5:$CJ$50,HLOOKUP('Прейскурант на сортовой прокат_'!AL$7,'Прайс по регионам'!$1:$2,2,FALSE)-1,FALSE) -> 45274.73684 | AM17: =VLOOKUP($A17,'Прайс по регионам'!$B$5:$CJ$50,HLOOKUP('Прейскурант на сортовой прокат_'!AM$7,'Прайс по регионам'!$1:$2,2,FALSE)-1,FALSE) -> 44964.21053 | AN17: =VLOOKUP($A17,'Прайс по регионам'!$B$5:$CJ$50,HLOOKUP('Прейскурант на сортовой прокат_'!AN$7,'Прайс по регионам'!$1:$2,2,FALSE)-1,FALSE) -> 45461.05263 | AO17: =VLOOKUP($A17,'Прайс по регионам'!$B$5:$CJ$50,HLOOKUP('Прейскурант на сортовой прокат_'!AO$7,'Прайс по регионам'!$1:$2,2,FALSE)-1,FALSE) -> 44964.21053 | AP17: =VLOOKUP($A17,'Прайс по регионам'!$B$5:$CJ$50,HLOOKUP('Прейскурант на сортовой прокат_'!AP$7,'Прайс по регионам'!$1:$2,2,FALSE)-1,FALSE) -> 45461.05263 | AQ17: =VLOOKUP($A17,'Прайс по регионам'!$B$5:$CJ$50,HLOOKUP('Прейскурант на сортовой прокат_'!AQ$7,'Прайс по регионам'!$1:$2,2,FALSE)-1,FALSE) -> 45461.05263 | AR17: =VLOOKUP($A17,'Прайс по регионам'!$B$5:$CJ$50,HLOOKUP('Прейскурант на сортовой прокат_'!AR$7,'Прайс по регионам'!$1:$2,2,FALSE)-1,FALSE) -> 46641.05263 | AS17: =VLOOKUP($A17,'Прайс по регионам'!$B$5:$CJ$50,HLOOKUP('Прейскурант на сортовой прокат_'!AS$7,'Прайс по регионам'!$1:$2,2,FALSE)-1,FALSE) ->  | AT17: =VLOOKUP($A17,'Прайс по регионам'!$B$5:$CJ$50,HLOOKUP('Прейскурант на сортовой прокат_'!AT$7,'Прайс по регионам'!$1:$2,2,FALSE)-1,FALSE) -> 45709.47368 | AU17: =VLOOKUP($A17,'Прайс по регионам'!$B$5:$CJ$50,HLOOKUP('Прейскурант на сортовой прокат_'!AU$7,'Прайс по регионам'!$1:$2,2,FALSE)-1,FALSE) -> 45709.47368 | AV17: =VLOOKUP($A17,'Прайс по регионам'!$B$5:$CJ$50,HLOOKUP('Прейскурант на сортовой прокат_'!AV$7,'Прайс по регионам'!$1:$2,2,FALSE)-1,FALSE) -> 45709.47368 | AW17: =VLOOKUP($A17,'Прайс по регионам'!$B$5:$CJ$50,HLOOKUP('Прейскурант на сортовой прокат_'!AW$7,'Прайс по регионам'!$1:$2,2,FALSE)-1,FALSE) -> 45585.26316 | AX17: =VLOOKUP($A17,'Прайс по регионам'!$B$5:$CJ$50,HLOOKUP('Прейскурант на сортовой прокат_'!AX$7,'Прайс по регионам'!$1:$2,2,FALSE)-1,FALSE) -> 44094.73684 | AY17: =VLOOKUP($A17,'Прайс по регионам'!$B$5:$CJ$50,HLOOKUP('Прейскурант на сортовой прокат_'!AY$7,'Прайс по регионам'!$1:$2,2,FALSE)-1,FALSE) -> 44529.47368 | AZ17: =VLOOKUP($A17,'Прайс по регионам'!$B$5:$CJ$50,HLOOKUP('Прейскурант на сортовой прокат_'!AZ$7,'Прайс по регионам'!$1:$2,2,FALSE)-1,FALSE) -> 44218.94737 | BA17: =VLOOKUP($A17,'Прайс по регионам'!$B$5:$CJ$50,HLOOKUP('Прейскурант на сортовой прокат_'!BA$7,'Прайс по регионам'!$1:$2,2,FALSE)-1,FALSE) -> 44653.68421 | BB17: =VLOOKUP($A17,'Прайс по регионам'!$B$5:$CJ$50,HLOOKUP('Прейскурант на сортовой прокат_'!BB$7,'Прайс по регионам'!$1:$2,2,FALSE)-1,FALSE) -> 43784.21053 | BC17: =VLOOKUP($A17,'Прайс по регионам'!$B$5:$CJ$50,HLOOKUP('Прейскурант на сортовой прокат_'!BC$7,'Прайс по регионам'!$1:$2,2,FALSE)-1,FALSE) ->  | BD17: =VLOOKUP($A17,'Прайс по регионам'!$B$5:$CJ$50,HLOOKUP('Прейскурант на сортовой прокат_'!BD$7,'Прайс по регионам'!$1:$2,2,FALSE)-1,FALSE) -> 43784.21053 | BE17: =VLOOKUP($A17,'Прайс по регионам'!$B$5:$CJ$50,HLOOKUP('Прейскурант на сортовой прокат_'!BE$7,'Прайс по регионам'!$1:$2,2,FALSE)-1,FALSE) -> 44218.94737 | BF17: =VLOOKUP($A17,'Прайс по регионам'!$B$5:$CJ$50,HLOOKUP('Прейскурант на сортовой прокат_'!BF$7,'Прайс по регионам'!$1:$2,2,FALSE)-1,FALSE) -> 44529.47368 | BG17: =VLOOKUP($A17,'Прайс по регионам'!$B$5:$CJ$50,HLOOKUP('Прейскурант на сортовой прокат_'!BG$7,'Прайс по регионам'!$1:$2,2,FALSE)-1,FALSE) -> 44094.73684 | BH17: =VLOOKUP($A17,'Прайс по регионам'!$B$5:$CJ$50,HLOOKUP('Прейскурант на сортовой прокат_'!BH$7,'Прайс по регионам'!$1:$2,2,FALSE)-1,FALSE) -> 43784.21053 | BI17: =VLOOKUP($A17,'Прайс по регионам'!$B$5:$CJ$50,HLOOKUP('Прейскурант на сортовой прокат_'!BI$7,'Прайс по регионам'!$1:$2,2,FALSE)-1,FALSE) -> 44343.15789 | BJ17: =VLOOKUP($A17,'Прайс по регионам'!$B$5:$CJ$50,HLOOKUP('Прейскурант на сортовой прокат_'!BJ$7,'Прайс по регионам'!$1:$2,2,FALSE)-1,FALSE) -> 44653.68421 | BK17: =VLOOKUP($A17,'Прайс по регионам'!$B$5:$CJ$50,HLOOKUP('Прейскурант на сортовой прокат_'!BK$7,'Прайс по регионам'!$1:$2,2,FALSE)-1,FALSE) -> 44218.94737 | BL17: =VLOOKUP($A17,'Прайс по регионам'!$B$5:$CJ$50,HLOOKUP('Прейскурант на сортовой прокат_'!BL$7,'Прайс по регионам'!$1:$2,2,FALSE)-1,FALSE) -> 44343.15789 | BM17: =VLOOKUP($A17,'Прайс по регионам'!$B$5:$CJ$50,HLOOKUP('Прейскурант на сортовой прокат_'!BM$7,'Прайс по регионам'!$1:$2,2,FALSE)-1,FALSE) ->  | BN17: =VLOOKUP($A17,'Прайс по регионам'!$B$5:$CJ$50,HLOOKUP('Прейскурант на сортовой прокат_'!BN$7,'Прайс по регионам'!$1:$2,2,FALSE)-1,FALSE) -> 46082.10526 | BO17: =VLOOKUP($A17,'Прайс по регионам'!$B$5:$CJ$50,HLOOKUP('Прейскурант на сортовой прокат_'!BO$7,'Прайс по регионам'!$1:$2,2,FALSE)-1,FALSE) -> 43597.89474 | BP17: =VLOOKUP($A17,'Прайс по регионам'!$B$5:$CJ$50,HLOOKUP('Прейскурант на сортовой прокат_'!BP$7,'Прайс по регионам'!$1:$2,2,FALSE)-1,FALSE) -> 44094.73684 | BQ17: =VLOOKUP($A17,'Прайс по регионам'!$B$5:$CJ$50,HLOOKUP('Прейскурант на сортовой прокат_'!BQ$7,'Прайс по регионам'!$1:$2,2,FALSE)-1,FALSE) -> 43970.52632 | BR17: =VLOOKUP($A17,'Прайс по регионам'!$B$5:$CJ$50,HLOOKUP('Прейскурант на сортовой прокат_'!BR$7,'Прайс по регионам'!$1:$2,2,FALSE)-1,FALSE) -> 43473.68421 | BS17: =VLOOKUP($A17,'Прайс по регионам'!$B$5:$CJ$50,HLOOKUP('Прейскурант на сортовой прокат_'!BS$7,'Прайс по регионам'!$1:$2,2,FALSE)-1,FALSE) -> 42852.63158 | BT17: =VLOOKUP($A17,'Прайс по регионам'!$B$5:$CJ$50,HLOOKUP('Прейскурант на сортовой прокат_'!BT$7,'Прайс по регионам'!$1:$2,2,FALSE)-1,FALSE) -> 46082.10526 | BU17: =VLOOKUP($A17,'Прайс по регионам'!$B$5:$CJ$50,HLOOKUP('Прейскурант на сортовой прокат_'!BU$7,'Прайс по регионам'!$1:$2,2,FALSE)-1,FALSE) ->  | BV17: =VLOOKUP($A17,'Прайс по регионам'!$B$5:$CJ$50,HLOOKUP('Прейскурант на сортовой прокат_'!BV$7,'Прайс по регионам'!$1:$2,2,FALSE)-1,FALSE) -> 46330.52632 | BW17: =VLOOKUP($A17,'Прайс по регионам'!$B$5:$CJ$50,HLOOKUP('Прейскурант на сортовой прокат_'!BW$7,'Прайс по регионам'!$1:$2,2,FALSE)-1,FALSE) -> 48628.42105 | BX17: =VLOOKUP($A17,'Прайс по регионам'!$B$5:$CJ$50,HLOOKUP('Прейскурант на сортовой прокат_'!BX$7,'Прайс по регионам'!$1:$2,2,FALSE)-1,FALSE) -> 46330.52632 | BY17: =VLOOKUP($A17,'Прайс по регионам'!$B$5:$CJ$50,HLOOKUP('Прейскурант на сортовой прокат_'!BY$7,'Прайс по регионам'!$1:$2,2,FALSE)-1,FALSE) -> 48628.42105 | BZ17: =VLOOKUP($A17,'Прайс по регионам'!$B$5:$CJ$50,HLOOKUP('Прейскурант на сортовой прокат_'!BZ$7,'Прайс по регионам'!$1:$2,2,FALSE)-1,FALSE) -> 46330.52632 | CA17: =VLOOKUP($A17,'Прайс по регионам'!$B$5:$CJ$50,HLOOKUP('Прейскурант на сортовой прокат_'!CA$7,'Прайс по регионам'!$1:$2,2,FALSE)-1,FALSE) -> 45274.73684 | CB17: =VLOOKUP($A17,'Прайс по регионам'!$B$5:$CJ$50,HLOOKUP('Прейскурант на сортовой прокат_'!CB$7,'Прайс по регионам'!$1:$2,2,FALSE)-1,FALSE) -> 46330.52632 | CC17: =VLOOKUP($A17,'Прайс по регионам'!$B$5:$CJ$50,HLOOKUP('Прейскурант на сортовой прокат_'!CC$7,'Прайс по регионам'!$1:$2,2,FALSE)-1,FALSE) -> 49187.36842 | CD17: =VLOOKUP($A17,'Прайс по регионам'!$B$5:$CJ$50,HLOOKUP('Прейскурант на сортовой прокат_'!CD$7,'Прайс по регионам'!$1:$2,2,FALSE)-1,FALSE) -> 48628.42105 | CE17: =VLOOKUP($A17,'Прайс по регионам'!$B$5:$CJ$50,HLOOKUP('Прейскурант на сортовой прокат_'!CE$7,'Прайс по регионам'!$1:$2,2,FALSE)-1,FALSE) ->  | CF17: =VLOOKUP($A17,'Прайс по регионам'!$B$5:$CJ$50,HLOOKUP('Прейскурант на сортовой прокат_'!CF$7,'Прайс по регионам'!$1:$2,2,FALSE)-1,FALSE) -> 48628.42105 | CG17: =VLOOKUP($A17,'Прайс по регионам'!$B$5:$CJ$50,HLOOKUP('Прейскурант на сортовой прокат_'!CG$7,'Прайс по регионам'!$1:$2,2,FALSE)-1,FALSE) -> 46330.52632 | CH17: =VLOOKUP($A17,'Прайс по регионам'!$B$5:$CJ$50,HLOOKUP('Прейскурант на сортовой прокат_'!CH$7,'Прайс по регионам'!$1:$2,2,FALSE)-1,FALSE) -> 50740 | CI17: =VLOOKUP($A17,'Прайс по регионам'!$B$5:$CJ$50,HLOOKUP('Прейскурант на сортовой прокат_'!CI$7,'Прайс по регионам'!$1:$2,2,FALSE)-1,FALSE) -> 46951.57895 | CJ17: =VLOOKUP($A17,'Прайс по регионам'!$B$5:$CJ$50,HLOOKUP('Прейскурант на сортовой прокат_'!CJ$7,'Прайс по регионам'!$1:$2,2,FALSE)-1,FALSE) -> 46951.57895 | CK17: =VLOOKUP($A17,'Прайс по регионам'!$B$5:$CJ$50,HLOOKUP('Прейскурант на сортовой прокат_'!CK$7,'Прайс по регионам'!$1:$2,2,FALSE)-1,FALSE) -> 46951.57895 | CL17: =VLOOKUP($A17,'Прайс по регионам'!$B$5:$CJ$50,HLOOKUP('Прейскурант на сортовой прокат_'!CL$7,'Прайс по регионам'!$1:$2,2,FALSE)-1,FALSE) -> 47883.15789 | CM17: =VLOOKUP($A17,'Прайс по регионам'!$B$5:$CJ$50,HLOOKUP('Прейскурант на сортовой прокат_'!CM$7,'Прайс по регионам'!$1:$2,2,FALSE)-1,FALSE) ->  | CN17: =VLOOKUP($A17,'Прайс по регионам'!$B$5:$CJ$50,HLOOKUP('Прейскурант на сортовой прокат_'!CN$7,'Прайс по регионам'!$1:$2,2,FALSE)-1,FALSE) -> 46951.57895 | CO17: =VLOOKUP($A17,'Прайс по регионам'!$B$5:$CJ$50,HLOOKUP('Прейскурант на сортовой прокат_'!CO$7,'Прайс по регионам'!$1:$2,2,FALSE)-1,FALSE) -> 48317.89474 | CP17: =VLOOKUP($A17,'Прайс по регионам'!$B$5:$CJ$50,HLOOKUP('Прейскурант на сортовой прокат_'!CP$7,'Прайс по регионам'!$1:$2,2,FALSE)-1,FALSE) -> 51236.84211 | CQ17: =VLOOKUP($A17,'Прайс по регионам'!$B$5:$CJ$50,HLOOKUP('Прейскурант на сортовой прокат_'!CQ$7,'Прайс по регионам'!$1:$2,2,FALSE)-1,FALSE) -> 47883.15789 | CR17: =VLOOKUP($A17,'Прайс по регионам'!$B$5:$CJ$50,HLOOKUP('Прейскурант на сортовой прокат_'!CR$7,'Прайс по регионам'!$1:$2,2,FALSE)-1,FALSE) -> 47821.05263
A18: 35 Гс_8б | C18: А III, 35ГС | D18: ГОСТ 5781 | E18: ГОСТ 5781 | F18: =VLOOKUP($A18,'Прайс по регионам'!$B$5:$CJ$50,HLOOKUP('Прейскурант на сортовой прокат_'!F$7,'Прайс по регионам'!$1:$2,2,FALSE)-1,FALSE) -> 43908.42105 | G18: =VLOOKUP($A18,'Прайс по регионам'!$B$5:$CJ$50,HLOOKUP('Прейскурант на сортовой прокат_'!G$7,'Прайс по регионам'!$1:$2,2,FALSE)-1,FALSE) -> 43908.42105 | H18: =VLOOKUP($A18,'Прайс по регионам'!$B$5:$CJ$50,HLOOKUP('Прейскурант на сортовой прокат_'!H$7,'Прайс по регионам'!$1:$2,2,FALSE)-1,FALSE) -> 43597.89474 | I18: =VLOOKUP($A18,'Прайс по регионам'!$B$5:$CJ$50,HLOOKUP('Прейскурант на сортовой прокат_'!I$7,'Прайс по регионам'!$1:$2,2,FALSE)-1,FALSE) -> 45026.31579 | J18: =VLOOKUP($A18,'Прайс по регионам'!$B$5:$CJ$50,HLOOKUP('Прейскурант на сортовой прокат_'!J$7,'Прайс по регионам'!$1:$2,2,FALSE)-1,FALSE) -> 44840 | K18: =VLOOKUP($A18,'Прайс по регионам'!$B$5:$CJ$50,HLOOKUP('Прейскурант на сортовой прокат_'!K$7,'Прайс по регионам'!$1:$2,2,FALSE)-1,FALSE) -> 44964.21053 | L18: =VLOOKUP($A18,'Прайс по регионам'!$B$5:$CJ$50,HLOOKUP('Прейскурант на сортовой прокат_'!L$7,'Прайс по регионам'!$1:$2,2,FALSE)-1,FALSE) -> 45026.31579 | M18: =VLOOKUP($A18,'Прайс по регионам'!$B$5:$CJ$50,HLOOKUP('Прейскурант на сортовой прокат_'!M$7,'Прайс по регионам'!$1:$2,2,FALSE)-1,FALSE) -> 44964.21053 | N18: =VLOOKUP($A18,'Прайс по регионам'!$B$5:$CJ$50,HLOOKUP('Прейскурант на сортовой прокат_'!N$7,'Прайс по регионам'!$1:$2,2,FALSE)-1,FALSE) -> 45026.31579 | O18: =VLOOKUP($A18,'Прайс по регионам'!$B$5:$CJ$50,HLOOKUP('Прейскурант на сортовой прокат_'!O$7,'Прайс по регионам'!$1:$2,2,FALSE)-1,FALSE) ->  | P18: =VLOOKUP($A18,'Прайс по регионам'!$B$5:$CJ$50,HLOOKUP('Прейскурант на сортовой прокат_'!P$7,'Прайс по регионам'!$1:$2,2,FALSE)-1,FALSE) -> 45026.31579 | Q18: =VLOOKUP($A18,'Прайс по регионам'!$B$5:$CJ$50,HLOOKUP('Прейскурант на сортовой прокат_'!Q$7,'Прайс по регионам'!$1:$2,2,FALSE)-1,FALSE) -> 44653.68421 | R18: =VLOOKUP($A18,'Прайс по регионам'!$B$5:$CJ$50,HLOOKUP('Прейскурант на сортовой прокат_'!R$7,'Прайс по регионам'!$1:$2,2,FALSE)-1,FALSE) -> 44964.21053 | S18: =VLOOKUP($A18,'Прайс по регионам'!$B$5:$CJ$50,HLOOKUP('Прейскурант на сортовой прокат_'!S$7,'Прайс по регионам'!$1:$2,2,FALSE)-1,FALSE) -> 44840 | T18: =VLOOKUP($A18,'Прайс по регионам'!$B$5:$CJ$50,HLOOKUP('Прейскурант на сортовой прокат_'!T$7,'Прайс по регионам'!$1:$2,2,FALSE)-1,FALSE) -> 44529.47368 | U18: =VLOOKUP($A18,'Прайс по регионам'!$B$5:$CJ$50,HLOOKUP('Прейскурант на сортовой прокат_'!U$7,'Прайс по регионам'!$1:$2,2,FALSE)-1,FALSE) -> 44529.47368 | V18: =VLOOKUP($A18,'Прайс по регионам'!$B$5:$CJ$50,HLOOKUP('Прейскурант на сортовой прокат_'!V$7,'Прайс по регионам'!$1:$2,2,FALSE)-1,FALSE) -> 43660 | W18: =VLOOKUP($A18,'Прайс по регионам'!$B$5:$CJ$50,HLOOKUP('Прейскурант на сортовой прокат_'!W$7,'Прайс по регионам'!$1:$2,2,FALSE)-1,FALSE) -> 43660 | X18: =VLOOKUP($A18,'Прайс по регионам'!$B$5:$CJ$50,HLOOKUP('Прейскурант на сортовой прокат_'!X$7,'Прайс по регионам'!$1:$2,2,FALSE)-1,FALSE) -> 43908.42105 | Y18: =VLOOKUP($A18,'Прайс по регионам'!$B$5:$CJ$50,HLOOKUP('Прейскурант на сортовой прокат_'!Y$7,'Прайс по регионам'!$1:$2,2,FALSE)-1,FALSE) ->  | Z18: =VLOOKUP($A18,'Прайс по регионам'!$B$5:$CJ$50,HLOOKUP('Прейскурант на сортовой прокат_'!Z$7,'Прайс по регионам'!$1:$2,2,FALSE)-1,FALSE) -> 43660 | AA18: =VLOOKUP($A18,'Прайс по регионам'!$B$5:$CJ$50,HLOOKUP('Прейскурант на сортовой прокат_'!AA$7,'Прайс по регионам'!$1:$2,2,FALSE)-1,FALSE) -> 44218.94737 | AB18: =VLOOKUP($A18,'Прайс по регионам'!$B$5:$CJ$50,HLOOKUP('Прейскурант на сортовой прокат_'!AB$7,'Прайс по регионам'!$1:$2,2,FALSE)-1,FALSE) -> 43660 | AC18: =VLOOKUP($A18,'Прайс по регионам'!$B$5:$CJ$50,HLOOKUP('Прейскурант на сортовой прокат_'!AC$7,'Прайс по регионам'!$1:$2,2,FALSE)-1,FALSE) -> 44343.15789 | AD18: =VLOOKUP($A18,'Прайс по регионам'!$B$5:$CJ$50,HLOOKUP('Прейскурант на сортовой прокат_'!AD$7,'Прайс по регионам'!$1:$2,2,FALSE)-1,FALSE) -> 43597.89474 | AE18: =VLOOKUP($A18,'Прайс по регионам'!$B$5:$CJ$50,HLOOKUP('Прейскурант на сортовой прокат_'!AE$7,'Прайс по регионам'!$1:$2,2,FALSE)-1,FALSE) -> 43908.42105 | AF18: =VLOOKUP($A18,'Прайс по регионам'!$B$5:$CJ$50,HLOOKUP('Прейскурант на сортовой прокат_'!AF$7,'Прайс по регионам'!$1:$2,2,FALSE)-1,FALSE) -> 44218.94737 | AG18: =VLOOKUP($A18,'Прайс по регионам'!$B$5:$CJ$50,HLOOKUP('Прейскурант на сортовой прокат_'!AG$7,'Прайс по регионам'!$1:$2,2,FALSE)-1,FALSE) -> 43784.21053 | AH18: =VLOOKUP($A18,'Прайс по регионам'!$B$5:$CJ$50,HLOOKUP('Прейскурант на сортовой прокат_'!AH$7,'Прайс по регионам'!$1:$2,2,FALSE)-1,FALSE) -> 44218.94737 | AI18: =VLOOKUP($A18,'Прайс по регионам'!$B$5:$CJ$50,HLOOKUP('Прейскурант на сортовой прокат_'!AI$7,'Прайс по регионам'!$1:$2,2,FALSE)-1,FALSE) ->  | AJ18: =VLOOKUP($A18,'Прайс по регионам'!$B$5:$CJ$50,HLOOKUP('Прейскурант на сортовой прокат_'!AJ$7,'Прайс по регионам'!$1:$2,2,FALSE)-1,FALSE) -> 43784.21053 | AK18: =VLOOKUP($A18,'Прайс по регионам'!$B$5:$CJ$50,HLOOKUP('Прейскурант на сортовой прокат_'!AK$7,'Прайс по регионам'!$1:$2,2,FALSE)-1,FALSE) -> 44405.26316 | AL18: =VLOOKUP($A18,'Прайс по регионам'!$B$5:$CJ$50,HLOOKUP('Прейскурант на сортовой прокат_'!AL$7,'Прайс по регионам'!$1:$2,2,FALSE)-1,FALSE) -> 43970.52632 | AM18: =VLOOKUP($A18,'Прайс по регионам'!$B$5:$CJ$50,HLOOKUP('Прейскурант на сортовой прокат_'!AM$7,'Прайс по регионам'!$1:$2,2,FALSE)-1,FALSE) -> 43660 | AN18: =VLOOKUP($A18,'Прайс по регионам'!$B$5:$CJ$50,HLOOKUP('Прейскурант на сортовой прокат_'!AN$7,'Прайс по регионам'!$1:$2,2,FALSE)-1,FALSE) -> 43908.42105 | AO18: =VLOOKUP($A18,'Прайс по регионам'!$B$5:$CJ$50,HLOOKUP('Прейскурант на сортовой прокат_'!AO$7,'Прайс по регионам'!$1:$2,2,FALSE)-1,FALSE) -> 43349.47368 | AP18: =VLOOKUP($A18,'Прайс по регионам'!$B$5:$CJ$50,HLOOKUP('Прейскурант на сортовой прокат_'!AP$7,'Прайс по регионам'!$1:$2,2,FALSE)-1,FALSE) -> 43908.42105 | AQ18: =VLOOKUP($A18,'Прайс по регионам'!$B$5:$CJ$50,HLOOKUP('Прейскурант на сортовой прокат_'!AQ$7,'Прайс по регионам'!$1:$2,2,FALSE)-1,FALSE) -> 43908.42105 | AR18: =VLOOKUP($A18,'Прайс по регионам'!$B$5:$CJ$50,HLOOKUP('Прейскурант на сортовой прокат_'!AR$7,'Прайс по регионам'!$1:$2,2,FALSE)-1,FALSE) -> 45026.31579 | AS18: =VLOOKUP($A18,'Прайс по регионам'!$B$5:$CJ$50,HLOOKUP('Прейскурант на сортовой прокат_'!AS$7,'Прайс по регионам'!$1:$2,2,FALSE)-1,FALSE) ->  | AT18: =VLOOKUP($A18,'Прайс по регионам'!$B$5:$CJ$50,HLOOKUP('Прейскурант на сортовой прокат_'!AT$7,'Прайс по регионам'!$1:$2,2,FALSE)-1,FALSE) -> 44094.73684 | AU18: =VLOOKUP($A18,'Прайс по регионам'!$B$5:$CJ$50,HLOOKUP('Прейскурант на сортовой прокат_'!AU$7,'Прайс по регионам'!$1:$2,2,FALSE)-1,FALSE) -> 44094.73684 | AV18: =VLOOKUP($A18,'Прайс по регионам'!$B$5:$CJ$50,HLOOKUP('Прейскурант на сортовой прокат_'!AV$7,'Прайс по регионам'!$1:$2,2,FALSE)-1,FALSE) -> 44094.73684 | AW18: =VLOOKUP($A18,'Прайс по регионам'!$B$5:$CJ$50,HLOOKUP('Прейскурант на сортовой прокат_'!AW$7,'Прайс по регионам'!$1:$2,2,FALSE)-1,FALSE) -> 43970.52632 | AX18: =VLOOKUP($A18,'Прайс по регионам'!$B$5:$CJ$50,HLOOKUP('Прейскурант на сортовой прокат_'!AX$7,'Прайс по регионам'!$1:$2,2,FALSE)-1,FALSE) -> 42542.10526 | AY18: =VLOOKUP($A18,'Прайс по регионам'!$B$5:$CJ$50,HLOOKUP('Прейскурант на сортовой прокат_'!AY$7,'Прайс по регионам'!$1:$2,2,FALSE)-1,FALSE) -> 42976.84211 | AZ18: =VLOOKUP($A18,'Прайс по регионам'!$B$5:$CJ$50,HLOOKUP('Прейскурант на сортовой прокат_'!AZ$7,'Прайс по регионам'!$1:$2,2,FALSE)-1,FALSE) -> 42604.21053 | BA18: =VLOOKUP($A18,'Прайс по регионам'!$B$5:$CJ$50,HLOOKUP('Прейскурант на сортовой прокат_'!BA$7,'Прайс по регионам'!$1:$2,2,FALSE)-1,FALSE) -> 43038.94737 | BB18: =VLOOKUP($A18,'Прайс по регионам'!$B$5:$CJ$50,HLOOKUP('Прейскурант на сортовой прокат_'!BB$7,'Прайс по регионам'!$1:$2,2,FALSE)-1,FALSE) -> 42231.57895 | BC18: =VLOOKUP($A18,'Прайс по регионам'!$B$5:$CJ$50,HLOOKUP('Прейскурант на сортовой прокат_'!BC$7,'Прайс по регионам'!$1:$2,2,FALSE)-1,FALSE) ->  | BD18: =VLOOKUP($A18,'Прайс по регионам'!$B$5:$CJ$50,HLOOKUP('Прейскурант на сортовой прокат_'!BD$7,'Прайс по регионам'!$1:$2,2,FALSE)-1,FALSE) -> 42231.57895 | BE18: =VLOOKUP($A18,'Прайс по регионам'!$B$5:$CJ$50,HLOOKUP('Прейскурант на сортовой прокат_'!BE$7,'Прайс по регионам'!$1:$2,2,FALSE)-1,FALSE) -> 42604.21053 | BF18: =VLOOKUP($A18,'Прайс по регионам'!$B$5:$CJ$50,HLOOKUP('Прейскурант на сортовой прокат_'!BF$7,'Прайс по регионам'!$1:$2,2,FALSE)-1,FALSE) -> 42976.84211 | BG18: =VLOOKUP($A18,'Прайс по регионам'!$B$5:$CJ$50,HLOOKUP('Прейскурант на сортовой прокат_'!BG$7,'Прайс по регионам'!$1:$2,2,FALSE)-1,FALSE) -> 42542.10526 | BH18: =VLOOKUP($A18,'Прайс по регионам'!$B$5:$CJ$50,HLOOKUP('Прейскурант на сортовой прокат_'!BH$7,'Прайс по регионам'!$1:$2,2,FALSE)-1,FALSE) -> 42231.57895 | BI18: =VLOOKUP($A18,'Прайс по регионам'!$B$5:$CJ$50,HLOOKUP('Прейскурант на сортовой прокат_'!BI$7,'Прайс по регионам'!$1:$2,2,FALSE)-1,FALSE) -> 42728.42105 | BJ18: =VLOOKUP($A18,'Прайс по регионам'!$B$5:$CJ$50,HLOOKUP('Прейскурант на сортовой прокат_'!BJ$7,'Прайс по регионам'!$1:$2,2,FALSE)-1,FALSE) -> 43038.94737 | BK18: =VLOOKUP($A18,'Прайс по регионам'!$B$5:$CJ$50,HLOOKUP('Прейскурант на сортовой прокат_'!BK$7,'Прайс по регионам'!$1:$2,2,FALSE)-1,FALSE) -> 42604.21053 | BL18: =VLOOKUP($A18,'Прайс по регионам'!$B$5:$CJ$50,HLOOKUP('Прейскурант на сортовой прокат_'!BL$7,'Прайс по регионам'!$1:$2,2,FALSE)-1,FALSE) -> 42728.42105 | BM18: =VLOOKUP($A18,'Прайс по регионам'!$B$5:$CJ$50,HLOOKUP('Прейскурант на сортовой прокат_'!BM$7,'Прайс по регионам'!$1:$2,2,FALSE)-1,FALSE) ->  | BN18: =VLOOKUP($A18,'Прайс по регионам'!$B$5:$CJ$50,HLOOKUP('Прейскурант на сортовой прокат_'!BN$7,'Прайс по регионам'!$1:$2,2,FALSE)-1,FALSE) -> 44529.47368 | BO18: =VLOOKUP($A18,'Прайс по регионам'!$B$5:$CJ$50,HLOOKUP('Прейскурант на сортовой прокат_'!BO$7,'Прайс по регионам'!$1:$2,2,FALSE)-1,FALSE) -> 41983.15789 | BP18: =VLOOKUP($A18,'Прайс по регионам'!$B$5:$CJ$50,HLOOKUP('Прейскурант на сортовой прокат_'!BP$7,'Прайс по регионам'!$1:$2,2,FALSE)-1,FALSE) -> 42542.10526 | BQ18: =VLOOKUP($A18,'Прайс по регионам'!$B$5:$CJ$50,HLOOKUP('Прейскурант на сортовой прокат_'!BQ$7,'Прайс по регионам'!$1:$2,2,FALSE)-1,FALSE) -> 42417.89474 | BR18: =VLOOKUP($A18,'Прайс по регионам'!$B$5:$CJ$50,HLOOKUP('Прейскурант на сортовой прокат_'!BR$7,'Прайс по регионам'!$1:$2,2,FALSE)-1,FALSE) -> 41921.05263 | BS18: =VLOOKUP($A18,'Прайс по регионам'!$B$5:$CJ$50,HLOOKUP('Прейскурант на сортовой прокат_'!BS$7,'Прайс по регионам'!$1:$2,2,FALSE)-1,FALSE) -> 41237.89474 | BT18: =VLOOKUP($A18,'Прайс по регионам'!$B$5:$CJ$50,HLOOKUP('Прейскурант на сортовой прокат_'!BT$7,'Прайс по регионам'!$1:$2,2,FALSE)-1,FALSE) -> 44529.47368 | BU18: =VLOOKUP($A18,'Прайс по регионам'!$B$5:$CJ$50,HLOOKUP('Прейскурант на сортовой прокат_'!BU$7,'Прайс по регионам'!$1:$2,2,FALSE)-1,FALSE) ->  | BV18: =VLOOKUP($A18,'Прайс по регионам'!$B$5:$CJ$50,HLOOKUP('Прейскурант на сортовой прокат_'!BV$7,'Прайс по регионам'!$1:$2,2,FALSE)-1,FALSE) -> 44218.94737 | BW18: =VLOOKUP($A18,'Прайс по регионам'!$B$5:$CJ$50,HLOOKUP('Прейскурант на сортовой прокат_'!BW$7,'Прайс по регионам'!$1:$2,2,FALSE)-1,FALSE) -> 46516.84211 | BX18: =VLOOKUP($A18,'Прайс по регионам'!$B$5:$CJ$50,HLOOKUP('Прейскурант на сортовой прокат_'!BX$7,'Прайс по регионам'!$1:$2,2,FALSE)-1,FALSE) -> 44218.94737 | BY18: =VLOOKUP($A18,'Прайс по регионам'!$B$5:$CJ$50,HLOOKUP('Прейскурант на сортовой прокат_'!BY$7,'Прайс по регионам'!$1:$2,2,FALSE)-1,FALSE) -> 46516.84211 | BZ18: =VLOOKUP($A18,'Прайс по регионам'!$B$5:$CJ$50,HLOOKUP('Прейскурант на сортовой прокат_'!BZ$7,'Прайс по регионам'!$1:$2,2,FALSE)-1,FALSE) -> 44218.94737 | CA18: =VLOOKUP($A18,'Прайс по регионам'!$B$5:$CJ$50,HLOOKUP('Прейскурант на сортовой прокат_'!CA$7,'Прайс по регионам'!$1:$2,2,FALSE)-1,FALSE) -> 43163.15789 | CB18: =VLOOKUP($A18,'Прайс по регионам'!$B$5:$CJ$50,HLOOKUP('Прейскурант на сортовой прокат_'!CB$7,'Прайс по регионам'!$1:$2,2,FALSE)-1,FALSE) -> 44218.94737 | CC18: =VLOOKUP($A18,'Прайс по регионам'!$B$5:$CJ$50,HLOOKUP('Прейскурант на сортовой прокат_'!CC$7,'Прайс по регионам'!$1:$2,2,FALSE)-1,FALSE) -> 47075.78947 | CD18: =VLOOKUP($A18,'Прайс по регионам'!$B$5:$CJ$50,HLOOKUP('Прейскурант на сортовой прокат_'!CD$7,'Прайс по регионам'!$1:$2,2,FALSE)-1,FALSE) -> 46516.84211 | CE18: =VLOOKUP($A18,'Прайс по регионам'!$B$5:$CJ$50,HLOOKUP('Прейскурант на сортовой прокат_'!CE$7,'Прайс по регионам'!$1:$2,2,FALSE)-1,FALSE) ->  | CF18: =VLOOKUP($A18,'Прайс по регионам'!$B$5:$CJ$50,HLOOKUP('Прейскурант на сортовой прокат_'!CF$7,'Прайс по регионам'!$1:$2,2,FALSE)-1,FALSE) -> 46516.84211 | CG18: =VLOOKUP($A18,'Прайс по регионам'!$B$5:$CJ$50,HLOOKUP('Прейскурант на сортовой прокат_'!CG$7,'Прайс по регионам'!$1:$2,2,FALSE)-1,FALSE) -> 44218.94737 | CH18: =VLOOKUP($A18,'Прайс по регионам'!$B$5:$CJ$50,HLOOKUP('Прейскурант на сортовой прокат_'!CH$7,'Прайс по регионам'!$1:$2,2,FALSE)-1,FALSE) -> 48628.42105 | CI18: =VLOOKUP($A18,'Прайс по регионам'!$B$5:$CJ$50,HLOOKUP('Прейскурант на сортовой прокат_'!CI$7,'Прайс по регионам'!$1:$2,2,FALSE)-1,FALSE) -> 46703.15789 | CJ18: =VLOOKUP($A18,'Прайс по регионам'!$B$5:$CJ$50,HLOOKUP('Прейскурант на сортовой прокат_'!CJ$7,'Прайс по регионам'!$1:$2,2,FALSE)-1,FALSE) -> 46703.15789 | CK18: =VLOOKUP($A18,'Прайс по регионам'!$B$5:$CJ$50,HLOOKUP('Прейскурант на сортовой прокат_'!CK$7,'Прайс по регионам'!$1:$2,2,FALSE)-1,FALSE) -> 46703.15789 | CL18: =VLOOKUP($A18,'Прайс по регионам'!$B$5:$CJ$50,HLOOKUP('Прейскурант на сортовой прокат_'!CL$7,'Прайс по регионам'!$1:$2,2,FALSE)-1,FALSE) -> 47634.73684 | CM18: =VLOOKUP($A18,'Прайс по регионам'!$B$5:$CJ$50,HLOOKUP('Прейскурант на сортовой прокат_'!CM$7,'Прайс по регионам'!$1:$2,2,FALSE)-1,FALSE) ->  | CN18: =VLOOKUP($A18,'Прайс по регионам'!$B$5:$CJ$50,HLOOKUP('Прейскурант на сортовой прокат_'!CN$7,'Прайс по регионам'!$1:$2,2,FALSE)-1,FALSE) -> 46703.15789 | CO18: =VLOOKUP($A18,'Прайс по регионам'!$B$5:$CJ$50,HLOOKUP('Прейскурант на сортовой прокат_'!CO$7,'Прайс по регионам'!$1:$2,2,FALSE)-1,FALSE) -> 48069.47368 | CP18: =VLOOKUP($A18,'Прайс по регионам'!$B$5:$CJ$50,HLOOKUP('Прейскурант на сортовой прокат_'!CP$7,'Прайс по регионам'!$1:$2,2,FALSE)-1,FALSE) -> 50988.42105 | CQ18: =VLOOKUP($A18,'Прайс по регионам'!$B$5:$CJ$50,HLOOKUP('Прейскурант на сортовой прокат_'!CQ$7,'Прайс по регионам'!$1:$2,2,FALSE)-1,FALSE) -> 47634.73684 | CR18: =VLOOKUP($A18,'Прайс по регионам'!$B$5:$CJ$50,HLOOKUP('Прейскурант на сортовой прокат_'!CR$7,'Прайс по регионам'!$1:$2,2,FALSE)-1,FALSE) -> 47572.63158
A19: Ст 3 A I_8б | C19: А I, 3 пс/ 3 сп | D19: ГОСТ 380 | E19: ГОСТ 5781 | F19: =VLOOKUP($A19,'Прайс по регионам'!$B$5:$CJ$50,HLOOKUP('Прейскурант на сортовой прокат_'!F$7,'Прайс по регионам'!$1:$2,2,FALSE)-1,FALSE) -> 43349.47368 | G19: =VLOOKUP($A19,'Прайс по регионам'!$B$5:$CJ$50,HLOOKUP('Прейскурант на сортовой прокат_'!G$7,'Прайс по регионам'!$1:$2,2,FALSE)-1,FALSE) -> 43349.47368 | H19: =VLOOKUP($A19,'Прайс по регионам'!$B$5:$CJ$50,HLOOKUP('Прейскурант на сортовой прокат_'!H$7,'Прайс по регионам'!$1:$2,2,FALSE)-1,FALSE) -> 43038.94737 | I19: =VLOOKUP($A19,'Прайс по регионам'!$B$5:$CJ$50,HLOOKUP('Прейскурант на сортовой прокат_'!I$7,'Прайс по регионам'!$1:$2,2,FALSE)-1,FALSE) -> 44218.94737 | J19: =VLOOKUP($A19,'Прайс по регионам'!$B$5:$CJ$50,HLOOKUP('Прейскурант на сортовой прокат_'!J$7,'Прайс по регионам'!$1:$2,2,FALSE)-1,FALSE) -> 43970.52632 | K19: =VLOOKUP($A19,'Прайс по регионам'!$B$5:$CJ$50,HLOOKUP('Прейскурант на сортовой прокат_'!K$7,'Прайс по регионам'!$1:$2,2,FALSE)-1,FALSE) -> 44094.73684 | L19: =VLOOKUP($A19,'Прайс по регионам'!$B$5:$CJ$50,HLOOKUP('Прейскурант на сортовой прокат_'!L$7,'Прайс по регионам'!$1:$2,2,FALSE)-1,FALSE) -> 44218.94737 | M19: =VLOOKUP($A19,'Прайс по регионам'!$B$5:$CJ$50,HLOOKUP('Прейскурант на сортовой прокат_'!M$7,'Прайс по регионам'!$1:$2,2,FALSE)-1,FALSE) -> 44094.73684 | N19: =VLOOKUP($A19,'Прайс по регионам'!$B$5:$CJ$50,HLOOKUP('Прейскурант на сортовой прокат_'!N$7,'Прайс по регионам'!$1:$2,2,FALSE)-1,FALSE) -> 44218.94737 | O19: =VLOOKUP($A19,'Прайс по регионам'!$B$5:$CJ$50,HLOOKUP('Прейскурант на сортовой прокат_'!O$7,'Прайс по регионам'!$1:$2,2,FALSE)-1,FALSE) ->  | P19: =VLOOKUP($A19,'Прайс по регионам'!$B$5:$CJ$50,HLOOKUP('Прейскурант на сортовой прокат_'!P$7,'Прайс по регионам'!$1:$2,2,FALSE)-1,FALSE) -> 44218.94737 | Q19: =VLOOKUP($A19,'Прайс по регионам'!$B$5:$CJ$50,HLOOKUP('Прейскурант на сортовой прокат_'!Q$7,'Прайс по регионам'!$1:$2,2,FALSE)-1,FALSE) -> 43784.21053 | R19: =VLOOKUP($A19,'Прайс по регионам'!$B$5:$CJ$50,HLOOKUP('Прейскурант на сортовой прокат_'!R$7,'Прайс по регионам'!$1:$2,2,FALSE)-1,FALSE) -> 44094.73684 | S19: =VLOOKUP($A19,'Прайс по регионам'!$B$5:$CJ$50,HLOOKUP('Прейскурант на сортовой прокат_'!S$7,'Прайс по регионам'!$1:$2,2,FALSE)-1,FALSE) -> 43970.52632 | T19: =VLOOKUP($A19,'Прайс по регионам'!$B$5:$CJ$50,HLOOKUP('Прейскурант на сортовой прокат_'!T$7,'Прайс по регионам'!$1:$2,2,FALSE)-1,FALSE) -> 43660 | U19: =VLOOKUP($A19,'Прайс по регионам'!$B$5:$CJ$50,HLOOKUP('Прейскурант на сортовой прокат_'!U$7,'Прайс по регионам'!$1:$2,2,FALSE)-1,FALSE) -> 43660 | V19: =VLOOKUP($A19,'Прайс по регионам'!$B$5:$CJ$50,HLOOKUP('Прейскурант на сортовой прокат_'!V$7,'Прайс по регионам'!$1:$2,2,FALSE)-1,FALSE) -> 42852.63158 | W19: =VLOOKUP($A19,'Прайс по регионам'!$B$5:$CJ$50,HLOOKUP('Прейскурант на сортовой прокат_'!W$7,'Прайс по регионам'!$1:$2,2,FALSE)-1,FALSE) -> 43163.15789 | X19: =VLOOKUP($A19,'Прайс по регионам'!$B$5:$CJ$50,HLOOKUP('Прейскурант на сортовой прокат_'!X$7,'Прайс по регионам'!$1:$2,2,FALSE)-1,FALSE) -> 43038.94737 | Y19: =VLOOKUP($A19,'Прайс по регионам'!$B$5:$CJ$50,HLOOKUP('Прейскурант на сортовой прокат_'!Y$7,'Прайс по регионам'!$1:$2,2,FALSE)-1,FALSE) ->  | Z19: =VLOOKUP($A19,'Прайс по регионам'!$B$5:$CJ$50,HLOOKUP('Прейскурант на сортовой прокат_'!Z$7,'Прайс по регионам'!$1:$2,2,FALSE)-1,FALSE) -> 42852.63158 | AA19: =VLOOKUP($A19,'Прайс по регионам'!$B$5:$CJ$50,HLOOKUP('Прейскурант на сортовой прокат_'!AA$7,'Прайс по регионам'!$1:$2,2,FALSE)-1,FALSE) -> 43349.47368 | AB19: =VLOOKUP($A19,'Прайс по регионам'!$B$5:$CJ$50,HLOOKUP('Прейскурант на сортовой прокат_'!AB$7,'Прайс по регионам'!$1:$2,2,FALSE)-1,FALSE) -> 42852.63158 | AC19: =VLOOKUP($A19,'Прайс по регионам'!$B$5:$CJ$50,HLOOKUP('Прейскурант на сортовой прокат_'!AC$7,'Прайс по регионам'!$1:$2,2,FALSE)-1,FALSE) -> 43473.68421 | AD19: =VLOOKUP($A19,'Прайс по регионам'!$B$5:$CJ$50,HLOOKUP('Прейскурант на сортовой прокат_'!AD$7,'Прайс по регионам'!$1:$2,2,FALSE)-1,FALSE) -> 43038.94737 | AE19: =VLOOKUP($A19,'Прайс по регионам'!$B$5:$CJ$50,HLOOKUP('Прейскурант на сортовой прокат_'!AE$7,'Прайс по регионам'!$1:$2,2,FALSE)-1,FALSE) -> 43038.94737 | AF19: =VLOOKUP($A19,'Прайс по регионам'!$B$5:$CJ$50,HLOOKUP('Прейскурант на сортовой прокат_'!AF$7,'Прайс по регионам'!$1:$2,2,FALSE)-1,FALSE) -> 43349.47368 | AG19: =VLOOKUP($A19,'Прайс по регионам'!$B$5:$CJ$50,HLOOKUP('Прейскурант на сортовой прокат_'!AG$7,'Прайс по регионам'!$1:$2,2,FALSE)-1,FALSE) -> 42976.84211 | AH19: =VLOOKUP($A19,'Прайс по регионам'!$B$5:$CJ$50,HLOOKUP('Прейскурант на сортовой прокат_'!AH$7,'Прайс по регионам'!$1:$2,2,FALSE)-1,FALSE) -> 43349.47368 | AI19: =VLOOKUP($A19,'Прайс по регионам'!$B$5:$CJ$50,HLOOKUP('Прейскурант на сортовой прокат_'!AI$7,'Прайс по регионам'!$1:$2,2,FALSE)-1,FALSE) ->  | AJ19: =VLOOKUP($A19,'Прайс по регионам'!$B$5:$CJ$50,HLOOKUP('Прейскурант на сортовой прокат_'!AJ$7,'Прайс по регионам'!$1:$2,2,FALSE)-1,FALSE) -> 42976.84211 | AK19: =VLOOKUP($A19,'Прайс по регионам'!$B$5:$CJ$50,HLOOKUP('Прейскурант на сортовой прокат_'!AK$7,'Прайс по регионам'!$1:$2,2,FALSE)-1,FALSE) -> 43597.89474 | AL19: =VLOOKUP($A19,'Прайс по регионам'!$B$5:$CJ$50,HLOOKUP('Прейскурант на сортовой прокат_'!AL$7,'Прайс по регионам'!$1:$2,2,FALSE)-1,FALSE) -> 43163.15789 | AM19: =VLOOKUP($A19,'Прайс по регионам'!$B$5:$CJ$50,HLOOKUP('Прейскурант на сортовой прокат_'!AM$7,'Прайс по регионам'!$1:$2,2,FALSE)-1,FALSE) -> 42852.63158 | AN19: =VLOOKUP($A19,'Прайс по регионам'!$B$5:$CJ$50,HLOOKUP('Прейскурант на сортовой прокат_'!AN$7,'Прайс по регионам'!$1:$2,2,FALSE)-1,FALSE) -> 43349.47368 | AO19: =VLOOKUP($A19,'Прайс по регионам'!$B$5:$CJ$50,HLOOKUP('Прейскурант на сортовой прокат_'!AO$7,'Прайс по регионам'!$1:$2,2,FALSE)-1,FALSE) -> 42852.63158 | AP19: =VLOOKUP($A19,'Прайс по регионам'!$B$5:$CJ$50,HLOOKUP('Прейскурант на сортовой прокат_'!AP$7,'Прайс по регионам'!$1:$2,2,FALSE)-1,FALSE) -> 43349.47368 | AQ19: =VLOOKUP($A19,'Прайс по регионам'!$B$5:$CJ$50,HLOOKUP('Прейскурант на сортовой прокат_'!AQ$7,'Прайс по регионам'!$1:$2,2,FALSE)-1,FALSE) -> 43349.47368 | AR19: =VLOOKUP($A19,'Прайс по регионам'!$B$5:$CJ$50,HLOOKUP('Прейскурант на сортовой прокат_'!AR$7,'Прайс по регионам'!$1:$2,2,FALSE)-1,FALSE) -> 44529.47368 | AS19: =VLOOKUP($A19,'Прайс по регионам'!$B$5:$CJ$50,HLOOKUP('Прейскурант на сортовой прокат_'!AS$7,'Прайс по регионам'!$1:$2,2,FALSE)-1,FALSE) ->  | AT19: =VLOOKUP($A19,'Прайс по регионам'!$B$5:$CJ$50,HLOOKUP('Прейскурант на сортовой прокат_'!AT$7,'Прайс по регионам'!$1:$2,2,FALSE)-1,FALSE) -> 43597.89474 | AU19: =VLOOKUP($A19,'Прайс по регионам'!$B$5:$CJ$50,HLOOKUP('Прейскурант на сортовой прокат_'!AU$7,'Прайс по регионам'!$1:$2,2,FALSE)-1,FALSE) -> 43597.89474 | AV19: =VLOOKUP($A19,'Прайс по регионам'!$B$5:$CJ$50,HLOOKUP('Прейскурант на сортовой прокат_'!AV$7,'Прайс по регионам'!$1:$2,2,FALSE)-1,FALSE) -> 43597.89474 | AW19: =VLOOKUP($A19,'Прайс по регионам'!$B$5:$CJ$50,HLOOKUP('Прейскурант на сортовой прокат_'!AW$7,'Прайс по регионам'!$1:$2,2,FALSE)-1,FALSE) -> 43473.68421 | AX19: =VLOOKUP($A19,'Прайс по регионам'!$B$5:$CJ$50,HLOOKUP('Прейскурант на сортовой прокат_'!AX$7,'Прайс по регионам'!$1:$2,2,FALSE)-1,FALSE) -> 41983.15789 | AY19: =VLOOKUP($A19,'Прайс по регионам'!$B$5:$CJ$50,HLOOKUP('Прейскурант на сортовой прокат_'!AY$7,'Прайс по регионам'!$1:$2,2,FALSE)-1,FALSE) -> 42417.89474 | AZ19: =VLOOKUP($A19,'Прайс по регионам'!$B$5:$CJ$50,HLOOKUP('Прейскурант на сортовой прокат_'!AZ$7,'Прайс по регионам'!$1:$2,2,FALSE)-1,FALSE) -> 42107.36842 | BA19: =VLOOKUP($A19,'Прайс по регионам'!$B$5:$CJ$50,HLOOKUP('Прейскурант на сортовой прокат_'!BA$7,'Прайс по регионам'!$1:$2,2,FALSE)-1,FALSE) -> 42542.10526 | BB19: =VLOOKUP($A19,'Прайс по регионам'!$B$5:$CJ$50,HLOOKUP('Прейскурант на сортовой прокат_'!BB$7,'Прайс по регионам'!$1:$2,2,FALSE)-1,FALSE) -> 41672.63158 | BC19: =VLOOKUP($A19,'Прайс по регионам'!$B$5:$CJ$50,HLOOKUP('Прейскурант на сортовой прокат_'!BC$7,'Прайс по регионам'!$1:$2,2,FALSE)-1,FALSE) ->  | BD19: =VLOOKUP($A19,'Прайс по регионам'!$B$5:$CJ$50,HLOOKUP('Прейскурант на сортовой прокат_'!BD$7,'Прайс по регионам'!$1:$2,2,FALSE)-1,FALSE) -> 41672.63158 | BE19: =VLOOKUP($A19,'Прайс по регионам'!$B$5:$CJ$50,HLOOKUP('Прейскурант на сортовой прокат_'!BE$7,'Прайс по регионам'!$1:$2,2,FALSE)-1,FALSE) -> 42107.36842 | BF19: =VLOOKUP($A19,'Прайс по регионам'!$B$5:$CJ$50,HLOOKUP('Прейскурант на сортовой прокат_'!BF$7,'Прайс по регионам'!$1:$2,2,FALSE)-1,FALSE) -> 42417.89474 | BG19: =VLOOKUP($A19,'Прайс по регионам'!$B$5:$CJ$50,HLOOKUP('Прейскурант на сортовой прокат_'!BG$7,'Прайс по регионам'!$1:$2,2,FALSE)-1,FALSE) -> 41983.15789 | BH19: =VLOOKUP($A19,'Прайс по регионам'!$B$5:$CJ$50,HLOOKUP('Прейскурант на сортовой прокат_'!BH$7,'Прайс по регионам'!$1:$2,2,FALSE)-1,FALSE) -> 41672.63158 | BI19: =VLOOKUP($A19,'Прайс по регионам'!$B$5:$CJ$50,HLOOKUP('Прейскурант на сортовой прокат_'!BI$7,'Прайс по регионам'!$1:$2,2,FALSE)-1,FALSE) -> 42231.57895 | BJ19: =VLOOKUP($A19,'Прайс по регионам'!$B$5:$CJ$50,HLOOKUP('Прейскурант на сортовой прокат_'!BJ$7,'Прайс по регионам'!$1:$2,2,FALSE)-1,FALSE) -> 42542.10526 | BK19: =VLOOKUP($A19,'Прайс по регионам'!$B$5:$CJ$50,HLOOKUP('Прейскурант на сортовой прокат_'!BK$7,'Прайс по регионам'!$1:$2,2,FALSE)-1,FALSE) -> 42107.36842 | BL19: =VLOOKUP($A19,'Прайс по регионам'!$B$5:$CJ$50,HLOOKUP('Прейскурант на сортовой прокат_'!BL$7,'Прайс по регионам'!$1:$2,2,FALSE)-1,FALSE) -> 42231.57895 | BM19: =VLOOKUP($A19,'Прайс по регионам'!$B$5:$CJ$50,HLOOKUP('Прейскурант на сортовой прокат_'!BM$7,'Прайс по регионам'!$1:$2,2,FALSE)-1,FALSE) ->  | BN19: =VLOOKUP($A19,'Прайс по регионам'!$B$5:$CJ$50,HLOOKUP('Прейскурант на сортовой прокат_'!BN$7,'Прайс по регионам'!$1:$2,2,FALSE)-1,FALSE) -> 43970.52632 | BO19: =VLOOKUP($A19,'Прайс по регионам'!$B$5:$CJ$50,HLOOKUP('Прейскурант на сортовой прокат_'!BO$7,'Прайс по регионам'!$1:$2,2,FALSE)-1,FALSE) -> 41486.31579 | BP19: =VLOOKUP($A19,'Прайс по регионам'!$B$5:$CJ$50,HLOOKUP('Прейскурант на сортовой прокат_'!BP$7,'Прайс по регионам'!$1:$2,2,FALSE)-1,FALSE) -> 41983.15789 | BQ19: =VLOOKUP($A19,'Прайс по регионам'!$B$5:$CJ$50,HLOOKUP('Прейскурант на сортовой прокат_'!BQ$7,'Прайс по регионам'!$1:$2,2,FALSE)-1,FALSE) -> 41921.05263 | BR19: =VLOOKUP($A19,'Прайс по регионам'!$B$5:$CJ$50,HLOOKUP('Прейскурант на сортовой прокат_'!BR$7,'Прайс по регионам'!$1:$2,2,FALSE)-1,FALSE) -> 41362.10526 | BS19: =VLOOKUP($A19,'Прайс по регионам'!$B$5:$CJ$50,HLOOKUP('Прейскурант на сортовой прокат_'!BS$7,'Прайс по регионам'!$1:$2,2,FALSE)-1,FALSE) -> 40741.05263 | BT19: =VLOOKUP($A19,'Прайс по регионам'!$B$5:$CJ$50,HLOOKUP('Прейскурант на сортовой прокат_'!BT$7,'Прайс по регионам'!$1:$2,2,FALSE)-1,FALSE) -> 43970.52632 | BU19: =VLOOKUP($A19,'Прайс по регионам'!$B$5:$CJ$50,HLOOKUP('Прейскурант на сортовой прокат_'!BU$7,'Прайс по регионам'!$1:$2,2,FALSE)-1,FALSE) ->  | BV19: =VLOOKUP($A19,'Прайс по регионам'!$B$5:$CJ$50,HLOOKUP('Прейскурант на сортовой прокат_'!BV$7,'Прайс по регионам'!$1:$2,2,FALSE)-1,FALSE) -> 45274.73684 | BW19: =VLOOKUP($A19,'Прайс по регионам'!$B$5:$CJ$50,HLOOKUP('Прейскурант на сортовой прокат_'!BW$7,'Прайс по регионам'!$1:$2,2,FALSE)-1,FALSE) -> 47572.63158 | BX19: =VLOOKUP($A19,'Прайс по регионам'!$B$5:$CJ$50,HLOOKUP('Прейскурант на сортовой прокат_'!BX$7,'Прайс по регионам'!$1:$2,2,FALSE)-1,FALSE) -> 45274.73684 | BY19: =VLOOKUP($A19,'Прайс по регионам'!$B$5:$CJ$50,HLOOKUP('Прейскурант на сортовой прокат_'!BY$7,'Прайс по регионам'!$1:$2,2,FALSE)-1,FALSE) -> 47572.63158 | BZ19: =VLOOKUP($A19,'Прайс по регионам'!$B$5:$CJ$50,HLOOKUP('Прейскурант на сортовой прокат_'!BZ$7,'Прайс по регионам'!$1:$2,2,FALSE)-1,FALSE) -> 45274.73684 | CA19: =VLOOKUP($A19,'Прайс по регионам'!$B$5:$CJ$50,HLOOKUP('Прейскурант на сортовой прокат_'!CA$7,'Прайс по регионам'!$1:$2,2,FALSE)-1,FALSE) -> 44218.94737 | CB19: =VLOOKUP($A19,'Прайс по регионам'!$B$5:$CJ$50,HLOOKUP('Прейскурант на сортовой прокат_'!CB$7,'Прайс по регионам'!$1:$2,2,FALSE)-1,FALSE) -> 45274.73684 | CC19: =VLOOKUP($A19,'Прайс по регионам'!$B$5:$CJ$50,HLOOKUP('Прейскурант на сортовой прокат_'!CC$7,'Прайс по регионам'!$1:$2,2,FALSE)-1,FALSE) -> 48131.57895 | CD19: =VLOOKUP($A19,'Прайс по регионам'!$B$5:$CJ$50,HLOOKUP('Прейскурант на сортовой прокат_'!CD$7,'Прайс по регионам'!$1:$2,2,FALSE)-1,FALSE) -> 47572.63158 | CE19: =VLOOKUP($A19,'Прайс по регионам'!$B$5:$CJ$50,HLOOKUP('Прейскурант на сортовой прокат_'!CE$7,'Прайс по регионам'!$1:$2,2,FALSE)-1,FALSE) ->  | CF19: =VLOOKUP($A19,'Прайс по регионам'!$B$5:$CJ$50,HLOOKUP('Прейскурант на сортовой прокат_'!CF$7,'Прайс по регионам'!$1:$2,2,FALSE)-1,FALSE) -> 47572.63158 | CG19: =VLOOKUP($A19,'Прайс по регионам'!$B$5:$CJ$50,HLOOKUP('Прейскурант на сортовой прокат_'!CG$7,'Прайс по регионам'!$1:$2,2,FALSE)-1,FALSE) -> 45274.73684 | CH19: =VLOOKUP($A19,'Прайс по регионам'!$B$5:$CJ$50,HLOOKUP('Прейскурант на сортовой прокат_'!CH$7,'Прайс по регионам'!$1:$2,2,FALSE)-1,FALSE) -> 49684.21053 | CI19: =VLOOKUP($A19,'Прайс по регионам'!$B$5:$CJ$50,HLOOKUP('Прейскурант на сортовой прокат_'!CI$7,'Прайс по регионам'!$1:$2,2,FALSE)-1,FALSE) -> 46516.84211 | CJ19: =VLOOKUP($A19,'Прайс по регионам'!$B$5:$CJ$50,HLOOKUP('Прейскурант на сортовой прокат_'!CJ$7,'Прайс по регионам'!$1:$2,2,FALSE)-1,FALSE) -> 46516.84211 | CK19: =VLOOKUP($A19,'Прайс по регионам'!$B$5:$CJ$50,HLOOKUP('Прейскурант на сортовой прокат_'!CK$7,'Прайс по регионам'!$1:$2,2,FALSE)-1,FALSE) -> 46516.84211 | CL19: =VLOOKUP($A19,'Прайс по регионам'!$B$5:$CJ$50,HLOOKUP('Прейскурант на сортовой прокат_'!CL$7,'Прайс по регионам'!$1:$2,2,FALSE)-1,FALSE) -> 47448.42105 | CM19: =VLOOKUP($A19,'Прайс по регионам'!$B$5:$CJ$50,HLOOKUP('Прейскурант на сортовой прокат_'!CM$7,'Прайс по регионам'!$1:$2,2,FALSE)-1,FALSE) ->  | CN19: =VLOOKUP($A19,'Прайс по регионам'!$B$5:$CJ$50,HLOOKUP('Прейскурант на сортовой прокат_'!CN$7,'Прайс по регионам'!$1:$2,2,FALSE)-1,FALSE) -> 46516.84211 | CO19: =VLOOKUP($A19,'Прайс по регионам'!$B$5:$CJ$50,HLOOKUP('Прейскурант на сортовой прокат_'!CO$7,'Прайс по регионам'!$1:$2,2,FALSE)-1,FALSE) -> 47883.15789 | CP19: =VLOOKUP($A19,'Прайс по регионам'!$B$5:$CJ$50,HLOOKUP('Прейскурант на сортовой прокат_'!CP$7,'Прайс по регионам'!$1:$2,2,FALSE)-1,FALSE) -> 50864.21053 | CQ19: =VLOOKUP($A19,'Прайс по регионам'!$B$5:$CJ$50,HLOOKUP('Прейскурант на сортовой прокат_'!CQ$7,'Прайс по регионам'!$1:$2,2,FALSE)-1,FALSE) -> 47448.42105 | CR19: =VLOOKUP($A19,'Прайс по регионам'!$B$5:$CJ$50,HLOOKUP('Прейскурант на сортовой прокат_'!CR$7,'Прайс по регионам'!$1:$2,2,FALSE)-1,FALSE) -> 47448.42105
A20: 25Г2С_10б | B20: Арматура 10 (мотки) | C20: А III, 25Г2С | D20: ГОСТ 5781 | E20: ГОСТ 5781 | F20: =VLOOKUP($A20,'Прайс по регионам'!$B$5:$CJ$50,HLOOKUP('Прейскурант на сортовой прокат_'!F$7,'Прайс по регионам'!$1:$2,2,FALSE)-1,FALSE) -> 45461.05263 | G20: =VLOOKUP($A20,'Прайс по регионам'!$B$5:$CJ$50,HLOOKUP('Прейскурант на сортовой прокат_'!G$7,'Прайс по регионам'!$1:$2,2,FALSE)-1,FALSE) -> 45461.05263 | H20: =VLOOKUP($A20,'Прайс по регионам'!$B$5:$CJ$50,HLOOKUP('Прейскурант на сортовой прокат_'!H$7,'Прайс по регионам'!$1:$2,2,FALSE)-1,FALSE) -> 45150.52632 | I20: =VLOOKUP($A20,'Прайс по регионам'!$B$5:$CJ$50,HLOOKUP('Прейскурант на сортовой прокат_'!I$7,'Прайс по регионам'!$1:$2,2,FALSE)-1,FALSE) -> 46330.52632 | J20: =VLOOKUP($A20,'Прайс по регионам'!$B$5:$CJ$50,HLOOKUP('Прейскурант на сортовой прокат_'!J$7,'Прайс по регионам'!$1:$2,2,FALSE)-1,FALSE) -> 46082.10526 | K20: =VLOOKUP($A20,'Прайс по регионам'!$B$5:$CJ$50,HLOOKUP('Прейскурант на сортовой прокат_'!K$7,'Прайс по регионам'!$1:$2,2,FALSE)-1,FALSE) -> 46206.31579 | L20: =VLOOKUP($A20,'Прайс по регионам'!$B$5:$CJ$50,HLOOKUP('Прейскурант на сортовой прокат_'!L$7,'Прайс по регионам'!$1:$2,2,FALSE)-1,FALSE) -> 46330.52632 | M20: =VLOOKUP($A20,'Прайс по регионам'!$B$5:$CJ$50,HLOOKUP('Прейскурант на сортовой прокат_'!M$7,'Прайс по регионам'!$1:$2,2,FALSE)-1,FALSE) -> 46206.31579 | N20: =VLOOKUP($A20,'Прайс по регионам'!$B$5:$CJ$50,HLOOKUP('Прейскурант на сортовой прокат_'!N$7,'Прайс по регионам'!$1:$2,2,FALSE)-1,FALSE) -> 46330.52632 | O20: =VLOOKUP($A20,'Прайс по регионам'!$B$5:$CJ$50,HLOOKUP('Прейскурант на сортовой прокат_'!O$7,'Прайс по регионам'!$1:$2,2,FALSE)-1,FALSE) ->  | P20: =VLOOKUP($A20,'Прайс по регионам'!$B$5:$CJ$50,HLOOKUP('Прейскурант на сортовой прокат_'!P$7,'Прайс по регионам'!$1:$2,2,FALSE)-1,FALSE) -> 46330.52632 | Q20: =VLOOKUP($A20,'Прайс по регионам'!$B$5:$CJ$50,HLOOKUP('Прейскурант на сортовой прокат_'!Q$7,'Прайс по регионам'!$1:$2,2,FALSE)-1,FALSE) -> 45895.78947 | R20: =VLOOKUP($A20,'Прайс по регионам'!$B$5:$CJ$50,HLOOKUP('Прейскурант на сортовой прокат_'!R$7,'Прайс по регионам'!$1:$2,2,FALSE)-1,FALSE) -> 46206.31579 | S20: =VLOOKUP($A20,'Прайс по регионам'!$B$5:$CJ$50,HLOOKUP('Прейскурант на сортовой прокат_'!S$7,'Прайс по регионам'!$1:$2,2,FALSE)-1,FALSE) -> 46082.10526 | T20: =VLOOKUP($A20,'Прайс по регионам'!$B$5:$CJ$50,HLOOKUP('Прейскурант на сортовой прокат_'!T$7,'Прайс по регионам'!$1:$2,2,FALSE)-1,FALSE) -> 45771.57895 | U20: =VLOOKUP($A20,'Прайс по регионам'!$B$5:$CJ$50,HLOOKUP('Прейскурант на сортовой прокат_'!U$7,'Прайс по регионам'!$1:$2,2,FALSE)-1,FALSE) -> 45771.57895 | V20: =VLOOKUP($A20,'Прайс по регионам'!$B$5:$CJ$50,HLOOKUP('Прейскурант на сортовой прокат_'!V$7,'Прайс по регионам'!$1:$2,2,FALSE)-1,FALSE) -> 44964.21053 | W20: =VLOOKUP($A20,'Прайс по регионам'!$B$5:$CJ$50,HLOOKUP('Прейскурант на сортовой прокат_'!W$7,'Прайс по регионам'!$1:$2,2,FALSE)-1,FALSE) -> 45274.73684 | X20: =VLOOKUP($A20,'Прайс по регионам'!$B$5:$CJ$50,HLOOKUP('Прейскурант на сортовой прокат_'!X$7,'Прайс по регионам'!$1:$2,2,FALSE)-1,FALSE) -> 45150.52632 | Y20: =VLOOKUP($A20,'Прайс по регионам'!$B$5:$CJ$50,HLOOKUP('Прейскурант на сортовой прокат_'!Y$7,'Прайс по регионам'!$1:$2,2,FALSE)-1,FALSE) ->  | Z20: =VLOOKUP($A20,'Прайс по регионам'!$B$5:$CJ$50,HLOOKUP('Прейскурант на сортовой прокат_'!Z$7,'Прайс по регионам'!$1:$2,2,FALSE)-1,FALSE) -> 44964.21053 | AA20: =VLOOKUP($A20,'Прайс по регионам'!$B$5:$CJ$50,HLOOKUP('Прейскурант на сортовой прокат_'!AA$7,'Прайс по регионам'!$1:$2,2,FALSE)-1,FALSE) -> 45461.05263 | AB20: =VLOOKUP($A20,'Прайс по регионам'!$B$5:$CJ$50,HLOOKUP('Прейскурант на сортовой прокат_'!AB$7,'Прайс по регионам'!$1:$2,2,FALSE)-1,FALSE) -> 44964.21053 | AC20: =VLOOKUP($A20,'Прайс по регионам'!$B$5:$CJ$50,HLOOKUP('Прейскурант на сортовой прокат_'!AC$7,'Прайс по регионам'!$1:$2,2,FALSE)-1,FALSE) -> 45585.26316 | AD20: =VLOOKUP($A20,'Прайс по регионам'!$B$5:$CJ$50,HLOOKUP('Прейскурант на сортовой прокат_'!AD$7,'Прайс по регионам'!$1:$2,2,FALSE)-1,FALSE) -> 45150.52632 | AE20: =VLOOKUP($A20,'Прайс по регионам'!$B$5:$CJ$50,HLOOKUP('Прейскурант на сортовой прокат_'!AE$7,'Прайс по регионам'!$1:$2,2,FALSE)-1,FALSE) -> 45150.52632 | AF20: =VLOOKUP($A20,'Прайс по регионам'!$B$5:$CJ$50,HLOOKUP('Прейскурант на сортовой прокат_'!AF$7,'Прайс по регионам'!$1:$2,2,FALSE)-1,FALSE) -> 45461.05263 | AG20: =VLOOKUP($A20,'Прайс по регионам'!$B$5:$CJ$50,HLOOKUP('Прейскурант на сортовой прокат_'!AG$7,'Прайс по регионам'!$1:$2,2,FALSE)-1,FALSE) -> 45026.31579 | AH20: =VLOOKUP($A20,'Прайс по регионам'!$B$5:$CJ$50,HLOOKUP('Прейскурант на сортовой прокат_'!AH$7,'Прайс по регионам'!$1:$2,2,FALSE)-1,FALSE) -> 45461.05263 | AI20: =VLOOKUP($A20,'Прайс по регионам'!$B$5:$CJ$50,HLOOKUP('Прейскурант на сортовой прокат_'!AI$7,'Прайс по регионам'!$1:$2,2,FALSE)-1,FALSE) ->  | AJ20: =VLOOKUP($A20,'Прайс по регионам'!$B$5:$CJ$50,HLOOKUP('Прейскурант на сортовой прокат_'!AJ$7,'Прайс по регионам'!$1:$2,2,FALSE)-1,FALSE) -> 45026.31579 | AK20: =VLOOKUP($A20,'Прайс по регионам'!$B$5:$CJ$50,HLOOKUP('Прейскурант на сортовой прокат_'!AK$7,'Прайс по регионам'!$1:$2,2,FALSE)-1,FALSE) -> 45709.47368 | AL20: =VLOOKUP($A20,'Прайс по регионам'!$B$5:$CJ$50,HLOOKUP('Прейскурант на сортовой прокат_'!AL$7,'Прайс по регионам'!$1:$2,2,FALSE)-1,FALSE) -> 45274.73684 | AM20: =VLOOKUP($A20,'Прайс по регионам'!$B$5:$CJ$50,HLOOKUP('Прейскурант на сортовой прокат_'!AM$7,'Прайс по регионам'!$1:$2,2,FALSE)-1,FALSE) -> 44964.21053 | AN20: =VLOOKUP($A20,'Прайс по регионам'!$B$5:$CJ$50,HLOOKUP('Прейскурант на сортовой прокат_'!AN$7,'Прайс по регионам'!$1:$2,2,FALSE)-1,FALSE) -> 45461.05263 | AO20: =VLOOKUP($A20,'Прайс по регионам'!$B$5:$CJ$50,HLOOKUP('Прейскурант на сортовой прокат_'!AO$7,'Прайс по регионам'!$1:$2,2,FALSE)-1,FALSE) -> 44964.21053 | AP20: =VLOOKUP($A20,'Прайс по регионам'!$B$5:$CJ$50,HLOOKUP('Прейскурант на сортовой прокат_'!AP$7,'Прайс по регионам'!$1:$2,2,FALSE)-1,FALSE) -> 45461.05263 | AQ20: =VLOOKUP($A20,'Прайс по регионам'!$B$5:$CJ$50,HLOOKUP('Прейскурант на сортовой прокат_'!AQ$7,'Прайс по регионам'!$1:$2,2,FALSE)-1,FALSE) -> 45461.05263 | AR20: =VLOOKUP($A20,'Прайс по регионам'!$B$5:$CJ$50,HLOOKUP('Прейскурант на сортовой прокат_'!AR$7,'Прайс по регионам'!$1:$2,2,FALSE)-1,FALSE) -> 46641.05263 | AS20: =VLOOKUP($A20,'Прайс по регионам'!$B$5:$CJ$50,HLOOKUP('Прейскурант на сортовой прокат_'!AS$7,'Прайс по регионам'!$1:$2,2,FALSE)-1,FALSE) ->  | AT20: =VLOOKUP($A20,'Прайс по регионам'!$B$5:$CJ$50,HLOOKUP('Прейскурант на сортовой прокат_'!AT$7,'Прайс по регионам'!$1:$2,2,FALSE)-1,FALSE) -> 45709.47368 | AU20: =VLOOKUP($A20,'Прайс по регионам'!$B$5:$CJ$50,HLOOKUP('Прейскурант на сортовой прокат_'!AU$7,'Прайс по регионам'!$1:$2,2,FALSE)-1,FALSE) -> 45709.47368 | AV20: =VLOOKUP($A20,'Прайс по регионам'!$B$5:$CJ$50,HLOOKUP('Прейскурант на сортовой прокат_'!AV$7,'Прайс по регионам'!$1:$2,2,FALSE)-1,FALSE) -> 45709.47368 | AW20: =VLOOKUP($A20,'Прайс по регионам'!$B$5:$CJ$50,HLOOKUP('Прейскурант на сортовой прокат_'!AW$7,'Прайс по регионам'!$1:$2,2,FALSE)-1,FALSE) -> 45585.26316 | AX20: =VLOOKUP($A20,'Прайс по регионам'!$B$5:$CJ$50,HLOOKUP('Прейскурант на сортовой прокат_'!AX$7,'Прайс по регионам'!$1:$2,2,FALSE)-1,FALSE) -> 44094.73684 | AY20: =VLOOKUP($A20,'Прайс по регионам'!$B$5:$CJ$50,HLOOKUP('Прейскурант на сортовой прокат_'!AY$7,'Прайс по регионам'!$1:$2,2,FALSE)-1,FALSE) -> 44529.47368 | AZ20: =VLOOKUP($A20,'Прайс по регионам'!$B$5:$CJ$50,HLOOKUP('Прейскурант на сортовой прокат_'!AZ$7,'Прайс по регионам'!$1:$2,2,FALSE)-1,FALSE) -> 44218.94737 | BA20: =VLOOKUP($A20,'Прайс по регионам'!$B$5:$CJ$50,HLOOKUP('Прейскурант на сортовой прокат_'!BA$7,'Прайс по регионам'!$1:$2,2,FALSE)-1,FALSE) -> 44653.68421 | BB20: =VLOOKUP($A20,'Прайс по регионам'!$B$5:$CJ$50,HLOOKUP('Прейскурант на сортовой прокат_'!BB$7,'Прайс по регионам'!$1:$2,2,FALSE)-1,FALSE) -> 43784.21053 | BC20: =VLOOKUP($A20,'Прайс по регионам'!$B$5:$CJ$50,HLOOKUP('Прейскурант на сортовой прокат_'!BC$7,'Прайс по регионам'!$1:$2,2,FALSE)-1,FALSE) ->  | BD20: =VLOOKUP($A20,'Прайс по регионам'!$B$5:$CJ$50,HLOOKUP('Прейскурант на сортовой прокат_'!BD$7,'Прайс по регионам'!$1:$2,2,FALSE)-1,FALSE) -> 43784.21053 | BE20: =VLOOKUP($A20,'Прайс по регионам'!$B$5:$CJ$50,HLOOKUP('Прейскурант на сортовой прокат_'!BE$7,'Прайс по регионам'!$1:$2,2,FALSE)-1,FALSE) -> 44218.94737 | BF20: =VLOOKUP($A20,'Прайс по регионам'!$B$5:$CJ$50,HLOOKUP('Прейскурант на сортовой прокат_'!BF$7,'Прайс по регионам'!$1:$2,2,FALSE)-1,FALSE) -> 44529.47368 | BG20: =VLOOKUP($A20,'Прайс по регионам'!$B$5:$CJ$50,HLOOKUP('Прейскурант на сортовой прокат_'!BG$7,'Прайс по регионам'!$1:$2,2,FALSE)-1,FALSE) -> 44094.73684 | BH20: =VLOOKUP($A20,'Прайс по регионам'!$B$5:$CJ$50,HLOOKUP('Прейскурант на сортовой прокат_'!BH$7,'Прайс по регионам'!$1:$2,2,FALSE)-1,FALSE) -> 43784.21053 | BI20: =VLOOKUP($A20,'Прайс по регионам'!$B$5:$CJ$50,HLOOKUP('Прейскурант на сортовой прокат_'!BI$7,'Прайс по регионам'!$1:$2,2,FALSE)-1,FALSE) -> 44343.15789 | BJ20: =VLOOKUP($A20,'Прайс по регионам'!$B$5:$CJ$50,HLOOKUP('Прейскурант на сортовой прокат_'!BJ$7,'Прайс по регионам'!$1:$2,2,FALSE)-1,FALSE) -> 44653.68421 | BK20: =VLOOKUP($A20,'Прайс по регионам'!$B$5:$CJ$50,HLOOKUP('Прейскурант на сортовой прокат_'!BK$7,'Прайс по регионам'!$1:$2,2,FALSE)-1,FALSE) -> 44218.94737 | BL20: =VLOOKUP($A20,'Прайс по регионам'!$B$5:$CJ$50,HLOOKUP('Прейскурант на сортовой прокат_'!BL$7,'Прайс по регионам'!$1:$2,2,FALSE)-1,FALSE) -> 44343.15789 | BM20: =VLOOKUP($A20,'Прайс по регионам'!$B$5:$CJ$50,HLOOKUP('Прейскурант на сортовой прокат_'!BM$7,'Прайс по регионам'!$1:$2,2,FALSE)-1,FALSE) ->  | BN20: =VLOOKUP($A20,'Прайс по регионам'!$B$5:$CJ$50,HLOOKUP('Прейскурант на сортовой прокат_'!BN$7,'Прайс по регионам'!$1:$2,2,FALSE)-1,FALSE) -> 46082.10526 | BO20: =VLOOKUP($A20,'Прайс по регионам'!$B$5:$CJ$50,HLOOKUP('Прейскурант на сортовой прокат_'!BO$7,'Прайс по регионам'!$1:$2,2,FALSE)-1,FALSE) -> 43597.89474 | BP20: =VLOOKUP($A20,'Прайс по регионам'!$B$5:$CJ$50,HLOOKUP('Прейскурант на сортовой прокат_'!BP$7,'Прайс по регионам'!$1:$2,2,FALSE)-1,FALSE) -> 44094.73684 | BQ20: =VLOOKUP($A20,'Прайс по регионам'!$B$5:$CJ$50,HLOOKUP('Прейскурант на сортовой прокат_'!BQ$7,'Прайс по регионам'!$1:$2,2,FALSE)-1,FALSE) -> 43970.52632 | BR20: =VLOOKUP($A20,'Прайс по регионам'!$B$5:$CJ$50,HLOOKUP('Прейскурант на сортовой прокат_'!BR$7,'Прайс по регионам'!$1:$2,2,FALSE)-1,FALSE) -> 43473.68421 | BS20: =VLOOKUP($A20,'Прайс по регионам'!$B$5:$CJ$50,HLOOKUP('Прейскурант на сортовой прокат_'!BS$7,'Прайс по регионам'!$1:$2,2,FALSE)-1,FALSE) -> 42852.63158 | BT20: =VLOOKUP($A20,'Прайс по регионам'!$B$5:$CJ$50,HLOOKUP('Прейскурант на сортовой прокат_'!BT$7,'Прайс по регионам'!$1:$2,2,FALSE)-1,FALSE) -> 46082.10526 | BU20: =VLOOKUP($A20,'Прайс по регионам'!$B$5:$CJ$50,HLOOKUP('Прейскурант на сортовой прокат_'!BU$7,'Прайс по регионам'!$1:$2,2,FALSE)-1,FALSE) ->  | BV20: =VLOOKUP($A20,'Прайс по регионам'!$B$5:$CJ$50,HLOOKUP('Прейскурант на сортовой прокат_'!BV$7,'Прайс по регионам'!$1:$2,2,FALSE)-1,FALSE) -> 46330.52632 | BW20: =VLOOKUP($A20,'Прайс по регионам'!$B$5:$CJ$50,HLOOKUP('Прейскурант на сортовой прокат_'!BW$7,'Прайс по регионам'!$1:$2,2,FALSE)-1,FALSE) -> 48628.42105 | BX20: =VLOOKUP($A20,'Прайс по регионам'!$B$5:$CJ$50,HLOOKUP('Прейскурант на сортовой прокат_'!BX$7,'Прайс по регионам'!$1:$2,2,FALSE)-1,FALSE) -> 46330.52632 | BY20: =VLOOKUP($A20,'Прайс по регионам'!$B$5:$CJ$50,HLOOKUP('Прейскурант на сортовой прокат_'!BY$7,'Прайс по регионам'!$1:$2,2,FALSE)-1,FALSE) -> 48628.42105 | BZ20: =VLOOKUP($A20,'Прайс по регионам'!$B$5:$CJ$50,HLOOKUP('Прейскурант на сортовой прокат_'!BZ$7,'Прайс по регионам'!$1:$2,2,FALSE)-1,FALSE) -> 46330.52632 | CA20: =VLOOKUP($A20,'Прайс по регионам'!$B$5:$CJ$50,HLOOKUP('Прейскурант на сортовой прокат_'!CA$7,'Прайс по регионам'!$1:$2,2,FALSE)-1,FALSE) -> 45274.73684 | CB20: =VLOOKUP($A20,'Прайс по регионам'!$B$5:$CJ$50,HLOOKUP('Прейскурант на сортовой прокат_'!CB$7,'Прайс по регионам'!$1:$2,2,FALSE)-1,FALSE) -> 46330.52632 | CC20: =VLOOKUP($A20,'Прайс по регионам'!$B$5:$CJ$50,HLOOKUP('Прейскурант на сортовой прокат_'!CC$7,'Прайс по регионам'!$1:$2,2,FALSE)-1,FALSE) -> 49187.36842 | CD20: =VLOOKUP($A20,'Прайс по регионам'!$B$5:$CJ$50,HLOOKUP('Прейскурант на сортовой прокат_'!CD$7,'Прайс по регионам'!$1:$2,2,FALSE)-1,FALSE) -> 48628.42105 | CE20: =VLOOKUP($A20,'Прайс по регионам'!$B$5:$CJ$50,HLOOKUP('Прейскурант на сортовой прокат_'!CE$7,'Прайс по регионам'!$1:$2,2,FALSE)-1,FALSE) ->  | CF20: =VLOOKUP($A20,'Прайс по регионам'!$B$5:$CJ$50,HLOOKUP('Прейскурант на сортовой прокат_'!CF$7,'Прайс по регионам'!$1:$2,2,FALSE)-1,FALSE) -> 48628.42105 | CG20: =VLOOKUP($A20,'Прайс по регионам'!$B$5:$CJ$50,HLOOKUP('Прейскурант на сортовой прокат_'!CG$7,'Прайс по регионам'!$1:$2,2,FALSE)-1,FALSE) -> 46330.52632 | CH20: =VLOOKUP($A20,'Прайс по регионам'!$B$5:$CJ$50,HLOOKUP('Прейскурант на сортовой прокат_'!CH$7,'Прайс по регионам'!$1:$2,2,FALSE)-1,FALSE) -> 50740 | CI20: =VLOOKUP($A20,'Прайс по регионам'!$B$5:$CJ$50,HLOOKUP('Прейскурант на сортовой прокат_'!CI$7,'Прайс по регионам'!$1:$2,2,FALSE)-1,FALSE) -> 46951.57895 | CJ20: =VLOOKUP($A20,'Прайс по регионам'!$B$5:$CJ$50,HLOOKUP('Прейскурант на сортовой прокат_'!CJ$7,'Прайс по регионам'!$1:$2,2,FALSE)-1,FALSE) -> 46951.57895 | CK20: =VLOOKUP($A20,'Прайс по регионам'!$B$5:$CJ$50,HLOOKUP('Прейскурант на сортовой прокат_'!CK$7,'Прайс по регионам'!$1:$2,2,FALSE)-1,FALSE) -> 46951.57895 | CL20: =VLOOKUP($A20,'Прайс по регионам'!$B$5:$CJ$50,HLOOKUP('Прейскурант на сортовой прокат_'!CL$7,'Прайс по регионам'!$1:$2,2,FALSE)-1,FALSE) -> 47883.15789 | CM20: =VLOOKUP($A20,'Прайс по регионам'!$B$5:$CJ$50,HLOOKUP('Прейскурант на сортовой прокат_'!CM$7,'Прайс по регионам'!$1:$2,2,FALSE)-1,FALSE) ->  | CN20: =VLOOKUP($A20,'Прайс по регионам'!$B$5:$CJ$50,HLOOKUP('Прейскурант на сортовой прокат_'!CN$7,'Прайс по регионам'!$1:$2,2,FALSE)-1,FALSE) -> 46951.57895 | CO20: =VLOOKUP($A20,'Прайс по регионам'!$B$5:$CJ$50,HLOOKUP('Прейскурант на сортовой прокат_'!CO$7,'Прайс по регионам'!$1:$2,2,FALSE)-1,FALSE) -> 48317.89474 | CP20: =VLOOKUP($A20,'Прайс по регионам'!$B$5:$CJ$50,HLOOKUP('Прейскурант на сортовой прокат_'!CP$7,'Прайс по регионам'!$1:$2,2,FALSE)-1,FALSE) -> 51236.84211 | CQ20: =VLOOKUP($A20,'Прайс по регионам'!$B$5:$CJ$50,HLOOKUP('Прейскурант на сортовой прокат_'!CQ$7,'Прайс по регионам'!$1:$2,2,FALSE)-1,FALSE) -> 47883.15789 | CR20: =VLOOKUP($A20,'Прайс по регионам'!$B$5:$CJ$50,HLOOKUP('Прейскурант на сортовой прокат_'!CR$7,'Прайс по регионам'!$1:$2,2,FALSE)-1,FALSE) -> 47821.05263
A21: 35 Гс_10б | C21: А III, 35ГС | D21: ГОСТ 5781 | E21: ГОСТ 5781 | F21: =VLOOKUP($A21,'Прайс по регионам'!$B$5:$CJ$50,HLOOKUP('Прейскурант на сортовой прокат_'!F$7,'Прайс по регионам'!$1:$2,2,FALSE)-1,FALSE) -> 43535.78947 | G21: =VLOOKUP($A21,'Прайс по регионам'!$B$5:$CJ$50,HLOOKUP('Прейскурант на сортовой прокат_'!G$7,'Прайс по регионам'!$1:$2,2,FALSE)-1,FALSE) -> 43535.78947 | H21: =VLOOKUP($A21,'Прайс по регионам'!$B$5:$CJ$50,HLOOKUP('Прейскурант на сортовой прокат_'!H$7,'Прайс по регионам'!$1:$2,2,FALSE)-1,FALSE) -> 43225.26316 | I21: =VLOOKUP($A21,'Прайс по регионам'!$B$5:$CJ$50,HLOOKUP('Прейскурант на сортовой прокат_'!I$7,'Прайс по регионам'!$1:$2,2,FALSE)-1,FALSE) -> 44653.68421 | J21: =VLOOKUP($A21,'Прайс по регионам'!$B$5:$CJ$50,HLOOKUP('Прейскурант на сортовой прокат_'!J$7,'Прайс по регионам'!$1:$2,2,FALSE)-1,FALSE) -> 44467.36842 | K21: =VLOOKUP($A21,'Прайс по регионам'!$B$5:$CJ$50,HLOOKUP('Прейскурант на сортовой прокат_'!K$7,'Прайс по регионам'!$1:$2,2,FALSE)-1,FALSE) -> 44591.57895 | L21: =VLOOKUP($A21,'Прайс по регионам'!$B$5:$CJ$50,HLOOKUP('Прейскурант на сортовой прокат_'!L$7,'Прайс по регионам'!$1:$2,2,FALSE)-1,FALSE) -> 44653.68421 | M21: =VLOOKUP($A21,'Прайс по регионам'!$B$5:$CJ$50,HLOOKUP('Прейскурант на сортовой прокат_'!M$7,'Прайс по регионам'!$1:$2,2,FALSE)-1,FALSE) -> 44591.57895 | N21: =VLOOKUP($A21,'Прайс по регионам'!$B$5:$CJ$50,HLOOKUP('Прейскурант на сортовой прокат_'!N$7,'Прайс по регионам'!$1:$2,2,FALSE)-1,FALSE) -> 44653.68421 | O21: =VLOOKUP($A21,'Прайс по регионам'!$B$5:$CJ$50,HLOOKUP('Прейскурант на сортовой прокат_'!O$7,'Прайс по регионам'!$1:$2,2,FALSE)-1,FALSE) ->  | P21: =VLOOKUP($A21,'Прайс по регионам'!$B$5:$CJ$50,HLOOKUP('Прейскурант на сортовой прокат_'!P$7,'Прайс по регионам'!$1:$2,2,FALSE)-1,FALSE) -> 44653.68421 | Q21: =VLOOKUP($A21,'Прайс по регионам'!$B$5:$CJ$50,HLOOKUP('Прейскурант на сортовой прокат_'!Q$7,'Прайс по регионам'!$1:$2,2,FALSE)-1,FALSE) -> 44281.05263 | R21: =VLOOKUP($A21,'Прайс по регионам'!$B$5:$CJ$50,HLOOKUP('Прейскурант на сортовой прокат_'!R$7,'Прайс по регионам'!$1:$2,2,FALSE)-1,FALSE) -> 44591.57895 | S21: =VLOOKUP($A21,'Прайс по регионам'!$B$5:$CJ$50,HLOOKUP('Прейскурант на сортовой прокат_'!S$7,'Прайс по регионам'!$1:$2,2,FALSE)-1,FALSE) -> 44467.36842 | T21: =VLOOKUP($A21,'Прайс по регионам'!$B$5:$CJ$50,HLOOKUP('Прейскурант на сортовой прокат_'!T$7,'Прайс по регионам'!$1:$2,2,FALSE)-1,FALSE) -> 44156.84211 | U21: =VLOOKUP($A21,'Прайс по регионам'!$B$5:$CJ$50,HLOOKUP('Прейскурант на сортовой прокат_'!U$7,'Прайс по регионам'!$1:$2,2,FALSE)-1,FALSE) -> 44156.84211 | V21: =VLOOKUP($A21,'Прайс по регионам'!$B$5:$CJ$50,HLOOKUP('Прейскурант на сортовой прокат_'!V$7,'Прайс по регионам'!$1:$2,2,FALSE)-1,FALSE) -> 42976.84211 | W21: =VLOOKUP($A21,'Прайс по регионам'!$B$5:$CJ$50,HLOOKUP('Прейскурант на сортовой прокат_'!W$7,'Прайс по регионам'!$1:$2,2,FALSE)-1,FALSE) -> 43287.36842 | X21: =VLOOKUP($A21,'Прайс по регионам'!$B$5:$CJ$50,HLOOKUP('Прейскурант на сортовой прокат_'!X$7,'Прайс по регионам'!$1:$2,2,FALSE)-1,FALSE) -> 43225.26316 | Y21: =VLOOKUP($A21,'Прайс по регионам'!$B$5:$CJ$50,HLOOKUP('Прейскурант на сортовой прокат_'!Y$7,'Прайс по регионам'!$1:$2,2,FALSE)-1,FALSE) ->  | Z21: =VLOOKUP($A21,'Прайс по регионам'!$B$5:$CJ$50,HLOOKUP('Прейскурант на сортовой прокат_'!Z$7,'Прайс по регионам'!$1:$2,2,FALSE)-1,FALSE) -> 42976.84211 | AA21: =VLOOKUP($A21,'Прайс по регионам'!$B$5:$CJ$50,HLOOKUP('Прейскурант на сортовой прокат_'!AA$7,'Прайс по регионам'!$1:$2,2,FALSE)-1,FALSE) -> 43535.78947 | AB21: =VLOOKUP($A21,'Прайс по регионам'!$B$5:$CJ$50,HLOOKUP('Прейскурант на сортовой прокат_'!AB$7,'Прайс по регионам'!$1:$2,2,FALSE)-1,FALSE) -> 42976.84211 | AC21: =VLOOKUP($A21,'Прайс по регионам'!$B$5:$CJ$50,HLOOKUP('Прейскурант на сортовой прокат_'!AC$7,'Прайс по регионам'!$1:$2,2,FALSE)-1,FALSE) -> 43660 | AD21: =VLOOKUP($A21,'Прайс по регионам'!$B$5:$CJ$50,HLOOKUP('Прейскурант на сортовой прокат_'!AD$7,'Прайс по регионам'!$1:$2,2,FALSE)-1,FALSE) -> 43225.26316 | AE21: =VLOOKUP($A21,'Прайс по регионам'!$B$5:$CJ$50,HLOOKUP('Прейскурант на сортовой прокат_'!AE$7,'Прайс по регионам'!$1:$2,2,FALSE)-1,FALSE) -> 43225.26316 | AF21: =VLOOKUP($A21,'Прайс по регионам'!$B$5:$CJ$50,HLOOKUP('Прейскурант на сортовой прокат_'!AF$7,'Прайс по регионам'!$1:$2,2,FALSE)-1,FALSE) -> 43535.78947 | AG21: =VLOOKUP($A21,'Прайс по регионам'!$B$5:$CJ$50,HLOOKUP('Прейскурант на сортовой прокат_'!AG$7,'Прайс по регионам'!$1:$2,2,FALSE)-1,FALSE) -> 43101.05263 | AH21: =VLOOKUP($A21,'Прайс по регионам'!$B$5:$CJ$50,HLOOKUP('Прейскурант на сортовой прокат_'!AH$7,'Прайс по регионам'!$1:$2,2,FALSE)-1,FALSE) -> 43535.78947 | AI21: =VLOOKUP($A21,'Прайс по регионам'!$B$5:$CJ$50,HLOOKUP('Прейскурант на сортовой прокат_'!AI$7,'Прайс по регионам'!$1:$2,2,FALSE)-1,FALSE) ->  | AJ21: =VLOOKUP($A21,'Прайс по регионам'!$B$5:$CJ$50,HLOOKUP('Прейскурант на сортовой прокат_'!AJ$7,'Прайс по регионам'!$1:$2,2,FALSE)-1,FALSE) -> 43101.05263 | AK21: =VLOOKUP($A21,'Прайс по регионам'!$B$5:$CJ$50,HLOOKUP('Прейскурант на сортовой прокат_'!AK$7,'Прайс по регионам'!$1:$2,2,FALSE)-1,FALSE) -> 43722.10526 | AL21: =VLOOKUP($A21,'Прайс по регионам'!$B$5:$CJ$50,HLOOKUP('Прейскурант на сортовой прокат_'!AL$7,'Прайс по регионам'!$1:$2,2,FALSE)-1,FALSE) -> 43287.36842 | AM21: =VLOOKUP($A21,'Прайс по регионам'!$B$5:$CJ$50,HLOOKUP('Прейскурант на сортовой прокат_'!AM$7,'Прайс по регионам'!$1:$2,2,FALSE)-1,FALSE) -> 42976.84211 | AN21: =VLOOKUP($A21,'Прайс по регионам'!$B$5:$CJ$50,HLOOKUP('Прейскурант на сортовой прокат_'!AN$7,'Прайс по регионам'!$1:$2,2,FALSE)-1,FALSE) -> 43535.78947 | AO21: =VLOOKUP($A21,'Прайс по регионам'!$B$5:$CJ$50,HLOOKUP('Прейскурант на сортовой прокат_'!AO$7,'Прайс по регионам'!$1:$2,2,FALSE)-1,FALSE) -> 42976.84211 | AP21: =VLOOKUP($A21,'Прайс по регионам'!$B$5:$CJ$50,HLOOKUP('Прейскурант на сортовой прокат_'!AP$7,'Прайс по регионам'!$1:$2,2,FALSE)-1,FALSE) -> 43535.78947 | AQ21: =VLOOKUP($A21,'Прайс по регионам'!$B$5:$CJ$50,HLOOKUP('Прейскурант на сортовой прокат_'!AQ$7,'Прайс по регионам'!$1:$2,2,FALSE)-1,FALSE) -> 43535.78947 | AR21: =VLOOKUP($A21,'Прайс по регионам'!$B$5:$CJ$50,HLOOKUP('Прейскурант на сортовой прокат_'!AR$7,'Прайс по регионам'!$1:$2,2,FALSE)-1,FALSE) -> 44653.68421 | AS21: =VLOOKUP($A21,'Прайс по регионам'!$B$5:$CJ$50,HLOOKUP('Прейскурант на сортовой прокат_'!AS$7,'Прайс по регионам'!$1:$2,2,FALSE)-1,FALSE) ->  | AT21: =VLOOKUP($A21,'Прайс по регионам'!$B$5:$CJ$50,HLOOKUP('Прейскурант на сортовой прокат_'!AT$7,'Прайс по регионам'!$1:$2,2,FALSE)-1,FALSE) -> 43722.10526 | AU21: =VLOOKUP($A21,'Прайс по регионам'!$B$5:$CJ$50,HLOOKUP('Прейскурант на сортовой прокат_'!AU$7,'Прайс по регионам'!$1:$2,2,FALSE)-1,FALSE) -> 43722.10526 | AV21: =VLOOKUP($A21,'Прайс по регионам'!$B$5:$CJ$50,HLOOKUP('Прейскурант на сортовой прокат_'!AV$7,'Прайс по регионам'!$1:$2,2,FALSE)-1,FALSE) -> 43722.10526 | AW21: =VLOOKUP($A21,'Прайс по регионам'!$B$5:$CJ$50,HLOOKUP('Прейскурант на сортовой прокат_'!AW$7,'Прайс по регионам'!$1:$2,2,FALSE)-1,FALSE) -> 43660 | AX21: =VLOOKUP($A21,'Прайс по регионам'!$B$5:$CJ$50,HLOOKUP('Прейскурант на сортовой прокат_'!AX$7,'Прайс по регионам'!$1:$2,2,FALSE)-1,FALSE) -> 42169.47368 | AY21: =VLOOKUP($A21,'Прайс по регионам'!$B$5:$CJ$50,HLOOKUP('Прейскурант на сортовой прокат_'!AY$7,'Прайс по регионам'!$1:$2,2,FALSE)-1,FALSE) -> 42604.21053 | AZ21: =VLOOKUP($A21,'Прайс по регионам'!$B$5:$CJ$50,HLOOKUP('Прейскурант на сортовой прокат_'!AZ$7,'Прайс по регионам'!$1:$2,2,FALSE)-1,FALSE) -> 42231.57895 | BA21: =VLOOKUP($A21,'Прайс по регионам'!$B$5:$CJ$50,HLOOKUP('Прейскурант на сортовой прокат_'!BA$7,'Прайс по регионам'!$1:$2,2,FALSE)-1,FALSE) -> 42666.31579 | BB21: =VLOOKUP($A21,'Прайс по регионам'!$B$5:$CJ$50,HLOOKUP('Прейскурант на сортовой прокат_'!BB$7,'Прайс по регионам'!$1:$2,2,FALSE)-1,FALSE) -> 41858.94737 | BC21: =VLOOKUP($A21,'Прайс по регионам'!$B$5:$CJ$50,HLOOKUP('Прейскурант на сортовой прокат_'!BC$7,'Прайс по регионам'!$1:$2,2,FALSE)-1,FALSE) ->  | BD21: =VLOOKUP($A21,'Прайс по регионам'!$B$5:$CJ$50,HLOOKUP('Прейскурант на сортовой прокат_'!BD$7,'Прайс по регионам'!$1:$2,2,FALSE)-1,FALSE) -> 41858.94737 | BE21: =VLOOKUP($A21,'Прайс по регионам'!$B$5:$CJ$50,HLOOKUP('Прейскурант на сортовой прокат_'!BE$7,'Прайс по регионам'!$1:$2,2,FALSE)-1,FALSE) -> 42231.57895 | BF21: =VLOOKUP($A21,'Прайс по регионам'!$B$5:$CJ$50,HLOOKUP('Прейскурант на сортовой прокат_'!BF$7,'Прайс по регионам'!$1:$2,2,FALSE)-1,FALSE) -> 42604.21053 | BG21: =VLOOKUP($A21,'Прайс по регионам'!$B$5:$CJ$50,HLOOKUP('Прейскурант на сортовой прокат_'!BG$7,'Прайс по регионам'!$1:$2,2,FALSE)-1,FALSE) -> 42169.47368 | BH21: =VLOOKUP($A21,'Прайс по регионам'!$B$5:$CJ$50,HLOOKUP('Прейскурант на сортовой прокат_'!BH$7,'Прайс по регионам'!$1:$2,2,FALSE)-1,FALSE) -> 41858.94737 | BI21: =VLOOKUP($A21,'Прайс по регионам'!$B$5:$CJ$50,HLOOKUP('Прейскурант на сортовой прокат_'!BI$7,'Прайс по регионам'!$1:$2,2,FALSE)-1,FALSE) -> 42355.78947 | BJ21: =VLOOKUP($A21,'Прайс по регионам'!$B$5:$CJ$50,HLOOKUP('Прейскурант на сортовой прокат_'!BJ$7,'Прайс по регионам'!$1:$2,2,FALSE)-1,FALSE) -> 42666.31579 | BK21: =VLOOKUP($A21,'Прайс по регионам'!$B$5:$CJ$50,HLOOKUP('Прейскурант на сортовой прокат_'!BK$7,'Прайс по регионам'!$1:$2,2,FALSE)-1,FALSE) -> 42231.57895 | BL21: =VLOOKUP($A21,'Прайс по регионам'!$B$5:$CJ$50,HLOOKUP('Прейскурант на сортовой прокат_'!BL$7,'Прайс по регионам'!$1:$2,2,FALSE)-1,FALSE) -> 42355.78947 | BM21: =VLOOKUP($A21,'Прайс по регионам'!$B$5:$CJ$50,HLOOKUP('Прейскурант на сортовой прокат_'!BM$7,'Прайс по регионам'!$1:$2,2,FALSE)-1,FALSE) ->  | BN21: =VLOOKUP($A21,'Прайс по регионам'!$B$5:$CJ$50,HLOOKUP('Прейскурант на сортовой прокат_'!BN$7,'Прайс по регионам'!$1:$2,2,FALSE)-1,FALSE) -> 44156.84211 | BO21: =VLOOKUP($A21,'Прайс по регионам'!$B$5:$CJ$50,HLOOKUP('Прейскурант на сортовой прокат_'!BO$7,'Прайс по регионам'!$1:$2,2,FALSE)-1,FALSE) -> 41610.52632 | BP21: =VLOOKUP($A21,'Прайс по регионам'!$B$5:$CJ$50,HLOOKUP('Прейскурант на сортовой прокат_'!BP$7,'Прайс по регионам'!$1:$2,2,FALSE)-1,FALSE) -> 42169.47368 | BQ21: =VLOOKUP($A21,'Прайс по регионам'!$B$5:$CJ$50,HLOOKUP('Прейскурант на сортовой прокат_'!BQ$7,'Прайс по регионам'!$1:$2,2,FALSE)-1,FALSE) -> 42045.26316 | BR21: =VLOOKUP($A21,'Прайс по регионам'!$B$5:$CJ$50,HLOOKUP('Прейскурант на сортовой прокат_'!BR$7,'Прайс по регионам'!$1:$2,2,FALSE)-1,FALSE) -> 41548.42105 | BS21: =VLOOKUP($A21,'Прайс по регионам'!$B$5:$CJ$50,HLOOKUP('Прейскурант на сортовой прокат_'!BS$7,'Прайс по регионам'!$1:$2,2,FALSE)-1,FALSE) -> 40865.26316 | BT21: =VLOOKUP($A21,'Прайс по регионам'!$B$5:$CJ$50,HLOOKUP('Прейскурант на сортовой прокат_'!BT$7,'Прайс по регионам'!$1:$2,2,FALSE)-1,FALSE) -> 44156.84211 | BU21: =VLOOKUP($A21,'Прайс по регионам'!$B$5:$CJ$50,HLOOKUP('Прейскурант на сортовой прокат_'!BU$7,'Прайс по регионам'!$1:$2,2,FALSE)-1,FALSE) ->  | BV21: =VLOOKUP($A21,'Прайс по регионам'!$B$5:$CJ$50,HLOOKUP('Прейскурант на сортовой прокат_'!BV$7,'Прайс по регионам'!$1:$2,2,FALSE)-1,FALSE) -> 45771.57895 | BW21: =VLOOKUP($A21,'Прайс по регионам'!$B$5:$CJ$50,HLOOKUP('Прейскурант на сортовой прокат_'!BW$7,'Прайс по регионам'!$1:$2,2,FALSE)-1,FALSE) -> 48131.57895 | BX21: =VLOOKUP($A21,'Прайс по регионам'!$B$5:$CJ$50,HLOOKUP('Прейскурант на сортовой прокат_'!BX$7,'Прайс по регионам'!$1:$2,2,FALSE)-1,FALSE) -> 45771.57895 | BY21: =VLOOKUP($A21,'Прайс по регионам'!$B$5:$CJ$50,HLOOKUP('Прейскурант на сортовой прокат_'!BY$7,'Прайс по регионам'!$1:$2,2,FALSE)-1,FALSE) -> 48131.57895 | BZ21: =VLOOKUP($A21,'Прайс по регионам'!$B$5:$CJ$50,HLOOKUP('Прейскурант на сортовой прокат_'!BZ$7,'Прайс по регионам'!$1:$2,2,FALSE)-1,FALSE) -> 45771.57895 | CA21: =VLOOKUP($A21,'Прайс по регионам'!$B$5:$CJ$50,HLOOKUP('Прейскурант на сортовой прокат_'!CA$7,'Прайс по регионам'!$1:$2,2,FALSE)-1,FALSE) -> 44715.78947 | CB21: =VLOOKUP($A21,'Прайс по регионам'!$B$5:$CJ$50,HLOOKUP('Прейскурант на сортовой прокат_'!CB$7,'Прайс по регионам'!$1:$2,2,FALSE)-1,FALSE) -> 45771.57895 | CC21: =VLOOKUP($A21,'Прайс по регионам'!$B$5:$CJ$50,HLOOKUP('Прейскурант на сортовой прокат_'!CC$7,'Прайс по регионам'!$1:$2,2,FALSE)-1,FALSE) -> 48628.42105 | CD21: =VLOOKUP($A21,'Прайс по регионам'!$B$5:$CJ$50,HLOOKUP('Прейскурант на сортовой прокат_'!CD$7,'Прайс по регионам'!$1:$2,2,FALSE)-1,FALSE) -> 48131.57895 | CE21: =VLOOKUP($A21,'Прайс по регионам'!$B$5:$CJ$50,HLOOKUP('Прейскурант на сортовой прокат_'!CE$7,'Прайс по регионам'!$1:$2,2,FALSE)-1,FALSE) ->  | CF21: =VLOOKUP($A21,'Прайс по регионам'!$B$5:$CJ$50,HLOOKUP('Прейскурант на сортовой прокат_'!CF$7,'Прайс по регионам'!$1:$2,2,FALSE)-1,FALSE) -> 48131.57895 | CG21: =VLOOKUP($A21,'Прайс по регионам'!$B$5:$CJ$50,HLOOKUP('Прейскурант на сортовой прокат_'!CG$7,'Прайс по регионам'!$1:$2,2,FALSE)-1,FALSE) -> 45771.57895 | CH21: =VLOOKUP($A21,'Прайс по регионам'!$B$5:$CJ$50,HLOOKUP('Прейскурант на сортовой прокат_'!CH$7,'Прайс по регионам'!$1:$2,2,FALSE)-1,FALSE) -> 50181.05263 | CI21: =VLOOKUP($A21,'Прайс по регионам'!$B$5:$CJ$50,HLOOKUP('Прейскурант на сортовой прокат_'!CI$7,'Прайс по регионам'!$1:$2,2,FALSE)-1,FALSE) -> 46765.26316 | CJ21: =VLOOKUP($A21,'Прайс по регионам'!$B$5:$CJ$50,HLOOKUP('Прейскурант на сортовой прокат_'!CJ$7,'Прайс по регионам'!$1:$2,2,FALSE)-1,FALSE) -> 46765.26316 | CK21: =VLOOKUP($A21,'Прайс по регионам'!$B$5:$CJ$50,HLOOKUP('Прейскурант на сортовой прокат_'!CK$7,'Прайс по регионам'!$1:$2,2,FALSE)-1,FALSE) -> 46765.26316 | CL21: =VLOOKUP($A21,'Прайс по регионам'!$B$5:$CJ$50,HLOOKUP('Прейскурант на сортовой прокат_'!CL$7,'Прайс по регионам'!$1:$2,2,FALSE)-1,FALSE) -> 47758.94737 | CM21: =VLOOKUP($A21,'Прайс по регионам'!$B$5:$CJ$50,HLOOKUP('Прейскурант на сортовой прокат_'!CM$7,'Прайс по регионам'!$1:$2,2,FALSE)-1,FALSE) ->  | CN21: =VLOOKUP($A21,'Прайс по регионам'!$B$5:$CJ$50,HLOOKUP('Прейскурант на сортовой прокат_'!CN$7,'Прайс по регионам'!$1:$2,2,FALSE)-1,FALSE) -> 46765.26316 | CO21: =VLOOKUP($A21,'Прайс по регионам'!$B$5:$CJ$50,HLOOKUP('Прейскурант на сортовой прокат_'!CO$7,'Прайс по регионам'!$1:$2,2,FALSE)-1,FALSE) -> 48131.57895 | CP21: =VLOOKUP($A21,'Прайс по регионам'!$B$5:$CJ$50,HLOOKUP('Прейскурант на сортовой прокат_'!CP$7,'Прайс по регионам'!$1:$2,2,FALSE)-1,FALSE) -> 51112.63158 | CQ21: =VLOOKUP($A21,'Прайс по регионам'!$B$5:$CJ$50,HLOOKUP('Прейскурант на сортовой прокат_'!CQ$7,'Прайс по регионам'!$1:$2,2,FALSE)-1,FALSE) -> 47758.94737 | CR21: =VLOOKUP($A21,'Прайс по регионам'!$B$5:$CJ$50,HLOOKUP('Прейскурант на сортовой прокат_'!CR$7,'Прайс по регионам'!$1:$2,2,FALSE)-1,FALSE) -> 47696.84211
A22: Ст 3 A I_10б | C22: А I, 3 пс/ 3 сп | D22: ГОСТ 380 | E22: ГОСТ 5781 | F22: =VLOOKUP($A22,'Прайс по регионам'!$B$5:$CJ$50,HLOOKUP('Прейскурант на сортовой прокат_'!F$7,'Прайс по регионам'!$1:$2,2,FALSE)-1,FALSE) -> 43349.47368 | G22: =VLOOKUP($A22,'Прайс по регионам'!$B$5:$CJ$50,HLOOKUP('Прейскурант на сортовой прокат_'!G$7,'Прайс по регионам'!$1:$2,2,FALSE)-1,FALSE) -> 43349.47368 | H22: =VLOOKUP($A22,'Прайс по регионам'!$B$5:$CJ$50,HLOOKUP('Прейскурант на сортовой прокат_'!H$7,'Прайс по регионам'!$1:$2,2,FALSE)-1,FALSE) -> 43038.94737 | I22: =VLOOKUP($A22,'Прайс по регионам'!$B$5:$CJ$50,HLOOKUP('Прейскурант на сортовой прокат_'!I$7,'Прайс по регионам'!$1:$2,2,FALSE)-1,FALSE) -> 44218.94737 | J22: =VLOOKUP($A22,'Прайс по регионам'!$B$5:$CJ$50,HLOOKUP('Прейскурант на сортовой прокат_'!J$7,'Прайс по регионам'!$1:$2,2,FALSE)-1,FALSE) -> 43970.52632 | K22: =VLOOKUP($A22,'Прайс по регионам'!$B$5:$CJ$50,HLOOKUP('Прейскурант на сортовой прокат_'!K$7,'Прайс по регионам'!$1:$2,2,FALSE)-1,FALSE) -> 44094.73684 | L22: =VLOOKUP($A22,'Прайс по регионам'!$B$5:$CJ$50,HLOOKUP('Прейскурант на сортовой прокат_'!L$7,'Прайс по регионам'!$1:$2,2,FALSE)-1,FALSE) -> 44218.94737 | M22: =VLOOKUP($A22,'Прайс по регионам'!$B$5:$CJ$50,HLOOKUP('Прейскурант на сортовой прокат_'!M$7,'Прайс по регионам'!$1:$2,2,FALSE)-1,FALSE) -> 44094.73684 | N22: =VLOOKUP($A22,'Прайс по регионам'!$B$5:$CJ$50,HLOOKUP('Прейскурант на сортовой прокат_'!N$7,'Прайс по регионам'!$1:$2,2,FALSE)-1,FALSE) -> 44218.94737 | O22: =VLOOKUP($A22,'Прайс по регионам'!$B$5:$CJ$50,HLOOKUP('Прейскурант на сортовой прокат_'!O$7,'Прайс по регионам'!$1:$2,2,FALSE)-1,FALSE) ->  | P22: =VLOOKUP($A22,'Прайс по регионам'!$B$5:$CJ$50,HLOOKUP('Прейскурант на сортовой прокат_'!P$7,'Прайс по регионам'!$1:$2,2,FALSE)-1,FALSE) -> 44218.94737 | Q22: =VLOOKUP($A22,'Прайс по регионам'!$B$5:$CJ$50,HLOOKUP('Прейскурант на сортовой прокат_'!Q$7,'Прайс по регионам'!$1:$2,2,FALSE)-1,FALSE) -> 43784.21053 | R22: =VLOOKUP($A22,'Прайс по регионам'!$B$5:$CJ$50,HLOOKUP('Прейскурант на сортовой прокат_'!R$7,'Прайс по регионам'!$1:$2,2,FALSE)-1,FALSE) -> 44094.73684 | S22: =VLOOKUP($A22,'Прайс по регионам'!$B$5:$CJ$50,HLOOKUP('Прейскурант на сортовой прокат_'!S$7,'Прайс по регионам'!$1:$2,2,FALSE)-1,FALSE) -> 43970.52632 | T22: =VLOOKUP($A22,'Прайс по регионам'!$B$5:$CJ$50,HLOOKUP('Прейскурант на сортовой прокат_'!T$7,'Прайс по регионам'!$1:$2,2,FALSE)-1,FALSE) -> 43660 | U22: =VLOOKUP($A22,'Прайс по регионам'!$B$5:$CJ$50,HLOOKUP('Прейскурант на сортовой прокат_'!U$7,'Прайс по регионам'!$1:$2,2,FALSE)-1,FALSE) -> 43660 | V22: =VLOOKUP($A22,'Прайс по регионам'!$B$5:$CJ$50,HLOOKUP('Прейскурант на сортовой прокат_'!V$7,'Прайс по регионам'!$1:$2,2,FALSE)-1,FALSE) -> 42852.63158 | W22: =VLOOKUP($A22,'Прайс по регионам'!$B$5:$CJ$50,HLOOKUP('Прейскурант на сортовой прокат_'!W$7,'Прайс по регионам'!$1:$2,2,FALSE)-1,FALSE) -> 43163.15789 | X22: =VLOOKUP($A22,'Прайс по регионам'!$B$5:$CJ$50,HLOOKUP('Прейскурант на сортовой прокат_'!X$7,'Прайс по регионам'!$1:$2,2,FALSE)-1,FALSE) -> 43038.94737 | Y22: =VLOOKUP($A22,'Прайс по регионам'!$B$5:$CJ$50,HLOOKUP('Прейскурант на сортовой прокат_'!Y$7,'Прайс по регионам'!$1:$2,2,FALSE)-1,FALSE) ->  | Z22: =VLOOKUP($A22,'Прайс по регионам'!$B$5:$CJ$50,HLOOKUP('Прейскурант на сортовой прокат_'!Z$7,'Прайс по регионам'!$1:$2,2,FALSE)-1,FALSE) -> 42852.63158 | AA22: =VLOOKUP($A22,'Прайс по регионам'!$B$5:$CJ$50,HLOOKUP('Прейскурант на сортовой прокат_'!AA$7,'Прайс по регионам'!$1:$2,2,FALSE)-1,FALSE) -> 43349.47368 | AB22: =VLOOKUP($A22,'Прайс по регионам'!$B$5:$CJ$50,HLOOKUP('Прейскурант на сортовой прокат_'!AB$7,'Прайс по регионам'!$1:$2,2,FALSE)-1,FALSE) -> 42852.63158 | AC22: =VLOOKUP($A22,'Прайс по регионам'!$B$5:$CJ$50,HLOOKUP('Прейскурант на сортовой прокат_'!AC$7,'Прайс по регионам'!$1:$2,2,FALSE)-1,FALSE) -> 43473.68421 | AD22: =VLOOKUP($A22,'Прайс по регионам'!$B$5:$CJ$50,HLOOKUP('Прейскурант на сортовой прокат_'!AD$7,'Прайс по регионам'!$1:$2,2,FALSE)-1,FALSE) -> 43038.94737 | AE22: =VLOOKUP($A22,'Прайс по регионам'!$B$5:$CJ$50,HLOOKUP('Прейскурант на сортовой прокат_'!AE$7,'Прайс по регионам'!$1:$2,2,FALSE)-1,FALSE) -> 43038.94737 | AF22: =VLOOKUP($A22,'Прайс по регионам'!$B$5:$CJ$50,HLOOKUP('Прейскурант на сортовой прокат_'!AF$7,'Прайс по регионам'!$1:$2,2,FALSE)-1,FALSE) -> 43349.47368 | AG22: =VLOOKUP($A22,'Прайс по регионам'!$B$5:$CJ$50,HLOOKUP('Прейскурант на сортовой прокат_'!AG$7,'Прайс по регионам'!$1:$2,2,FALSE)-1,FALSE) -> 42976.84211 | AH22: =VLOOKUP($A22,'Прайс по регионам'!$B$5:$CJ$50,HLOOKUP('Прейскурант на сортовой прокат_'!AH$7,'Прайс по регионам'!$1:$2,2,FALSE)-1,FALSE) -> 43349.47368 | AI22: =VLOOKUP($A22,'Прайс по регионам'!$B$5:$CJ$50,HLOOKUP('Прейскурант на сортовой прокат_'!AI$7,'Прайс по регионам'!$1:$2,2,FALSE)-1,FALSE) ->  | AJ22: =VLOOKUP($A22,'Прайс по регионам'!$B$5:$CJ$50,HLOOKUP('Прейскурант на сортовой прокат_'!AJ$7,'Прайс по регионам'!$1:$2,2,FALSE)-1,FALSE) -> 42976.84211 | AK22: =VLOOKUP($A22,'Прайс по регионам'!$B$5:$CJ$50,HLOOKUP('Прейскурант на сортовой прокат_'!AK$7,'Прайс по регионам'!$1:$2,2,FALSE)-1,FALSE) -> 43597.89474 | AL22: =VLOOKUP($A22,'Прайс по регионам'!$B$5:$CJ$50,HLOOKUP('Прейскурант на сортовой прокат_'!AL$7,'Прайс по регионам'!$1:$2,2,FALSE)-1,FALSE) -> 43163.15789 | AM22: =VLOOKUP($A22,'Прайс по регионам'!$B$5:$CJ$50,HLOOKUP('Прейскурант на сортовой прокат_'!AM$7,'Прайс по регионам'!$1:$2,2,FALSE)-1,FALSE) -> 42852.63158 | AN22: =VLOOKUP($A22,'Прайс по регионам'!$B$5:$CJ$50,HLOOKUP('Прейскурант на сортовой прокат_'!AN$7,'Прайс по регионам'!$1:$2,2,FALSE)-1,FALSE) -> 43349.47368 | AO22: =VLOOKUP($A22,'Прайс по регионам'!$B$5:$CJ$50,HLOOKUP('Прейскурант на сортовой прокат_'!AO$7,'Прайс по регионам'!$1:$2,2,FALSE)-1,FALSE) -> 42852.63158 | AP22: =VLOOKUP($A22,'Прайс по регионам'!$B$5:$CJ$50,HLOOKUP('Прейскурант на сортовой прокат_'!AP$7,'Прайс по регионам'!$1:$2,2,FALSE)-1,FALSE) -> 43349.47368 | AQ22: =VLOOKUP($A22,'Прайс по регионам'!$B$5:$CJ$50,HLOOKUP('Прейскурант на сортовой прокат_'!AQ$7,'Прайс по регионам'!$1:$2,2,FALSE)-1,FALSE) -> 43349.47368 | AR22: =VLOOKUP($A22,'Прайс по регионам'!$B$5:$CJ$50,HLOOKUP('Прейскурант на сортовой прокат_'!AR$7,'Прайс по регионам'!$1:$2,2,FALSE)-1,FALSE) -> 44529.47368 | AS22: =VLOOKUP($A22,'Прайс по регионам'!$B$5:$CJ$50,HLOOKUP('Прейскурант на сортовой прокат_'!AS$7,'Прайс по регионам'!$1:$2,2,FALSE)-1,FALSE) ->  | AT22: =VLOOKUP($A22,'Прайс по регионам'!$B$5:$CJ$50,HLOOKUP('Прейскурант на сортовой прокат_'!AT$7,'Прайс по регионам'!$1:$2,2,FALSE)-1,FALSE) -> 43597.89474 | AU22: =VLOOKUP($A22,'Прайс по регионам'!$B$5:$CJ$50,HLOOKUP('Прейскурант на сортовой прокат_'!AU$7,'Прайс по регионам'!$1:$2,2,FALSE)-1,FALSE) -> 43597.89474 | AV22: =VLOOKUP($A22,'Прайс по регионам'!$B$5:$CJ$50,HLOOKUP('Прейскурант на сортовой прокат_'!AV$7,'Прайс по регионам'!$1:$2,2,FALSE)-1,FALSE) -> 43597.89474 | AW22: =VLOOKUP($A22,'Прайс по регионам'!$B$5:$CJ$50,HLOOKUP('Прейскурант на сортовой прокат_'!AW$7,'Прайс по регионам'!$1:$2,2,FALSE)-1,FALSE) -> 43473.68421 | AX22: =VLOOKUP($A22,'Прайс по регионам'!$B$5:$CJ$50,HLOOKUP('Прейскурант на сортовой прокат_'!AX$7,'Прайс по регионам'!$1:$2,2,FALSE)-1,FALSE) -> 41983.15789 | AY22: =VLOOKUP($A22,'Прайс по регионам'!$B$5:$CJ$50,HLOOKUP('Прейскурант на сортовой прокат_'!AY$7,'Прайс по регионам'!$1:$2,2,FALSE)-1,FALSE) -> 42417.89474 | AZ22: =VLOOKUP($A22,'Прайс по регионам'!$B$5:$CJ$50,HLOOKUP('Прейскурант на сортовой прокат_'!AZ$7,'Прайс по регионам'!$1:$2,2,FALSE)-1,FALSE) -> 42107.36842 | BA22: =VLOOKUP($A22,'Прайс по регионам'!$B$5:$CJ$50,HLOOKUP('Прейскурант на сортовой прокат_'!BA$7,'Прайс по регионам'!$1:$2,2,FALSE)-1,FALSE) -> 42542.10526 | BB22: =VLOOKUP($A22,'Прайс по регионам'!$B$5:$CJ$50,HLOOKUP('Прейскурант на сортовой прокат_'!BB$7,'Прайс по регионам'!$1:$2,2,FALSE)-1,FALSE) -> 41672.63158 | BC22: =VLOOKUP($A22,'Прайс по регионам'!$B$5:$CJ$50,HLOOKUP('Прейскурант на сортовой прокат_'!BC$7,'Прайс по регионам'!$1:$2,2,FALSE)-1,FALSE) ->  | BD22: =VLOOKUP($A22,'Прайс по регионам'!$B$5:$CJ$50,HLOOKUP('Прейскурант на сортовой прокат_'!BD$7,'Прайс по регионам'!$1:$2,2,FALSE)-1,FALSE) -> 41672.63158 | BE22: =VLOOKUP($A22,'Прайс по регионам'!$B$5:$CJ$50,HLOOKUP('Прейскурант на сортовой прокат_'!BE$7,'Прайс по регионам'!$1:$2,2,FALSE)-1,FALSE) -> 42107.36842 | BF22: =VLOOKUP($A22,'Прайс по регионам'!$B$5:$CJ$50,HLOOKUP('Прейскурант на сортовой прокат_'!BF$7,'Прайс по регионам'!$1:$2,2,FALSE)-1,FALSE) -> 42417.89474 | BG22: =VLOOKUP($A22,'Прайс по регионам'!$B$5:$CJ$50,HLOOKUP('Прейскурант на сортовой прокат_'!BG$7,'Прайс по регионам'!$1:$2,2,FALSE)-1,FALSE) -> 41983.15789 | BH22: =VLOOKUP($A22,'Прайс по регионам'!$B$5:$CJ$50,HLOOKUP('Прейскурант на сортовой прокат_'!BH$7,'Прайс по регионам'!$1:$2,2,FALSE)-1,FALSE) -> 41672.63158 | BI22: =VLOOKUP($A22,'Прайс по регионам'!$B$5:$CJ$50,HLOOKUP('Прейскурант на сортовой прокат_'!BI$7,'Прайс по регионам'!$1:$2,2,FALSE)-1,FALSE) -> 42231.57895 | BJ22: =VLOOKUP($A22,'Прайс по регионам'!$B$5:$CJ$50,HLOOKUP('Прейскурант на сортовой прокат_'!BJ$7,'Прайс по регионам'!$1:$2,2,FALSE)-1,FALSE) -> 42542.10526 | BK22: =VLOOKUP($A22,'Прайс по регионам'!$B$5:$CJ$50,HLOOKUP('Прейскурант на сортовой прокат_'!BK$7,'Прайс по регионам'!$1:$2,2,FALSE)-1,FALSE) -> 42107.36842 | BL22: =VLOOKUP($A22,'Прайс по регионам'!$B$5:$CJ$50,HLOOKUP('Прейскурант на сортовой прокат_'!BL$7,'Прайс по регионам'!$1:$2,2,FALSE)-1,FALSE) -> 42231.57895 | BM22: =VLOOKUP($A22,'Прайс по регионам'!$B$5:$CJ$50,HLOOKUP('Прейскурант на сортовой прокат_'!BM$7,'Прайс по регионам'!$1:$2,2,FALSE)-1,FALSE) ->  | BN22: =VLOOKUP($A22,'Прайс по регионам'!$B$5:$CJ$50,HLOOKUP('Прейскурант на сортовой прокат_'!BN$7,'Прайс по регионам'!$1:$2,2,FALSE)-1,FALSE) -> 43970.52632 | BO22: =VLOOKUP($A22,'Прайс по регионам'!$B$5:$CJ$50,HLOOKUP('Прейскурант на сортовой прокат_'!BO$7,'Прайс по регионам'!$1:$2,2,FALSE)-1,FALSE) -> 41486.31579 | BP22: =VLOOKUP($A22,'Прайс по регионам'!$B$5:$CJ$50,HLOOKUP('Прейскурант на сортовой прокат_'!BP$7,'Прайс по регионам'!$1:$2,2,FALSE)-1,FALSE) -> 41983.15789 | BQ22: =VLOOKUP($A22,'Прайс по регионам'!$B$5:$CJ$50,HLOOKUP('Прейскурант на сортовой прокат_'!BQ$7,'Прайс по регионам'!$1:$2,2,FALSE)-1,FALSE) -> 41921.05263 | BR22: =VLOOKUP($A22,'Прайс по регионам'!$B$5:$CJ$50,HLOOKUP('Прейскурант на сортовой прокат_'!BR$7,'Прайс по регионам'!$1:$2,2,FALSE)-1,FALSE) -> 41362.10526 | BS22: =VLOOKUP($A22,'Прайс по регионам'!$B$5:$CJ$50,HLOOKUP('Прейскурант на сортовой прокат_'!BS$7,'Прайс по регионам'!$1:$2,2,FALSE)-1,FALSE) -> 40741.05263 | BT22: =VLOOKUP($A22,'Прайс по регионам'!$B$5:$CJ$50,HLOOKUP('Прейскурант на сортовой прокат_'!BT$7,'Прайс по регионам'!$1:$2,2,FALSE)-1,FALSE) -> 43970.52632 | BU22: =VLOOKUP($A22,'Прайс по регионам'!$B$5:$CJ$50,HLOOKUP('Прейскурант на сортовой прокат_'!BU$7,'Прайс по регионам'!$1:$2,2,FALSE)-1,FALSE) ->  | BV22: =VLOOKUP($A22,'Прайс по регионам'!$B$5:$CJ$50,HLOOKUP('Прейскурант на сортовой прокат_'!BV$7,'Прайс по регионам'!$1:$2,2,FALSE)-1,FALSE) -> 45274.73684 | BW22: =VLOOKUP($A22,'Прайс по регионам'!$B$5:$CJ$50,HLOOKUP('Прейскурант на сортовой прокат_'!BW$7,'Прайс по регионам'!$1:$2,2,FALSE)-1,FALSE) -> 47572.63158 | BX22: =VLOOKUP($A22,'Прайс по регионам'!$B$5:$CJ$50,HLOOKUP('Прейскурант на сортовой прокат_'!BX$7,'Прайс по регионам'!$1:$2,2,FALSE)-1,FALSE) -> 45274.73684 | BY22: =VLOOKUP($A22,'Прайс по регионам'!$B$5:$CJ$50,HLOOKUP('Прейскурант на сортовой прокат_'!BY$7,'Прайс по регионам'!$1:$2,2,FALSE)-1,FALSE) -> 47572.63158 | BZ22: =VLOOKUP($A22,'Прайс по регионам'!$B$5:$CJ$50,HLOOKUP('Прейскурант на сортовой прокат_'!BZ$7,'Прайс по регионам'!$1:$2,2,FALSE)-1,FALSE) -> 45274.73684 | CA22: =VLOOKUP($A22,'Прайс по регионам'!$B$5:$CJ$50,HLOOKUP('Прейскурант на сортовой прокат_'!CA$7,'Прайс по регионам'!$1:$2,2,FALSE)-1,FALSE) -> 44218.94737 | CB22: =VLOOKUP($A22,'Прайс по регионам'!$B$5:$CJ$50,HLOOKUP('Прейскурант на сортовой прокат_'!CB$7,'Прайс по регионам'!$1:$2,2,FALSE)-1,FALSE) -> 45274.73684 | CC22: =VLOOKUP($A22,'Прайс по регионам'!$B$5:$CJ$50,HLOOKUP('Прейскурант на сортовой прокат_'!CC$7,'Прайс по регионам'!$1:$2,2,FALSE)-1,FALSE) -> 48131.57895 | CD22: =VLOOKUP($A22,'Прайс по регионам'!$B$5:$CJ$50,HLOOKUP('Прейскурант на сортовой прокат_'!CD$7,'Прайс по регионам'!$1:$2,2,FALSE)-1,FALSE) -> 47572.63158 | CE22: =VLOOKUP($A22,'Прайс по регионам'!$B$5:$CJ$50,HLOOKUP('Прейскурант на сортовой прокат_'!CE$7,'Прайс по регионам'!$1:$2,2,FALSE)-1,FALSE) ->  | CF22: =VLOOKUP($A22,'Прайс по регионам'!$B$5:$CJ$50,HLOOKUP('Прейскурант на сортовой прокат_'!CF$7,'Прайс по регионам'!$1:$2,2,FALSE)-1,FALSE) -> 47572.63158 | CG22: =VLOOKUP($A22,'Прайс по регионам'!$B$5:$CJ$50,HLOOKUP('Прейскурант на сортовой прокат_'!CG$7,'Прайс по регионам'!$1:$2,2,FALSE)-1,FALSE) -> 45274.73684 | CH22: =VLOOKUP($A22,'Прайс по регионам'!$B$5:$CJ$50,HLOOKUP('Прейскурант на сортовой прокат_'!CH$7,'Прайс по регионам'!$1:$2,2,FALSE)-1,FALSE) -> 49684.21053 | CI22: =VLOOKUP($A22,'Прайс по регионам'!$B$5:$CJ$50,HLOOKUP('Прейскурант на сортовой прокат_'!CI$7,'Прайс по регионам'!$1:$2,2,FALSE)-1,FALSE) -> 46516.84211 | CJ22: =VLOOKUP($A22,'Прайс по регионам'!$B$5:$CJ$50,HLOOKUP('Прейскурант на сортовой прокат_'!CJ$7,'Прайс по регионам'!$1:$2,2,FALSE)-1,FALSE) -> 46516.84211 | CK22: =VLOOKUP($A22,'Прайс по регионам'!$B$5:$CJ$50,HLOOKUP('Прейскурант на сортовой прокат_'!CK$7,'Прайс по регионам'!$1:$2,2,FALSE)-1,FALSE) -> 46516.84211 | CL22: =VLOOKUP($A22,'Прайс по регионам'!$B$5:$CJ$50,HLOOKUP('Прейскурант на сортовой прокат_'!CL$7,'Прайс по регионам'!$1:$2,2,FALSE)-1,FALSE) -> 47448.42105 | CM22: =VLOOKUP($A22,'Прайс по регионам'!$B$5:$CJ$50,HLOOKUP('Прейскурант на сортовой прокат_'!CM$7,'Прайс по регионам'!$1:$2,2,FALSE)-1,FALSE) ->  | CN22: =VLOOKUP($A22,'Прайс по регионам'!$B$5:$CJ$50,HLOOKUP('Прейскурант на сортовой прокат_'!CN$7,'Прайс по регионам'!$1:$2,2,FALSE)-1,FALSE) -> 46516.84211 | CO22: =VLOOKUP($A22,'Прайс по регионам'!$B$5:$CJ$50,HLOOKUP('Прейскурант на сортовой прокат_'!CO$7,'Прайс по регионам'!$1:$2,2,FALSE)-1,FALSE) -> 47883.15789 | CP22: =VLOOKUP($A22,'Прайс по регионам'!$B$5:$CJ$50,HLOOKUP('Прейскурант на сортовой прокат_'!CP$7,'Прайс по регионам'!$1:$2,2,FALSE)-1,FALSE) -> 50864.21053 | CQ22: =VLOOKUP($A22,'Прайс по регионам'!$B$5:$CJ$50,HLOOKUP('Прейскурант на сортовой прокат_'!CQ$7,'Прайс по регионам'!$1:$2,2,FALSE)-1,FALSE) -> 47448.42105 | CR22: =VLOOKUP($A22,'Прайс по регионам'!$B$5:$CJ$50,HLOOKUP('Прейскурант на сортовой прокат_'!CR$7,'Прайс по регионам'!$1:$2,2,FALSE)-1,FALSE) -> 47448.42105
A23: А500С_8 | B23: Арматура 8 | C23: А400С, А500С | D23: ГОСТ 380 | E23: ТУ14-1-5254-2006 | F23: =VLOOKUP($A23,'Прайс по регионам'!$B$5:$CJ$50,HLOOKUP('Прейскурант на сортовой прокат_'!F$7,'Прайс по регионам'!$1:$2,2,FALSE)-1,FALSE) -> 45461.05263 | G23: =VLOOKUP($A23,'Прайс по регионам'!$B$5:$CJ$50,HLOOKUP('Прейскурант на сортовой прокат_'!G$7,'Прайс по регионам'!$1:$2,2,FALSE)-1,FALSE) -> 45461.05263 | H23: =VLOOKUP($A23,'Прайс по регионам'!$B$5:$CJ$50,HLOOKUP('Прейскурант на сортовой прокат_'!H$7,'Прайс по регионам'!$1:$2,2,FALSE)-1,FALSE) -> 45150.52632 | I23: =VLOOKUP($A23,'Прайс по регионам'!$B$5:$CJ$50,HLOOKUP('Прейскурант на сортовой прокат_'!I$7,'Прайс по регионам'!$1:$2,2,FALSE)-1,FALSE) -> 46330.52632 | J23: =VLOOKUP($A23,'Прайс по регионам'!$B$5:$CJ$50,HLOOKUP('Прейскурант на сортовой прокат_'!J$7,'Прайс по регионам'!$1:$2,2,FALSE)-1,FALSE) -> 46082.10526 | K23: =VLOOKUP($A23,'Прайс по регионам'!$B$5:$CJ$50,HLOOKUP('Прейскурант на сортовой прокат_'!K$7,'Прайс по регионам'!$1:$2,2,FALSE)-1,FALSE) -> 46206.31579 | L23: =VLOOKUP($A23,'Прайс по регионам'!$B$5:$CJ$50,HLOOKUP('Прейскурант на сортовой прокат_'!L$7,'Прайс по регионам'!$1:$2,2,FALSE)-1,FALSE) -> 46330.52632 | M23: =VLOOKUP($A23,'Прайс по регионам'!$B$5:$CJ$50,HLOOKUP('Прейскурант на сортовой прокат_'!M$7,'Прайс по регионам'!$1:$2,2,FALSE)-1,FALSE) -> 46206.31579 | N23: =VLOOKUP($A23,'Прайс по регионам'!$B$5:$CJ$50,HLOOKUP('Прейскурант на сортовой прокат_'!N$7,'Прайс по регионам'!$1:$2,2,FALSE)-1,FALSE) -> 46330.52632 | O23: =VLOOKUP($A23,'Прайс по регионам'!$B$5:$CJ$50,HLOOKUP('Прейскурант на сортовой прокат_'!O$7,'Прайс по регионам'!$1:$2,2,FALSE)-1,FALSE) ->  | P23: =VLOOKUP($A23,'Прайс по регионам'!$B$5:$CJ$50,HLOOKUP('Прейскурант на сортовой прокат_'!P$7,'Прайс по регионам'!$1:$2,2,FALSE)-1,FALSE) -> 46330.52632 | Q23: =VLOOKUP($A23,'Прайс по регионам'!$B$5:$CJ$50,HLOOKUP('Прейскурант на сортовой прокат_'!Q$7,'Прайс по регионам'!$1:$2,2,FALSE)-1,FALSE) -> 45895.78947 | R23: =VLOOKUP($A23,'Прайс по регионам'!$B$5:$CJ$50,HLOOKUP('Прейскурант на сортовой прокат_'!R$7,'Прайс по регионам'!$1:$2,2,FALSE)-1,FALSE) -> 46206.31579 | S23: =VLOOKUP($A23,'Прайс по регионам'!$B$5:$CJ$50,HLOOKUP('Прейскурант на сортовой прокат_'!S$7,'Прайс по регионам'!$1:$2,2,FALSE)-1,FALSE) -> 46082.10526 | T23: =VLOOKUP($A23,'Прайс по регионам'!$B$5:$CJ$50,HLOOKUP('Прейскурант на сортовой прокат_'!T$7,'Прайс по регионам'!$1:$2,2,FALSE)-1,FALSE) -> 45771.57895 | U23: =VLOOKUP($A23,'Прайс по регионам'!$B$5:$CJ$50,HLOOKUP('Прейскурант на сортовой прокат_'!U$7,'Прайс по регионам'!$1:$2,2,FALSE)-1,FALSE) -> 45771.57895 | V23: =VLOOKUP($A23,'Прайс по регионам'!$B$5:$CJ$50,HLOOKUP('Прейскурант на сортовой прокат_'!V$7,'Прайс по регионам'!$1:$2,2,FALSE)-1,FALSE) -> 44964.21053 | W23: =VLOOKUP($A23,'Прайс по регионам'!$B$5:$CJ$50,HLOOKUP('Прейскурант на сортовой прокат_'!W$7,'Прайс по регионам'!$1:$2,2,FALSE)-1,FALSE) -> 45274.73684 | X23: =VLOOKUP($A23,'Прайс по регионам'!$B$5:$CJ$50,HLOOKUP('Прейскурант на сортовой прокат_'!X$7,'Прайс по регионам'!$1:$2,2,FALSE)-1,FALSE) -> 45150.52632 | Y23: =VLOOKUP($A23,'Прайс по регионам'!$B$5:$CJ$50,HLOOKUP('Прейскурант на сортовой прокат_'!Y$7,'Прайс по регионам'!$1:$2,2,FALSE)-1,FALSE) ->  | Z23: =VLOOKUP($A23,'Прайс по регионам'!$B$5:$CJ$50,HLOOKUP('Прейскурант на сортовой прокат_'!Z$7,'Прайс по регионам'!$1:$2,2,FALSE)-1,FALSE) -> 44964.21053 | AA23: =VLOOKUP($A23,'Прайс по регионам'!$B$5:$CJ$50,HLOOKUP('Прейскурант на сортовой прокат_'!AA$7,'Прайс по регионам'!$1:$2,2,FALSE)-1,FALSE) -> 45461.05263 | AB23: =VLOOKUP($A23,'Прайс по регионам'!$B$5:$CJ$50,HLOOKUP('Прейскурант на сортовой прокат_'!AB$7,'Прайс по регионам'!$1:$2,2,FALSE)-1,FALSE) -> 44964.21053 | AC23: =VLOOKUP($A23,'Прайс по регионам'!$B$5:$CJ$50,HLOOKUP('Прейскурант на сортовой прокат_'!AC$7,'Прайс по регионам'!$1:$2,2,FALSE)-1,FALSE) -> 45585.26316 | AD23: =VLOOKUP($A23,'Прайс по регионам'!$B$5:$CJ$50,HLOOKUP('Прейскурант на сортовой прокат_'!AD$7,'Прайс по регионам'!$1:$2,2,FALSE)-1,FALSE) -> 45150.52632 | AE23: =VLOOKUP($A23,'Прайс по регионам'!$B$5:$CJ$50,HLOOKUP('Прейскурант на сортовой прокат_'!AE$7,'Прайс по регионам'!$1:$2,2,FALSE)-1,FALSE) -> 45150.52632 | AF23: =VLOOKUP($A23,'Прайс по регионам'!$B$5:$CJ$50,HLOOKUP('Прейскурант на сортовой прокат_'!AF$7,'Прайс по регионам'!$1:$2,2,FALSE)-1,FALSE) -> 45461.05263 | AG23: =VLOOKUP($A23,'Прайс по регионам'!$B$5:$CJ$50,HLOOKUP('Прейскурант на сортовой прокат_'!AG$7,'Прайс по регионам'!$1:$2,2,FALSE)-1,FALSE) -> 45026.31579 | AH23: =VLOOKUP($A23,'Прайс по регионам'!$B$5:$CJ$50,HLOOKUP('Прейскурант на сортовой прокат_'!AH$7,'Прайс по регионам'!$1:$2,2,FALSE)-1,FALSE) -> 45461.05263 | AI23: =VLOOKUP($A23,'Прайс по регионам'!$B$5:$CJ$50,HLOOKUP('Прейскурант на сортовой прокат_'!AI$7,'Прайс по регионам'!$1:$2,2,FALSE)-1,FALSE) ->  | AJ23: =VLOOKUP($A23,'Прайс по регионам'!$B$5:$CJ$50,HLOOKUP('Прейскурант на сортовой прокат_'!AJ$7,'Прайс по регионам'!$1:$2,2,FALSE)-1,FALSE) -> 45026.31579 | AK23: =VLOOKUP($A23,'Прайс по регионам'!$B$5:$CJ$50,HLOOKUP('Прейскурант на сортовой прокат_'!AK$7,'Прайс по регионам'!$1:$2,2,FALSE)-1,FALSE) -> 45709.47368 | AL23: =VLOOKUP($A23,'Прайс по регионам'!$B$5:$CJ$50,HLOOKUP('Прейскурант на сортовой прокат_'!AL$7,'Прайс по регионам'!$1:$2,2,FALSE)-1,FALSE) -> 45274.73684 | AM23: =VLOOKUP($A23,'Прайс по регионам'!$B$5:$CJ$50,HLOOKUP('Прейскурант на сортовой прокат_'!AM$7,'Прайс по регионам'!$1:$2,2,FALSE)-1,FALSE) -> 44964.21053 | AN23: =VLOOKUP($A23,'Прайс по регионам'!$B$5:$CJ$50,HLOOKUP('Прейскурант на сортовой прокат_'!AN$7,'Прайс по регионам'!$1:$2,2,FALSE)-1,FALSE) -> 45461.05263 | AO23: =VLOOKUP($A23,'Прайс по регионам'!$B$5:$CJ$50,HLOOKUP('Прейскурант на сортовой прокат_'!AO$7,'Прайс по регионам'!$1:$2,2,FALSE)-1,FALSE) -> 44964.21053 | AP23: =VLOOKUP($A23,'Прайс по регионам'!$B$5:$CJ$50,HLOOKUP('Прейскурант на сортовой прокат_'!AP$7,'Прайс по регионам'!$1:$2,2,FALSE)-1,FALSE) -> 45461.05263 | AQ23: =VLOOKUP($A23,'Прайс по регионам'!$B$5:$CJ$50,HLOOKUP('Прейскурант на сортовой прокат_'!AQ$7,'Прайс по регионам'!$1:$2,2,FALSE)-1,FALSE) -> 45461.05263 | AR23: =VLOOKUP($A23,'Прайс по регионам'!$B$5:$CJ$50,HLOOKUP('Прейскурант на сортовой прокат_'!AR$7,'Прайс по регионам'!$1:$2,2,FALSE)-1,FALSE) -> 46641.05263 | AS23: =VLOOKUP($A23,'Прайс по регионам'!$B$5:$CJ$50,HLOOKUP('Прейскурант на сортовой прокат_'!AS$7,'Прайс по регионам'!$1:$2,2,FALSE)-1,FALSE) ->  | AT23: =VLOOKUP($A23,'Прайс по регионам'!$B$5:$CJ$50,HLOOKUP('Прейскурант на сортовой прокат_'!AT$7,'Прайс по регионам'!$1:$2,2,FALSE)-1,FALSE) -> 45709.47368 | AU23: =VLOOKUP($A23,'Прайс по регионам'!$B$5:$CJ$50,HLOOKUP('Прейскурант на сортовой прокат_'!AU$7,'Прайс по регионам'!$1:$2,2,FALSE)-1,FALSE) -> 45709.47368 | AV23: =VLOOKUP($A23,'Прайс по регионам'!$B$5:$CJ$50,HLOOKUP('Прейскурант на сортовой прокат_'!AV$7,'Прайс по регионам'!$1:$2,2,FALSE)-1,FALSE) -> 45709.47368 | AW23: =VLOOKUP($A23,'Прайс по регионам'!$B$5:$CJ$50,HLOOKUP('Прейскурант на сортовой прокат_'!AW$7,'Прайс по регионам'!$1:$2,2,FALSE)-1,FALSE) -> 45585.26316 | AX23: =VLOOKUP($A23,'Прайс по регионам'!$B$5:$CJ$50,HLOOKUP('Прейскурант на сортовой прокат_'!AX$7,'Прайс по регионам'!$1:$2,2,FALSE)-1,FALSE) -> 44094.73684 | AY23: =VLOOKUP($A23,'Прайс по регионам'!$B$5:$CJ$50,HLOOKUP('Прейскурант на сортовой прокат_'!AY$7,'Прайс по регионам'!$1:$2,2,FALSE)-1,FALSE) -> 44529.47368 | AZ23: =VLOOKUP($A23,'Прайс по регионам'!$B$5:$CJ$50,HLOOKUP('Прейскурант на сортовой прокат_'!AZ$7,'Прайс по регионам'!$1:$2,2,FALSE)-1,FALSE) -> 44218.94737 | BA23: =VLOOKUP($A23,'Прайс по регионам'!$B$5:$CJ$50,HLOOKUP('Прейскурант на сортовой прокат_'!BA$7,'Прайс по регионам'!$1:$2,2,FALSE)-1,FALSE) -> 44653.68421 | BB23: =VLOOKUP($A23,'Прайс по регионам'!$B$5:$CJ$50,HLOOKUP('Прейскурант на сортовой прокат_'!BB$7,'Прайс по регионам'!$1:$2,2,FALSE)-1,FALSE) -> 43784.21053 | BC23: =VLOOKUP($A23,'Прайс по регионам'!$B$5:$CJ$50,HLOOKUP('Прейскурант на сортовой прокат_'!BC$7,'Прайс по регионам'!$1:$2,2,FALSE)-1,FALSE) ->  | BD23: =VLOOKUP($A23,'Прайс по регионам'!$B$5:$CJ$50,HLOOKUP('Прейскурант на сортовой прокат_'!BD$7,'Прайс по регионам'!$1:$2,2,FALSE)-1,FALSE) -> 43784.21053 | BE23: =VLOOKUP($A23,'Прайс по регионам'!$B$5:$CJ$50,HLOOKUP('Прейскурант на сортовой прокат_'!BE$7,'Прайс по регионам'!$1:$2,2,FALSE)-1,FALSE) -> 44218.94737 | BF23: =VLOOKUP($A23,'Прайс по регионам'!$B$5:$CJ$50,HLOOKUP('Прейскурант на сортовой прокат_'!BF$7,'Прайс по регионам'!$1:$2,2,FALSE)-1,FALSE) -> 44529.47368 | BG23: =VLOOKUP($A23,'Прайс по регионам'!$B$5:$CJ$50,HLOOKUP('Прейскурант на сортовой прокат_'!BG$7,'Прайс по регионам'!$1:$2,2,FALSE)-1,FALSE) -> 44094.73684 | BH23: =VLOOKUP($A23,'Прайс по регионам'!$B$5:$CJ$50,HLOOKUP('Прейскурант на сортовой прокат_'!BH$7,'Прайс по регионам'!$1:$2,2,FALSE)-1,FALSE) -> 43784.21053 | BI23: =VLOOKUP($A23,'Прайс по регионам'!$B$5:$CJ$50,HLOOKUP('Прейскурант на сортовой прокат_'!BI$7,'Прайс по регионам'!$1:$2,2,FALSE)-1,FALSE) -> 44343.15789 | BJ23: =VLOOKUP($A23,'Прайс по регионам'!$B$5:$CJ$50,HLOOKUP('Прейскурант на сортовой прокат_'!BJ$7,'Прайс по регионам'!$1:$2,2,FALSE)-1,FALSE) -> 44653.68421 | BK23: =VLOOKUP($A23,'Прайс по регионам'!$B$5:$CJ$50,HLOOKUP('Прейскурант на сортовой прокат_'!BK$7,'Прайс по регионам'!$1:$2,2,FALSE)-1,FALSE) -> 44218.94737 | BL23: =VLOOKUP($A23,'Прайс по регионам'!$B$5:$CJ$50,HLOOKUP('Прейскурант на сортовой прокат_'!BL$7,'Прайс по регионам'!$1:$2,2,FALSE)-1,FALSE) -> 44343.15789 | BM23: =VLOOKUP($A23,'Прайс по регионам'!$B$5:$CJ$50,HLOOKUP('Прейскурант на сортовой прокат_'!BM$7,'Прайс по регионам'!$1:$2,2,FALSE)-1,FALSE) ->  | BN23: =VLOOKUP($A23,'Прайс по регионам'!$B$5:$CJ$50,HLOOKUP('Прейскурант на сортовой прокат_'!BN$7,'Прайс по регионам'!$1:$2,2,FALSE)-1,FALSE) -> 46082.10526 | BO23: =VLOOKUP($A23,'Прайс по регионам'!$B$5:$CJ$50,HLOOKUP('Прейскурант на сортовой прокат_'!BO$7,'Прайс по регионам'!$1:$2,2,FALSE)-1,FALSE) -> 43597.89474 | BP23: =VLOOKUP($A23,'Прайс по регионам'!$B$5:$CJ$50,HLOOKUP('Прейскурант на сортовой прокат_'!BP$7,'Прайс по регионам'!$1:$2,2,FALSE)-1,FALSE) -> 44094.73684 | BQ23: =VLOOKUP($A23,'Прайс по регионам'!$B$5:$CJ$50,HLOOKUP('Прейскурант на сортовой прокат_'!BQ$7,'Прайс по регионам'!$1:$2,2,FALSE)-1,FALSE) -> 43970.52632 | BR23: =VLOOKUP($A23,'Прайс по регионам'!$B$5:$CJ$50,HLOOKUP('Прейскурант на сортовой прокат_'!BR$7,'Прайс по регионам'!$1:$2,2,FALSE)-1,FALSE) -> 43473.68421 | BS23: =VLOOKUP($A23,'Прайс по регионам'!$B$5:$CJ$50,HLOOKUP('Прейскурант на сортовой прокат_'!BS$7,'Прайс по регионам'!$1:$2,2,FALSE)-1,FALSE) -> 42852.63158 | BT23: =VLOOKUP($A23,'Прайс по регионам'!$B$5:$CJ$50,HLOOKUP('Прейскурант на сортовой прокат_'!BT$7,'Прайс по регионам'!$1:$2,2,FALSE)-1,FALSE) -> 46082.10526 | BU23: =VLOOKUP($A23,'Прайс по регионам'!$B$5:$CJ$50,HLOOKUP('Прейскурант на сортовой прокат_'!BU$7,'Прайс по регионам'!$1:$2,2,FALSE)-1,FALSE) ->  | BV23: =VLOOKUP($A23,'Прайс по регионам'!$B$5:$CJ$50,HLOOKUP('Прейскурант на сортовой прокат_'!BV$7,'Прайс по регионам'!$1:$2,2,FALSE)-1,FALSE) -> 45771.57895 | BW23: =VLOOKUP($A23,'Прайс по регионам'!$B$5:$CJ$50,HLOOKUP('Прейскурант на сортовой прокат_'!BW$7,'Прайс по регионам'!$1:$2,2,FALSE)-1,FALSE) -> 48131.57895 | BX23: =VLOOKUP($A23,'Прайс по регионам'!$B$5:$CJ$50,HLOOKUP('Прейскурант на сортовой прокат_'!BX$7,'Прайс по регионам'!$1:$2,2,FALSE)-1,FALSE) -> 45771.57895 | BY23: =VLOOKUP($A23,'Прайс по регионам'!$B$5:$CJ$50,HLOOKUP('Прейскурант на сортовой прокат_'!BY$7,'Прайс по регионам'!$1:$2,2,FALSE)-1,FALSE) -> 48131.57895 | BZ23: =VLOOKUP($A23,'Прайс по регионам'!$B$5:$CJ$50,HLOOKUP('Прейскурант на сортовой прокат_'!BZ$7,'Прайс по регионам'!$1:$2,2,FALSE)-1,FALSE) -> 45771.57895 | CA23: =VLOOKUP($A23,'Прайс по регионам'!$B$5:$CJ$50,HLOOKUP('Прейскурант на сортовой прокат_'!CA$7,'Прайс по регионам'!$1:$2,2,FALSE)-1,FALSE) -> 44715.78947 | CB23: =VLOOKUP($A23,'Прайс по регионам'!$B$5:$CJ$50,HLOOKUP('Прейскурант на сортовой прокат_'!CB$7,'Прайс по регионам'!$1:$2,2,FALSE)-1,FALSE) -> 45771.57895 | CC23: =VLOOKUP($A23,'Прайс по регионам'!$B$5:$CJ$50,HLOOKUP('Прейскурант на сортовой прокат_'!CC$7,'Прайс по регионам'!$1:$2,2,FALSE)-1,FALSE) -> 48628.42105 | CD23: =VLOOKUP($A23,'Прайс по регионам'!$B$5:$CJ$50,HLOOKUP('Прейскурант на сортовой прокат_'!CD$7,'Прайс по регионам'!$1:$2,2,FALSE)-1,FALSE) -> 48131.57895 | CE23: =VLOOKUP($A23,'Прайс по регионам'!$B$5:$CJ$50,HLOOKUP('Прейскурант на сортовой прокат_'!CE$7,'Прайс по регионам'!$1:$2,2,FALSE)-1,FALSE) ->  | CF23: =VLOOKUP($A23,'Прайс по регионам'!$B$5:$CJ$50,HLOOKUP('Прейскурант на сортовой прокат_'!CF$7,'Прайс по регионам'!$1:$2,2,FALSE)-1,FALSE) -> 48131.57895 | CG23: =VLOOKUP($A23,'Прайс по регионам'!$B$5:$CJ$50,HLOOKUP('Прейскурант на сортовой прокат_'!CG$7,'Прайс по регионам'!$1:$2,2,FALSE)-1,FALSE) -> 45771.57895 | CH23: =VLOOKUP($A23,'Прайс по регионам'!$B$5:$CJ$50,HLOOKUP('Прейскурант на сортовой прокат_'!CH$7,'Прайс по регионам'!$1:$2,2,FALSE)-1,FALSE) -> 50181.05263 | CI23: =VLOOKUP($A23,'Прайс по регионам'!$B$5:$CJ$50,HLOOKUP('Прейскурант на сортовой прокат_'!CI$7,'Прайс по регионам'!$1:$2,2,FALSE)-1,FALSE) -> 48814.73684 | CJ23: =VLOOKUP($A23,'Прайс по регионам'!$B$5:$CJ$50,HLOOKUP('Прейскурант на сортовой прокат_'!CJ$7,'Прайс по регионам'!$1:$2,2,FALSE)-1,FALSE) -> 48814.73684 | CK23: =VLOOKUP($A23,'Прайс по регионам'!$B$5:$CJ$50,HLOOKUP('Прейскурант на сортовой прокат_'!CK$7,'Прайс по регионам'!$1:$2,2,FALSE)-1,FALSE) -> 48814.73684 | CL23: =VLOOKUP($A23,'Прайс по регионам'!$B$5:$CJ$50,HLOOKUP('Прейскурант на сортовой прокат_'!CL$7,'Прайс по регионам'!$1:$2,2,FALSE)-1,FALSE) -> 49808.42105 | CM23: =VLOOKUP($A23,'Прайс по регионам'!$B$5:$CJ$50,HLOOKUP('Прейскурант на сортовой прокат_'!CM$7,'Прайс по регионам'!$1:$2,2,FALSE)-1,FALSE) ->  | CN23: =VLOOKUP($A23,'Прайс по регионам'!$B$5:$CJ$50,HLOOKUP('Прейскурант на сортовой прокат_'!CN$7,'Прайс по регионам'!$1:$2,2,FALSE)-1,FALSE) -> 48814.73684 | CO23: =VLOOKUP($A23,'Прайс по регионам'!$B$5:$CJ$50,HLOOKUP('Прейскурант на сортовой прокат_'!CO$7,'Прайс по регионам'!$1:$2,2,FALSE)-1,FALSE) -> 50181.05263 | CP23: =VLOOKUP($A23,'Прайс по регионам'!$B$5:$CJ$50,HLOOKUP('Прейскурант на сортовой прокат_'!CP$7,'Прайс по регионам'!$1:$2,2,FALSE)-1,FALSE) -> 53162.10526 | CQ23: =VLOOKUP($A23,'Прайс по регионам'!$B$5:$CJ$50,HLOOKUP('Прейскурант на сортовой прокат_'!CQ$7,'Прайс по регионам'!$1:$2,2,FALSE)-1,FALSE) -> 49808.42105 | CR23: =VLOOKUP($A23,'Прайс по регионам'!$B$5:$CJ$50,HLOOKUP('Прейскурант на сортовой прокат_'!CR$7,'Прайс по регионам'!$1:$2,2,FALSE)-1,FALSE) -> 49746.31579
A24: А500С_10 | B24: Арматура 10 | C24: А400С, А500С | D24: ГОСТ 380 | E24: ТУ14-1-5254-2006 | F24: =VLOOKUP($A24,'Прайс по регионам'!$B$5:$CJ$50,HLOOKUP('Прейскурант на сортовой прокат_'!F$7,'Прайс по регионам'!$1:$2,2,FALSE)-1,FALSE) -> 44964.21053 | G24: =VLOOKUP($A24,'Прайс по регионам'!$B$5:$CJ$50,HLOOKUP('Прейскурант на сортовой прокат_'!G$7,'Прайс по регионам'!$1:$2,2,FALSE)-1,FALSE) -> 44964.21053 | H24: =VLOOKUP($A24,'Прайс по регионам'!$B$5:$CJ$50,HLOOKUP('Прейскурант на сортовой прокат_'!H$7,'Прайс по регионам'!$1:$2,2,FALSE)-1,FALSE) -> 44653.68421 | I24: =VLOOKUP($A24,'Прайс по регионам'!$B$5:$CJ$50,HLOOKUP('Прейскурант на сортовой прокат_'!I$7,'Прайс по регионам'!$1:$2,2,FALSE)-1,FALSE) -> 45771.57895 | J24: =VLOOKUP($A24,'Прайс по регионам'!$B$5:$CJ$50,HLOOKUP('Прейскурант на сортовой прокат_'!J$7,'Прайс по регионам'!$1:$2,2,FALSE)-1,FALSE) -> 45585.26316 | K24: =VLOOKUP($A24,'Прайс по регионам'!$B$5:$CJ$50,HLOOKUP('Прейскурант на сортовой прокат_'!K$7,'Прайс по регионам'!$1:$2,2,FALSE)-1,FALSE) -> 45709.47368 | L24: =VLOOKUP($A24,'Прайс по регионам'!$B$5:$CJ$50,HLOOKUP('Прейскурант на сортовой прокат_'!L$7,'Прайс по регионам'!$1:$2,2,FALSE)-1,FALSE) -> 45771.57895 | M24: =VLOOKUP($A24,'Прайс по регионам'!$B$5:$CJ$50,HLOOKUP('Прейскурант на сортовой прокат_'!M$7,'Прайс по регионам'!$1:$2,2,FALSE)-1,FALSE) -> 45709.47368 | N24: =VLOOKUP($A24,'Прайс по регионам'!$B$5:$CJ$50,HLOOKUP('Прейскурант на сортовой прокат_'!N$7,'Прайс по регионам'!$1:$2,2,FALSE)-1,FALSE) -> 45771.57895 | O24: =VLOOKUP($A24,'Прайс по регионам'!$B$5:$CJ$50,HLOOKUP('Прейскурант на сортовой прокат_'!O$7,'Прайс по регионам'!$1:$2,2,FALSE)-1,FALSE) ->  | P24: =VLOOKUP($A24,'Прайс по регионам'!$B$5:$CJ$50,HLOOKUP('Прейскурант на сортовой прокат_'!P$7,'Прайс по регионам'!$1:$2,2,FALSE)-1,FALSE) -> 45771.57895 | Q24: =VLOOKUP($A24,'Прайс по регионам'!$B$5:$CJ$50,HLOOKUP('Прейскурант на сортовой прокат_'!Q$7,'Прайс по регионам'!$1:$2,2,FALSE)-1,FALSE) -> 45336.84211 | R24: =VLOOKUP($A24,'Прайс по регионам'!$B$5:$CJ$50,HLOOKUP('Прейскурант на сортовой прокат_'!R$7,'Прайс по регионам'!$1:$2,2,FALSE)-1,FALSE) -> 45709.47368 | S24: =VLOOKUP($A24,'Прайс по регионам'!$B$5:$CJ$50,HLOOKUP('Прейскурант на сортовой прокат_'!S$7,'Прайс по регионам'!$1:$2,2,FALSE)-1,FALSE) -> 45585.26316 | T24: =VLOOKUP($A24,'Прайс по регионам'!$B$5:$CJ$50,HLOOKUP('Прейскурант на сортовой прокат_'!T$7,'Прайс по регионам'!$1:$2,2,FALSE)-1,FALSE) -> 45274.73684 | U24: =VLOOKUP($A24,'Прайс по регионам'!$B$5:$CJ$50,HLOOKUP('Прейскурант на сортовой прокат_'!U$7,'Прайс по регионам'!$1:$2,2,FALSE)-1,FALSE) -> 45274.73684 | V24: =VLOOKUP($A24,'Прайс по регионам'!$B$5:$CJ$50,HLOOKUP('Прейскурант на сортовой прокат_'!V$7,'Прайс по регионам'!$1:$2,2,FALSE)-1,FALSE) -> 44405.26316 | W24: =VLOOKUP($A24,'Прайс по регионам'!$B$5:$CJ$50,HLOOKUP('Прейскурант на сортовой прокат_'!W$7,'Прайс по регионам'!$1:$2,2,FALSE)-1,FALSE) -> 44715.78947 | X24: =VLOOKUP($A24,'Прайс по регионам'!$B$5:$CJ$50,HLOOKUP('Прейскурант на сортовой прокат_'!X$7,'Прайс по регионам'!$1:$2,2,FALSE)-1,FALSE) -> 44653.68421 | Y24: =VLOOKUP($A24,'Прайс по регионам'!$B$5:$CJ$50,HLOOKUP('Прейскурант на сортовой прокат_'!Y$7,'Прайс по регионам'!$1:$2,2,FALSE)-1,FALSE) ->  | Z24: =VLOOKUP($A24,'Прайс по регионам'!$B$5:$CJ$50,HLOOKUP('Прейскурант на сортовой прокат_'!Z$7,'Прайс по регионам'!$1:$2,2,FALSE)-1,FALSE) -> 44405.26316 | AA24: =VLOOKUP($A24,'Прайс по регионам'!$B$5:$CJ$50,HLOOKUP('Прейскурант на сортовой прокат_'!AA$7,'Прайс по регионам'!$1:$2,2,FALSE)-1,FALSE) -> 44964.21053 | AB24: =VLOOKUP($A24,'Прайс по регионам'!$B$5:$CJ$50,HLOOKUP('Прейскурант на сортовой прокат_'!AB$7,'Прайс по регионам'!$1:$2,2,FALSE)-1,FALSE) -> 44405.26316 | AC24: =VLOOKUP($A24,'Прайс по регионам'!$B$5:$CJ$50,HLOOKUP('Прейскурант на сортовой прокат_'!AC$7,'Прайс по регионам'!$1:$2,2,FALSE)-1,FALSE) -> 45026.31579 | AD24: =VLOOKUP($A24,'Прайс по регионам'!$B$5:$CJ$50,HLOOKUP('Прейскурант на сортовой прокат_'!AD$7,'Прайс по регионам'!$1:$2,2,FALSE)-1,FALSE) -> 44653.68421 | AE24: =VLOOKUP($A24,'Прайс по регионам'!$B$5:$CJ$50,HLOOKUP('Прейскурант на сортовой прокат_'!AE$7,'Прайс по регионам'!$1:$2,2,FALSE)-1,FALSE) -> 44653.68421 | AF24: =VLOOKUP($A24,'Прайс по регионам'!$B$5:$CJ$50,HLOOKUP('Прейскурант на сортовой прокат_'!AF$7,'Прайс по регионам'!$1:$2,2,FALSE)-1,FALSE) -> 44964.21053 | AG24: =VLOOKUP($A24,'Прайс по регионам'!$B$5:$CJ$50,HLOOKUP('Прейскурант на сортовой прокат_'!AG$7,'Прайс по регионам'!$1:$2,2,FALSE)-1,FALSE) -> 44529.47368 | AH24: =VLOOKUP($A24,'Прайс по регионам'!$B$5:$CJ$50,HLOOKUP('Прейскурант на сортовой прокат_'!AH$7,'Прайс по регионам'!$1:$2,2,FALSE)-1,FALSE) -> 44964.21053 | AI24: =VLOOKUP($A24,'Прайс по регионам'!$B$5:$CJ$50,HLOOKUP('Прейскурант на сортовой прокат_'!AI$7,'Прайс по регионам'!$1:$2,2,FALSE)-1,FALSE) ->  | AJ24: =VLOOKUP($A24,'Прайс по регионам'!$B$5:$CJ$50,HLOOKUP('Прейскурант на сортовой прокат_'!AJ$7,'Прайс по регионам'!$1:$2,2,FALSE)-1,FALSE) -> 44529.47368 | AK24: =VLOOKUP($A24,'Прайс по регионам'!$B$5:$CJ$50,HLOOKUP('Прейскурант на сортовой прокат_'!AK$7,'Прайс по регионам'!$1:$2,2,FALSE)-1,FALSE) -> 45150.52632 | AL24: =VLOOKUP($A24,'Прайс по регионам'!$B$5:$CJ$50,HLOOKUP('Прейскурант на сортовой прокат_'!AL$7,'Прайс по регионам'!$1:$2,2,FALSE)-1,FALSE) -> 44715.78947 | AM24: =VLOOKUP($A24,'Прайс по регионам'!$B$5:$CJ$50,HLOOKUP('Прейскурант на сортовой прокат_'!AM$7,'Прайс по регионам'!$1:$2,2,FALSE)-1,FALSE) -> 44405.26316 | AN24: =VLOOKUP($A24,'Прайс по регионам'!$B$5:$CJ$50,HLOOKUP('Прейскурант на сортовой прокат_'!AN$7,'Прайс по регионам'!$1:$2,2,FALSE)-1,FALSE) -> 44964.21053 | AO24: =VLOOKUP($A24,'Прайс по регионам'!$B$5:$CJ$50,HLOOKUP('Прейскурант на сортовой прокат_'!AO$7,'Прайс по регионам'!$1:$2,2,FALSE)-1,FALSE) -> 44405.26316 | AP24: =VLOOKUP($A24,'Прайс по регионам'!$B$5:$CJ$50,HLOOKUP('Прейскурант на сортовой прокат_'!AP$7,'Прайс по регионам'!$1:$2,2,FALSE)-1,FALSE) -> 44964.21053 | AQ24: =VLOOKUP($A24,'Прайс по регионам'!$B$5:$CJ$50,HLOOKUP('Прейскурант на сортовой прокат_'!AQ$7,'Прайс по регионам'!$1:$2,2,FALSE)-1,FALSE) -> 44964.21053 | AR24: =VLOOKUP($A24,'Прайс по регионам'!$B$5:$CJ$50,HLOOKUP('Прейскурант на сортовой прокат_'!AR$7,'Прайс по регионам'!$1:$2,2,FALSE)-1,FALSE) -> 46082.10526 | AS24: =VLOOKUP($A24,'Прайс по регионам'!$B$5:$CJ$50,HLOOKUP('Прейскурант на сортовой прокат_'!AS$7,'Прайс по регионам'!$1:$2,2,FALSE)-1,FALSE) ->  | AT24: =VLOOKUP($A24,'Прайс по регионам'!$B$5:$CJ$50,HLOOKUP('Прейскурант на сортовой прокат_'!AT$7,'Прайс по регионам'!$1:$2,2,FALSE)-1,FALSE) -> 45150.52632 | AU24: =VLOOKUP($A24,'Прайс по регионам'!$B$5:$CJ$50,HLOOKUP('Прейскурант на сортовой прокат_'!AU$7,'Прайс по регионам'!$1:$2,2,FALSE)-1,FALSE) -> 45150.52632 | AV24: =VLOOKUP($A24,'Прайс по регионам'!$B$5:$CJ$50,HLOOKUP('Прейскурант на сортовой прокат_'!AV$7,'Прайс по регионам'!$1:$2,2,FALSE)-1,FALSE) -> 45150.52632 | AW24: =VLOOKUP($A24,'Прайс по регионам'!$B$5:$CJ$50,HLOOKUP('Прейскурант на сортовой прокат_'!AW$7,'Прайс по регионам'!$1:$2,2,FALSE)-1,FALSE) -> 45026.31579 | AX24: =VLOOKUP($A24,'Прайс по регионам'!$B$5:$CJ$50,HLOOKUP('Прейскурант на сортовой прокат_'!AX$7,'Прайс по регионам'!$1:$2,2,FALSE)-1,FALSE) -> 43597.89474 | AY24: =VLOOKUP($A24,'Прайс по регионам'!$B$5:$CJ$50,HLOOKUP('Прейскурант на сортовой прокат_'!AY$7,'Прайс по регионам'!$1:$2,2,FALSE)-1,FALSE) -> 43970.52632 | AZ24: =VLOOKUP($A24,'Прайс по регионам'!$B$5:$CJ$50,HLOOKUP('Прейскурант на сортовой прокат_'!AZ$7,'Прайс по регионам'!$1:$2,2,FALSE)-1,FALSE) -> 43660 | BA24: =VLOOKUP($A24,'Прайс по регионам'!$B$5:$CJ$50,HLOOKUP('Прейскурант на сортовой прокат_'!BA$7,'Прайс по регионам'!$1:$2,2,FALSE)-1,FALSE) -> 44094.73684 | BB24: =VLOOKUP($A24,'Прайс по регионам'!$B$5:$CJ$50,HLOOKUP('Прейскурант на сортовой прокат_'!BB$7,'Прайс по регионам'!$1:$2,2,FALSE)-1,FALSE) -> 43287.36842 | BC24: =VLOOKUP($A24,'Прайс по регионам'!$B$5:$CJ$50,HLOOKUP('Прейскурант на сортовой прокат_'!BC$7,'Прайс по регионам'!$1:$2,2,FALSE)-1,FALSE) ->  | BD24: =VLOOKUP($A24,'Прайс по регионам'!$B$5:$CJ$50,HLOOKUP('Прейскурант на сортовой прокат_'!BD$7,'Прайс по регионам'!$1:$2,2,FALSE)-1,FALSE) -> 43287.36842 | BE24: =VLOOKUP($A24,'Прайс по регионам'!$B$5:$CJ$50,HLOOKUP('Прейскурант на сортовой прокат_'!BE$7,'Прайс по регионам'!$1:$2,2,FALSE)-1,FALSE) -> 43660 | BF24: =VLOOKUP($A24,'Прайс по регионам'!$B$5:$CJ$50,HLOOKUP('Прейскурант на сортовой прокат_'!BF$7,'Прайс по регионам'!$1:$2,2,FALSE)-1,FALSE) -> 43970.52632 | BG24: =VLOOKUP($A24,'Прайс по регионам'!$B$5:$CJ$50,HLOOKUP('Прейскурант на сортовой прокат_'!BG$7,'Прайс по регионам'!$1:$2,2,FALSE)-1,FALSE) -> 43597.89474 | BH24: =VLOOKUP($A24,'Прайс по регионам'!$B$5:$CJ$50,HLOOKUP('Прейскурант на сортовой прокат_'!BH$7,'Прайс по регионам'!$1:$2,2,FALSE)-1,FALSE) -> 43287.36842 | BI24: =VLOOKUP($A24,'Прайс по регионам'!$B$5:$CJ$50,HLOOKUP('Прейскурант на сортовой прокат_'!BI$7,'Прайс по регионам'!$1:$2,2,FALSE)-1,FALSE) -> 43784.21053 | BJ24: =VLOOKUP($A24,'Прайс по регионам'!$B$5:$CJ$50,HLOOKUP('Прейскурант на сортовой прокат_'!BJ$7,'Прайс по регионам'!$1:$2,2,FALSE)-1,FALSE) -> 44094.73684 | BK24: =VLOOKUP($A24,'Прайс по регионам'!$B$5:$CJ$50,HLOOKUP('Прейскурант на сортовой прокат_'!BK$7,'Прайс по регионам'!$1:$2,2,FALSE)-1,FALSE) -> 43660 | BL24: =VLOOKUP($A24,'Прайс по регионам'!$B$5:$CJ$50,HLOOKUP('Прейскурант на сортовой прокат_'!BL$7,'Прайс по регионам'!$1:$2,2,FALSE)-1,FALSE) -> 43784.21053 | BM24: =VLOOKUP($A24,'Прайс по регионам'!$B$5:$CJ$50,HLOOKUP('Прейскурант на сортовой прокат_'!BM$7,'Прайс по регионам'!$1:$2,2,FALSE)-1,FALSE) ->  | BN24: =VLOOKUP($A24,'Прайс по регионам'!$B$5:$CJ$50,HLOOKUP('Прейскурант на сортовой прокат_'!BN$7,'Прайс по регионам'!$1:$2,2,FALSE)-1,FALSE) -> 45585.26316 | BO24: =VLOOKUP($A24,'Прайс по регионам'!$B$5:$CJ$50,HLOOKUP('Прейскурант на сортовой прокат_'!BO$7,'Прайс по регионам'!$1:$2,2,FALSE)-1,FALSE) -> 43038.94737 | BP24: =VLOOKUP($A24,'Прайс по регионам'!$B$5:$CJ$50,HLOOKUP('Прейскурант на сортовой прокат_'!BP$7,'Прайс по регионам'!$1:$2,2,FALSE)-1,FALSE) -> 43597.89474 | BQ24: =VLOOKUP($A24,'Прайс по регионам'!$B$5:$CJ$50,HLOOKUP('Прейскурант на сортовой прокат_'!BQ$7,'Прайс по регионам'!$1:$2,2,FALSE)-1,FALSE) -> 43473.68421 | BR24: =VLOOKUP($A24,'Прайс по регионам'!$B$5:$CJ$50,HLOOKUP('Прейскурант на сортовой прокат_'!BR$7,'Прайс по регионам'!$1:$2,2,FALSE)-1,FALSE) -> 42976.84211 | BS24: =VLOOKUP($A24,'Прайс по регионам'!$B$5:$CJ$50,HLOOKUP('Прейскурант на сортовой прокат_'!BS$7,'Прайс по регионам'!$1:$2,2,FALSE)-1,FALSE) -> 42293.68421 | BT24: =VLOOKUP($A24,'Прайс по регионам'!$B$5:$CJ$50,HLOOKUP('Прейскурант на сортовой прокат_'!BT$7,'Прайс по регионам'!$1:$2,2,FALSE)-1,FALSE) -> 45585.26316 | BU24: =VLOOKUP($A24,'Прайс по регионам'!$B$5:$CJ$50,HLOOKUP('Прейскурант на сортовой прокат_'!BU$7,'Прайс по регионам'!$1:$2,2,FALSE)-1,FALSE) ->  | BV24: =VLOOKUP($A24,'Прайс по регионам'!$B$5:$CJ$50,HLOOKUP('Прейскурант на сортовой прокат_'!BV$7,'Прайс по регионам'!$1:$2,2,FALSE)-1,FALSE) -> 45274.73684 | BW24: =VLOOKUP($A24,'Прайс по регионам'!$B$5:$CJ$50,HLOOKUP('Прейскурант на сортовой прокат_'!BW$7,'Прайс по регионам'!$1:$2,2,FALSE)-1,FALSE) -> 47572.63158 | BX24: =VLOOKUP($A24,'Прайс по регионам'!$B$5:$CJ$50,HLOOKUP('Прейскурант на сортовой прокат_'!BX$7,'Прайс по регионам'!$1:$2,2,FALSE)-1,FALSE) -> 45274.73684 | BY24: =VLOOKUP($A24,'Прайс по регионам'!$B$5:$CJ$50,HLOOKUP('Прейскурант на сортовой прокат_'!BY$7,'Прайс по регионам'!$1:$2,2,FALSE)-1,FALSE) -> 47572.63158 | BZ24: =VLOOKUP($A24,'Прайс по регионам'!$B$5:$CJ$50,HLOOKUP('Прейскурант на сортовой прокат_'!BZ$7,'Прайс по регионам'!$1:$2,2,FALSE)-1,FALSE) -> 45274.73684 | CA24: =VLOOKUP($A24,'Прайс по регионам'!$B$5:$CJ$50,HLOOKUP('Прейскурант на сортовой прокат_'!CA$7,'Прайс по регионам'!$1:$2,2,FALSE)-1,FALSE) -> 44218.94737 | CB24: =VLOOKUP($A24,'Прайс по регионам'!$B$5:$CJ$50,HLOOKUP('Прейскурант на сортовой прокат_'!CB$7,'Прайс по регионам'!$1:$2,2,FALSE)-1,FALSE) -> 45274.73684 | CC24: =VLOOKUP($A24,'Прайс по регионам'!$B$5:$CJ$50,HLOOKUP('Прейскурант на сортовой прокат_'!CC$7,'Прайс по регионам'!$1:$2,2,FALSE)-1,FALSE) -> 48131.57895 | CD24: =VLOOKUP($A24,'Прайс по регионам'!$B$5:$CJ$50,HLOOKUP('Прейскурант на сортовой прокат_'!CD$7,'Прайс по регионам'!$1:$2,2,FALSE)-1,FALSE) -> 47572.63158 | CE24: =VLOOKUP($A24,'Прайс по регионам'!$B$5:$CJ$50,HLOOKUP('Прейскурант на сортовой прокат_'!CE$7,'Прайс по регионам'!$1:$2,2,FALSE)-1,FALSE) ->  | CF24: =VLOOKUP($A24,'Прайс по регионам'!$B$5:$CJ$50,HLOOKUP('Прейскурант на сортовой прокат_'!CF$7,'Прайс по регионам'!$1:$2,2,FALSE)-1,FALSE) -> 47572.63158 | CG24: =VLOOKUP($A24,'Прайс по регионам'!$B$5:$CJ$50,HLOOKUP('Прейскурант на сортовой прокат_'!CG$7,'Прайс по регионам'!$1:$2,2,FALSE)-1,FALSE) -> 45274.73684 | CH24: =VLOOKUP($A24,'Прайс по регионам'!$B$5:$CJ$50,HLOOKUP('Прейскурант на сортовой прокат_'!CH$7,'Прайс по регионам'!$1:$2,2,FALSE)-1,FALSE) -> 49684.21053 | CI24: =VLOOKUP($A24,'Прайс по регионам'!$B$5:$CJ$50,HLOOKUP('Прейскурант на сортовой прокат_'!CI$7,'Прайс по регионам'!$1:$2,2,FALSE)-1,FALSE) -> 48317.89474 | CJ24: =VLOOKUP($A24,'Прайс по регионам'!$B$5:$CJ$50,HLOOKUP('Прейскурант на сортовой прокат_'!CJ$7,'Прайс по регионам'!$1:$2,2,FALSE)-1,FALSE) -> 48317.89474 | CK24: =VLOOKUP($A24,'Прайс по регионам'!$B$5:$CJ$50,HLOOKUP('Прейскурант на сортовой прокат_'!CK$7,'Прайс по регионам'!$1:$2,2,FALSE)-1,FALSE) -> 48317.89474 | CL24: =VLOOKUP($A24,'Прайс по регионам'!$B$5:$CJ$50,HLOOKUP('Прейскурант на сортовой прокат_'!CL$7,'Прайс по регионам'!$1:$2,2,FALSE)-1,FALSE) -> 49249.47368 | CM24: =VLOOKUP($A24,'Прайс по регионам'!$B$5:$CJ$50,HLOOKUP('Прейскурант на сортовой прокат_'!CM$7,'Прайс по регионам'!$1:$2,2,FALSE)-1,FALSE) ->  | CN24: =VLOOKUP($A24,'Прайс по регионам'!$B$5:$CJ$50,HLOOKUP('Прейскурант на сортовой прокат_'!CN$7,'Прайс по регионам'!$1:$2,2,FALSE)-1,FALSE) -> 48317.89474 | CO24: =VLOOKUP($A24,'Прайс по регионам'!$B$5:$CJ$50,HLOOKUP('Прейскурант на сортовой прокат_'!CO$7,'Прайс по регионам'!$1:$2,2,FALSE)-1,FALSE) -> 49684.21053 | CP24: =VLOOKUP($A24,'Прайс по регионам'!$B$5:$CJ$50,HLOOKUP('Прейскурант на сортовой прокат_'!CP$7,'Прайс по регионам'!$1:$2,2,FALSE)-1,FALSE) -> 52603.15789 | CQ24: =VLOOKUP($A24,'Прайс по регионам'!$B$5:$CJ$50,HLOOKUP('Прейскурант на сортовой прокат_'!CQ$7,'Прайс по регионам'!$1:$2,2,FALSE)-1,FALSE) -> 49249.47368 | CR24: =VLOOKUP($A24,'Прайс по регионам'!$B$5:$CJ$50,HLOOKUP('Прейскурант на сортовой прокат_'!CR$7,'Прайс по регионам'!$1:$2,2,FALSE)-1,FALSE) -> 49187.36842
A25: А500СП_10 | C25: А500СП | D25: СТО АСЧМ 7-93, ГОСТ Р 52544-2006 | E25: СТО АСЧМ 7-93, ГОСТ Р 52544-2006 | F25: =VLOOKUP($A25,'Прайс по регионам'!$B$5:$CJ$50,HLOOKUP('Прейскурант на сортовой прокат_'!F$7,'Прайс по регионам'!$1:$2,2,FALSE)-1,FALSE) -> 45026.31579 | G25: =VLOOKUP($A25,'Прайс по регионам'!$B$5:$CJ$50,HLOOKUP('Прейскурант на сортовой прокат_'!G$7,'Прайс по регионам'!$1:$2,2,FALSE)-1,FALSE) -> 45026.31579 | H25: =VLOOKUP($A25,'Прайс по регионам'!$B$5:$CJ$50,HLOOKUP('Прейскурант на сортовой прокат_'!H$7,'Прайс по регионам'!$1:$2,2,FALSE)-1,FALSE) -> 44653.68421 | I25: =VLOOKUP($A25,'Прайс по регионам'!$B$5:$CJ$50,HLOOKUP('Прейскурант на сортовой прокат_'!I$7,'Прайс по регионам'!$1:$2,2,FALSE)-1,FALSE) -> 45833.68421 | J25: =VLOOKUP($A25,'Прайс по регионам'!$B$5:$CJ$50,HLOOKUP('Прейскурант на сортовой прокат_'!J$7,'Прайс по регионам'!$1:$2,2,FALSE)-1,FALSE) -> 45647.36842 | K25: =VLOOKUP($A25,'Прайс по регионам'!$B$5:$CJ$50,HLOOKUP('Прейскурант на сортовой прокат_'!K$7,'Прайс по регионам'!$1:$2,2,FALSE)-1,FALSE) -> 45709.47368 | L25: =VLOOKUP($A25,'Прайс по регионам'!$B$5:$CJ$50,HLOOKUP('Прейскурант на сортовой прокат_'!L$7,'Прайс по регионам'!$1:$2,2,FALSE)-1,FALSE) -> 45833.68421 | M25: =VLOOKUP($A25,'Прайс по регионам'!$B$5:$CJ$50,HLOOKUP('Прейскурант на сортовой прокат_'!M$7,'Прайс по регионам'!$1:$2,2,FALSE)-1,FALSE) -> 45709.47368 | N25: =VLOOKUP($A25,'Прайс по регионам'!$B$5:$CJ$50,HLOOKUP('Прейскурант на сортовой прокат_'!N$7,'Прайс по регионам'!$1:$2,2,FALSE)-1,FALSE) -> 45833.68421 | O25: =VLOOKUP($A25,'Прайс по регионам'!$B$5:$CJ$50,HLOOKUP('Прейскурант на сортовой прокат_'!O$7,'Прайс по регионам'!$1:$2,2,FALSE)-1,FALSE) ->  | P25: =VLOOKUP($A25,'Прайс по регионам'!$B$5:$CJ$50,HLOOKUP('Прейскурант на сортовой прокат_'!P$7,'Прайс по регионам'!$1:$2,2,FALSE)-1,FALSE) -> 45833.68421 | Q25: =VLOOKUP($A25,'Прайс по регионам'!$B$5:$CJ$50,HLOOKUP('Прейскурант на сортовой прокат_'!Q$7,'Прайс по регионам'!$1:$2,2,FALSE)-1,FALSE) -> 45398.94737 | R25: =VLOOKUP($A25,'Прайс по регионам'!$B$5:$CJ$50,HLOOKUP('Прейскурант на сортовой прокат_'!R$7,'Прайс по регионам'!$1:$2,2,FALSE)-1,FALSE) -> 45709.47368 | S25: =VLOOKUP($A25,'Прайс по регионам'!$B$5:$CJ$50,HLOOKUP('Прейскурант на сортовой прокат_'!S$7,'Прайс по регионам'!$1:$2,2,FALSE)-1,FALSE) -> 45647.36842 | T25: =VLOOKUP($A25,'Прайс по регионам'!$B$5:$CJ$50,HLOOKUP('Прейскурант на сортовой прокат_'!T$7,'Прайс по регионам'!$1:$2,2,FALSE)-1,FALSE) -> 45336.84211 | U25: =VLOOKUP($A25,'Прайс по регионам'!$B$5:$CJ$50,HLOOKUP('Прейскурант на сортовой прокат_'!U$7,'Прайс по регионам'!$1:$2,2,FALSE)-1,FALSE) -> 45336.84211 | V25: =VLOOKUP($A25,'Прайс по регионам'!$B$5:$CJ$50,HLOOKUP('Прейскурант на сортовой прокат_'!V$7,'Прайс по регионам'!$1:$2,2,FALSE)-1,FALSE) -> 44467.36842 | W25: =VLOOKUP($A25,'Прайс по регионам'!$B$5:$CJ$50,HLOOKUP('Прейскурант на сортовой прокат_'!W$7,'Прайс по регионам'!$1:$2,2,FALSE)-1,FALSE) -> 44777.89474 | X25: =VLOOKUP($A25,'Прайс по регионам'!$B$5:$CJ$50,HLOOKUP('Прейскурант на сортовой прокат_'!X$7,'Прайс по регионам'!$1:$2,2,FALSE)-1,FALSE) -> 44653.68421 | Y25: =VLOOKUP($A25,'Прайс по регионам'!$B$5:$CJ$50,HLOOKUP('Прейскурант на сортовой прокат_'!Y$7,'Прайс по регионам'!$1:$2,2,FALSE)-1,FALSE) ->  | Z25: =VLOOKUP($A25,'Прайс по регионам'!$B$5:$CJ$50,HLOOKUP('Прейскурант на сортовой прокат_'!Z$7,'Прайс по регионам'!$1:$2,2,FALSE)-1,FALSE) -> 44467.36842 | AA25: =VLOOKUP($A25,'Прайс по регионам'!$B$5:$CJ$50,HLOOKUP('Прейскурант на сортовой прокат_'!AA$7,'Прайс по регионам'!$1:$2,2,FALSE)-1,FALSE) -> 45026.31579 | AB25: =VLOOKUP($A25,'Прайс по регионам'!$B$5:$CJ$50,HLOOKUP('Прейскурант на сортовой прокат_'!AB$7,'Прайс по регионам'!$1:$2,2,FALSE)-1,FALSE) -> 44467.36842 | AC25: =VLOOKUP($A25,'Прайс по регионам'!$B$5:$CJ$50,HLOOKUP('Прейскурант на сортовой прокат_'!AC$7,'Прайс по регионам'!$1:$2,2,FALSE)-1,FALSE) -> 45088.42105 | AD25: =VLOOKUP($A25,'Прайс по регионам'!$B$5:$CJ$50,HLOOKUP('Прейскурант на сортовой прокат_'!AD$7,'Прайс по регионам'!$1:$2,2,FALSE)-1,FALSE) -> 44653.68421 | AE25: =VLOOKUP($A25,'Прайс по регионам'!$B$5:$CJ$50,HLOOKUP('Прейскурант на сортовой прокат_'!AE$7,'Прайс по регионам'!$1:$2,2,FALSE)-1,FALSE) -> 44653.68421 | AF25: =VLOOKUP($A25,'Прайс по регионам'!$B$5:$CJ$50,HLOOKUP('Прейскурант на сортовой прокат_'!AF$7,'Прайс по регионам'!$1:$2,2,FALSE)-1,FALSE) -> 45026.31579 | AG25: =VLOOKUP($A25,'Прайс по регионам'!$B$5:$CJ$50,HLOOKUP('Прейскурант на сортовой прокат_'!AG$7,'Прайс по регионам'!$1:$2,2,FALSE)-1,FALSE) -> 44591.57895 | AH25: =VLOOKUP($A25,'Прайс по регионам'!$B$5:$CJ$50,HLOOKUP('Прейскурант на сортовой прокат_'!AH$7,'Прайс по регионам'!$1:$2,2,FALSE)-1,FALSE) -> 45026.31579 | AI25: =VLOOKUP($A25,'Прайс по регионам'!$B$5:$CJ$50,HLOOKUP('Прейскурант на сортовой прокат_'!AI$7,'Прайс по регионам'!$1:$2,2,FALSE)-1,FALSE) ->  | AJ25: =VLOOKUP($A25,'Прайс по регионам'!$B$5:$CJ$50,HLOOKUP('Прейскурант на сортовой прокат_'!AJ$7,'Прайс по регионам'!$1:$2,2,FALSE)-1,FALSE) -> 44591.57895 | AK25: =VLOOKUP($A25,'Прайс по регионам'!$B$5:$CJ$50,HLOOKUP('Прейскурант на сортовой прокат_'!AK$7,'Прайс по регионам'!$1:$2,2,FALSE)-1,FALSE) -> 45212.63158 | AL25: =VLOOKUP($A25,'Прайс по регионам'!$B$5:$CJ$50,HLOOKUP('Прейскурант на сортовой прокат_'!AL$7,'Прайс по регионам'!$1:$2,2,FALSE)-1,FALSE) -> 44777.89474 | AM25: =VLOOKUP($A25,'Прайс по регионам'!$B$5:$CJ$50,HLOOKUP('Прейскурант на сортовой прокат_'!AM$7,'Прайс по регионам'!$1:$2,2,FALSE)-1,FALSE) -> 44467.36842 | AN25: =VLOOKUP($A25,'Прайс по регионам'!$B$5:$CJ$50,HLOOKUP('Прейскурант на сортовой прокат_'!AN$7,'Прайс по регионам'!$1:$2,2,FALSE)-1,FALSE) -> 45026.31579 | AO25: =VLOOKUP($A25,'Прайс по регионам'!$B$5:$CJ$50,HLOOKUP('Прейскурант на сортовой прокат_'!AO$7,'Прайс по регионам'!$1:$2,2,FALSE)-1,FALSE) -> 44467.36842 | AP25: =VLOOKUP($A25,'Прайс по регионам'!$B$5:$CJ$50,HLOOKUP('Прейскурант на сортовой прокат_'!AP$7,'Прайс по регионам'!$1:$2,2,FALSE)-1,FALSE) -> 45026.31579 | AQ25: =VLOOKUP($A25,'Прайс по регионам'!$B$5:$CJ$50,HLOOKUP('Прейскурант на сортовой прокат_'!AQ$7,'Прайс по регионам'!$1:$2,2,FALSE)-1,FALSE) -> 45026.31579 | AR25: =VLOOKUP($A25,'Прайс по регионам'!$B$5:$CJ$50,HLOOKUP('Прейскурант на сортовой прокат_'!AR$7,'Прайс по регионам'!$1:$2,2,FALSE)-1,FALSE) -> 46144.21053 | AS25: =VLOOKUP($A25,'Прайс по регионам'!$B$5:$CJ$50,HLOOKUP('Прейскурант на сортовой прокат_'!AS$7,'Прайс по регионам'!$1:$2,2,FALSE)-1,FALSE) ->  | AT25: =VLOOKUP($A25,'Прайс по регионам'!$B$5:$CJ$50,HLOOKUP('Прейскурант на сортовой прокат_'!AT$7,'Прайс по регионам'!$1:$2,2,FALSE)-1,FALSE) -> 45212.63158 | AU25: =VLOOKUP($A25,'Прайс по регионам'!$B$5:$CJ$50,HLOOKUP('Прейскурант на сортовой прокат_'!AU$7,'Прайс по регионам'!$1:$2,2,FALSE)-1,FALSE) -> 45212.63158 | AV25: =VLOOKUP($A25,'Прайс по регионам'!$B$5:$CJ$50,HLOOKUP('Прейскурант на сортовой прокат_'!AV$7,'Прайс по регионам'!$1:$2,2,FALSE)-1,FALSE) -> 45212.63158 | AW25: =VLOOKUP($A25,'Прайс по регионам'!$B$5:$CJ$50,HLOOKUP('Прейскурант на сортовой прокат_'!AW$7,'Прайс по регионам'!$1:$2,2,FALSE)-1,FALSE) -> 45088.42105 | AX25: =VLOOKUP($A25,'Прайс по регионам'!$B$5:$CJ$50,HLOOKUP('Прейскурант на сортовой прокат_'!AX$7,'Прайс по регионам'!$1:$2,2,FALSE)-1,FALSE) -> 43660 | AY25: =VLOOKUP($A25,'Прайс по регионам'!$B$5:$CJ$50,HLOOKUP('Прейскурант на сортовой прокат_'!AY$7,'Прайс по регионам'!$1:$2,2,FALSE)-1,FALSE) -> 44032.63158 | AZ25: =VLOOKUP($A25,'Прайс по регионам'!$B$5:$CJ$50,HLOOKUP('Прейскурант на сортовой прокат_'!AZ$7,'Прайс по регионам'!$1:$2,2,FALSE)-1,FALSE) -> 43722.10526 | BA25: =VLOOKUP($A25,'Прайс по регионам'!$B$5:$CJ$50,HLOOKUP('Прейскурант на сортовой прокат_'!BA$7,'Прайс по регионам'!$1:$2,2,FALSE)-1,FALSE) -> 44156.84211 | BB25: =VLOOKUP($A25,'Прайс по регионам'!$B$5:$CJ$50,HLOOKUP('Прейскурант на сортовой прокат_'!BB$7,'Прайс по регионам'!$1:$2,2,FALSE)-1,FALSE) -> 43287.36842 | BC25: =VLOOKUP($A25,'Прайс по регионам'!$B$5:$CJ$50,HLOOKUP('Прейскурант на сортовой прокат_'!BC$7,'Прайс по регионам'!$1:$2,2,FALSE)-1,FALSE) ->  | BD25: =VLOOKUP($A25,'Прайс по регионам'!$B$5:$CJ$50,HLOOKUP('Прейскурант на сортовой прокат_'!BD$7,'Прайс по регионам'!$1:$2,2,FALSE)-1,FALSE) -> 43287.36842 | BE25: =VLOOKUP($A25,'Прайс по регионам'!$B$5:$CJ$50,HLOOKUP('Прейскурант на сортовой прокат_'!BE$7,'Прайс по регионам'!$1:$2,2,FALSE)-1,FALSE) -> 43722.10526 | BF25: =VLOOKUP($A25,'Прайс по регионам'!$B$5:$CJ$50,HLOOKUP('Прейскурант на сортовой прокат_'!BF$7,'Прайс по регионам'!$1:$2,2,FALSE)-1,FALSE) -> 44032.63158 | BG25: =VLOOKUP($A25,'Прайс по регионам'!$B$5:$CJ$50,HLOOKUP('Прейскурант на сортовой прокат_'!BG$7,'Прайс по регионам'!$1:$2,2,FALSE)-1,FALSE) -> 43660 | BH25: =VLOOKUP($A25,'Прайс по регионам'!$B$5:$CJ$50,HLOOKUP('Прейскурант на сортовой прокат_'!BH$7,'Прайс по регионам'!$1:$2,2,FALSE)-1,FALSE) -> 43287.36842 | BI25: =VLOOKUP($A25,'Прайс по регионам'!$B$5:$CJ$50,HLOOKUP('Прейскурант на сортовой прокат_'!BI$7,'Прайс по регионам'!$1:$2,2,FALSE)-1,FALSE) -> 43846.31579 | BJ25: =VLOOKUP($A25,'Прайс по регионам'!$B$5:$CJ$50,HLOOKUP('Прейскурант на сортовой прокат_'!BJ$7,'Прайс по регионам'!$1:$2,2,FALSE)-1,FALSE) -> 44156.84211 | BK25: =VLOOKUP($A25,'Прайс по регионам'!$B$5:$CJ$50,HLOOKUP('Прейскурант на сортовой прокат_'!BK$7,'Прайс по регионам'!$1:$2,2,FALSE)-1,FALSE) -> 43722.10526 | BL25: =VLOOKUP($A25,'Прайс по регионам'!$B$5:$CJ$50,HLOOKUP('Прейскурант на сортовой прокат_'!BL$7,'Прайс по регионам'!$1:$2,2,FALSE)-1,FALSE) -> 43846.31579 | BM25: =VLOOKUP($A25,'Прайс по регионам'!$B$5:$CJ$50,HLOOKUP('Прейскурант на сортовой прокат_'!BM$7,'Прайс по регионам'!$1:$2,2,FALSE)-1,FALSE) ->  | BN25: =VLOOKUP($A25,'Прайс по регионам'!$B$5:$CJ$50,HLOOKUP('Прейскурант на сортовой прокат_'!BN$7,'Прайс по регионам'!$1:$2,2,FALSE)-1,FALSE) -> 45647.36842 | BO25: =VLOOKUP($A25,'Прайс по регионам'!$B$5:$CJ$50,HLOOKUP('Прейскурант на сортовой прокат_'!BO$7,'Прайс по регионам'!$1:$2,2,FALSE)-1,FALSE) -> 43101.05263 | BP25: =VLOOKUP($A25,'Прайс по регионам'!$B$5:$CJ$50,HLOOKUP('Прейскурант на сортовой прокат_'!BP$7,'Прайс по регионам'!$1:$2,2,FALSE)-1,FALSE) -> 43660 | BQ25: =VLOOKUP($A25,'Прайс по регионам'!$B$5:$CJ$50,HLOOKUP('Прейскурант на сортовой прокат_'!BQ$7,'Прайс по регионам'!$1:$2,2,FALSE)-1,FALSE) -> 43535.78947 | BR25: =VLOOKUP($A25,'Прайс по регионам'!$B$5:$CJ$50,HLOOKUP('Прейскурант на сортовой прокат_'!BR$7,'Прайс по регионам'!$1:$2,2,FALSE)-1,FALSE) -> 42976.84211 | BS25: =VLOOKUP($A25,'Прайс по регионам'!$B$5:$CJ$50,HLOOKUP('Прейскурант на сортовой прокат_'!BS$7,'Прайс по регионам'!$1:$2,2,FALSE)-1,FALSE) -> 42355.78947 | BT25: =VLOOKUP($A25,'Прайс по регионам'!$B$5:$CJ$50,HLOOKUP('Прейскурант на сортовой прокат_'!BT$7,'Прайс по регионам'!$1:$2,2,FALSE)-1,FALSE) -> 45647.36842 | BU25: =VLOOKUP($A25,'Прайс по регионам'!$B$5:$CJ$50,HLOOKUP('Прейскурант на сортовой прокат_'!BU$7,'Прайс по регионам'!$1:$2,2,FALSE)-1,FALSE) ->  | BV25: =VLOOKUP($A25,'Прайс по регионам'!$B$5:$CJ$50,HLOOKUP('Прейскурант на сортовой прокат_'!BV$7,'Прайс по регионам'!$1:$2,2,FALSE)-1,FALSE) -> 45274.73684 | BW25: =VLOOKUP($A25,'Прайс по регионам'!$B$5:$CJ$50,HLOOKUP('Прейскурант на сортовой прокат_'!BW$7,'Прайс по регионам'!$1:$2,2,FALSE)-1,FALSE) -> 47572.63158 | BX25: =VLOOKUP($A25,'Прайс по регионам'!$B$5:$CJ$50,HLOOKUP('Прейскурант на сортовой прокат_'!BX$7,'Прайс по регионам'!$1:$2,2,FALSE)-1,FALSE) -> 45274.73684 | BY25: =VLOOKUP($A25,'Прайс по регионам'!$B$5:$CJ$50,HLOOKUP('Прейскурант на сортовой прокат_'!BY$7,'Прайс по регионам'!$1:$2,2,FALSE)-1,FALSE) -> 47572.63158 | BZ25: =VLOOKUP($A25,'Прайс по регионам'!$B$5:$CJ$50,HLOOKUP('Прейскурант на сортовой прокат_'!BZ$7,'Прайс по регионам'!$1:$2,2,FALSE)-1,FALSE) -> 45274.73684 | CA25: =VLOOKUP($A25,'Прайс по регионам'!$B$5:$CJ$50,HLOOKUP('Прейскурант на сортовой прокат_'!CA$7,'Прайс по регионам'!$1:$2,2,FALSE)-1,FALSE) -> 44218.94737 | CB25: =VLOOKUP($A25,'Прайс по регионам'!$B$5:$CJ$50,HLOOKUP('Прейскурант на сортовой прокат_'!CB$7,'Прайс по регионам'!$1:$2,2,FALSE)-1,FALSE) -> 45274.73684 | CC25: =VLOOKUP($A25,'Прайс по регионам'!$B$5:$CJ$50,HLOOKUP('Прейскурант на сортовой прокат_'!CC$7,'Прайс по регионам'!$1:$2,2,FALSE)-1,FALSE) -> 48131.57895 | CD25: =VLOOKUP($A25,'Прайс по регионам'!$B$5:$CJ$50,HLOOKUP('Прейскурант на сортовой прокат_'!CD$7,'Прайс по регионам'!$1:$2,2,FALSE)-1,FALSE) -> 47572.63158 | CE25: =VLOOKUP($A25,'Прайс по регионам'!$B$5:$CJ$50,HLOOKUP('Прейскурант на сортовой прокат_'!CE$7,'Прайс по регионам'!$1:$2,2,FALSE)-1,FALSE) ->  | CF25: =VLOOKUP($A25,'Прайс по регионам'!$B$5:$CJ$50,HLOOKUP('Прейскурант на сортовой прокат_'!CF$7,'Прайс по регионам'!$1:$2,2,FALSE)-1,FALSE) -> 47572.63158 | CG25: =VLOOKUP($A25,'Прайс по регионам'!$B$5:$CJ$50,HLOOKUP('Прейскурант на сортовой прокат_'!CG$7,'Прайс по регионам'!$1:$2,2,FALSE)-1,FALSE) -> 45274.73684 | CH25: =VLOOKUP($A25,'Прайс по регионам'!$B$5:$CJ$50,HLOOKUP('Прейскурант на сортовой прокат_'!CH$7,'Прайс по регионам'!$1:$2,2,FALSE)-1,FALSE) -> 49684.21053 | CI25: =VLOOKUP($A25,'Прайс по регионам'!$B$5:$CJ$50,HLOOKUP('Прейскурант на сортовой прокат_'!CI$7,'Прайс по регионам'!$1:$2,2,FALSE)-1,FALSE) -> 48317.89474 | CJ25: =VLOOKUP($A25,'Прайс по регионам'!$B$5:$CJ$50,HLOOKUP('Прейскурант на сортовой прокат_'!CJ$7,'Прайс по регионам'!$1:$2,2,FALSE)-1,FALSE) -> 48317.89474 | CK25: =VLOOKUP($A25,'Прайс по регионам'!$B$5:$CJ$50,HLOOKUP('Прейскурант на сортовой прокат_'!CK$7,'Прайс по регионам'!$1:$2,2,FALSE)-1,FALSE) -> 48317.89474 | CL25: =VLOOKUP($A25,'Прайс по регионам'!$B$5:$CJ$50,HLOOKUP('Прейскурант на сортовой прокат_'!CL$7,'Прайс по регионам'!$1:$2,2,FALSE)-1,FALSE) -> 49249.47368 | CM25: =VLOOKUP($A25,'Прайс по регионам'!$B$5:$CJ$50,HLOOKUP('Прейскурант на сортовой прокат_'!CM$7,'Прайс по регионам'!$1:$2,2,FALSE)-1,FALSE) ->  | CN25: =VLOOKUP($A25,'Прайс по регионам'!$B$5:$CJ$50,HLOOKUP('Прейскурант на сортовой прокат_'!CN$7,'Прайс по регионам'!$1:$2,2,FALSE)-1,FALSE) -> 48317.89474 | CO25: =VLOOKUP($A25,'Прайс по регионам'!$B$5:$CJ$50,HLOOKUP('Прейскурант на сортовой прокат_'!CO$7,'Прайс по регионам'!$1:$2,2,FALSE)-1,FALSE) -> 49684.21053 | CP25: =VLOOKUP($A25,'Прайс по регионам'!$B$5:$CJ$50,HLOOKUP('Прейскурант на сортовой прокат_'!CP$7,'Прайс по регионам'!$1:$2,2,FALSE)-1,FALSE) -> 52603.15789 | CQ25: =VLOOKUP($A25,'Прайс по регионам'!$B$5:$CJ$50,HLOOKUP('Прейскурант на сортовой прокат_'!CQ$7,'Прайс по регионам'!$1:$2,2,FALSE)-1,FALSE) -> 49249.47368 | CR25: =VLOOKUP($A25,'Прайс по регионам'!$B$5:$CJ$50,HLOOKUP('Прейскурант на сортовой прокат_'!CR$7,'Прайс по регионам'!$1:$2,2,FALSE)-1,FALSE) -> 49187.36842
A26: Ас500С_10 | C26: Ас500С | D26: ТУ 14-1-5543-2006 | E26: ТУ 14-1-5543-2006 | F26: =VLOOKUP($A26,'Прайс по регионам'!$B$5:$CJ$50,HLOOKUP('Прейскурант на сортовой прокат_'!F$7,'Прайс по регионам'!$1:$2,2,FALSE)-1,FALSE) -> 45150.52632 | G26: =VLOOKUP($A26,'Прайс по регионам'!$B$5:$CJ$50,HLOOKUP('Прейскурант на сортовой прокат_'!G$7,'Прайс по регионам'!$1:$2,2,FALSE)-1,FALSE) -> 45150.52632 | H26: =VLOOKUP($A26,'Прайс по регионам'!$B$5:$CJ$50,HLOOKUP('Прейскурант на сортовой прокат_'!H$7,'Прайс по регионам'!$1:$2,2,FALSE)-1,FALSE) -> 44840 | I26: =VLOOKUP($A26,'Прайс по регионам'!$B$5:$CJ$50,HLOOKUP('Прейскурант на сортовой прокат_'!I$7,'Прайс по регионам'!$1:$2,2,FALSE)-1,FALSE) -> 46020 | J26: =VLOOKUP($A26,'Прайс по регионам'!$B$5:$CJ$50,HLOOKUP('Прейскурант на сортовой прокат_'!J$7,'Прайс по регионам'!$1:$2,2,FALSE)-1,FALSE) -> 45771.57895 | K26: =VLOOKUP($A26,'Прайс по регионам'!$B$5:$CJ$50,HLOOKUP('Прейскурант на сортовой прокат_'!K$7,'Прайс по регионам'!$1:$2,2,FALSE)-1,FALSE) -> 45895.78947 | L26: =VLOOKUP($A26,'Прайс по регионам'!$B$5:$CJ$50,HLOOKUP('Прейскурант на сортовой прокат_'!L$7,'Прайс по регионам'!$1:$2,2,FALSE)-1,FALSE) -> 46020 | M26: =VLOOKUP($A26,'Прайс по регионам'!$B$5:$CJ$50,HLOOKUP('Прейскурант на сортовой прокат_'!M$7,'Прайс по регионам'!$1:$2,2,FALSE)-1,FALSE) -> 45895.78947 | N26: =VLOOKUP($A26,'Прайс по регионам'!$B$5:$CJ$50,HLOOKUP('Прейскурант на сортовой прокат_'!N$7,'Прайс по регионам'!$1:$2,2,FALSE)-1,FALSE) -> 46020 | O26: =VLOOKUP($A26,'Прайс по регионам'!$B$5:$CJ$50,HLOOKUP('Прейскурант на сортовой прокат_'!O$7,'Прайс по регионам'!$1:$2,2,FALSE)-1,FALSE) ->  | P26: =VLOOKUP($A26,'Прайс по регионам'!$B$5:$CJ$50,HLOOKUP('Прейскурант на сортовой прокат_'!P$7,'Прайс по регионам'!$1:$2,2,FALSE)-1,FALSE) -> 46020 | Q26: =VLOOKUP($A26,'Прайс по регионам'!$B$5:$CJ$50,HLOOKUP('Прейскурант на сортовой прокат_'!Q$7,'Прайс по регионам'!$1:$2,2,FALSE)-1,FALSE) -> 45585.26316 | R26: =VLOOKUP($A26,'Прайс по регионам'!$B$5:$CJ$50,HLOOKUP('Прейскурант на сортовой прокат_'!R$7,'Прайс по регионам'!$1:$2,2,FALSE)-1,FALSE) -> 45895.78947 | S26: =VLOOKUP($A26,'Прайс по регионам'!$B$5:$CJ$50,HLOOKUP('Прейскурант на сортовой прокат_'!S$7,'Прайс по регионам'!$1:$2,2,FALSE)-1,FALSE) -> 45771.57895 | T26: =VLOOKUP($A26,'Прайс по регионам'!$B$5:$CJ$50,HLOOKUP('Прейскурант на сортовой прокат_'!T$7,'Прайс по регионам'!$1:$2,2,FALSE)-1,FALSE) -> 45461.05263 | U26: =VLOOKUP($A26,'Прайс по регионам'!$B$5:$CJ$50,HLOOKUP('Прейскурант на сортовой прокат_'!U$7,'Прайс по регионам'!$1:$2,2,FALSE)-1,FALSE) -> 45461.05263 | V26: =VLOOKUP($A26,'Прайс по регионам'!$B$5:$CJ$50,HLOOKUP('Прейскурант на сортовой прокат_'!V$7,'Прайс по регионам'!$1:$2,2,FALSE)-1,FALSE) -> 44653.68421 | W26: =VLOOKUP($A26,'Прайс по регионам'!$B$5:$CJ$50,HLOOKUP('Прейскурант на сортовой прокат_'!W$7,'Прайс по регионам'!$1:$2,2,FALSE)-1,FALSE) -> 44964.21053 | X26: =VLOOKUP($A26,'Прайс по регионам'!$B$5:$CJ$50,HLOOKUP('Прейскурант на сортовой прокат_'!X$7,'Прайс по регионам'!$1:$2,2,FALSE)-1,FALSE) -> 44840 | Y26: =VLOOKUP($A26,'Прайс по регионам'!$B$5:$CJ$50,HLOOKUP('Прейскурант на сортовой прокат_'!Y$7,'Прайс по регионам'!$1:$2,2,FALSE)-1,FALSE) ->  | Z26: =VLOOKUP($A26,'Прайс по регионам'!$B$5:$CJ$50,HLOOKUP('Прейскурант на сортовой прокат_'!Z$7,'Прайс по регионам'!$1:$2,2,FALSE)-1,FALSE) -> 44653.68421 | AA26: =VLOOKUP($A26,'Прайс по регионам'!$B$5:$CJ$50,HLOOKUP('Прейскурант на сортовой прокат_'!AA$7,'Прайс по регионам'!$1:$2,2,FALSE)-1,FALSE) -> 45150.52632 | AB26: =VLOOKUP($A26,'Прайс по регионам'!$B$5:$CJ$50,HLOOKUP('Прейскурант на сортовой прокат_'!AB$7,'Прайс по регионам'!$1:$2,2,FALSE)-1,FALSE) -> 44653.68421 | AC26: =VLOOKUP($A26,'Прайс по регионам'!$B$5:$CJ$50,HLOOKUP('Прейскурант на сортовой прокат_'!AC$7,'Прайс по регионам'!$1:$2,2,FALSE)-1,FALSE) -> 45274.73684 | AD26: =VLOOKUP($A26,'Прайс по регионам'!$B$5:$CJ$50,HLOOKUP('Прейскурант на сортовой прокат_'!AD$7,'Прайс по регионам'!$1:$2,2,FALSE)-1,FALSE) -> 44840 | AE26: =VLOOKUP($A26,'Прайс по регионам'!$B$5:$CJ$50,HLOOKUP('Прейскурант на сортовой прокат_'!AE$7,'Прайс по регионам'!$1:$2,2,FALSE)-1,FALSE) -> 44840 | AF26: =VLOOKUP($A26,'Прайс по регионам'!$B$5:$CJ$50,HLOOKUP('Прейскурант на сортовой прокат_'!AF$7,'Прайс по регионам'!$1:$2,2,FALSE)-1,FALSE) -> 45150.52632 | AG26: =VLOOKUP($A26,'Прайс по регионам'!$B$5:$CJ$50,HLOOKUP('Прейскурант на сортовой прокат_'!AG$7,'Прайс по регионам'!$1:$2,2,FALSE)-1,FALSE) -> 44715.78947 | AH26: =VLOOKUP($A26,'Прайс по регионам'!$B$5:$CJ$50,HLOOKUP('Прейскурант на сортовой прокат_'!AH$7,'Прайс по регионам'!$1:$2,2,FALSE)-1,FALSE) -> 45150.52632 | AI26: =VLOOKUP($A26,'Прайс по регионам'!$B$5:$CJ$50,HLOOKUP('Прейскурант на сортовой прокат_'!AI$7,'Прайс по регионам'!$1:$2,2,FALSE)-1,FALSE) ->  | AJ26: =VLOOKUP($A26,'Прайс по регионам'!$B$5:$CJ$50,HLOOKUP('Прейскурант на сортовой прокат_'!AJ$7,'Прайс по регионам'!$1:$2,2,FALSE)-1,FALSE) -> 44715.78947 | AK26: =VLOOKUP($A26,'Прайс по регионам'!$B$5:$CJ$50,HLOOKUP('Прейскурант на сортовой прокат_'!AK$7,'Прайс по регионам'!$1:$2,2,FALSE)-1,FALSE) -> 45336.84211 | AL26: =VLOOKUP($A26,'Прайс по регионам'!$B$5:$CJ$50,HLOOKUP('Прейскурант на сортовой прокат_'!AL$7,'Прайс по регионам'!$1:$2,2,FALSE)-1,FALSE) -> 44964.21053 | AM26: =VLOOKUP($A26,'Прайс по регионам'!$B$5:$CJ$50,HLOOKUP('Прейскурант на сортовой прокат_'!AM$7,'Прайс по регионам'!$1:$2,2,FALSE)-1,FALSE) -> 44653.68421 | AN26: =VLOOKUP($A26,'Прайс по регионам'!$B$5:$CJ$50,HLOOKUP('Прейскурант на сортовой прокат_'!AN$7,'Прайс по регионам'!$1:$2,2,FALSE)-1,FALSE) -> 45150.52632 | AO26: =VLOOKUP($A26,'Прайс по регионам'!$B$5:$CJ$50,HLOOKUP('Прейскурант на сортовой прокат_'!AO$7,'Прайс по регионам'!$1:$2,2,FALSE)-1,FALSE) -> 44653.68421 | AP26: =VLOOKUP($A26,'Прайс по регионам'!$B$5:$CJ$50,HLOOKUP('Прейскурант на сортовой прокат_'!AP$7,'Прайс по регионам'!$1:$2,2,FALSE)-1,FALSE) -> 45150.52632 | AQ26: =VLOOKUP($A26,'Прайс по регионам'!$B$5:$CJ$50,HLOOKUP('Прейскурант на сортовой прокат_'!AQ$7,'Прайс по регионам'!$1:$2,2,FALSE)-1,FALSE) -> 45150.52632 | AR26: =VLOOKUP($A26,'Прайс по регионам'!$B$5:$CJ$50,HLOOKUP('Прейскурант на сортовой прокат_'!AR$7,'Прайс по регионам'!$1:$2,2,FALSE)-1,FALSE) -> 46330.52632 | AS26: =VLOOKUP($A26,'Прайс по регионам'!$B$5:$CJ$50,HLOOKUP('Прейскурант на сортовой прокат_'!AS$7,'Прайс по регионам'!$1:$2,2,FALSE)-1,FALSE) ->  | AT26: =VLOOKUP($A26,'Прайс по регионам'!$B$5:$CJ$50,HLOOKUP('Прейскурант на сортовой прокат_'!AT$7,'Прайс по регионам'!$1:$2,2,FALSE)-1,FALSE) -> 45336.84211 | AU26: =VLOOKUP($A26,'Прайс по регионам'!$B$5:$CJ$50,HLOOKUP('Прейскурант на сортовой прокат_'!AU$7,'Прайс по регионам'!$1:$2,2,FALSE)-1,FALSE) -> 45336.84211 | AV26: =VLOOKUP($A26,'Прайс по регионам'!$B$5:$CJ$50,HLOOKUP('Прейскурант на сортовой прокат_'!AV$7,'Прайс по регионам'!$1:$2,2,FALSE)-1,FALSE) -> 45336.84211 | AW26: =VLOOKUP($A26,'Прайс по регионам'!$B$5:$CJ$50,HLOOKUP('Прейскурант на сортовой прокат_'!AW$7,'Прайс по регионам'!$1:$2,2,FALSE)-1,FALSE) -> 45274.73684 | AX26: =VLOOKUP($A26,'Прайс по регионам'!$B$5:$CJ$50,HLOOKUP('Прейскурант на сортовой прокат_'!AX$7,'Прайс по регионам'!$1:$2,2,FALSE)-1,FALSE) -> 43784.21053 | AY26: =VLOOKUP($A26,'Прайс по регионам'!$B$5:$CJ$50,HLOOKUP('Прейскурант на сортовой прокат_'!AY$7,'Прайс по регионам'!$1:$2,2,FALSE)-1,FALSE) -> 44218.94737 | AZ26: =VLOOKUP($A26,'Прайс по регионам'!$B$5:$CJ$50,HLOOKUP('Прейскурант на сортовой прокат_'!AZ$7,'Прайс по регионам'!$1:$2,2,FALSE)-1,FALSE) -> 43908.42105 | BA26: =VLOOKUP($A26,'Прайс по регионам'!$B$5:$CJ$50,HLOOKUP('Прейскурант на сортовой прокат_'!BA$7,'Прайс по регионам'!$1:$2,2,FALSE)-1,FALSE) -> 44343.15789 | BB26: =VLOOKUP($A26,'Прайс по регионам'!$B$5:$CJ$50,HLOOKUP('Прейскурант на сортовой прокат_'!BB$7,'Прайс по регионам'!$1:$2,2,FALSE)-1,FALSE) -> 43473.68421 | BC26: =VLOOKUP($A26,'Прайс по регионам'!$B$5:$CJ$50,HLOOKUP('Прейскурант на сортовой прокат_'!BC$7,'Прайс по регионам'!$1:$2,2,FALSE)-1,FALSE) ->  | BD26: =VLOOKUP($A26,'Прайс по регионам'!$B$5:$CJ$50,HLOOKUP('Прейскурант на сортовой прокат_'!BD$7,'Прайс по регионам'!$1:$2,2,FALSE)-1,FALSE) -> 43473.68421 | BE26: =VLOOKUP($A26,'Прайс по регионам'!$B$5:$CJ$50,HLOOKUP('Прейскурант на сортовой прокат_'!BE$7,'Прайс по регионам'!$1:$2,2,FALSE)-1,FALSE) -> 43908.42105 | BF26: =VLOOKUP($A26,'Прайс по регионам'!$B$5:$CJ$50,HLOOKUP('Прейскурант на сортовой прокат_'!BF$7,'Прайс по регионам'!$1:$2,2,FALSE)-1,FALSE) -> 44218.94737 | BG26: =VLOOKUP($A26,'Прайс по регионам'!$B$5:$CJ$50,HLOOKUP('Прейскурант на сортовой прокат_'!BG$7,'Прайс по регионам'!$1:$2,2,FALSE)-1,FALSE) -> 43784.21053 | BH26: =VLOOKUP($A26,'Прайс по регионам'!$B$5:$CJ$50,HLOOKUP('Прейскурант на сортовой прокат_'!BH$7,'Прайс по регионам'!$1:$2,2,FALSE)-1,FALSE) -> 43473.68421 | BI26: =VLOOKUP($A26,'Прайс по регионам'!$B$5:$CJ$50,HLOOKUP('Прейскурант на сортовой прокат_'!BI$7,'Прайс по регионам'!$1:$2,2,FALSE)-1,FALSE) -> 43970.52632 | BJ26: =VLOOKUP($A26,'Прайс по регионам'!$B$5:$CJ$50,HLOOKUP('Прейскурант на сортовой прокат_'!BJ$7,'Прайс по регионам'!$1:$2,2,FALSE)-1,FALSE) -> 44343.15789 | BK26: =VLOOKUP($A26,'Прайс по регионам'!$B$5:$CJ$50,HLOOKUP('Прейскурант на сортовой прокат_'!BK$7,'Прайс по регионам'!$1:$2,2,FALSE)-1,FALSE) -> 43908.42105 | BL26: =VLOOKUP($A26,'Прайс по регионам'!$B$5:$CJ$50,HLOOKUP('Прейскурант на сортовой прокат_'!BL$7,'Прайс по регионам'!$1:$2,2,FALSE)-1,FALSE) -> 43970.52632 | BM26: =VLOOKUP($A26,'Прайс по регионам'!$B$5:$CJ$50,HLOOKUP('Прейскурант на сортовой прокат_'!BM$7,'Прайс по регионам'!$1:$2,2,FALSE)-1,FALSE) ->  | BN26: =VLOOKUP($A26,'Прайс по регионам'!$B$5:$CJ$50,HLOOKUP('Прейскурант на сортовой прокат_'!BN$7,'Прайс по регионам'!$1:$2,2,FALSE)-1,FALSE) -> 45771.57895 | BO26: =VLOOKUP($A26,'Прайс по регионам'!$B$5:$CJ$50,HLOOKUP('Прейскурант на сортовой прокат_'!BO$7,'Прайс по регионам'!$1:$2,2,FALSE)-1,FALSE) -> 43287.36842 | BP26: =VLOOKUP($A26,'Прайс по регионам'!$B$5:$CJ$50,HLOOKUP('Прейскурант на сортовой прокат_'!BP$7,'Прайс по регионам'!$1:$2,2,FALSE)-1,FALSE) -> 43784.21053 | BQ26: =VLOOKUP($A26,'Прайс по регионам'!$B$5:$CJ$50,HLOOKUP('Прейскурант на сортовой прокат_'!BQ$7,'Прайс по регионам'!$1:$2,2,FALSE)-1,FALSE) -> 43660 | BR26: =VLOOKUP($A26,'Прайс по регионам'!$B$5:$CJ$50,HLOOKUP('Прейскурант на сортовой прокат_'!BR$7,'Прайс по регионам'!$1:$2,2,FALSE)-1,FALSE) -> 43163.15789 | BS26: =VLOOKUP($A26,'Прайс по регионам'!$B$5:$CJ$50,HLOOKUP('Прейскурант на сортовой прокат_'!BS$7,'Прайс по регионам'!$1:$2,2,FALSE)-1,FALSE) -> 42542.10526 | BT26: =VLOOKUP($A26,'Прайс по регионам'!$B$5:$CJ$50,HLOOKUP('Прейскурант на сортовой прокат_'!BT$7,'Прайс по регионам'!$1:$2,2,FALSE)-1,FALSE) -> 45771.57895 | BU26: =VLOOKUP($A26,'Прайс по регионам'!$B$5:$CJ$50,HLOOKUP('Прейскурант на сортовой прокат_'!BU$7,'Прайс по регионам'!$1:$2,2,FALSE)-1,FALSE) ->  | BV26: =VLOOKUP($A26,'Прайс по регионам'!$B$5:$CJ$50,HLOOKUP('Прейскурант на сортовой прокат_'!BV$7,'Прайс по регионам'!$1:$2,2,FALSE)-1,FALSE) -> 45274.73684 | BW26: =VLOOKUP($A26,'Прайс по регионам'!$B$5:$CJ$50,HLOOKUP('Прейскурант на сортовой прокат_'!BW$7,'Прайс по регионам'!$1:$2,2,FALSE)-1,FALSE) -> 47572.63158 | BX26: =VLOOKUP($A26,'Прайс по регионам'!$B$5:$CJ$50,HLOOKUP('Прейскурант на сортовой прокат_'!BX$7,'Прайс по регионам'!$1:$2,2,FALSE)-1,FALSE) -> 45274.73684 | BY26: =VLOOKUP($A26,'Прайс по регионам'!$B$5:$CJ$50,HLOOKUP('Прейскурант на сортовой прокат_'!BY$7,'Прайс по регионам'!$1:$2,2,FALSE)-1,FALSE) -> 47572.63158 | BZ26: =VLOOKUP($A26,'Прайс по регионам'!$B$5:$CJ$50,HLOOKUP('Прейскурант на сортовой прокат_'!BZ$7,'Прайс по регионам'!$1:$2,2,FALSE)-1,FALSE) -> 45274.73684 | CA26: =VLOOKUP($A26,'Прайс по регионам'!$B$5:$CJ$50,HLOOKUP('Прейскурант на сортовой прокат_'!CA$7,'Прайс по регионам'!$1:$2,2,FALSE)-1,FALSE) -> 44218.94737 | CB26: =VLOOKUP($A26,'Прайс по регионам'!$B$5:$CJ$50,HLOOKUP('Прейскурант на сортовой прокат_'!CB$7,'Прайс по регионам'!$1:$2,2,FALSE)-1,FALSE) -> 45274.73684 | CC26: =VLOOKUP($A26,'Прайс по регионам'!$B$5:$CJ$50,HLOOKUP('Прейскурант на сортовой прокат_'!CC$7,'Прайс по регионам'!$1:$2,2,FALSE)-1,FALSE) -> 48131.57895 | CD26: =VLOOKUP($A26,'Прайс по регионам'!$B$5:$CJ$50,HLOOKUP('Прейскурант на сортовой прокат_'!CD$7,'Прайс по регионам'!$1:$2,2,FALSE)-1,FALSE) -> 47572.63158 | CE26: =VLOOKUP($A26,'Прайс по регионам'!$B$5:$CJ$50,HLOOKUP('Прейскурант на сортовой прокат_'!CE$7,'Прайс по регионам'!$1:$2,2,FALSE)-1,FALSE) ->  | CF26: =VLOOKUP($A26,'Прайс по регионам'!$B$5:$CJ$50,HLOOKUP('Прейскурант на сортовой прокат_'!CF$7,'Прайс по регионам'!$1:$2,2,FALSE)-1,FALSE) -> 47572.63158 | CG26: =VLOOKUP($A26,'Прайс по регионам'!$B$5:$CJ$50,HLOOKUP('Прейскурант на сортовой прокат_'!CG$7,'Прайс по регионам'!$1:$2,2,FALSE)-1,FALSE) -> 45274.73684 | CH26: =VLOOKUP($A26,'Прайс по регионам'!$B$5:$CJ$50,HLOOKUP('Прейскурант на сортовой прокат_'!CH$7,'Прайс по регионам'!$1:$2,2,FALSE)-1,FALSE) -> 49684.21053 | CI26: =VLOOKUP($A26,'Прайс по регионам'!$B$5:$CJ$50,HLOOKUP('Прейскурант на сортовой прокат_'!CI$7,'Прайс по регионам'!$1:$2,2,FALSE)-1,FALSE) -> 48317.89474 | CJ26: =VLOOKUP($A26,'Прайс по регионам'!$B$5:$CJ$50,HLOOKUP('Прейскурант на сортовой прокат_'!CJ$7,'Прайс по регионам'!$1:$2,2,FALSE)-1,FALSE) -> 48317.89474 | CK26: =VLOOKUP($A26,'Прайс по регионам'!$B$5:$CJ$50,HLOOKUP('Прейскурант на сортовой прокат_'!CK$7,'Прайс по регионам'!$1:$2,2,FALSE)-1,FALSE) -> 48317.89474 | CL26: =VLOOKUP($A26,'Прайс по регионам'!$B$5:$CJ$50,HLOOKUP('Прейскурант на сортовой прокат_'!CL$7,'Прайс по регионам'!$1:$2,2,FALSE)-1,FALSE) -> 49249.47368 | CM26: =VLOOKUP($A26,'Прайс по регионам'!$B$5:$CJ$50,HLOOKUP('Прейскурант на сортовой прокат_'!CM$7,'Прайс по регионам'!$1:$2,2,FALSE)-1,FALSE) ->  | CN26: =VLOOKUP($A26,'Прайс по регионам'!$B$5:$CJ$50,HLOOKUP('Прейскурант на сортовой прокат_'!CN$7,'Прайс по регионам'!$1:$2,2,FALSE)-1,FALSE) -> 48317.89474 | CO26: =VLOOKUP($A26,'Прайс по регионам'!$B$5:$CJ$50,HLOOKUP('Прейскурант на сортовой прокат_'!CO$7,'Прайс по регионам'!$1:$2,2,FALSE)-1,FALSE) -> 49684.21053 | CP26: =VLOOKUP($A26,'Прайс по регионам'!$B$5:$CJ$50,HLOOKUP('Прейскурант на сортовой прокат_'!CP$7,'Прайс по регионам'!$1:$2,2,FALSE)-1,FALSE) -> 52603.15789 | CQ26: =VLOOKUP($A26,'Прайс по регионам'!$B$5:$CJ$50,HLOOKUP('Прейскурант на сортовой прокат_'!CQ$7,'Прайс по регионам'!$1:$2,2,FALSE)-1,FALSE) -> 49249.47368 | CR26: =VLOOKUP($A26,'Прайс по регионам'!$B$5:$CJ$50,HLOOKUP('Прейскурант на сортовой прокат_'!CR$7,'Прайс по регионам'!$1:$2,2,FALSE)-1,FALSE) -> 49187.36842
A27: А600С_10 | C27: А600С | D27: ТУ 14-1-5645-2014 | E27: ТУ 14-1-5645-2014 | F27: =VLOOKUP($A27,'Прайс по регионам'!$B$5:$CJ$50,HLOOKUP('Прейскурант на сортовой прокат_'!F$7,'Прайс по регионам'!$1:$2,2,FALSE)-1,FALSE) -> 47137.89474 | G27: =VLOOKUP($A27,'Прайс по регионам'!$B$5:$CJ$50,HLOOKUP('Прейскурант на сортовой прокат_'!G$7,'Прайс по регионам'!$1:$2,2,FALSE)-1,FALSE) -> 47137.89474 | H27: =VLOOKUP($A27,'Прайс по регионам'!$B$5:$CJ$50,HLOOKUP('Прейскурант на сортовой прокат_'!H$7,'Прайс по регионам'!$1:$2,2,FALSE)-1,FALSE) -> 46827.36842 | I27: =VLOOKUP($A27,'Прайс по регионам'!$B$5:$CJ$50,HLOOKUP('Прейскурант на сортовой прокат_'!I$7,'Прайс по регионам'!$1:$2,2,FALSE)-1,FALSE) -> 48007.36842 | J27: =VLOOKUP($A27,'Прайс по регионам'!$B$5:$CJ$50,HLOOKUP('Прейскурант на сортовой прокат_'!J$7,'Прайс по регионам'!$1:$2,2,FALSE)-1,FALSE) -> 47758.94737 | K27: =VLOOKUP($A27,'Прайс по регионам'!$B$5:$CJ$50,HLOOKUP('Прейскурант на сортовой прокат_'!K$7,'Прайс по регионам'!$1:$2,2,FALSE)-1,FALSE) -> 47883.15789 | L27: =VLOOKUP($A27,'Прайс по регионам'!$B$5:$CJ$50,HLOOKUP('Прейскурант на сортовой прокат_'!L$7,'Прайс по регионам'!$1:$2,2,FALSE)-1,FALSE) -> 48007.36842 | M27: =VLOOKUP($A27,'Прайс по регионам'!$B$5:$CJ$50,HLOOKUP('Прейскурант на сортовой прокат_'!M$7,'Прайс по регионам'!$1:$2,2,FALSE)-1,FALSE) -> 47883.15789 | N27: =VLOOKUP($A27,'Прайс по регионам'!$B$5:$CJ$50,HLOOKUP('Прейскурант на сортовой прокат_'!N$7,'Прайс по регионам'!$1:$2,2,FALSE)-1,FALSE) -> 48007.36842 | O27: =VLOOKUP($A27,'Прайс по регионам'!$B$5:$CJ$50,HLOOKUP('Прейскурант на сортовой прокат_'!O$7,'Прайс по регионам'!$1:$2,2,FALSE)-1,FALSE) ->  | P27: =VLOOKUP($A27,'Прайс по регионам'!$B$5:$CJ$50,HLOOKUP('Прейскурант на сортовой прокат_'!P$7,'Прайс по регионам'!$1:$2,2,FALSE)-1,FALSE) -> 48007.36842 | Q27: =VLOOKUP($A27,'Прайс по регионам'!$B$5:$CJ$50,HLOOKUP('Прейскурант на сортовой прокат_'!Q$7,'Прайс по регионам'!$1:$2,2,FALSE)-1,FALSE) -> 47572.63158 | R27: =VLOOKUP($A27,'Прайс по регионам'!$B$5:$CJ$50,HLOOKUP('Прейскурант на сортовой прокат_'!R$7,'Прайс по регионам'!$1:$2,2,FALSE)-1,FALSE) -> 47883.15789 | S27: =VLOOKUP($A27,'Прайс по регионам'!$B$5:$CJ$50,HLOOKUP('Прейскурант на сортовой прокат_'!S$7,'Прайс по регионам'!$1:$2,2,FALSE)-1,FALSE) -> 47758.94737 | T27: =VLOOKUP($A27,'Прайс по регионам'!$B$5:$CJ$50,HLOOKUP('Прейскурант на сортовой прокат_'!T$7,'Прайс по регионам'!$1:$2,2,FALSE)-1,FALSE) -> 47448.42105 | U27: =VLOOKUP($A27,'Прайс по регионам'!$B$5:$CJ$50,HLOOKUP('Прейскурант на сортовой прокат_'!U$7,'Прайс по регионам'!$1:$2,2,FALSE)-1,FALSE) -> 47448.42105 | V27: =VLOOKUP($A27,'Прайс по регионам'!$B$5:$CJ$50,HLOOKUP('Прейскурант на сортовой прокат_'!V$7,'Прайс по регионам'!$1:$2,2,FALSE)-1,FALSE) -> 46641.05263 | W27: =VLOOKUP($A27,'Прайс по регионам'!$B$5:$CJ$50,HLOOKUP('Прейскурант на сортовой прокат_'!W$7,'Прайс по регионам'!$1:$2,2,FALSE)-1,FALSE) -> 46951.57895 | X27: =VLOOKUP($A27,'Прайс по регионам'!$B$5:$CJ$50,HLOOKUP('Прейскурант на сортовой прокат_'!X$7,'Прайс по регионам'!$1:$2,2,FALSE)-1,FALSE) -> 46827.36842 | Y27: =VLOOKUP($A27,'Прайс по регионам'!$B$5:$CJ$50,HLOOKUP('Прейскурант на сортовой прокат_'!Y$7,'Прайс по регионам'!$1:$2,2,FALSE)-1,FALSE) ->  | Z27: =VLOOKUP($A27,'Прайс по регионам'!$B$5:$CJ$50,HLOOKUP('Прейскурант на сортовой прокат_'!Z$7,'Прайс по регионам'!$1:$2,2,FALSE)-1,FALSE) -> 46641.05263 | AA27: =VLOOKUP($A27,'Прайс по регионам'!$B$5:$CJ$50,HLOOKUP('Прейскурант на сортовой прокат_'!AA$7,'Прайс по регионам'!$1:$2,2,FALSE)-1,FALSE) -> 47137.89474 | AB27: =VLOOKUP($A27,'Прайс по регионам'!$B$5:$CJ$50,HLOOKUP('Прейскурант на сортовой прокат_'!AB$7,'Прайс по регионам'!$1:$2,2,FALSE)-1,FALSE) -> 46641.05263 | AC27: =VLOOKUP($A27,'Прайс по регионам'!$B$5:$CJ$50,HLOOKUP('Прейскурант на сортовой прокат_'!AC$7,'Прайс по регионам'!$1:$2,2,FALSE)-1,FALSE) -> 47262.10526 | AD27: =VLOOKUP($A27,'Прайс по регионам'!$B$5:$CJ$50,HLOOKUP('Прейскурант на сортовой прокат_'!AD$7,'Прайс по регионам'!$1:$2,2,FALSE)-1,FALSE) -> 46827.36842 | AE27: =VLOOKUP($A27,'Прайс по регионам'!$B$5:$CJ$50,HLOOKUP('Прейскурант на сортовой прокат_'!AE$7,'Прайс по регионам'!$1:$2,2,FALSE)-1,FALSE) -> 46827.36842 | AF27: =VLOOKUP($A27,'Прайс по регионам'!$B$5:$CJ$50,HLOOKUP('Прейскурант на сортовой прокат_'!AF$7,'Прайс по регионам'!$1:$2,2,FALSE)-1,FALSE) -> 47137.89474 | AG27: =VLOOKUP($A27,'Прайс по регионам'!$B$5:$CJ$50,HLOOKUP('Прейскурант на сортовой прокат_'!AG$7,'Прайс по регионам'!$1:$2,2,FALSE)-1,FALSE) -> 46765.26316 | AH27: =VLOOKUP($A27,'Прайс по регионам'!$B$5:$CJ$50,HLOOKUP('Прейскурант на сортовой прокат_'!AH$7,'Прайс по регионам'!$1:$2,2,FALSE)-1,FALSE) -> 47137.89474 | AI27: =VLOOKUP($A27,'Прайс по регионам'!$B$5:$CJ$50,HLOOKUP('Прейскурант на сортовой прокат_'!AI$7,'Прайс по регионам'!$1:$2,2,FALSE)-1,FALSE) ->  | AJ27: =VLOOKUP($A27,'Прайс по регионам'!$B$5:$CJ$50,HLOOKUP('Прейскурант на сортовой прокат_'!AJ$7,'Прайс по регионам'!$1:$2,2,FALSE)-1,FALSE) -> 46765.26316 | AK27: =VLOOKUP($A27,'Прайс по регионам'!$B$5:$CJ$50,HLOOKUP('Прейскурант на сортовой прокат_'!AK$7,'Прайс по регионам'!$1:$2,2,FALSE)-1,FALSE) -> 47386.31579 | AL27: =VLOOKUP($A27,'Прайс по регионам'!$B$5:$CJ$50,HLOOKUP('Прейскурант на сортовой прокат_'!AL$7,'Прайс по регионам'!$1:$2,2,FALSE)-1,FALSE) -> 46951.57895 | AM27: =VLOOKUP($A27,'Прайс по регионам'!$B$5:$CJ$50,HLOOKUP('Прейскурант на сортовой прокат_'!AM$7,'Прайс по регионам'!$1:$2,2,FALSE)-1,FALSE) -> 46641.05263 | AN27: =VLOOKUP($A27,'Прайс по регионам'!$B$5:$CJ$50,HLOOKUP('Прейскурант на сортовой прокат_'!AN$7,'Прайс по регионам'!$1:$2,2,FALSE)-1,FALSE) -> 47137.89474 | AO27: =VLOOKUP($A27,'Прайс по регионам'!$B$5:$CJ$50,HLOOKUP('Прейскурант на сортовой прокат_'!AO$7,'Прайс по регионам'!$1:$2,2,FALSE)-1,FALSE) -> 46641.05263 | AP27: =VLOOKUP($A27,'Прайс по регионам'!$B$5:$CJ$50,HLOOKUP('Прейскурант на сортовой прокат_'!AP$7,'Прайс по регионам'!$1:$2,2,FALSE)-1,FALSE) -> 47137.89474 | AQ27: =VLOOKUP($A27,'Прайс по регионам'!$B$5:$CJ$50,HLOOKUP('Прейскурант на сортовой прокат_'!AQ$7,'Прайс по регионам'!$1:$2,2,FALSE)-1,FALSE) -> 47137.89474 | AR27: =VLOOKUP($A27,'Прайс по регионам'!$B$5:$CJ$50,HLOOKUP('Прейскурант на сортовой прокат_'!AR$7,'Прайс по регионам'!$1:$2,2,FALSE)-1,FALSE) -> 48317.89474 | AS27: =VLOOKUP($A27,'Прайс по регионам'!$B$5:$CJ$50,HLOOKUP('Прейскурант на сортовой прокат_'!AS$7,'Прайс по регионам'!$1:$2,2,FALSE)-1,FALSE) ->  | AT27: =VLOOKUP($A27,'Прайс по регионам'!$B$5:$CJ$50,HLOOKUP('Прейскурант на сортовой прокат_'!AT$7,'Прайс по регионам'!$1:$2,2,FALSE)-1,FALSE) -> 47386.31579 | AU27: =VLOOKUP($A27,'Прайс по регионам'!$B$5:$CJ$50,HLOOKUP('Прейскурант на сортовой прокат_'!AU$7,'Прайс по регионам'!$1:$2,2,FALSE)-1,FALSE) -> 47386.31579 | AV27: =VLOOKUP($A27,'Прайс по регионам'!$B$5:$CJ$50,HLOOKUP('Прейскурант на сортовой прокат_'!AV$7,'Прайс по регионам'!$1:$2,2,FALSE)-1,FALSE) -> 47386.31579 | AW27: =VLOOKUP($A27,'Прайс по регионам'!$B$5:$CJ$50,HLOOKUP('Прейскурант на сортовой прокат_'!AW$7,'Прайс по регионам'!$1:$2,2,FALSE)-1,FALSE) -> 47262.10526 | AX27: =VLOOKUP($A27,'Прайс по регионам'!$B$5:$CJ$50,HLOOKUP('Прейскурант на сортовой прокат_'!AX$7,'Прайс по регионам'!$1:$2,2,FALSE)-1,FALSE) -> 45771.57895 | AY27: =VLOOKUP($A27,'Прайс по регионам'!$B$5:$CJ$50,HLOOKUP('Прейскурант на сортовой прокат_'!AY$7,'Прайс по регионам'!$1:$2,2,FALSE)-1,FALSE) -> 46206.31579 | AZ27: =VLOOKUP($A27,'Прайс по регионам'!$B$5:$CJ$50,HLOOKUP('Прейскурант на сортовой прокат_'!AZ$7,'Прайс по регионам'!$1:$2,2,FALSE)-1,FALSE) -> 45895.78947 | BA27: =VLOOKUP($A27,'Прайс по регионам'!$B$5:$CJ$50,HLOOKUP('Прейскурант на сортовой прокат_'!BA$7,'Прайс по регионам'!$1:$2,2,FALSE)-1,FALSE) -> 46330.52632 | BB27: =VLOOKUP($A27,'Прайс по регионам'!$B$5:$CJ$50,HLOOKUP('Прейскурант на сортовой прокат_'!BB$7,'Прайс по регионам'!$1:$2,2,FALSE)-1,FALSE) -> 45461.05263 | BC27: =VLOOKUP($A27,'Прайс по регионам'!$B$5:$CJ$50,HLOOKUP('Прейскурант на сортовой прокат_'!BC$7,'Прайс по регионам'!$1:$2,2,FALSE)-1,FALSE) ->  | BD27: =VLOOKUP($A27,'Прайс по регионам'!$B$5:$CJ$50,HLOOKUP('Прейскурант на сортовой прокат_'!BD$7,'Прайс по регионам'!$1:$2,2,FALSE)-1,FALSE) -> 45461.05263 | BE27: =VLOOKUP($A27,'Прайс по регионам'!$B$5:$CJ$50,HLOOKUP('Прейскурант на сортовой прокат_'!BE$7,'Прайс по регионам'!$1:$2,2,FALSE)-1,FALSE) -> 45895.78947 | BF27: =VLOOKUP($A27,'Прайс по регионам'!$B$5:$CJ$50,HLOOKUP('Прейскурант на сортовой прокат_'!BF$7,'Прайс по регионам'!$1:$2,2,FALSE)-1,FALSE) -> 46206.31579 | BG27: =VLOOKUP($A27,'Прайс по регионам'!$B$5:$CJ$50,HLOOKUP('Прейскурант на сортовой прокат_'!BG$7,'Прайс по регионам'!$1:$2,2,FALSE)-1,FALSE) -> 45771.57895 | BH27: =VLOOKUP($A27,'Прайс по регионам'!$B$5:$CJ$50,HLOOKUP('Прейскурант на сортовой прокат_'!BH$7,'Прайс по регионам'!$1:$2,2,FALSE)-1,FALSE) -> 45461.05263 | BI27: =VLOOKUP($A27,'Прайс по регионам'!$B$5:$CJ$50,HLOOKUP('Прейскурант на сортовой прокат_'!BI$7,'Прайс по регионам'!$1:$2,2,FALSE)-1,FALSE) -> 46020 | BJ27: =VLOOKUP($A27,'Прайс по регионам'!$B$5:$CJ$50,HLOOKUP('Прейскурант на сортовой прокат_'!BJ$7,'Прайс по регионам'!$1:$2,2,FALSE)-1,FALSE) -> 46330.52632 | BK27: =VLOOKUP($A27,'Прайс по регионам'!$B$5:$CJ$50,HLOOKUP('Прейскурант на сортовой прокат_'!BK$7,'Прайс по регионам'!$1:$2,2,FALSE)-1,FALSE) -> 45895.78947 | BL27: =VLOOKUP($A27,'Прайс по регионам'!$B$5:$CJ$50,HLOOKUP('Прейскурант на сортовой прокат_'!BL$7,'Прайс по регионам'!$1:$2,2,FALSE)-1,FALSE) -> 46020 | BM27: =VLOOKUP($A27,'Прайс по регионам'!$B$5:$CJ$50,HLOOKUP('Прейскурант на сортовой прокат_'!BM$7,'Прайс по регионам'!$1:$2,2,FALSE)-1,FALSE) ->  | BN27: =VLOOKUP($A27,'Прайс по регионам'!$B$5:$CJ$50,HLOOKUP('Прейскурант на сортовой прокат_'!BN$7,'Прайс по регионам'!$1:$2,2,FALSE)-1,FALSE) -> 47758.94737 | BO27: =VLOOKUP($A27,'Прайс по регионам'!$B$5:$CJ$50,HLOOKUP('Прейскурант на сортовой прокат_'!BO$7,'Прайс по регионам'!$1:$2,2,FALSE)-1,FALSE) -> 45274.73684 | BP27: =VLOOKUP($A27,'Прайс по регионам'!$B$5:$CJ$50,HLOOKUP('Прейскурант на сортовой прокат_'!BP$7,'Прайс по регионам'!$1:$2,2,FALSE)-1,FALSE) -> 45771.57895 | BQ27: =VLOOKUP($A27,'Прайс по регионам'!$B$5:$CJ$50,HLOOKUP('Прейскурант на сортовой прокат_'!BQ$7,'Прайс по регионам'!$1:$2,2,FALSE)-1,FALSE) -> 45709.47368 | BR27: =VLOOKUP($A27,'Прайс по регионам'!$B$5:$CJ$50,HLOOKUP('Прейскурант на сортовой прокат_'!BR$7,'Прайс по регионам'!$1:$2,2,FALSE)-1,FALSE) -> 45150.52632 | BS27: =VLOOKUP($A27,'Прайс по регионам'!$B$5:$CJ$50,HLOOKUP('Прейскурант на сортовой прокат_'!BS$7,'Прайс по регионам'!$1:$2,2,FALSE)-1,FALSE) -> 44529.47368 | BT27: =VLOOKUP($A27,'Прайс по регионам'!$B$5:$CJ$50,HLOOKUP('Прейскурант на сортовой прокат_'!BT$7,'Прайс по регионам'!$1:$2,2,FALSE)-1,FALSE) -> 47758.94737 | BU27: =VLOOKUP($A27,'Прайс по регионам'!$B$5:$CJ$50,HLOOKUP('Прейскурант на сортовой прокат_'!BU$7,'Прайс по регионам'!$1:$2,2,FALSE)-1,FALSE) ->  | BV27: =VLOOKUP($A27,'Прайс по регионам'!$B$5:$CJ$50,HLOOKUP('Прейскурант на сортовой прокат_'!BV$7,'Прайс по регионам'!$1:$2,2,FALSE)-1,FALSE) -> 45709.47368 | BW27: =VLOOKUP($A27,'Прайс по регионам'!$B$5:$CJ$50,HLOOKUP('Прейскурант на сортовой прокат_'!BW$7,'Прайс по регионам'!$1:$2,2,FALSE)-1,FALSE) -> 48069.47368 | BX27: =VLOOKUP($A27,'Прайс по регионам'!$B$5:$CJ$50,HLOOKUP('Прейскурант на сортовой прокат_'!BX$7,'Прайс по регионам'!$1:$2,2,FALSE)-1,FALSE) -> 45709.47368 | BY27: =VLOOKUP($A27,'Прайс по регионам'!$B$5:$CJ$50,HLOOKUP('Прейскурант на сортовой прокат_'!BY$7,'Прайс по регионам'!$1:$2,2,FALSE)-1,FALSE) -> 48069.47368 | BZ27: =VLOOKUP($A27,'Прайс по регионам'!$B$5:$CJ$50,HLOOKUP('Прейскурант на сортовой прокат_'!BZ$7,'Прайс по регионам'!$1:$2,2,FALSE)-1,FALSE) -> 45709.47368 | CA27: =VLOOKUP($A27,'Прайс по регионам'!$B$5:$CJ$50,HLOOKUP('Прейскурант на сортовой прокат_'!CA$7,'Прайс по регионам'!$1:$2,2,FALSE)-1,FALSE) -> 44653.68421 | CB27: =VLOOKUP($A27,'Прайс по регионам'!$B$5:$CJ$50,HLOOKUP('Прейскурант на сортовой прокат_'!CB$7,'Прайс по регионам'!$1:$2,2,FALSE)-1,FALSE) -> 45709.47368 | CC27: =VLOOKUP($A27,'Прайс по регионам'!$B$5:$CJ$50,HLOOKUP('Прейскурант на сортовой прокат_'!CC$7,'Прайс по регионам'!$1:$2,2,FALSE)-1,FALSE) -> 48566.31579 | CD27: =VLOOKUP($A27,'Прайс по регионам'!$B$5:$CJ$50,HLOOKUP('Прейскурант на сортовой прокат_'!CD$7,'Прайс по регионам'!$1:$2,2,FALSE)-1,FALSE) -> 48069.47368 | CE27: =VLOOKUP($A27,'Прайс по регионам'!$B$5:$CJ$50,HLOOKUP('Прейскурант на сортовой прокат_'!CE$7,'Прайс по регионам'!$1:$2,2,FALSE)-1,FALSE) ->  | CF27: =VLOOKUP($A27,'Прайс по регионам'!$B$5:$CJ$50,HLOOKUP('Прейскурант на сортовой прокат_'!CF$7,'Прайс по регионам'!$1:$2,2,FALSE)-1,FALSE) -> 48069.47368 | CG27: =VLOOKUP($A27,'Прайс по регионам'!$B$5:$CJ$50,HLOOKUP('Прейскурант на сортовой прокат_'!CG$7,'Прайс по регионам'!$1:$2,2,FALSE)-1,FALSE) -> 45709.47368 | CH27: =VLOOKUP($A27,'Прайс по регионам'!$B$5:$CJ$50,HLOOKUP('Прейскурант на сортовой прокат_'!CH$7,'Прайс по регионам'!$1:$2,2,FALSE)-1,FALSE) -> 50181.05263 | CI27: =VLOOKUP($A27,'Прайс по регионам'!$B$5:$CJ$50,HLOOKUP('Прейскурант на сортовой прокат_'!CI$7,'Прайс по регионам'!$1:$2,2,FALSE)-1,FALSE) -> 48814.73684 | CJ27: =VLOOKUP($A27,'Прайс по регионам'!$B$5:$CJ$50,HLOOKUP('Прейскурант на сортовой прокат_'!CJ$7,'Прайс по регионам'!$1:$2,2,FALSE)-1,FALSE) -> 48814.73684 | CK27: =VLOOKUP($A27,'Прайс по регионам'!$B$5:$CJ$50,HLOOKUP('Прейскурант на сортовой прокат_'!CK$7,'Прайс по регионам'!$1:$2,2,FALSE)-1,FALSE) -> 48814.73684 | CL27: =VLOOKUP($A27,'Прайс по регионам'!$B$5:$CJ$50,HLOOKUP('Прейскурант на сортовой прокат_'!CL$7,'Прайс по регионам'!$1:$2,2,FALSE)-1,FALSE) -> 49746.31579 | CM27: =VLOOKUP($A27,'Прайс по регионам'!$B$5:$CJ$50,HLOOKUP('Прейскурант на сортовой прокат_'!CM$7,'Прайс по регионам'!$1:$2,2,FALSE)-1,FALSE) ->  | CN27: =VLOOKUP($A27,'Прайс по регионам'!$B$5:$CJ$50,HLOOKUP('Прейскурант на сортовой прокат_'!CN$7,'Прайс по регионам'!$1:$2,2,FALSE)-1,FALSE) -> 48814.73684 | CO27: =VLOOKUP($A27,'Прайс по регионам'!$B$5:$CJ$50,HLOOKUP('Прейскурант на сортовой прокат_'!CO$7,'Прайс по регионам'!$1:$2,2,FALSE)-1,FALSE) -> 50181.05263 | CP27: =VLOOKUP($A27,'Прайс по регионам'!$B$5:$CJ$50,HLOOKUP('Прейскурант на сортовой прокат_'!CP$7,'Прайс по регионам'!$1:$2,2,FALSE)-1,FALSE) -> 53100 | CQ27: =VLOOKUP($A27,'Прайс по регионам'!$B$5:$CJ$50,HLOOKUP('Прейскурант на сортовой прокат_'!CQ$7,'Прайс по регионам'!$1:$2,2,FALSE)-1,FALSE) -> 49746.31579 | CR27: =VLOOKUP($A27,'Прайс по регионам'!$B$5:$CJ$50,HLOOKUP('Прейскурант на сортовой прокат_'!CR$7,'Прайс по регионам'!$1:$2,2,FALSE)-1,FALSE) -> 49684.21053
